{"text_format":"1","workbook":"xlsx","n_sheets":43,"sheets":["Info+Engagés","Horaires","Cav1","Cav2","Cav3","Cav4","Cav5","Cav6","Cav7","Cav8","Cav9","Cav10","Cav11","Cav12","Cav13","Cav14","Cav15","Cav16","Cav17","Cav18","Cav19","Cav20","Cav21","Cav22","Cav23","Cav24","Cav25","Cav26","Cav27","Cav28","Cav29","Cav30","Cav31","Cav32","Cav33","Cav34","Cav35","Cav36","Cav37","Cav38","Cav39","Cav40","Résultats"],"not_rendered":{"charts":0,"images":1,"macros":1,"external_links":0,"defined_names":2,"comments":4,"pivot_tables":0},"unopened":[],"bounds":{"document_bytes":16777216,"sheet_cells":100000,"rows_first":2000,"rows_last":500,"rows_between":2000,"halvings":0,"cell_chars":16384,"cell_head_chars":4096},"cells_cut":0,"cells_raw":0,"read":"whole","date_system":"1900"}

{"sheet":"Info+Engagés","index":0,"n_rows":51,"n_cols":11,"rows_kept":51,"cut":false,"hidden":false,"merged":[[1,1,1,4],[1,7,1,10],[2,1,2,4],[2,7,2,10],[3,1,3,4],[3,7,3,10],[4,1,4,2],[4,7,4,10],[5,1,5,2],[5,7,5,10],[7,1,8,7]]}
[]
["Date du concours","Quelle Date ?",null,null,null,null,"Juge E"]
["Lieu du concours","Quel Lieu ? (Département ?)",null,null,null,null,"Juge H"]
["N° de concours","Quel N° ?",null,null,null,null,"Juge C","Nom du juge en C"]
["N° d’épreuve","Quel N° ?",null,null,null,null,"Juge M"]
["N° de piste","Quelle Piste ?",null,null,null,null,"Juge B"]
[null,null,null,null,null,null," "]
[null,"Amateur 3 Grand Prix (D1)",null,null,null,null,null,null,null,"Dotation",0]
[]
[]
["N° Départ","Cheval","Age","Sexe","Robe","Race","Cavalier","Licence","CRE","Club","Etat"]
[1,"Nom du Cheval 1",7,"H","Alz","KWPN","Nom du Cavalier 1","xxxxxx","Provence","xxxxxxx"]
[2,"Nom du cheval 2",null,null,null,null,"Nom du Cavalier 2"]
[3,"Nom du cheval 3",null,null,null,null,"Nom du Cavalier 3"]
[4,"Nom du cheval 4",null,null,null,null,"Nom du Cavalier 4"]
[5,"Nom du cheval 5",null,null,null,null,"Nom du Cavalier 5"]
[6,"Nom du cheval 6"]
[7,"Nom du cheval 7"]
[8,"Nom du cheval 8"]
[9,"Nom du cheval 9"]
[10,"Nom du cheval 10"]
[11,"Nom du cheval 11"]
[12,"Nom du cheval 12"]
[13,"Nom du cheval 13"]
[14,"Nom du cheval 14"]
[15,"Nom du cheval 15"]
[16,"Nom du cheval 16"]
[17,"Nom du cheval 17"]
[18,"Nom du cheval 18"]
[19,"Nom du cheval 19"]
[20,"Nom du cheval 20"]
[21,"Nom du cheval 21"]
[22,"Nom du cheval 22"]
[23,"Nom du cheval 23"]
[24,"Nom du cheval 24"]
[25,"Nom du cheval 25"]
[26,"Nom du cheval 26"]
[27,"Nom du cheval 27"]
[28,"Nom du cheval 28"]
[29,"Nom du cheval 29"]
[30,"Nom du cheval 30"]
[31,"Nom du cheval 31"]
[32,"Nom du cheval 32"]
[33,"Nom du cheval 33"]
[34,"Nom du cheval 34"]
[35,"Nom du cheval 35"]
[36,"Nom du cheval 36"]
[37,"Nom du cheval 37"]
[38,"Nom du cheval 38"]
[39,"Nom du cheval 39"]
[40]

{"sheet":"Horaires","index":1,"n_rows":51,"n_cols":11,"rows_kept":51,"cut":false,"hidden":false,"merged":[[1,1,1,4],[2,1,2,4],[1,6,2,10],[5,7,5,10],[7,1,8,7],[4,7,4,9],[8,8,8,9],[7,8,7,9]]}
[]
["Date du concours",{"$f":"IF(ISBLANK('Info+Engagés'!B2),\"\",('Info+Engagés'!B2))","v":"Quelle Date ?"},null,null,null,null,{"$f":"IF(ISBLANK('Info+Engagés'!B3),\"\",('Info+Engagés'!B3))","v":"Quel Lieu ? (Département ?)"}]
[]
["N° d’épreuve",{"$f":"IF(ISBLANK('Info+Engagés'!B5),\"\",('Info+Engagés'!B5))","v":"Quel N° ?"}]
["N° de piste",{"$f":"IF(ISBLANK('Info+Engagés'!B6),\"\",('Info+Engagés'!B6))","v":"Quelle Piste ?"},null,null,null,null,null,{"$f":"IF(ISBLANK('Info+Engagés'!B4),\"\",('Info+Engagés'!B4))","v":"Quel N° ?"}]
["Dotation",{"$f":"IF(ISBLANK('Info+Engagés'!K8),\"\",('Info+Engagés'!K8))","v":0}]
[null,null,null,null,null,null," "]
[null,{"$f":"IF(ISBLANK('Info+Engagés'!B8),\"\",('Info+Engagés'!B8))","v":"Amateur 3 Grand Prix (D1)"},null,null,null,null,null,null,"Début de la reprise",null,"08:00:00"]
[null,null,null,null,null,null,null,null,"Durée de la reprise",null,"00:08:00"]
[null,null,null,null,null,null,null,null,"Pause",1,"00:10:00"]
["N° Départ","Cavalier","Club","CRE","Licence","Cheval","Age","Sexe","Race","Eleveur","Horaires"]
[{"$f":"IF(B12=\"pause\",\"\",MAX($A$11:A11)+1)","v":1},{"$f":"IF(ISBLANK('Info+Engagés'!G12),\"\",('Info+Engagés'!G12))","v":"Nom du Cavalier 1"},{"$f":"IF(ISBLANK('Info+Engagés'!J12),\"\",('Info+Engagés'!J12))","v":"xxxxxxx"},{"$f":"IF(ISBLANK('Info+Engagés'!I12),\"\",('Info+Engagés'!I12))","v":"Provence"},null,{"$f":"IF(ISBLANK('Info+Engagés'!B12),\"\",('Info+Engagés'!B12))","v":"Nom du Cheval 1"},{"$f":"IF(ISBLANK('Info+Engagés'!C12),\"\",('Info+Engagés'!C12))","v":7},{"$f":"IF(ISBLANK('Info+Engagés'!D12),\"\",('Info+Engagés'!D12))","v":"H"},{"$f":"IF(ISBLANK('Info+Engagés'!F12),\"\",('Info+Engagés'!F12))","v":"KWPN"},null,{"$f":"K8","v":"08:00:00"}]
[{"$f":"IF(B13=\"pause\",\"\",MAX($A$11:A12)+1)","v":2},{"$f":"IF(ISBLANK('Info+Engagés'!G13),\"\",('Info+Engagés'!G13))","v":"Nom du Cavalier 2"},{"$f":"IF(ISBLANK('Info+Engagés'!J13),\"\",('Info+Engagés'!J13))","v":""},{"$f":"IF(ISBLANK('Info+Engagés'!I13),\"\",('Info+Engagés'!I13))","v":""},{"$f":"IF(ISBLANK('Info+Engagés'!H13),\"\",('Info+Engagés'!H13))","v":""},{"$f":"IF(ISBLANK('Info+Engagés'!B13),\"\",('Info+Engagés'!B13))","v":"Nom du cheval 2"},{"$f":"IF(ISBLANK('Info+Engagés'!C13),\"\",('Info+Engagés'!C13))","v":""},{"$f":"IF(ISBLANK('Info+Engagés'!D13),\"\",('Info+Engagés'!D13))","v":""},{"$f":"IF(ISBLANK('Info+Engagés'!F13),\"\",('Info+Engagés'!F13))","v":""},null,{"$f":"IF(B13=\"Pause\",\"\",IF(B12=\"Pause\",K11+$K$10,IF(B13=\"\",\"\",K12+$K$9)))","v":"08:08:00"}]
[{"$f":"IF(B14=\"pause\",\"\",MAX($A$11:A13)+1)","v":3},{"$f":"IF(ISBLANK('Info+Engagés'!G14),\"\",('Info+Engagés'!G14))","v":"Nom du Cavalier 3"},{"$f":"IF(ISBLANK('Info+Engagés'!J14),\"\",('Info+Engagés'!J14))","v":""},{"$f":"IF(ISBLANK('Info+Engagés'!I14),\"\",('Info+Engagés'!I14))","v":""},{"$f":"IF(ISBLANK('Info+Engagés'!H14),\"\",('Info+Engagés'!H14))","v":""},{"$f":"IF(ISBLANK('Info+Engagés'!B14),\"\",('Info+Engagés'!B14))","v":"Nom du cheval 3"},{"$f":"IF(ISBLANK('Info+Engagés'!C14),\"\",('Info+Engagés'!C14))","v":""},{"$f":"IF(ISBLANK('Info+Engagés'!D14),\"\",('Info+Engagés'!D14))","v":""},{"$f":"IF(ISBLANK('Info+Engagés'!F14),\"\",('Info+Engagés'!F14))","v":""},null,"08:16:00"]
[{"$f":"IF(B15=\"pause\",\"\",MAX($A$11:A14)+1)","v":4},{"$f":"IF(ISBLANK('Info+Engagés'!G15),\"\",('Info+Engagés'!G15))","v":"Nom du Cavalier 4"},{"$f":"IF(ISBLANK('Info+Engagés'!J15),\"\",('Info+Engagés'!J15))","v":""},{"$f":"IF(ISBLANK('Info+Engagés'!I15),\"\",('Info+Engagés'!I15))","v":""},{"$f":"IF(ISBLANK('Info+Engagés'!H15),\"\",('Info+Engagés'!H15))","v":""},{"$f":"IF(ISBLANK('Info+Engagés'!B15),\"\",('Info+Engagés'!B15))","v":"Nom du cheval 4"},{"$f":"IF(ISBLANK('Info+Engagés'!C15),\"\",('Info+Engagés'!C15))","v":""},{"$f":"IF(ISBLANK('Info+Engagés'!D15),\"\",('Info+Engagés'!D15))","v":""},{"$f":"IF(ISBLANK('Info+Engagés'!F15),\"\",('Info+Engagés'!F15))","v":""},null,"08:24:00"]
[{"$f":"IF(B16=\"pause\",\"\",MAX($A$11:A15)+1)","v":5},{"$f":"IF(ISBLANK('Info+Engagés'!G16),\"\",('Info+Engagés'!G16))","v":"Nom du Cavalier 5"},{"$f":"IF(ISBLANK('Info+Engagés'!J16),\"\",('Info+Engagés'!J16))","v":""},{"$f":"IF(ISBLANK('Info+Engagés'!I16),\"\",('Info+Engagés'!I16))","v":""},{"$f":"IF(ISBLANK('Info+Engagés'!H16),\"\",('Info+Engagés'!H16))","v":""},{"$f":"IF(ISBLANK('Info+Engagés'!B16),\"\",('Info+Engagés'!B16))","v":"Nom du cheval 5"},{"$f":"IF(ISBLANK('Info+Engagés'!C16),\"\",('Info+Engagés'!C16))","v":""},{"$f":"IF(ISBLANK('Info+Engagés'!D16),\"\",('Info+Engagés'!D16))","v":""},{"$f":"IF(ISBLANK('Info+Engagés'!F16),\"\",('Info+Engagés'!F16))","v":""},null,"08:32:00"]
[{"$f":"IF(B17=\"pause\",\"\",MAX($A$11:A16)+1)","v":""},"pause",{"$f":"IF(ISBLANK('Info+Engagés'!J17),\"\",('Info+Engagés'!J17))","v":""},{"$f":"IF(ISBLANK('Info+Engagés'!I17),\"\",('Info+Engagés'!I17))","v":""},{"$f":"IF(ISBLANK('Info+Engagés'!H17),\"\",('Info+Engagés'!H17))","v":""},{"$f":"IF(ISBLANK('Info+Engagés'!B17),\"\",('Info+Engagés'!B17))","v":"Nom du cheval 6"},{"$f":"IF(ISBLANK('Info+Engagés'!C17),\"\",('Info+Engagés'!C17))","v":""},{"$f":"IF(ISBLANK('Info+Engagés'!D17),\"\",('Info+Engagés'!D17))","v":""},{"$f":"IF(ISBLANK('Info+Engagés'!F17),\"\",('Info+Engagés'!F17))","v":""},null,""]
[{"$f":"IF(B18=\"pause\",\"\",MAX($A$11:A17)+1)","v":6},"gj",{"$f":"IF(ISBLANK('Info+Engagés'!J18),\"\",('Info+Engagés'!J18))","v":""},{"$f":"IF(ISBLANK('Info+Engagés'!I18),\"\",('Info+Engagés'!I18))","v":""},{"$f":"IF(ISBLANK('Info+Engagés'!H18),\"\",('Info+Engagés'!H18))","v":""},{"$f":"IF(ISBLANK('Info+Engagés'!B18),\"\",('Info+Engagés'!B18))","v":"Nom du cheval 7"},{"$f":"IF(ISBLANK('Info+Engagés'!C18),\"\",('Info+Engagés'!C18))","v":""},{"$f":"IF(ISBLANK('Info+Engagés'!D18),\"\",('Info+Engagés'!D18))","v":""},{"$f":"IF(ISBLANK('Info+Engagés'!F18),\"\",('Info+Engagés'!F18))","v":""},null,"08:42:00"]
[{"$f":"IF(B19=\"pause\",\"\",MAX($A$11:A18)+1)","v":7},"bjk",{"$f":"IF(ISBLANK('Info+Engagés'!J19),\"\",('Info+Engagés'!J19))","v":""},{"$f":"IF(ISBLANK('Info+Engagés'!I19),\"\",('Info+Engagés'!I19))","v":""},{"$f":"IF(ISBLANK('Info+Engagés'!H19),\"\",('Info+Engagés'!H19))","v":""},{"$f":"IF(ISBLANK('Info+Engagés'!B19),\"\",('Info+Engagés'!B19))","v":"Nom du cheval 8"},{"$f":"IF(ISBLANK('Info+Engagés'!C19),\"\",('Info+Engagés'!C19))","v":""},{"$f":"IF(ISBLANK('Info+Engagés'!D19),\"\",('Info+Engagés'!D19))","v":""},{"$f":"IF(ISBLANK('Info+Engagés'!F19),\"\",('Info+Engagés'!F19))","v":""},null,"08:50:00"]
[{"$f":"IF(B20=\"pause\",\"\",MAX($A$11:A19)+1)","v":8},{"$f":"IF(ISBLANK('Info+Engagés'!G20),\"\",('Info+Engagés'!G20))","v":""},{"$f":"IF(ISBLANK('Info+Engagés'!J20),\"\",('Info+Engagés'!J20))","v":""},{"$f":"IF(ISBLANK('Info+Engagés'!I20),\"\",('Info+Engagés'!I20))","v":""},{"$f":"IF(ISBLANK('Info+Engagés'!H20),\"\",('Info+Engagés'!H20))","v":""},{"$f":"IF(ISBLANK('Info+Engagés'!B20),\"\",('Info+Engagés'!B20))","v":"Nom du cheval 9"},{"$f":"IF(ISBLANK('Info+Engagés'!C20),\"\",('Info+Engagés'!C20))","v":""},{"$f":"IF(ISBLANK('Info+Engagés'!D20),\"\",('Info+Engagés'!D20))","v":""},{"$f":"IF(ISBLANK('Info+Engagés'!F20),\"\",('Info+Engagés'!F20))","v":""},null,""]
[{"$f":"IF(B21=\"pause\",\"\",MAX($A$11:A20)+1)","v":9},{"$f":"IF(ISBLANK('Info+Engagés'!G21),\"\",('Info+Engagés'!G21))","v":""},{"$f":"IF(ISBLANK('Info+Engagés'!J21),\"\",('Info+Engagés'!J21))","v":""},{"$f":"IF(ISBLANK('Info+Engagés'!I21),\"\",('Info+Engagés'!I21))","v":""},{"$f":"IF(ISBLANK('Info+Engagés'!H21),\"\",('Info+Engagés'!H21))","v":""},{"$f":"IF(ISBLANK('Info+Engagés'!B21),\"\",('Info+Engagés'!B21))","v":"Nom du cheval 10"},{"$f":"IF(ISBLANK('Info+Engagés'!C21),\"\",('Info+Engagés'!C21))","v":""},{"$f":"IF(ISBLANK('Info+Engagés'!D21),\"\",('Info+Engagés'!D21))","v":""},{"$f":"IF(ISBLANK('Info+Engagés'!F21),\"\",('Info+Engagés'!F21))","v":""},null,""]
[{"$f":"IF(B22=\"pause\",\"\",MAX($A$11:A21)+1)","v":10},{"$f":"IF(ISBLANK('Info+Engagés'!G22),\"\",('Info+Engagés'!G22))","v":""},{"$f":"IF(ISBLANK('Info+Engagés'!J22),\"\",('Info+Engagés'!J22))","v":""},{"$f":"IF(ISBLANK('Info+Engagés'!I22),\"\",('Info+Engagés'!I22))","v":""},{"$f":"IF(ISBLANK('Info+Engagés'!H22),\"\",('Info+Engagés'!H22))","v":""},{"$f":"IF(ISBLANK('Info+Engagés'!B22),\"\",('Info+Engagés'!B22))","v":"Nom du cheval 11"},{"$f":"IF(ISBLANK('Info+Engagés'!C22),\"\",('Info+Engagés'!C22))","v":""},{"$f":"IF(ISBLANK('Info+Engagés'!D22),\"\",('Info+Engagés'!D22))","v":""},{"$f":"IF(ISBLANK('Info+Engagés'!F22),\"\",('Info+Engagés'!F22))","v":""},null,""]
[{"$f":"IF(B23=\"pause\",\"\",MAX($A$11:A22)+1)","v":11},{"$f":"IF(ISBLANK('Info+Engagés'!G23),\"\",('Info+Engagés'!G23))","v":""},{"$f":"IF(ISBLANK('Info+Engagés'!J23),\"\",('Info+Engagés'!J23))","v":""},{"$f":"IF(ISBLANK('Info+Engagés'!I23),\"\",('Info+Engagés'!I23))","v":""},{"$f":"IF(ISBLANK('Info+Engagés'!H23),\"\",('Info+Engagés'!H23))","v":""},{"$f":"IF(ISBLANK('Info+Engagés'!B23),\"\",('Info+Engagés'!B23))","v":"Nom du cheval 12"},{"$f":"IF(ISBLANK('Info+Engagés'!C23),\"\",('Info+Engagés'!C23))","v":""},{"$f":"IF(ISBLANK('Info+Engagés'!D23),\"\",('Info+Engagés'!D23))","v":""},{"$f":"IF(ISBLANK('Info+Engagés'!F23),\"\",('Info+Engagés'!F23))","v":""},null,""]
[{"$f":"IF(B24=\"pause\",\"\",MAX($A$11:A23)+1)","v":12},{"$f":"IF(ISBLANK('Info+Engagés'!G24),\"\",('Info+Engagés'!G24))","v":""},{"$f":"IF(ISBLANK('Info+Engagés'!J24),\"\",('Info+Engagés'!J24))","v":""},{"$f":"IF(ISBLANK('Info+Engagés'!I24),\"\",('Info+Engagés'!I24))","v":""},{"$f":"IF(ISBLANK('Info+Engagés'!H24),\"\",('Info+Engagés'!H24))","v":""},{"$f":"IF(ISBLANK('Info+Engagés'!B24),\"\",('Info+Engagés'!B24))","v":"Nom du cheval 13"},{"$f":"IF(ISBLANK('Info+Engagés'!C24),\"\",('Info+Engagés'!C24))","v":""},{"$f":"IF(ISBLANK('Info+Engagés'!D24),\"\",('Info+Engagés'!D24))","v":""},{"$f":"IF(ISBLANK('Info+Engagés'!F24),\"\",('Info+Engagés'!F24))","v":""},null,""]
[{"$f":"IF(B25=\"pause\",\"\",MAX($A$11:A24)+1)","v":13},{"$f":"IF(ISBLANK('Info+Engagés'!G25),\"\",('Info+Engagés'!G25))","v":""},{"$f":"IF(ISBLANK('Info+Engagés'!J25),\"\",('Info+Engagés'!J25))","v":""},{"$f":"IF(ISBLANK('Info+Engagés'!I25),\"\",('Info+Engagés'!I25))","v":""},{"$f":"IF(ISBLANK('Info+Engagés'!H25),\"\",('Info+Engagés'!H25))","v":""},{"$f":"IF(ISBLANK('Info+Engagés'!B25),\"\",('Info+Engagés'!B25))","v":"Nom du cheval 14"},{"$f":"IF(ISBLANK('Info+Engagés'!C25),\"\",('Info+Engagés'!C25))","v":""},{"$f":"IF(ISBLANK('Info+Engagés'!D25),\"\",('Info+Engagés'!D25))","v":""},{"$f":"IF(ISBLANK('Info+Engagés'!F25),\"\",('Info+Engagés'!F25))","v":""},null,""]
[{"$f":"IF(B26=\"pause\",\"\",MAX($A$11:A25)+1)","v":14},{"$f":"IF(ISBLANK('Info+Engagés'!G26),\"\",('Info+Engagés'!G26))","v":""},{"$f":"IF(ISBLANK('Info+Engagés'!J26),\"\",('Info+Engagés'!J26))","v":""},{"$f":"IF(ISBLANK('Info+Engagés'!I26),\"\",('Info+Engagés'!I26))","v":""},{"$f":"IF(ISBLANK('Info+Engagés'!H26),\"\",('Info+Engagés'!H26))","v":""},{"$f":"IF(ISBLANK('Info+Engagés'!B26),\"\",('Info+Engagés'!B26))","v":"Nom du cheval 15"},{"$f":"IF(ISBLANK('Info+Engagés'!C26),\"\",('Info+Engagés'!C26))","v":""},{"$f":"IF(ISBLANK('Info+Engagés'!D26),\"\",('Info+Engagés'!D26))","v":""},{"$f":"IF(ISBLANK('Info+Engagés'!F26),\"\",('Info+Engagés'!F26))","v":""},null,""]
[{"$f":"IF(B27=\"pause\",\"\",MAX($A$11:A26)+1)","v":15},{"$f":"IF(ISBLANK('Info+Engagés'!G27),\"\",('Info+Engagés'!G27))","v":""},{"$f":"IF(ISBLANK('Info+Engagés'!J27),\"\",('Info+Engagés'!J27))","v":""},{"$f":"IF(ISBLANK('Info+Engagés'!I27),\"\",('Info+Engagés'!I27))","v":""},{"$f":"IF(ISBLANK('Info+Engagés'!H27),\"\",('Info+Engagés'!H27))","v":""},{"$f":"IF(ISBLANK('Info+Engagés'!B27),\"\",('Info+Engagés'!B27))","v":"Nom du cheval 16"},{"$f":"IF(ISBLANK('Info+Engagés'!C27),\"\",('Info+Engagés'!C27))","v":""},{"$f":"IF(ISBLANK('Info+Engagés'!D27),\"\",('Info+Engagés'!D27))","v":""},{"$f":"IF(ISBLANK('Info+Engagés'!F27),\"\",('Info+Engagés'!F27))","v":""},null,""]
[{"$f":"IF(B28=\"pause\",\"\",MAX($A$11:A27)+1)","v":16},{"$f":"IF(ISBLANK('Info+Engagés'!G28),\"\",('Info+Engagés'!G28))","v":""},{"$f":"IF(ISBLANK('Info+Engagés'!J28),\"\",('Info+Engagés'!J28))","v":""},{"$f":"IF(ISBLANK('Info+Engagés'!I28),\"\",('Info+Engagés'!I28))","v":""},{"$f":"IF(ISBLANK('Info+Engagés'!H28),\"\",('Info+Engagés'!H28))","v":""},{"$f":"IF(ISBLANK('Info+Engagés'!B28),\"\",('Info+Engagés'!B28))","v":"Nom du cheval 17"},{"$f":"IF(ISBLANK('Info+Engagés'!C28),\"\",('Info+Engagés'!C28))","v":""},{"$f":"IF(ISBLANK('Info+Engagés'!D28),\"\",('Info+Engagés'!D28))","v":""},{"$f":"IF(ISBLANK('Info+Engagés'!F28),\"\",('Info+Engagés'!F28))","v":""},null,""]
[{"$f":"IF(B29=\"pause\",\"\",MAX($A$11:A28)+1)","v":17},{"$f":"IF(ISBLANK('Info+Engagés'!G29),\"\",('Info+Engagés'!G29))","v":""},{"$f":"IF(ISBLANK('Info+Engagés'!J29),\"\",('Info+Engagés'!J29))","v":""},{"$f":"IF(ISBLANK('Info+Engagés'!I29),\"\",('Info+Engagés'!I29))","v":""},{"$f":"IF(ISBLANK('Info+Engagés'!H29),\"\",('Info+Engagés'!H29))","v":""},{"$f":"IF(ISBLANK('Info+Engagés'!B29),\"\",('Info+Engagés'!B29))","v":"Nom du cheval 18"},{"$f":"IF(ISBLANK('Info+Engagés'!C29),\"\",('Info+Engagés'!C29))","v":""},{"$f":"IF(ISBLANK('Info+Engagés'!D29),\"\",('Info+Engagés'!D29))","v":""},{"$f":"IF(ISBLANK('Info+Engagés'!F29),\"\",('Info+Engagés'!F29))","v":""},null,""]
[{"$f":"IF(B30=\"pause\",\"\",MAX($A$11:A29)+1)","v":18},{"$f":"IF(ISBLANK('Info+Engagés'!G30),\"\",('Info+Engagés'!G30))","v":""},{"$f":"IF(ISBLANK('Info+Engagés'!J30),\"\",('Info+Engagés'!J30))","v":""},{"$f":"IF(ISBLANK('Info+Engagés'!I30),\"\",('Info+Engagés'!I30))","v":""},{"$f":"IF(ISBLANK('Info+Engagés'!H30),\"\",('Info+Engagés'!H30))","v":""},{"$f":"IF(ISBLANK('Info+Engagés'!B30),\"\",('Info+Engagés'!B30))","v":"Nom du cheval 19"},{"$f":"IF(ISBLANK('Info+Engagés'!C30),\"\",('Info+Engagés'!C30))","v":""},{"$f":"IF(ISBLANK('Info+Engagés'!D30),\"\",('Info+Engagés'!D30))","v":""},{"$f":"IF(ISBLANK('Info+Engagés'!F30),\"\",('Info+Engagés'!F30))","v":""},null,""]
[{"$f":"IF(B31=\"pause\",\"\",MAX($A$11:A30)+1)","v":19},{"$f":"IF(ISBLANK('Info+Engagés'!G31),\"\",('Info+Engagés'!G31))","v":""},{"$f":"IF(ISBLANK('Info+Engagés'!J31),\"\",('Info+Engagés'!J31))","v":""},{"$f":"IF(ISBLANK('Info+Engagés'!I31),\"\",('Info+Engagés'!I31))","v":""},{"$f":"IF(ISBLANK('Info+Engagés'!H31),\"\",('Info+Engagés'!H31))","v":""},{"$f":"IF(ISBLANK('Info+Engagés'!B31),\"\",('Info+Engagés'!B31))","v":"Nom du cheval 20"},{"$f":"IF(ISBLANK('Info+Engagés'!C31),\"\",('Info+Engagés'!C31))","v":""},{"$f":"IF(ISBLANK('Info+Engagés'!D31),\"\",('Info+Engagés'!D31))","v":""},{"$f":"IF(ISBLANK('Info+Engagés'!F31),\"\",('Info+Engagés'!F31))","v":""},null,""]
[{"$f":"IF(B32=\"pause\",\"\",MAX($A$11:A31)+1)","v":20},{"$f":"IF(ISBLANK('Info+Engagés'!G32),\"\",('Info+Engagés'!G32))","v":""},{"$f":"IF(ISBLANK('Info+Engagés'!J32),\"\",('Info+Engagés'!J32))","v":""},{"$f":"IF(ISBLANK('Info+Engagés'!I32),\"\",('Info+Engagés'!I32))","v":""},{"$f":"IF(ISBLANK('Info+Engagés'!H32),\"\",('Info+Engagés'!H32))","v":""},{"$f":"IF(ISBLANK('Info+Engagés'!B32),\"\",('Info+Engagés'!B32))","v":"Nom du cheval 21"},{"$f":"IF(ISBLANK('Info+Engagés'!C32),\"\",('Info+Engagés'!C32))","v":""},{"$f":"IF(ISBLANK('Info+Engagés'!D32),\"\",('Info+Engagés'!D32))","v":""},{"$f":"IF(ISBLANK('Info+Engagés'!F32),\"\",('Info+Engagés'!F32))","v":""},null,""]
[{"$f":"IF(B33=\"pause\",\"\",MAX($A$11:A32)+1)","v":21},{"$f":"IF(ISBLANK('Info+Engagés'!G33),\"\",('Info+Engagés'!G33))","v":""},{"$f":"IF(ISBLANK('Info+Engagés'!J33),\"\",('Info+Engagés'!J33))","v":""},{"$f":"IF(ISBLANK('Info+Engagés'!I33),\"\",('Info+Engagés'!I33))","v":""},{"$f":"IF(ISBLANK('Info+Engagés'!H33),\"\",('Info+Engagés'!H33))","v":""},{"$f":"IF(ISBLANK('Info+Engagés'!B33),\"\",('Info+Engagés'!B33))","v":"Nom du cheval 22"},{"$f":"IF(ISBLANK('Info+Engagés'!C33),\"\",('Info+Engagés'!C33))","v":""},{"$f":"IF(ISBLANK('Info+Engagés'!D33),\"\",('Info+Engagés'!D33))","v":""},{"$f":"IF(ISBLANK('Info+Engagés'!F33),\"\",('Info+Engagés'!F33))","v":""},null,""]
[{"$f":"IF(B34=\"pause\",\"\",MAX($A$11:A33)+1)","v":22},{"$f":"IF(ISBLANK('Info+Engagés'!G34),\"\",('Info+Engagés'!G34))","v":""},{"$f":"IF(ISBLANK('Info+Engagés'!J34),\"\",('Info+Engagés'!J34))","v":""},{"$f":"IF(ISBLANK('Info+Engagés'!I34),\"\",('Info+Engagés'!I34))","v":""},{"$f":"IF(ISBLANK('Info+Engagés'!H34),\"\",('Info+Engagés'!H34))","v":""},{"$f":"IF(ISBLANK('Info+Engagés'!B34),\"\",('Info+Engagés'!B34))","v":"Nom du cheval 23"},{"$f":"IF(ISBLANK('Info+Engagés'!C34),\"\",('Info+Engagés'!C34))","v":""},{"$f":"IF(ISBLANK('Info+Engagés'!D34),\"\",('Info+Engagés'!D34))","v":""},{"$f":"IF(ISBLANK('Info+Engagés'!F34),\"\",('Info+Engagés'!F34))","v":""},null,""]
[{"$f":"IF(B35=\"pause\",\"\",MAX($A$11:A34)+1)","v":23},{"$f":"IF(ISBLANK('Info+Engagés'!G35),\"\",('Info+Engagés'!G35))","v":""},{"$f":"IF(ISBLANK('Info+Engagés'!J35),\"\",('Info+Engagés'!J35))","v":""},{"$f":"IF(ISBLANK('Info+Engagés'!I35),\"\",('Info+Engagés'!I35))","v":""},{"$f":"IF(ISBLANK('Info+Engagés'!H35),\"\",('Info+Engagés'!H35))","v":""},{"$f":"IF(ISBLANK('Info+Engagés'!B35),\"\",('Info+Engagés'!B35))","v":"Nom du cheval 24"},{"$f":"IF(ISBLANK('Info+Engagés'!C35),\"\",('Info+Engagés'!C35))","v":""},{"$f":"IF(ISBLANK('Info+Engagés'!D35),\"\",('Info+Engagés'!D35))","v":""},{"$f":"IF(ISBLANK('Info+Engagés'!F35),\"\",('Info+Engagés'!F35))","v":""},null,""]
[{"$f":"IF(B36=\"pause\",\"\",MAX($A$11:A35)+1)","v":24},{"$f":"IF(ISBLANK('Info+Engagés'!G36),\"\",('Info+Engagés'!G36))","v":""},{"$f":"IF(ISBLANK('Info+Engagés'!J36),\"\",('Info+Engagés'!J36))","v":""},{"$f":"IF(ISBLANK('Info+Engagés'!I36),\"\",('Info+Engagés'!I36))","v":""},{"$f":"IF(ISBLANK('Info+Engagés'!H36),\"\",('Info+Engagés'!H36))","v":""},{"$f":"IF(ISBLANK('Info+Engagés'!B36),\"\",('Info+Engagés'!B36))","v":"Nom du cheval 25"},{"$f":"IF(ISBLANK('Info+Engagés'!C36),\"\",('Info+Engagés'!C36))","v":""},{"$f":"IF(ISBLANK('Info+Engagés'!D36),\"\",('Info+Engagés'!D36))","v":""},{"$f":"IF(ISBLANK('Info+Engagés'!F36),\"\",('Info+Engagés'!F36))","v":""},null,""]
[{"$f":"IF(B37=\"pause\",\"\",MAX($A$11:A36)+1)","v":25},{"$f":"IF(ISBLANK('Info+Engagés'!G37),\"\",('Info+Engagés'!G37))","v":""},{"$f":"IF(ISBLANK('Info+Engagés'!J37),\"\",('Info+Engagés'!J37))","v":""},{"$f":"IF(ISBLANK('Info+Engagés'!I37),\"\",('Info+Engagés'!I37))","v":""},{"$f":"IF(ISBLANK('Info+Engagés'!H37),\"\",('Info+Engagés'!H37))","v":""},{"$f":"IF(ISBLANK('Info+Engagés'!B37),\"\",('Info+Engagés'!B37))","v":"Nom du cheval 26"},{"$f":"IF(ISBLANK('Info+Engagés'!C37),\"\",('Info+Engagés'!C37))","v":""},{"$f":"IF(ISBLANK('Info+Engagés'!D37),\"\",('Info+Engagés'!D37))","v":""},{"$f":"IF(ISBLANK('Info+Engagés'!F37),\"\",('Info+Engagés'!F37))","v":""},null,""]
[{"$f":"IF(B38=\"pause\",\"\",MAX($A$11:A37)+1)","v":26},{"$f":"IF(ISBLANK('Info+Engagés'!G38),\"\",('Info+Engagés'!G38))","v":""},{"$f":"IF(ISBLANK('Info+Engagés'!J38),\"\",('Info+Engagés'!J38))","v":""},{"$f":"IF(ISBLANK('Info+Engagés'!I38),\"\",('Info+Engagés'!I38))","v":""},{"$f":"IF(ISBLANK('Info+Engagés'!H38),\"\",('Info+Engagés'!H38))","v":""},{"$f":"IF(ISBLANK('Info+Engagés'!B38),\"\",('Info+Engagés'!B38))","v":"Nom du cheval 27"},{"$f":"IF(ISBLANK('Info+Engagés'!C38),\"\",('Info+Engagés'!C38))","v":""},{"$f":"IF(ISBLANK('Info+Engagés'!D38),\"\",('Info+Engagés'!D38))","v":""},{"$f":"IF(ISBLANK('Info+Engagés'!F38),\"\",('Info+Engagés'!F38))","v":""},null,""]
[{"$f":"IF(B39=\"pause\",\"\",MAX($A$11:A38)+1)","v":27},{"$f":"IF(ISBLANK('Info+Engagés'!G39),\"\",('Info+Engagés'!G39))","v":""},{"$f":"IF(ISBLANK('Info+Engagés'!J39),\"\",('Info+Engagés'!J39))","v":""},{"$f":"IF(ISBLANK('Info+Engagés'!I39),\"\",('Info+Engagés'!I39))","v":""},{"$f":"IF(ISBLANK('Info+Engagés'!H39),\"\",('Info+Engagés'!H39))","v":""},{"$f":"IF(ISBLANK('Info+Engagés'!B39),\"\",('Info+Engagés'!B39))","v":"Nom du cheval 28"},{"$f":"IF(ISBLANK('Info+Engagés'!C39),\"\",('Info+Engagés'!C39))","v":""},{"$f":"IF(ISBLANK('Info+Engagés'!D39),\"\",('Info+Engagés'!D39))","v":""},{"$f":"IF(ISBLANK('Info+Engagés'!F39),\"\",('Info+Engagés'!F39))","v":""},null,""]
[{"$f":"IF(B40=\"pause\",\"\",MAX($A$11:A39)+1)","v":28},{"$f":"IF(ISBLANK('Info+Engagés'!G40),\"\",('Info+Engagés'!G40))","v":""},{"$f":"IF(ISBLANK('Info+Engagés'!J40),\"\",('Info+Engagés'!J40))","v":""},{"$f":"IF(ISBLANK('Info+Engagés'!I40),\"\",('Info+Engagés'!I40))","v":""},{"$f":"IF(ISBLANK('Info+Engagés'!H40),\"\",('Info+Engagés'!H40))","v":""},{"$f":"IF(ISBLANK('Info+Engagés'!B40),\"\",('Info+Engagés'!B40))","v":"Nom du cheval 29"},{"$f":"IF(ISBLANK('Info+Engagés'!C40),\"\",('Info+Engagés'!C40))","v":""},{"$f":"IF(ISBLANK('Info+Engagés'!D40),\"\",('Info+Engagés'!D40))","v":""},{"$f":"IF(ISBLANK('Info+Engagés'!F40),\"\",('Info+Engagés'!F40))","v":""},null,""]
[{"$f":"IF(B41=\"pause\",\"\",MAX($A$11:A40)+1)","v":29},{"$f":"IF(ISBLANK('Info+Engagés'!G41),\"\",('Info+Engagés'!G41))","v":""},{"$f":"IF(ISBLANK('Info+Engagés'!J41),\"\",('Info+Engagés'!J41))","v":""},{"$f":"IF(ISBLANK('Info+Engagés'!I41),\"\",('Info+Engagés'!I41))","v":""},{"$f":"IF(ISBLANK('Info+Engagés'!H41),\"\",('Info+Engagés'!H41))","v":""},{"$f":"IF(ISBLANK('Info+Engagés'!B41),\"\",('Info+Engagés'!B41))","v":"Nom du cheval 30"},{"$f":"IF(ISBLANK('Info+Engagés'!C41),\"\",('Info+Engagés'!C41))","v":""},{"$f":"IF(ISBLANK('Info+Engagés'!D41),\"\",('Info+Engagés'!D41))","v":""},{"$f":"IF(ISBLANK('Info+Engagés'!F41),\"\",('Info+Engagés'!F41))","v":""},null,""]
[{"$f":"IF(B42=\"pause\",\"\",MAX($A$11:A41)+1)","v":30},{"$f":"IF(ISBLANK('Info+Engagés'!G42),\"\",('Info+Engagés'!G42))","v":""},{"$f":"IF(ISBLANK('Info+Engagés'!J42),\"\",('Info+Engagés'!J42))","v":""},{"$f":"IF(ISBLANK('Info+Engagés'!I42),\"\",('Info+Engagés'!I42))","v":""},{"$f":"IF(ISBLANK('Info+Engagés'!H42),\"\",('Info+Engagés'!H42))","v":""},{"$f":"IF(ISBLANK('Info+Engagés'!B42),\"\",('Info+Engagés'!B42))","v":"Nom du cheval 31"},{"$f":"IF(ISBLANK('Info+Engagés'!C42),\"\",('Info+Engagés'!C42))","v":""},{"$f":"IF(ISBLANK('Info+Engagés'!D42),\"\",('Info+Engagés'!D42))","v":""},{"$f":"IF(ISBLANK('Info+Engagés'!F42),\"\",('Info+Engagés'!F42))","v":""},null,""]
[{"$f":"IF(B43=\"pause\",\"\",MAX($A$11:A42)+1)","v":31},{"$f":"IF(ISBLANK('Info+Engagés'!G43),\"\",('Info+Engagés'!G43))","v":""},{"$f":"IF(ISBLANK('Info+Engagés'!J43),\"\",('Info+Engagés'!J43))","v":""},{"$f":"IF(ISBLANK('Info+Engagés'!I43),\"\",('Info+Engagés'!I43))","v":""},{"$f":"IF(ISBLANK('Info+Engagés'!H43),\"\",('Info+Engagés'!H43))","v":""},{"$f":"IF(ISBLANK('Info+Engagés'!B43),\"\",('Info+Engagés'!B43))","v":"Nom du cheval 32"},{"$f":"IF(ISBLANK('Info+Engagés'!C43),\"\",('Info+Engagés'!C43))","v":""},{"$f":"IF(ISBLANK('Info+Engagés'!D43),\"\",('Info+Engagés'!D43))","v":""},{"$f":"IF(ISBLANK('Info+Engagés'!F43),\"\",('Info+Engagés'!F43))","v":""},null,""]
[{"$f":"IF(B44=\"pause\",\"\",MAX($A$11:A43)+1)","v":32},{"$f":"IF(ISBLANK('Info+Engagés'!G44),\"\",('Info+Engagés'!G44))","v":""},{"$f":"IF(ISBLANK('Info+Engagés'!J44),\"\",('Info+Engagés'!J44))","v":""},{"$f":"IF(ISBLANK('Info+Engagés'!I44),\"\",('Info+Engagés'!I44))","v":""},{"$f":"IF(ISBLANK('Info+Engagés'!H44),\"\",('Info+Engagés'!H44))","v":""},{"$f":"IF(ISBLANK('Info+Engagés'!B44),\"\",('Info+Engagés'!B44))","v":"Nom du cheval 33"},{"$f":"IF(ISBLANK('Info+Engagés'!C44),\"\",('Info+Engagés'!C44))","v":""},{"$f":"IF(ISBLANK('Info+Engagés'!D44),\"\",('Info+Engagés'!D44))","v":""},{"$f":"IF(ISBLANK('Info+Engagés'!F44),\"\",('Info+Engagés'!F44))","v":""},null,""]
[{"$f":"IF(B45=\"pause\",\"\",MAX($A$11:A44)+1)","v":33},{"$f":"IF(ISBLANK('Info+Engagés'!G45),\"\",('Info+Engagés'!G45))","v":""},{"$f":"IF(ISBLANK('Info+Engagés'!J45),\"\",('Info+Engagés'!J45))","v":""},{"$f":"IF(ISBLANK('Info+Engagés'!I45),\"\",('Info+Engagés'!I45))","v":""},{"$f":"IF(ISBLANK('Info+Engagés'!H45),\"\",('Info+Engagés'!H45))","v":""},{"$f":"IF(ISBLANK('Info+Engagés'!B45),\"\",('Info+Engagés'!B45))","v":"Nom du cheval 34"},{"$f":"IF(ISBLANK('Info+Engagés'!C45),\"\",('Info+Engagés'!C45))","v":""},{"$f":"IF(ISBLANK('Info+Engagés'!D45),\"\",('Info+Engagés'!D45))","v":""},{"$f":"IF(ISBLANK('Info+Engagés'!F45),\"\",('Info+Engagés'!F45))","v":""},null,""]
[{"$f":"IF(B46=\"pause\",\"\",MAX($A$11:A45)+1)","v":34},{"$f":"IF(ISBLANK('Info+Engagés'!G46),\"\",('Info+Engagés'!G46))","v":""},{"$f":"IF(ISBLANK('Info+Engagés'!J46),\"\",('Info+Engagés'!J46))","v":""},{"$f":"IF(ISBLANK('Info+Engagés'!I46),\"\",('Info+Engagés'!I46))","v":""},{"$f":"IF(ISBLANK('Info+Engagés'!H46),\"\",('Info+Engagés'!H46))","v":""},{"$f":"IF(ISBLANK('Info+Engagés'!B46),\"\",('Info+Engagés'!B46))","v":"Nom du cheval 35"},{"$f":"IF(ISBLANK('Info+Engagés'!C46),\"\",('Info+Engagés'!C46))","v":""},{"$f":"IF(ISBLANK('Info+Engagés'!D46),\"\",('Info+Engagés'!D46))","v":""},{"$f":"IF(ISBLANK('Info+Engagés'!F46),\"\",('Info+Engagés'!F46))","v":""},null,""]
[{"$f":"IF(B47=\"pause\",\"\",MAX($A$11:A46)+1)","v":35},{"$f":"IF(ISBLANK('Info+Engagés'!G47),\"\",('Info+Engagés'!G47))","v":""},{"$f":"IF(ISBLANK('Info+Engagés'!J47),\"\",('Info+Engagés'!J47))","v":""},{"$f":"IF(ISBLANK('Info+Engagés'!I47),\"\",('Info+Engagés'!I47))","v":""},{"$f":"IF(ISBLANK('Info+Engagés'!H47),\"\",('Info+Engagés'!H47))","v":""},{"$f":"IF(ISBLANK('Info+Engagés'!B47),\"\",('Info+Engagés'!B47))","v":"Nom du cheval 36"},{"$f":"IF(ISBLANK('Info+Engagés'!C47),\"\",('Info+Engagés'!C47))","v":""},{"$f":"IF(ISBLANK('Info+Engagés'!D47),\"\",('Info+Engagés'!D47))","v":""},{"$f":"IF(ISBLANK('Info+Engagés'!F47),\"\",('Info+Engagés'!F47))","v":""},null,""]
[{"$f":"IF(B48=\"pause\",\"\",MAX($A$11:A47)+1)","v":36},{"$f":"IF(ISBLANK('Info+Engagés'!G48),\"\",('Info+Engagés'!G48))","v":""},{"$f":"IF(ISBLANK('Info+Engagés'!J48),\"\",('Info+Engagés'!J48))","v":""},{"$f":"IF(ISBLANK('Info+Engagés'!I48),\"\",('Info+Engagés'!I48))","v":""},{"$f":"IF(ISBLANK('Info+Engagés'!H48),\"\",('Info+Engagés'!H48))","v":""},{"$f":"IF(ISBLANK('Info+Engagés'!B48),\"\",('Info+Engagés'!B48))","v":"Nom du cheval 37"},{"$f":"IF(ISBLANK('Info+Engagés'!C48),\"\",('Info+Engagés'!C48))","v":""},{"$f":"IF(ISBLANK('Info+Engagés'!D48),\"\",('Info+Engagés'!D48))","v":""},{"$f":"IF(ISBLANK('Info+Engagés'!F48),\"\",('Info+Engagés'!F48))","v":""},null,""]
[{"$f":"IF(B49=\"pause\",\"\",MAX($A$11:A48)+1)","v":37},{"$f":"IF(ISBLANK('Info+Engagés'!G49),\"\",('Info+Engagés'!G49))","v":""},{"$f":"IF(ISBLANK('Info+Engagés'!J49),\"\",('Info+Engagés'!J49))","v":""},{"$f":"IF(ISBLANK('Info+Engagés'!I49),\"\",('Info+Engagés'!I49))","v":""},{"$f":"IF(ISBLANK('Info+Engagés'!H49),\"\",('Info+Engagés'!H49))","v":""},{"$f":"IF(ISBLANK('Info+Engagés'!B49),\"\",('Info+Engagés'!B49))","v":"Nom du cheval 38"},{"$f":"IF(ISBLANK('Info+Engagés'!C49),\"\",('Info+Engagés'!C49))","v":""},{"$f":"IF(ISBLANK('Info+Engagés'!D49),\"\",('Info+Engagés'!D49))","v":""},{"$f":"IF(ISBLANK('Info+Engagés'!F49),\"\",('Info+Engagés'!F49))","v":""},null,""]
[{"$f":"IF(B50=\"pause\",\"\",MAX($A$11:A49)+1)","v":38},{"$f":"IF(ISBLANK('Info+Engagés'!G50),\"\",('Info+Engagés'!G50))","v":""},{"$f":"IF(ISBLANK('Info+Engagés'!J50),\"\",('Info+Engagés'!J50))","v":""},{"$f":"IF(ISBLANK('Info+Engagés'!I50),\"\",('Info+Engagés'!I50))","v":""},{"$f":"IF(ISBLANK('Info+Engagés'!H50),\"\",('Info+Engagés'!H50))","v":""},{"$f":"IF(ISBLANK('Info+Engagés'!B50),\"\",('Info+Engagés'!B50))","v":"Nom du cheval 39"},{"$f":"IF(ISBLANK('Info+Engagés'!C50),\"\",('Info+Engagés'!C50))","v":""},{"$f":"IF(ISBLANK('Info+Engagés'!D50),\"\",('Info+Engagés'!D50))","v":""},{"$f":"IF(ISBLANK('Info+Engagés'!F50),\"\",('Info+Engagés'!F50))","v":""},null,""]
[{"$f":"IF(B51=\"pause\",\"\",MAX($A$11:A50)+1)","v":39},{"$f":"IF(ISBLANK('Info+Engagés'!G51),\"\",('Info+Engagés'!G51))","v":""},{"$f":"IF(ISBLANK('Info+Engagés'!J51),\"\",('Info+Engagés'!J51))","v":""},{"$f":"IF(ISBLANK('Info+Engagés'!I51),\"\",('Info+Engagés'!I51))","v":""},{"$f":"IF(ISBLANK('Info+Engagés'!H51),\"\",('Info+Engagés'!H51))","v":""},{"$f":"IF(ISBLANK('Info+Engagés'!B51),\"\",('Info+Engagés'!B51))","v":""},{"$f":"IF(ISBLANK('Info+Engagés'!C51),\"\",('Info+Engagés'!C51))","v":""},{"$f":"IF(ISBLANK('Info+Engagés'!D51),\"\",('Info+Engagés'!D51))","v":""},{"$f":"IF(ISBLANK('Info+Engagés'!F51),\"\",('Info+Engagés'!F51))","v":""},null,""]

{"sheet":"Cav1","index":2,"n_rows":44,"n_cols":9,"rows_kept":44,"cut":false,"hidden":false,"merged":[[0,0,1,2],[0,3,1,6],[0,7,1,8],[2,0,2,2],[2,3,3,4],[2,5,3,6],[3,0,3,2],[9,4,10,4],[4,0,4,1],[4,7,5,7],[4,8,5,8],[5,0,5,1],[6,0,7,1],[6,2,7,2],[6,7,7,7],[6,8,7,8],[4,3,7,4],[4,5,7,6],[8,8,10,8],[9,5,10,5],[9,6,10,6],[9,7,10,7],[10,0,10,1],[43,0,47,8],[33,0,38,0],[39,0,39,2],[40,0,40,2],[41,0,41,2],[42,0,42,2],[11,0,32,0],[8,2,10,2],[8,0,8,1],[9,0,9,1],[9,3,10,3]]}
[{"$f":"'Info+Engagés'!B3","v":"Quel Lieu ? (Département ?)"},null,null,{"$f":"'Info+Engagés'!B8","v":"Amateur 3 Grand Prix (D1)"},null,null,null,{"$f":"'Info+Engagés'!B2","v":"Quelle Date ?"}]
[]
["N° de concours",null,null,"Cheval",null,"Cavalier",null,"Nt d’ensemble",{"$f":"SUM(D34:H36,D39:H39,D37*2,E37*2,F37*2,G37*2,H37*2,D38*2,E38*2,F38*2,G38*2,H38*2)","v":0}]
[{"$f":"'Info+Engagés'!B4","v":"Quel N° ?"},null,null,null,null,null,null,"Points",{"$f":"SUM(D43:H43)","v":60}]
["Épreuve N°",null,{"$f":"'Info+Engagés'!B5","v":"Quel N° ?"},{"$f":"'Info+Engagés'!B12","v":"Nom du Cheval 1"},null,{"$f":"'Info+Engagés'!G12","v":"Nom du Cavalier 1"},null,"% Final",{"$f":"AVERAGE(D42:H42)","v":20}]
["Piste  ",null,{"$f":"'Info+Engagés'!B6","v":"Quelle Piste ?"}]
["N° Départ BO",null,{"$f":"'Info+Engagés'!A12","v":1},null,null,null,null,"Classement",{"$f":"INDEX(Résultats!P:P,MATCH(C7,Résultats!A:A,0))","v":1}]
[]
["Imprimé le :",null,"Coéff .","Juge E","Juge H","Juge C","Juge M","Juge B","écart Max"]
[{"$f":"TODAY()","v":"2017-03-25"},null,null,{"$f":"IF(ISBLANK('Info+Engagés'!H2),\"\",('Info+Engagés'!H2))","v":""},{"$f":"IF(ISBLANK('Info+Engagés'!H3),\"\",('Info+Engagés'!H3))","v":""},{"$f":"IF(ISBLANK('Info+Engagés'!H4),\"\",('Info+Engagés'!H4))","v":"Nom du juge en C"},{"$f":"IF(ISBLANK('Info+Engagés'!H5),\"\",('Info+Engagés'!H5))","v":""},{"$f":"IF(ISBLANK('Info+Engagés'!H6),\"\",('Info+Engagés'!H6))","v":""}]
[{"$f":"NOW()","v":42819.607247569445}]
["Notation figures","Figure 1",1,null,null,60,null,null,{"$f":"MAX(D12:H12)-MIN(D12:H12)","v":0}]
[null,"Figure 2",1,null,null,null,null,null,0]
[null,"Figure 3",1,null,null,null,null,null,0]
[null,"Figure 4",1,null,null,null,null,null,0]
[null,"Figure 5",1,null,null,null,null,null,0]
[null,"Figure 6",1,null,null,null,null,null,0]
[null,"Figure 7",1,null,null,null,null,null,0]
[null,"Figure 8",1,null,null,null,null,null,0]
[null,"Figure 9",1,null,null,null,null,null,0]
[null,"Figure 10",1,null,null,null,null,null,0]
[null,"Figure 11",1,null,null,null,null,null,0]
[null,"Figure 12",1,null,null,null,null,null,0]
[null,"Figure 13",1,null,null,null,null,null,0]
[null,"Figure 14",1,null,null,null,null,null,0]
[null,"Figure 15",1,null,null,null,null,null,0]
[null,"Figure 16",1,null,null,null,null,null,0]
[null,"Figure 17",1,null,null,null,null,null,0]
[null,"Figure 18",1,null,null,null,null,null,0]
[null,"Figure 19",1,null,null,null,null,null,0]
[null,"Figure 20",1,null,null,null,null,null,0]
[null,"Figure 21",1,null,null,null,null,null,0]
[null,"Figure 22",1,null,null,null,null,null,0]
[" Ensemble","Ensemble 1",1,null,null,null,null,null,0]
[null,"Ensemble 2",1,null,null,null,null,null,0]
[null,"Ensemble 3",1,null,null,null,null,null,0]
[null,"Ensemble 4",2,null,null,null,null,null,0]
[null,"Ensemble 5",2,null,null,null,null,null,0]
[null,"Ensemble 6",1,null,null,null,null,null,0]
["Pénalité en points"]
["Erreure(s) de tracé "]
["% Total du juge",null,null,{"$f":"IF(ISBLANK('Info+Engagés'!H2),\"\",D43/3-D41)","v":""},{"$f":"IF(ISBLANK('Info+Engagés'!H3),\"\",E43/3-E41)","v":""},{"$f":"IF(ISBLANK('Info+Engagés'!H4),\"\",F43/3-F41)","v":20},{"$f":"IF(ISBLANK('Info+Engagés'!H5),\"\",G43/3-G41)","v":""},{"$f":"IF(ISBLANK('Info+Engagés'!H6),\"\",H43/3-H41)","v":""},{"$f":"MAX(D42:H42)-MIN(D42:H42)","v":0}]
["Soit en points",null,null,{"$f":"IF(ISBLANK('Info+Engagés'!H2),\"\",SUM(D12:D36,D39,D37*2,D38*2)-D40)","v":""},{"$f":"IF(ISBLANK('Info+Engagés'!H3),\"\",(SUM(E12:E36,E39,E37*2,E38*2)-E40))","v":""},{"$f":"IF(ISBLANK('Info+Engagés'!H4),\"\",(SUM(F12:F36,F39,F37*2,F38*2)-F40))","v":60},{"$f":"IF(ISBLANK('Info+Engagés'!H5),\"\",(SUM(G12:G36,G39,G37*2,G38*2)-G40))","v":""},{"$f":"IF(ISBLANK('Info+Engagés'!H6),\"\",(SUM(H12:H36,H39,H37*2,H38*2)-H40))","v":""}]
["                          Total maxi par juge = 300          1 point correspond à 0,333%              1% correspond en points à : 3                                                                  Les notes sont sur 10 et correspondent à la saisie informatique par l'opérateur des protocoles joints, Le total résulte de l'addition des points attribués après application du coefficient et soustraction des points de pénalité encourus après conversion en pourcentage sont déduit les pourcentages de pénalités encourus par suite d'erreurs de tracé pour obtenir le pourcentage par juge."]

{"sheet":"Cav2","index":3,"n_rows":44,"n_cols":9,"rows_kept":44,"cut":false,"hidden":false,"merged":[[0,0,1,2],[0,3,1,6],[0,7,1,8],[2,0,2,2],[2,3,3,4],[2,5,3,6],[3,0,3,2],[9,4,10,4],[4,0,4,1],[4,7,5,7],[4,8,5,8],[5,0,5,1],[6,0,7,1],[6,2,7,2],[6,7,7,7],[6,8,7,8],[4,3,7,4],[4,5,7,6],[8,8,10,8],[9,5,10,5],[9,6,10,6],[9,7,10,7],[10,0,10,1],[43,0,47,8],[33,0,38,0],[39,0,39,2],[40,0,40,2],[41,0,41,2],[42,0,42,2],[11,0,32,0],[8,2,10,2],[8,0,8,1],[9,0,9,1],[9,3,10,3]]}
[{"$f":"'Info+Engagés'!B3","v":"Quel Lieu ? (Département ?)"},null,null,{"$f":"'Info+Engagés'!B8","v":"Amateur 3 Grand Prix (D1)"},null,null,null,{"$f":"'Info+Engagés'!B2","v":"Quelle Date ?"}]
[]
["N° de concours",null,null,"Cheval",null,"Cavalier",null,"Note d’ensemble",{"$f":"SUM(D34:H36,D39:H39,D37*2,E37*2,F37*2,G37*2,H37*2,D38*2,E38*2,F38*2,G38*2,H38*2)","v":0}]
[{"$f":"'Info+Engagés'!B4","v":"Quel N° ?"},null,null,null,null,null,null,"Points",{"$f":"SUM(D43:H43)","v":59}]
["Épreuve N°",null,{"$f":"'Info+Engagés'!B5","v":"Quel N° ?"},{"$f":"'Info+Engagés'!B13","v":"Nom du cheval 2"},null,{"$f":"'Info+Engagés'!G13","v":"Nom du Cavalier 2"},null,"% Final",{"$f":"AVERAGE(D42:H42)","v":19.666666666666668}]
["Piste  ",null,{"$f":"'Info+Engagés'!B6","v":"Quelle Piste ?"}]
["N° Départ BO",null,{"$f":"'Info+Engagés'!A13","v":2},null,null,null,null,"Classement",{"$f":"INDEX(Résultats!P:P,MATCH(C7,Résultats!A:A,0))","v":2}]
[]
["Imprimé le :",null,"Coéff .","Juge E","Juge H","Juge C","Juge M","Juge B","écart Max"]
[{"$f":"TODAY()","v":"2017-03-25"},null,null,{"$f":"IF(ISBLANK('Info+Engagés'!H2),\"\",('Info+Engagés'!H2))","v":""},{"$f":"IF(ISBLANK('Info+Engagés'!H3),\"\",('Info+Engagés'!H3))","v":""},{"$f":"IF(ISBLANK('Info+Engagés'!H4),\"\",('Info+Engagés'!H4))","v":"Nom du juge en C"},{"$f":"IF(ISBLANK('Info+Engagés'!H5),\"\",('Info+Engagés'!H5))","v":""},{"$f":"IF(ISBLANK('Info+Engagés'!H6),\"\",('Info+Engagés'!H6))","v":""}]
[{"$f":"NOW()","v":42819.607247569445}]
["Notation figures","Figure 1",1,null,null,59,null,null,{"$f":"MAX(D12:H12)-MIN(D12:H12)","v":0}]
[null,"Figure 2",1,null,null,null,null,null,0]
[null,"Figure 3",1,null,null,null,null,null,0]
[null,"Figure 4",1,null,null,null,null,null,0]
[null,"Figure 5",1,null,null,null,null,null,0]
[null,"Figure 6",1,null,null,null,null,null,0]
[null,"Figure 7",1,null,null,null,null,null,0]
[null,"Figure 8",1,null,null,null,null,null,0]
[null,"Figure 9",1,null,null,null,null,null,0]
[null,"Figure 10",1,null,null,null,null,null,0]
[null,"Figure 11",1,null,null,null,null,null,0]
[null,"Figure 12",1,null,null,null,null,null,0]
[null,"Figure 13",1,null,null,null,null,null,0]
[null,"Figure 14",1,null,null,null,null,null,0]
[null,"Figure 15",1,null,null,null,null,null,0]
[null,"Figure 16",1,null,null,null,null,null,0]
[null,"Figure 17",1,null,null,null,null,null,0]
[null,"Figure 18",1,null,null,null,null,null,0]
[null,"Figure 19",1,null,null,null,null,null,0]
[null,"Figure 20",1,null,null,null,null,null,0]
[null,"Figure 21",1,null,null,null,null,null,0]
[null,"Figure 22",1,null,null,null,null,null,0]
[" Ensemble","Ensemble 1",1,null,null,null,null,null,0]
[null,"Ensemble 2",1,null,null,null,null,null,0]
[null,"Ensemble 3",1,null,null,null,null,null,0]
[null,"Ensemble 4",2,null,null,null,null,null,0]
[null,"Ensemble 5",2,null,null,null,null,null,0]
[null,"Ensemble 6",1,null,null,null,null,null,0]
["Pénalité en points"]
["Erreure(s) de tracé "]
["% Total du juge",null,null,{"$f":"IF(ISBLANK('Info+Engagés'!H2),\"\",D43/3-D41)","v":""},{"$f":"IF(ISBLANK('Info+Engagés'!H3),\"\",E43/3-E41)","v":""},{"$f":"IF(ISBLANK('Info+Engagés'!H4),\"\",F43/3-F41)","v":19.666666666666668},{"$f":"IF(ISBLANK('Info+Engagés'!H5),\"\",G43/3-G41)","v":""},{"$f":"IF(ISBLANK('Info+Engagés'!H6),\"\",H43/3-H41)","v":""},{"$f":"MAX(D42:H42)-MIN(D42:H42)","v":0}]
["Soit en points",null,null,{"$f":"IF(ISBLANK('Info+Engagés'!H2),\"\",SUM(D12:D36,D39,D37*2,D38*2)-D40)","v":""},{"$f":"IF(ISBLANK('Info+Engagés'!H3),\"\",(SUM(E12:E36,E39,E37*2,E38*2)-E40))","v":""},{"$f":"IF(ISBLANK('Info+Engagés'!H4),\"\",(SUM(F12:F36,F39,F37*2,F38*2)-F40))","v":59},{"$f":"IF(ISBLANK('Info+Engagés'!H5),\"\",(SUM(G12:G36,G39,G37*2,G38*2)-G40))","v":""},{"$f":"IF(ISBLANK('Info+Engagés'!H6),\"\",(SUM(H12:H36,H39,H37*2,H38*2)-H40))","v":""}]
["                          Total maxi par juge = 300          1 point correspond à 0,333%              1% correspond en points à : 3                                                                          Les notes sont sur 10 et correspondent à la saisie informatique par l'opérateur des protocoles joints, Le total résulte de l'addition des points attribués après application du coefficient et soustraction des points de pénalité encourus après conversion en pourcentage sont déduit les pourcentages de pénalités encourus par suite d'erreurs de tracé pour obtenir le pourcentage par juge."]

{"sheet":"Cav3","index":4,"n_rows":44,"n_cols":9,"rows_kept":44,"cut":false,"hidden":false,"merged":[[0,0,1,2],[0,3,1,6],[0,7,1,8],[2,0,2,2],[2,3,3,4],[2,5,3,6],[3,0,3,2],[9,4,10,4],[4,0,4,1],[4,7,5,7],[4,8,5,8],[5,0,5,1],[6,0,7,1],[6,2,7,2],[6,7,7,7],[6,8,7,8],[4,3,7,4],[4,5,7,6],[40,0,40,2],[41,0,41,2],[42,0,42,2],[43,0,47,8],[9,6,10,6],[9,7,10,7],[10,0,10,1],[11,0,32,0],[33,0,38,0],[39,0,39,2],[9,5,10,5],[8,2,10,2],[8,8,10,8],[8,0,8,1],[9,0,9,1],[9,3,10,3]]}
[{"$f":"'Info+Engagés'!B3","v":"Quel Lieu ? (Département ?)"},null,null,{"$f":"'Info+Engagés'!B8","v":"Amateur 3 Grand Prix (D1)"},null,null,null,{"$f":"'Info+Engagés'!B2","v":"Quelle Date ?"}]
[]
["N° de concours",null,null,"Cheval",null,"Cavalier",null,"Note d’ensemble",{"$f":"SUM(D34:H36,D39:H39,D37*2,E37*2,F37*2,G37*2,H37*2,D38*2,E38*2,F38*2,G38*2,H38*2)","v":0}]
[{"$f":"'Info+Engagés'!B4","v":"Quel N° ?"},null,null,null,null,null,null,"Points",{"$f":"SUM(D43:H43)","v":58}]
["Épreuve N°",null,{"$f":"'Info+Engagés'!B5","v":"Quel N° ?"},{"$f":"'Info+Engagés'!B14","v":"Nom du cheval 3"},null,{"$f":"'Info+Engagés'!G14","v":"Nom du Cavalier 3"},null,"% Final",{"$f":"AVERAGE(D42:H42)","v":19.333333333333332}]
["Piste  ",null,{"$f":"'Info+Engagés'!B6","v":"Quelle Piste ?"}]
["N° Départ BO",null,{"$f":"'Info+Engagés'!A14","v":3},null,null,null,null,"Classement",{"$f":"INDEX(Résultats!P:P,MATCH(C7,Résultats!A:A,0))","v":3}]
[]
["Imprimé le :",null,"Coéff .","Juge E","Juge H","Juge C","Juge M","Juge B","écart Max"]
[{"$f":"TODAY()","v":"2017-03-25"},null,null,{"$f":"IF(ISBLANK('Info+Engagés'!H2),\"\",('Info+Engagés'!H2))","v":""},{"$f":"IF(ISBLANK('Info+Engagés'!H3),\"\",('Info+Engagés'!H3))","v":""},{"$f":"IF(ISBLANK('Info+Engagés'!H4),\"\",('Info+Engagés'!H4))","v":"Nom du juge en C"},{"$f":"IF(ISBLANK('Info+Engagés'!H5),\"\",('Info+Engagés'!H5))","v":""},{"$f":"IF(ISBLANK('Info+Engagés'!H6),\"\",('Info+Engagés'!H6))","v":""}]
[{"$f":"NOW()","v":42819.607247569445}]
["Notation figures","Figure 1",1,null,null,58,null,null,{"$f":"MAX(D12:H12)-MIN(D12:H12)","v":0}]
[null,"Figure 2",1,null,null,null,null,null,0]
[null,"Figure 3",1,null,null,null,null,null,0]
[null,"Figure 4",1,null,null,null,null,null,0]
[null,"Figure 5",1,null,null,null,null,null,0]
[null,"Figure 6",1,null,null,null,null,null,0]
[null,"Figure 7",1,null,null,null,null,null,0]
[null,"Figure 8",1,null,null,null,null,null,0]
[null,"Figure 9",1,null,null,null,null,null,0]
[null,"Figure 10",1,null,null,null,null,null,0]
[null,"Figure 11",1,null,null,null,null,null,0]
[null,"Figure 12",1,null,null,null,null,null,0]
[null,"Figure 13",1,null,null,null,null,null,0]
[null,"Figure 14",1,null,null,null,null,null,0]
[null,"Figure 15",1,null,null,null,null,null,0]
[null,"Figure 16",1,null,null,null,null,null,0]
[null,"Figure 17",1,null,null,null,null,null,0]
[null,"Figure 18",1,null,null,null,null,null,0]
[null,"Figure 19",1,null,null,null,null,null,0]
[null,"Figure 20",1,null,null,null,null,null,0]
[null,"Figure 21",1,null,null,null,null,null,0]
[null,"Figure 22",1,null,null,null,null,null,0]
[" Ensemble","Ensemble 1",1,null,null,null,null,null,0]
[null,"Ensemble 2",1,null,null,null,null,null,0]
[null,"Ensemble 3",1,null,null,null,null,null,0]
[null,"Ensemble 4",2,null,null,null,null,null,0]
[null,"Ensemble 5",2,null,null,null,null,null,0]
[null,"Ensemble 6",1,null,null,null,null,null,0]
["Pénalité en points"]
["Erreure(s) de tracé "]
["% Total du juge",null,null,{"$f":"IF(ISBLANK('Info+Engagés'!H2),\"\",D43/3-D41)","v":""},{"$f":"IF(ISBLANK('Info+Engagés'!H3),\"\",E43/3-E41)","v":""},{"$f":"IF(ISBLANK('Info+Engagés'!H4),\"\",F43/3-F41)","v":19.333333333333332},{"$f":"IF(ISBLANK('Info+Engagés'!H5),\"\",G43/3-G41)","v":""},{"$f":"IF(ISBLANK('Info+Engagés'!H6),\"\",H43/3-H41)","v":""},{"$f":"MAX(D42:H42)-MIN(D42:H42)","v":0}]
["Soit en points",null,null,{"$f":"IF(ISBLANK('Info+Engagés'!H2),\"\",SUM(D12:D36,D39,D37*2,D38*2)-D40)","v":""},{"$f":"IF(ISBLANK('Info+Engagés'!H3),\"\",(SUM(E12:E36,E39,E37*2,E38*2)-E40))","v":""},{"$f":"IF(ISBLANK('Info+Engagés'!H4),\"\",(SUM(F12:F36,F39,F37*2,F38*2)-F40))","v":58},{"$f":"IF(ISBLANK('Info+Engagés'!H5),\"\",(SUM(G12:G36,G39,G37*2,G38*2)-G40))","v":""},{"$f":"IF(ISBLANK('Info+Engagés'!H6),\"\",(SUM(H12:H36,H39,H37*2,H38*2)-H40))","v":""}]
["                          Total maxi par juge = 300          1 point correspond à 0,333%              1% correspond en points à : 3                                                                  Les notes sont sur 10 et correspondent à la saisie informatique par l'opérateur des protocoles joints, Le total résulte de l'addition des points attribués après application du coefficient et soustraction des points de pénalité encourus après conversion en pourcentage sont déduit les pourcentages de pénalités encourus par suite d'erreurs de tracé pour obtenir le pourcentage par juge."]

{"sheet":"Cav4","index":5,"n_rows":44,"n_cols":9,"rows_kept":44,"cut":false,"hidden":false,"merged":[[40,0,40,2],[41,0,41,2],[42,0,42,2],[43,0,47,8],[9,6,10,6],[9,7,10,7],[10,0,10,1],[11,0,32,0],[33,0,38,0],[39,0,39,2],[9,5,10,5],[8,8,10,8],[8,0,8,1],[9,0,9,1],[9,3,10,3],[9,4,10,4],[8,2,10,2],[4,0,4,1],[4,7,5,7],[4,8,5,8],[5,0,5,1],[6,0,7,1],[6,2,7,2],[6,7,7,7],[6,8,7,8],[4,3,7,4],[4,5,7,6],[0,0,1,2],[0,3,1,6],[0,7,1,8],[2,0,2,2],[2,3,3,4],[2,5,3,6],[3,0,3,2]]}
[{"$f":"'Info+Engagés'!B3","v":"Quel Lieu ? (Département ?)"},null,null,{"$f":"'Info+Engagés'!B8","v":"Amateur 3 Grand Prix (D1)"},null,null,null,{"$f":"'Info+Engagés'!B2","v":"Quelle Date ?"}]
[]
["N° de concours",null,null,"Cheval",null,"Cavalier",null,"Note d’ensemble",{"$f":"SUM(D34:H36,D39:H39,D37*2,E37*2,F37*2,G37*2,H37*2,D38*2,E38*2,F38*2,G38*2,H38*2)","v":0}]
[{"$f":"'Info+Engagés'!B4","v":"Quel N° ?"},null,null,null,null,null,null,"Points",{"$f":"SUM(D43:H43)","v":57}]
["Épreuve N°",null,{"$f":"'Info+Engagés'!B5","v":"Quel N° ?"},{"$f":"'Info+Engagés'!B15","v":"Nom du cheval 4"},null,{"$f":"'Info+Engagés'!G15","v":"Nom du Cavalier 4"},null,"% Final",{"$f":"AVERAGE(D42:H42)","v":19}]
["Piste  ",null,{"$f":"'Info+Engagés'!B6","v":"Quelle Piste ?"}]
["N° Départ BO",null,{"$f":"'Info+Engagés'!A15","v":4},null,null,null,null,"Classement",{"$f":"INDEX(Résultats!P:P,MATCH(C7,Résultats!A:A,0))","v":4}]
[]
["Imprimé le :",null,"Coéff .","Juge E","Juge H","Juge C","Juge M","Juge B","écart Max"]
[{"$f":"TODAY()","v":"2017-03-25"},null,null,{"$f":"IF(ISBLANK('Info+Engagés'!H2),\"\",('Info+Engagés'!H2))","v":""},{"$f":"IF(ISBLANK('Info+Engagés'!H3),\"\",('Info+Engagés'!H3))","v":""},{"$f":"IF(ISBLANK('Info+Engagés'!H4),\"\",('Info+Engagés'!H4))","v":"Nom du juge en C"},{"$f":"IF(ISBLANK('Info+Engagés'!H5),\"\",('Info+Engagés'!H5))","v":""},{"$f":"IF(ISBLANK('Info+Engagés'!H6),\"\",('Info+Engagés'!H6))","v":""}]
[{"$f":"NOW()","v":42819.607247569445}]
["Notation figures","Figure 1",1,null,null,57,null,null,{"$f":"MAX(D12:H12)-MIN(D12:H12)","v":0}]
[null,"Figure 2",1,null,null,null,null,null,0]
[null,"Figure 3",1,null,null,null,null,null,0]
[null,"Figure 4",1,null,null,null,null,null,0]
[null,"Figure 5",1,null,null,null,null,null,0]
[null,"Figure 6",1,null,null,null,null,null,0]
[null,"Figure 7",1,null,null,null,null,null,0]
[null,"Figure 8",1,null,null,null,null,null,0]
[null,"Figure 9",1,null,null,null,null,null,0]
[null,"Figure 10",1,null,null,null,null,null,0]
[null,"Figure 11",1,null,null,null,null,null,0]
[null,"Figure 12",1,null,null,null,null,null,0]
[null,"Figure 13",1,null,null,null,null,null,0]
[null,"Figure 14",1,null,null,null,null,null,0]
[null,"Figure 15",1,null,null,null,null,null,0]
[null,"Figure 16",1,null,null,null,null,null,0]
[null,"Figure 17",1,null,null,null,null,null,0]
[null,"Figure 18",1,null,null,null,null,null,0]
[null,"Figure 19",1,null,null,null,null,null,0]
[null,"Figure 20",1,null,null,null,null,null,0]
[null,"Figure 21",1,null,null,null,null,null,0]
[null,"Figure 22",1,null,null,null,null,null,0]
[" Ensemble","Ensemble 1",1,null,null,null,null,null,0]
[null,"Ensemble 2",1,null,null,null,null,null,0]
[null,"Ensemble 3",1,null,null,null,null,null,0]
[null,"Ensemble 4",2,null,null,null,null,null,0]
[null,"Ensemble 5",2,null,null,null,null,null,0]
[null,"Ensemble 6",1,null,null,null,null,null,0]
["Pénalité en points"]
["Erreure(s) de tracé "]
["% Total du juge",null,null,{"$f":"IF(ISBLANK('Info+Engagés'!H2),\"\",D43/3-D41)","v":""},{"$f":"IF(ISBLANK('Info+Engagés'!H3),\"\",E43/3-E41)","v":""},{"$f":"IF(ISBLANK('Info+Engagés'!H4),\"\",F43/3-F41)","v":19},{"$f":"IF(ISBLANK('Info+Engagés'!H5),\"\",G43/3-G41)","v":""},{"$f":"IF(ISBLANK('Info+Engagés'!H6),\"\",H43/3-H41)","v":""},{"$f":"MAX(D42:H42)-MIN(D42:H42)","v":0}]
["Soit en points",null,null,{"$f":"IF(ISBLANK('Info+Engagés'!H2),\"\",SUM(D12:D36,D39,D37*2,D38*2)-D40)","v":""},{"$f":"IF(ISBLANK('Info+Engagés'!H3),\"\",(SUM(E12:E36,E39,E37*2,E38*2)-E40))","v":""},{"$f":"IF(ISBLANK('Info+Engagés'!H4),\"\",(SUM(F12:F36,F39,F37*2,F38*2)-F40))","v":57},{"$f":"IF(ISBLANK('Info+Engagés'!H5),\"\",(SUM(G12:G36,G39,G37*2,G38*2)-G40))","v":""},{"$f":"IF(ISBLANK('Info+Engagés'!H6),\"\",(SUM(H12:H36,H39,H37*2,H38*2)-H40))","v":""}]
["                          Total maxi par juge = 300          1 point correspond à 0,333%              1% correspond en points à : 3                                                                  Les notes sont sur 10 et correspondent à la saisie informatique par l'opérateur des protocoles joints, Le total résulte de l'addition des points attribués après application du coefficient et soustraction des points de pénalité encourus après conversion en pourcentage sont déduit les pourcentages de pénalités encourus par suite d'erreurs de tracé pour obtenir le pourcentage par juge."]

{"sheet":"Cav5","index":6,"n_rows":44,"n_cols":9,"rows_kept":44,"cut":false,"hidden":false,"merged":[[40,0,40,2],[41,0,41,2],[42,0,42,2],[43,0,47,8],[9,6,10,6],[9,7,10,7],[10,0,10,1],[11,0,32,0],[33,0,38,0],[39,0,39,2],[9,5,10,5],[8,8,10,8],[8,0,8,1],[9,0,9,1],[9,3,10,3],[9,4,10,4],[8,2,10,2],[4,0,4,1],[4,7,5,7],[4,8,5,8],[5,0,5,1],[6,0,7,1],[6,2,7,2],[6,7,7,7],[6,8,7,8],[4,3,7,4],[4,5,7,6],[0,0,1,2],[0,3,1,6],[0,7,1,8],[2,0,2,2],[2,3,3,4],[2,5,3,6],[3,0,3,2]]}
[{"$f":"'Info+Engagés'!B3","v":"Quel Lieu ? (Département ?)"},null,null,{"$f":"'Info+Engagés'!B8","v":"Amateur 3 Grand Prix (D1)"},null,null,null,{"$f":"'Info+Engagés'!B2","v":"Quelle Date ?"}]
[]
["N° de concours",null,null,"Cheval",null,"Cavalier",null,"Note d’ensemble",{"$f":"SUM(D34:H36,D39:H39,D37*2,E37*2,F37*2,G37*2,H37*2,D38*2,E38*2,F38*2,G38*2,H38*2)","v":0}]
[{"$f":"'Info+Engagés'!B4","v":"Quel N° ?"},null,null,null,null,null,null,"Points",{"$f":"SUM(D43:H43)","v":56}]
["Épreuve N°",null,{"$f":"'Info+Engagés'!B5","v":"Quel N° ?"},{"$f":"'Info+Engagés'!B16","v":"Nom du cheval 5"},null,{"$f":"'Info+Engagés'!G16","v":"Nom du Cavalier 5"},null,"% Final",{"$f":"AVERAGE(D42:H42)","v":18.666666666666668}]
["Piste  ",null,{"$f":"'Info+Engagés'!B6","v":"Quelle Piste ?"}]
["N° Départ BO",null,{"$f":"'Info+Engagés'!A16","v":5},null,null,null,null,"Classement",{"$f":"INDEX(Résultats!P:P,MATCH(C7,Résultats!A:A,0))","v":5}]
[]
["Imprimé le :",null,"Coéff .","Juge E","Juge H","Juge C","Juge M","Juge B","écart Max"]
[{"$f":"TODAY()","v":"2017-03-25"},null,null,{"$f":"IF(ISBLANK('Info+Engagés'!H2),\"\",('Info+Engagés'!H2))","v":""},{"$f":"IF(ISBLANK('Info+Engagés'!H3),\"\",('Info+Engagés'!H3))","v":""},{"$f":"IF(ISBLANK('Info+Engagés'!H4),\"\",('Info+Engagés'!H4))","v":"Nom du juge en C"},{"$f":"IF(ISBLANK('Info+Engagés'!H5),\"\",('Info+Engagés'!H5))","v":""},{"$f":"IF(ISBLANK('Info+Engagés'!H6),\"\",('Info+Engagés'!H6))","v":""}]
[{"$f":"NOW()","v":42819.607247569445}]
["Notation figures","Figure 1",1,null,null,56,null,null,{"$f":"MAX(D12:H12)-MIN(D12:H12)","v":0}]
[null,"Figure 2",1,null,null,null,null,null,0]
[null,"Figure 3",1,null,null,null,null,null,0]
[null,"Figure 4",1,null,null,null,null,null,0]
[null,"Figure 5",1,null,null,null,null,null,0]
[null,"Figure 6",1,null,null,null,null,null,0]
[null,"Figure 7",1,null,null,null,null,null,0]
[null,"Figure 8",1,null,null,null,null,null,0]
[null,"Figure 9",1,null,null,null,null,null,0]
[null,"Figure 10",1,null,null,null,null,null,0]
[null,"Figure 11",1,null,null,null,null,null,0]
[null,"Figure 12",1,null,null,null,null,null,0]
[null,"Figure 13",1,null,null,null,null,null,0]
[null,"Figure 14",1,null,null,null,null,null,0]
[null,"Figure 15",1,null,null,null,null,null,0]
[null,"Figure 16",1,null,null,null,null,null,0]
[null,"Figure 17",1,null,null,null,null,null,0]
[null,"Figure 18",1,null,null,null,null,null,0]
[null,"Figure 19",1,null,null,null,null,null,0]
[null,"Figure 20",1,null,null,null,null,null,0]
[null,"Figure 21",1,null,null,null,null,null,0]
[null,"Figure 22",1,null,null,null,null,null,0]
[" Ensemble","Ensemble 1",1,null,null,null,null,null,0]
[null,"Ensemble 2",1,null,null,null,null,null,0]
[null,"Ensemble 3",1,null,null,null,null,null,0]
[null,"Ensemble 4",2,null,null,null,null,null,0]
[null,"Ensemble 5",2,null,null,null,null,null,0]
[null,"Ensemble 6",1,null,null,null,null,null,0]
["Pénalité en points"]
["Erreure(s) de tracé "]
["% Total du juge",null,null,{"$f":"IF(ISBLANK('Info+Engagés'!H2),\"\",D43/3-D41)","v":""},{"$f":"IF(ISBLANK('Info+Engagés'!H3),\"\",E43/3-E41)","v":""},{"$f":"IF(ISBLANK('Info+Engagés'!H4),\"\",F43/3-F41)","v":18.666666666666668},{"$f":"IF(ISBLANK('Info+Engagés'!H5),\"\",G43/3-G41)","v":""},{"$f":"IF(ISBLANK('Info+Engagés'!H6),\"\",H43/3-H41)","v":""},{"$f":"MAX(D42:H42)-MIN(D42:H42)","v":0}]
["Soit en points",null,null,{"$f":"IF(ISBLANK('Info+Engagés'!H2),\"\",SUM(D12:D36,D39,D37*2,D38*2)-D40)","v":""},{"$f":"IF(ISBLANK('Info+Engagés'!H3),\"\",(SUM(E12:E36,E39,E37*2,E38*2)-E40))","v":""},{"$f":"IF(ISBLANK('Info+Engagés'!H4),\"\",(SUM(F12:F36,F39,F37*2,F38*2)-F40))","v":56},{"$f":"IF(ISBLANK('Info+Engagés'!H5),\"\",(SUM(G12:G36,G39,G37*2,G38*2)-G40))","v":""},{"$f":"IF(ISBLANK('Info+Engagés'!H6),\"\",(SUM(H12:H36,H39,H37*2,H38*2)-H40))","v":""}]
["                          Total maxi par juge = 300          1 point correspond à 0,333%              1% correspond en points à : 3                                                                  Les notes sont sur 10 et correspondent à la saisie informatique par l'opérateur des protocoles joints, Le total résulte de l'addition des points attribués après application du coefficient et soustraction des points de pénalité encourus après conversion en pourcentage sont déduit les pourcentages de pénalités encourus par suite d'erreurs de tracé pour obtenir le pourcentage par juge."]

{"sheet":"Cav6","index":7,"n_rows":44,"n_cols":9,"rows_kept":44,"cut":false,"hidden":false,"merged":[[40,0,40,2],[41,0,41,2],[42,0,42,2],[43,0,47,8],[9,6,10,6],[9,7,10,7],[10,0,10,1],[11,0,32,0],[33,0,38,0],[39,0,39,2],[9,5,10,5],[8,8,10,8],[8,0,8,1],[9,0,9,1],[9,3,10,3],[9,4,10,4],[8,2,10,2],[4,0,4,1],[4,7,5,7],[4,8,5,8],[5,0,5,1],[6,0,7,1],[6,2,7,2],[6,7,7,7],[6,8,7,8],[4,3,7,4],[4,5,7,6],[0,0,1,2],[0,3,1,6],[0,7,1,8],[2,0,2,2],[2,3,3,4],[2,5,3,6],[3,0,3,2]]}
[{"$f":"'Info+Engagés'!B3","v":"Quel Lieu ? (Département ?)"},null,null,{"$f":"'Info+Engagés'!B8","v":"Amateur 3 Grand Prix (D1)"},null,null,null,{"$f":"'Info+Engagés'!B2","v":"Quelle Date ?"}]
[]
["N° de concours",null,null,"Cheval",null,"Cavalier",null,"Note d’ensemble",{"$f":"SUM(D34:H36,D39:H39,D37*2,E37*2,F37*2,G37*2,H37*2,D38*2,E38*2,F38*2,G38*2,H38*2)","v":0}]
[{"$f":"'Info+Engagés'!B4","v":"Quel N° ?"},null,null,null,null,null,null,"Points",{"$f":"SUM(D43:H43)","v":55}]
["Épreuve N°",null,{"$f":"'Info+Engagés'!B5","v":"Quel N° ?"},{"$f":"'Info+Engagés'!B17","v":"Nom du cheval 6"},null,{"$f":"'Info+Engagés'!G17","v":0},null,"% Final",{"$f":"AVERAGE(D42:H42)","v":18.333333333333332}]
["Piste  ",null,{"$f":"'Info+Engagés'!B6","v":"Quelle Piste ?"}]
["N° Départ BO",null,{"$f":"'Info+Engagés'!A17","v":6},null,null,null,null,"Classement",{"$f":"INDEX(Résultats!P:P,MATCH(C7,Résultats!A:A,0))","v":6}]
[]
["Imprimé le :",null,"Coéff .","Juge E","Juge H","Juge C","Juge M","Juge B","écart Max"]
[{"$f":"TODAY()","v":"2017-03-25"},null,null,{"$f":"IF(ISBLANK('Info+Engagés'!H2),\"\",('Info+Engagés'!H2))","v":""},{"$f":"IF(ISBLANK('Info+Engagés'!H3),\"\",('Info+Engagés'!H3))","v":""},{"$f":"IF(ISBLANK('Info+Engagés'!H4),\"\",('Info+Engagés'!H4))","v":"Nom du juge en C"},{"$f":"IF(ISBLANK('Info+Engagés'!H5),\"\",('Info+Engagés'!H5))","v":""},{"$f":"IF(ISBLANK('Info+Engagés'!H6),\"\",('Info+Engagés'!H6))","v":""}]
[{"$f":"NOW()","v":42819.607247569445}]
["Notation figures","Figure 1",1,null,null,55,null,null,{"$f":"MAX(D12:H12)-MIN(D12:H12)","v":0}]
[null,"Figure 2",1,null,null,null,null,null,0]
[null,"Figure 3",1,null,null,null,null,null,0]
[null,"Figure 4",1,null,null,null,null,null,0]
[null,"Figure 5",1,null,null,null,null,null,0]
[null,"Figure 6",1,null,null,null,null,null,0]
[null,"Figure 7",1,null,null,null,null,null,0]
[null,"Figure 8",1,null,null,null,null,null,0]
[null,"Figure 9",1,null,null,null,null,null,0]
[null,"Figure 10",1,null,null,null,null,null,0]
[null,"Figure 11",1,null,null,null,null,null,0]
[null,"Figure 12",1,null,null,null,null,null,0]
[null,"Figure 13",1,null,null,null,null,null,0]
[null,"Figure 14",1,null,null,null,null,null,0]
[null,"Figure 15",1,null,null,null,null,null,0]
[null,"Figure 16",1,null,null,null,null,null,0]
[null,"Figure 17",1,null,null,null,null,null,0]
[null,"Figure 18",1,null,null,null,null,null,0]
[null,"Figure 19",1,null,null,null,null,null,0]
[null,"Figure 20",1,null,null,null,null,null,0]
[null,"Figure 21",1,null,null,null,null,null,0]
[null,"Figure 22",1,null,null,null,null,null,0]
[" Ensemble","Ensemble 1",1,null,null,null,null,null,0]
[null,"Ensemble 2",1,null,null,null,null,null,0]
[null,"Ensemble 3",1,null,null,null,null,null,0]
[null,"Ensemble 4",2,null,null,null,null,null,0]
[null,"Ensemble 5",2,null,null,null,null,null,0]
[null,"Ensemble 6",1,null,null,null,null,null,0]
["Pénalité en points"]
["Erreure(s) de tracé "]
["% Total du juge",null,null,{"$f":"IF(ISBLANK('Info+Engagés'!H2),\"\",D43/3-D41)","v":""},{"$f":"IF(ISBLANK('Info+Engagés'!H3),\"\",E43/3-E41)","v":""},{"$f":"IF(ISBLANK('Info+Engagés'!H4),\"\",F43/3-F41)","v":18.333333333333332},{"$f":"IF(ISBLANK('Info+Engagés'!H5),\"\",G43/3-G41)","v":""},{"$f":"IF(ISBLANK('Info+Engagés'!H6),\"\",H43/3-H41)","v":""},{"$f":"MAX(D42:H42)-MIN(D42:H42)","v":0}]
["Soit en points",null,null,{"$f":"IF(ISBLANK('Info+Engagés'!H2),\"\",SUM(D12:D36,D39,D37*2,D38*2)-D40)","v":""},{"$f":"IF(ISBLANK('Info+Engagés'!H3),\"\",(SUM(E12:E36,E39,E37*2,E38*2)-E40))","v":""},{"$f":"IF(ISBLANK('Info+Engagés'!H4),\"\",(SUM(F12:F36,F39,F37*2,F38*2)-F40))","v":55},{"$f":"IF(ISBLANK('Info+Engagés'!H5),\"\",(SUM(G12:G36,G39,G37*2,G38*2)-G40))","v":""},{"$f":"IF(ISBLANK('Info+Engagés'!H6),\"\",(SUM(H12:H36,H39,H37*2,H38*2)-H40))","v":""}]
["                          Total maxi par juge = 300          1 point correspond à 0,333%              1% correspond en points à : 3                                                                  Les notes sont sur 10 et correspondent à la saisie informatique par l'opérateur des protocoles joints, Le total résulte de l'addition des points attribués après application du coefficient et soustraction des points de pénalité encourus après conversion en pourcentage sont déduit les pourcentages de pénalités encourus par suite d'erreurs de tracé pour obtenir le pourcentage par juge."]

{"sheet":"Cav7","index":8,"n_rows":44,"n_cols":9,"rows_kept":44,"cut":false,"hidden":false,"merged":[[40,0,40,2],[41,0,41,2],[42,0,42,2],[43,0,47,8],[9,6,10,6],[9,7,10,7],[10,0,10,1],[11,0,32,0],[33,0,38,0],[39,0,39,2],[9,5,10,5],[8,8,10,8],[8,0,8,1],[9,0,9,1],[9,3,10,3],[9,4,10,4],[8,2,10,2],[4,0,4,1],[4,7,5,7],[4,8,5,8],[5,0,5,1],[6,0,7,1],[6,2,7,2],[6,7,7,7],[6,8,7,8],[4,3,7,4],[4,5,7,6],[0,0,1,2],[0,3,1,6],[0,7,1,8],[2,0,2,2],[2,3,3,4],[2,5,3,6],[3,0,3,2]]}
[{"$f":"'Info+Engagés'!B3","v":"Quel Lieu ? (Département ?)"},null,null,{"$f":"'Info+Engagés'!B8","v":"Amateur 3 Grand Prix (D1)"},null,null,null,{"$f":"'Info+Engagés'!B2","v":"Quelle Date ?"}]
[]
["N° de concours",null,null,"Cheval",null,"Cavalier",null,"Note d’ensemble",{"$f":"SUM(D34:H36,D39:H39,D37*2,E37*2,F37*2,G37*2,H37*2,D38*2,E38*2,F38*2,G38*2,H38*2)","v":0}]
[{"$f":"'Info+Engagés'!B4","v":"Quel N° ?"},null,null,null,null,null,null,"Points",{"$f":"SUM(D43:H43)","v":54}]
["Épreuve N°",null,{"$f":"'Info+Engagés'!B5","v":"Quel N° ?"},{"$f":"'Info+Engagés'!B18","v":"Nom du cheval 7"},null,{"$f":"'Info+Engagés'!G18","v":0},null,"% Final",{"$f":"AVERAGE(D42:H42)","v":18}]
["Piste  ",null,{"$f":"'Info+Engagés'!B6","v":"Quelle Piste ?"}]
["N° Départ BO",null,{"$f":"'Info+Engagés'!A18","v":7},null,null,null,null,"Classement",{"$f":"INDEX(Résultats!P:P,MATCH(C7,Résultats!A:A,0))","v":7}]
[]
["Imprimé le :",null,"Coéff .","Juge E","Juge H","Juge C","Juge M","Juge B","écart Max"]
[{"$f":"TODAY()","v":"2017-03-25"},null,null,{"$f":"IF(ISBLANK('Info+Engagés'!H2),\"\",('Info+Engagés'!H2))","v":""},{"$f":"IF(ISBLANK('Info+Engagés'!H3),\"\",('Info+Engagés'!H3))","v":""},{"$f":"IF(ISBLANK('Info+Engagés'!H4),\"\",('Info+Engagés'!H4))","v":"Nom du juge en C"},{"$f":"IF(ISBLANK('Info+Engagés'!H5),\"\",('Info+Engagés'!H5))","v":""},{"$f":"IF(ISBLANK('Info+Engagés'!H6),\"\",('Info+Engagés'!H6))","v":""}]
[{"$f":"NOW()","v":42819.607247569445}]
["Notation figures","Figure 1",1,null,null,54,null,null,{"$f":"MAX(D12:H12)-MIN(D12:H12)","v":0}]
[null,"Figure 2",1,null,null,null,null,null,0]
[null,"Figure 3",1,null,null,null,null,null,0]
[null,"Figure 4",1,null,null,null,null,null,0]
[null,"Figure 5",1,null,null,null,null,null,0]
[null,"Figure 6",1,null,null,null,null,null,0]
[null,"Figure 7",1,null,null,null,null,null,0]
[null,"Figure 8",1,null,null,null,null,null,0]
[null,"Figure 9",1,null,null,null,null,null,0]
[null,"Figure 10",1,null,null,null,null,null,0]
[null,"Figure 11",1,null,null,null,null,null,0]
[null,"Figure 12",1,null,null,null,null,null,0]
[null,"Figure 13",1,null,null,null,null,null,0]
[null,"Figure 14",1,null,null,null,null,null,0]
[null,"Figure 15",1,null,null,null,null,null,0]
[null,"Figure 16",1,null,null,null,null,null,0]
[null,"Figure 17",1,null,null,null,null,null,0]
[null,"Figure 18",1,null,null,null,null,null,0]
[null,"Figure 19",1,null,null,null,null,null,0]
[null,"Figure 20",1,null,null,null,null,null,0]
[null,"Figure 21",1,null,null,null,null,null,0]
[null,"Figure 22",1,null,null,null,null,null,0]
[" Ensemble","Ensemble 1",1,null,null,null,null,null,0]
[null,"Ensemble 2",1,null,null,null,null,null,0]
[null,"Ensemble 3",1,null,null,null,null,null,0]
[null,"Ensemble 4",2,null,null,null,null,null,0]
[null,"Ensemble 5",2,null,null,null,null,null,0]
[null,"Ensemble 6",1,null,null,null,null,null,0]
["Pénalité en points"]
["Erreure(s) de tracé "]
["% Total du juge",null,null,{"$f":"IF(ISBLANK('Info+Engagés'!H2),\"\",D43/3-D41)","v":""},{"$f":"IF(ISBLANK('Info+Engagés'!H3),\"\",E43/3-E41)","v":""},{"$f":"IF(ISBLANK('Info+Engagés'!H4),\"\",F43/3-F41)","v":18},{"$f":"IF(ISBLANK('Info+Engagés'!H5),\"\",G43/3-G41)","v":""},{"$f":"IF(ISBLANK('Info+Engagés'!H6),\"\",H43/3-H41)","v":""},{"$f":"MAX(D42:H42)-MIN(D42:H42)","v":0}]
["Soit en points",null,null,{"$f":"IF(ISBLANK('Info+Engagés'!H2),\"\",SUM(D12:D36,D39,D37*2,D38*2)-D40)","v":""},{"$f":"IF(ISBLANK('Info+Engagés'!H3),\"\",(SUM(E12:E36,E39,E37*2,E38*2)-E40))","v":""},{"$f":"IF(ISBLANK('Info+Engagés'!H4),\"\",(SUM(F12:F36,F39,F37*2,F38*2)-F40))","v":54},{"$f":"IF(ISBLANK('Info+Engagés'!H5),\"\",(SUM(G12:G36,G39,G37*2,G38*2)-G40))","v":""},{"$f":"IF(ISBLANK('Info+Engagés'!H6),\"\",(SUM(H12:H36,H39,H37*2,H38*2)-H40))","v":""}]
["                          Total maxi par juge = 300          1 point correspond à 0,333%              1% correspond en points à : 3                                                                  Les notes sont sur 10 et correspondent à la saisie informatique par l'opérateur des protocoles joints, Le total résulte de l'addition des points attribués après application du coefficient et soustraction des points de pénalité encourus après conversion en pourcentage sont déduit les pourcentages de pénalités encourus par suite d'erreurs de tracé pour obtenir le pourcentage par juge."]

{"sheet":"Cav8","index":9,"n_rows":44,"n_cols":9,"rows_kept":44,"cut":false,"hidden":false,"merged":[[40,0,40,2],[41,0,41,2],[42,0,42,2],[43,0,47,8],[9,6,10,6],[9,7,10,7],[10,0,10,1],[11,0,32,0],[33,0,38,0],[39,0,39,2],[9,5,10,5],[8,8,10,8],[8,0,8,1],[9,0,9,1],[9,3,10,3],[9,4,10,4],[8,2,10,2],[4,0,4,1],[4,7,5,7],[4,8,5,8],[5,0,5,1],[6,0,7,1],[6,2,7,2],[6,7,7,7],[6,8,7,8],[4,3,7,4],[4,5,7,6],[0,0,1,2],[0,3,1,6],[0,7,1,8],[2,0,2,2],[2,3,3,4],[2,5,3,6],[3,0,3,2]]}
[{"$f":"'Info+Engagés'!B3","v":"Quel Lieu ? (Département ?)"},null,null,{"$f":"'Info+Engagés'!B8","v":"Amateur 3 Grand Prix (D1)"},null,null,null,{"$f":"'Info+Engagés'!B2","v":"Quelle Date ?"}]
[]
["N° de concours",null,null,"Cheval",null,"Cavalier",null,"Note d’ensemble",{"$f":"SUM(D34:H36,D39:H39,D37*2,E37*2,F37*2,G37*2,H37*2,D38*2,E38*2,F38*2,G38*2,H38*2)","v":0}]
[{"$f":"'Info+Engagés'!B4","v":"Quel N° ?"},null,null,null,null,null,null,"Points",{"$f":"SUM(D43:H43)","v":53}]
["Épreuve N°",null,{"$f":"'Info+Engagés'!B5","v":"Quel N° ?"},{"$f":"'Info+Engagés'!B19","v":"Nom du cheval 8"},null,{"$f":"'Info+Engagés'!G19","v":0},null,"% Final",{"$f":"AVERAGE(D42:H42)","v":17.666666666666668}]
["Piste  ",null,{"$f":"'Info+Engagés'!B6","v":"Quelle Piste ?"}]
["N° Départ BO",null,{"$f":"'Info+Engagés'!A19","v":8},null,null,null,null,"Classement",{"$f":"INDEX(Résultats!P:P,MATCH(C7,Résultats!A:A,0))","v":8}]
[]
["Imprimé le :",null,"Coéff .","Juge E","Juge H","Juge C","Juge M","Juge B","écart Max"]
[{"$f":"TODAY()","v":"2017-03-25"},null,null,{"$f":"IF(ISBLANK('Info+Engagés'!H2),\"\",('Info+Engagés'!H2))","v":""},{"$f":"IF(ISBLANK('Info+Engagés'!H3),\"\",('Info+Engagés'!H3))","v":""},{"$f":"IF(ISBLANK('Info+Engagés'!H4),\"\",('Info+Engagés'!H4))","v":"Nom du juge en C"},{"$f":"IF(ISBLANK('Info+Engagés'!H5),\"\",('Info+Engagés'!H5))","v":""},{"$f":"IF(ISBLANK('Info+Engagés'!H6),\"\",('Info+Engagés'!H6))","v":""}]
[{"$f":"NOW()","v":42819.607247569445}]
["Notation figures","Figure 1",1,null,null,53,null,null,{"$f":"MAX(D12:H12)-MIN(D12:H12)","v":0}]
[null,"Figure 2",1,null,null,null,null,null,0]
[null,"Figure 3",1,null,null,null,null,null,0]
[null,"Figure 4",1,null,null,null,null,null,0]
[null,"Figure 5",1,null,null,null,null,null,0]
[null,"Figure 6",1,null,null,null,null,null,0]
[null,"Figure 7",1,null,null,null,null,null,0]
[null,"Figure 8",1,null,null,null,null,null,0]
[null,"Figure 9",1,null,null,null,null,null,0]
[null,"Figure 10",1,null,null,null,null,null,0]
[null,"Figure 11",1,null,null,null,null,null,0]
[null,"Figure 12",1,null,null,null,null,null,0]
[null,"Figure 13",1,null,null,null,null,null,0]
[null,"Figure 14",1,null,null,null,null,null,0]
[null,"Figure 15",1,null,null,null,null,null,0]
[null,"Figure 16",1,null,null,null,null,null,0]
[null,"Figure 17",1,null,null,null,null,null,0]
[null,"Figure 18",1,null,null,null,null,null,0]
[null,"Figure 19",1,null,null,null,null,null,0]
[null,"Figure 20",1,null,null,null,null,null,0]
[null,"Figure 21",1,null,null,null,null,null,0]
[null,"Figure 22",1,null,null,null,null,null,0]
[" Ensemble","Ensemble 1",1,null,null,null,null,null,0]
[null,"Ensemble 2",1,null,null,null,null,null,0]
[null,"Ensemble 3",1,null,null,null,null,null,0]
[null,"Ensemble 4",2,null,null,null,null,null,0]
[null,"Ensemble 5",2,null,null,null,null,null,0]
[null,"Ensemble 6",1,null,null,null,null,null,0]
["Pénalité en points"]
["Erreure(s) de tracé "]
["% Total du juge",null,null,{"$f":"IF(ISBLANK('Info+Engagés'!H2),\"\",D43/3-D41)","v":""},{"$f":"IF(ISBLANK('Info+Engagés'!H3),\"\",E43/3-E41)","v":""},{"$f":"IF(ISBLANK('Info+Engagés'!H4),\"\",F43/3-F41)","v":17.666666666666668},{"$f":"IF(ISBLANK('Info+Engagés'!H5),\"\",G43/3-G41)","v":""},{"$f":"IF(ISBLANK('Info+Engagés'!H6),\"\",H43/3-H41)","v":""},{"$f":"MAX(D42:H42)-MIN(D42:H42)","v":0}]
["Soit en points",null,null,{"$f":"IF(ISBLANK('Info+Engagés'!H2),\"\",SUM(D12:D36,D39,D37*2,D38*2)-D40)","v":""},{"$f":"IF(ISBLANK('Info+Engagés'!H3),\"\",(SUM(E12:E36,E39,E37*2,E38*2)-E40))","v":""},{"$f":"IF(ISBLANK('Info+Engagés'!H4),\"\",(SUM(F12:F36,F39,F37*2,F38*2)-F40))","v":53},{"$f":"IF(ISBLANK('Info+Engagés'!H5),\"\",(SUM(G12:G36,G39,G37*2,G38*2)-G40))","v":""},{"$f":"IF(ISBLANK('Info+Engagés'!H6),\"\",(SUM(H12:H36,H39,H37*2,H38*2)-H40))","v":""}]
["                          Total maxi par juge = 300          1 point correspond à 0,333%              1% correspond en points à : 3                                                                  Les notes sont sur 10 et correspondent à la saisie informatique par l'opérateur des protocoles joints, Le total résulte de l'addition des points attribués après application du coefficient et soustraction des points de pénalité encourus après conversion en pourcentage sont déduit les pourcentages de pénalités encourus par suite d'erreurs de tracé pour obtenir le pourcentage par juge."]

{"sheet":"Cav9","index":10,"n_rows":44,"n_cols":9,"rows_kept":44,"cut":false,"hidden":false,"merged":[[40,0,40,2],[41,0,41,2],[42,0,42,2],[43,0,47,8],[9,6,10,6],[9,7,10,7],[10,0,10,1],[11,0,32,0],[33,0,38,0],[39,0,39,2],[9,5,10,5],[8,8,10,8],[8,0,8,1],[9,0,9,1],[9,3,10,3],[9,4,10,4],[8,2,10,2],[4,0,4,1],[4,7,5,7],[4,8,5,8],[5,0,5,1],[6,0,7,1],[6,2,7,2],[6,7,7,7],[6,8,7,8],[4,3,7,4],[4,5,7,6],[0,0,1,2],[0,3,1,6],[0,7,1,8],[2,0,2,2],[2,3,3,4],[2,5,3,6],[3,0,3,2]]}
[{"$f":"'Info+Engagés'!B3","v":"Quel Lieu ? (Département ?)"},null,null,{"$f":"'Info+Engagés'!B8","v":"Amateur 3 Grand Prix (D1)"},null,null,null,{"$f":"'Info+Engagés'!B2","v":"Quelle Date ?"}]
[]
["N° de concours",null,null,"Cheval",null,"Cavalier",null,"Note d’ensemble",{"$f":"SUM(D34:H36,D39:H39,D37*2,E37*2,F37*2,G37*2,H37*2,D38*2,E38*2,F38*2,G38*2,H38*2)","v":0}]
[{"$f":"'Info+Engagés'!B4","v":"Quel N° ?"},null,null,null,null,null,null,"Points",{"$f":"SUM(D43:H43)","v":52}]
["Épreuve N°",null,{"$f":"'Info+Engagés'!B5","v":"Quel N° ?"},{"$f":"'Info+Engagés'!B20","v":"Nom du cheval 9"},null,{"$f":"'Info+Engagés'!G20","v":0},null,"% Final",{"$f":"AVERAGE(D42:H42)","v":17.333333333333332}]
["Piste  ",null,{"$f":"'Info+Engagés'!B6","v":"Quelle Piste ?"}]
["N° Départ BO",null,{"$f":"'Info+Engagés'!A20","v":9},null,null,null,null,"Classement",{"$f":"INDEX(Résultats!P:P,MATCH(C7,Résultats!A:A,0))","v":9}]
[]
["Imprimé le :",null,"Coéff .","Juge E","Juge H","Juge C","Juge M","Juge B","écart Max"]
[{"$f":"TODAY()","v":"2017-03-25"},null,null,{"$f":"IF(ISBLANK('Info+Engagés'!H2),\"\",('Info+Engagés'!H2))","v":""},{"$f":"IF(ISBLANK('Info+Engagés'!H3),\"\",('Info+Engagés'!H3))","v":""},{"$f":"IF(ISBLANK('Info+Engagés'!H4),\"\",('Info+Engagés'!H4))","v":"Nom du juge en C"},{"$f":"IF(ISBLANK('Info+Engagés'!H5),\"\",('Info+Engagés'!H5))","v":""},{"$f":"IF(ISBLANK('Info+Engagés'!H6),\"\",('Info+Engagés'!H6))","v":""}]
[{"$f":"NOW()","v":42819.607247569445}]
["Notation figures","Figure 1",1,null,null,52,null,null,{"$f":"MAX(D12:H12)-MIN(D12:H12)","v":0}]
[null,"Figure 2",1,null,null,null,null,null,0]
[null,"Figure 3",1,null,null,null,null,null,0]
[null,"Figure 4",1,null,null,null,null,null,0]
[null,"Figure 5",1,null,null,null,null,null,0]
[null,"Figure 6",1,null,null,null,null,null,0]
[null,"Figure 7",1,null,null,null,null,null,0]
[null,"Figure 8",1,null,null,null,null,null,0]
[null,"Figure 9",1,null,null,null,null,null,0]
[null,"Figure 10",1,null,null,null,null,null,0]
[null,"Figure 11",1,null,null,null,null,null,0]
[null,"Figure 12",1,null,null,null,null,null,0]
[null,"Figure 13",1,null,null,null,null,null,0]
[null,"Figure 14",1,null,null,null,null,null,0]
[null,"Figure 15",1,null,null,null,null,null,0]
[null,"Figure 16",1,null,null,null,null,null,0]
[null,"Figure 17",1,null,null,null,null,null,0]
[null,"Figure 18",1,null,null,null,null,null,0]
[null,"Figure 19",1,null,null,null,null,null,0]
[null,"Figure 20",1,null,null,null,null,null,0]
[null,"Figure 21",1,null,null,null,null,null,0]
[null,"Figure 22",1,null,null,null,null,null,0]
[" Ensemble","Ensemble 1",1,null,null,null,null,null,0]
[null,"Ensemble 2",1,null,null,null,null,null,0]
[null,"Ensemble 3",1,null,null,null,null,null,0]
[null,"Ensemble 4",2,null,null,null,null,null,0]
[null,"Ensemble 5",2,null,null,null,null,null,0]
[null,"Ensemble 6",1,null,null,null,null,null,0]
["Pénalité en points"]
["Erreure(s) de tracé "]
["% Total du juge",null,null,{"$f":"IF(ISBLANK('Info+Engagés'!H2),\"\",D43/3-D41)","v":""},{"$f":"IF(ISBLANK('Info+Engagés'!H3),\"\",E43/3-E41)","v":""},{"$f":"IF(ISBLANK('Info+Engagés'!H4),\"\",F43/3-F41)","v":17.333333333333332},{"$f":"IF(ISBLANK('Info+Engagés'!H5),\"\",G43/3-G41)","v":""},{"$f":"IF(ISBLANK('Info+Engagés'!H6),\"\",H43/3-H41)","v":""},{"$f":"MAX(D42:H42)-MIN(D42:H42)","v":0}]
["Soit en points",null,null,{"$f":"IF(ISBLANK('Info+Engagés'!H2),\"\",SUM(D12:D36,D39,D37*2,D38*2)-D40)","v":""},{"$f":"IF(ISBLANK('Info+Engagés'!H3),\"\",(SUM(E12:E36,E39,E37*2,E38*2)-E40))","v":""},{"$f":"IF(ISBLANK('Info+Engagés'!H4),\"\",(SUM(F12:F36,F39,F37*2,F38*2)-F40))","v":52},{"$f":"IF(ISBLANK('Info+Engagés'!H5),\"\",(SUM(G12:G36,G39,G37*2,G38*2)-G40))","v":""},{"$f":"IF(ISBLANK('Info+Engagés'!H6),\"\",(SUM(H12:H36,H39,H37*2,H38*2)-H40))","v":""}]
["                          Total maxi par juge = 300          1 point correspond à 0,333%              1% correspond en points à : 3                                                                  Les notes sont sur 10 et correspondent à la saisie informatique par l'opérateur des protocoles joints, Le total résulte de l'addition des points attribués après application du coefficient et soustraction des points de pénalité encourus après conversion en pourcentage sont déduit les pourcentages de pénalités encourus par suite d'erreurs de tracé pour obtenir le pourcentage par juge."]

{"sheet":"Cav10","index":11,"n_rows":44,"n_cols":9,"rows_kept":44,"cut":false,"hidden":false,"merged":[[40,0,40,2],[41,0,41,2],[42,0,42,2],[43,0,47,8],[9,6,10,6],[9,7,10,7],[10,0,10,1],[11,0,32,0],[33,0,38,0],[39,0,39,2],[9,5,10,5],[8,8,10,8],[8,0,8,1],[9,0,9,1],[9,3,10,3],[9,4,10,4],[8,2,10,2],[4,0,4,1],[4,7,5,7],[4,8,5,8],[5,0,5,1],[6,0,7,1],[6,2,7,2],[6,7,7,7],[6,8,7,8],[4,3,7,4],[4,5,7,6],[0,0,1,2],[0,3,1,6],[0,7,1,8],[2,0,2,2],[2,3,3,4],[2,5,3,6],[3,0,3,2]]}
[{"$f":"'Info+Engagés'!B3","v":"Quel Lieu ? (Département ?)"},null,null,{"$f":"'Info+Engagés'!B8","v":"Amateur 3 Grand Prix (D1)"},null,null,null,{"$f":"'Info+Engagés'!B2","v":"Quelle Date ?"}]
[]
["N° de concours",null,null,"Cheval",null,"Cavalier",null,"Note d’ensemble",{"$f":"SUM(D34:H36,D39:H39,D37*2,E37*2,F37*2,G37*2,H37*2,D38*2,E38*2,F38*2,G38*2,H38*2)","v":0}]
[{"$f":"'Info+Engagés'!B4","v":"Quel N° ?"},null,null,null,null,null,null,"Points",{"$f":"SUM(D43:H43)","v":51}]
["Épreuve N°",null,{"$f":"'Info+Engagés'!B5","v":"Quel N° ?"},{"$f":"'Info+Engagés'!B21","v":"Nom du cheval 10"},null,{"$f":"'Info+Engagés'!G21","v":0},null,"% Final",{"$f":"AVERAGE(D42:H42)","v":17}]
["Piste  ",null,{"$f":"'Info+Engagés'!B6","v":"Quelle Piste ?"}]
["N° Départ BO",null,{"$f":"'Info+Engagés'!A21","v":10},null,null,null,null,"Classement",{"$f":"INDEX(Résultats!P:P,MATCH(C7,Résultats!A:A,0))","v":10}]
[]
["Imprimé le :",null,"Coéff .","Juge E","Juge H","Juge C","Juge M","Juge B","écart Max"]
[{"$f":"TODAY()","v":"2017-03-25"},null,null,{"$f":"IF(ISBLANK('Info+Engagés'!H2),\"\",('Info+Engagés'!H2))","v":""},{"$f":"IF(ISBLANK('Info+Engagés'!H3),\"\",('Info+Engagés'!H3))","v":""},{"$f":"IF(ISBLANK('Info+Engagés'!H4),\"\",('Info+Engagés'!H4))","v":"Nom du juge en C"},{"$f":"IF(ISBLANK('Info+Engagés'!H5),\"\",('Info+Engagés'!H5))","v":""},{"$f":"IF(ISBLANK('Info+Engagés'!H6),\"\",('Info+Engagés'!H6))","v":""}]
[{"$f":"NOW()","v":42819.607247569445}]
["Notation figures","Figure 1",1,null,null,51,null,null,{"$f":"MAX(D12:H12)-MIN(D12:H12)","v":0}]
[null,"Figure 2",1,null,null,null,null,null,0]
[null,"Figure 3",1,null,null,null,null,null,0]
[null,"Figure 4",1,null,null,null,null,null,0]
[null,"Figure 5",1,null,null,null,null,null,0]
[null,"Figure 6",1,null,null,null,null,null,0]
[null,"Figure 7",1,null,null,null,null,null,0]
[null,"Figure 8",1,null,null,null,null,null,0]
[null,"Figure 9",1,null,null,null,null,null,0]
[null,"Figure 10",1,null,null,null,null,null,0]
[null,"Figure 11",1,null,null,null,null,null,0]
[null,"Figure 12",1,null,null,null,null,null,0]
[null,"Figure 13",1,null,null,null,null,null,0]
[null,"Figure 14",1,null,null,null,null,null,0]
[null,"Figure 15",1,null,null,null,null,null,0]
[null,"Figure 16",1,null,null,null,null,null,0]
[null,"Figure 17",1,null,null,null,null,null,0]
[null,"Figure 18",1,null,null,null,null,null,0]
[null,"Figure 19",1,null,null,null,null,null,0]
[null,"Figure 20",1,null,null,null,null,null,0]
[null,"Figure 21",1,null,null,null,null,null,0]
[null,"Figure 22",1,null,null,null,null,null,0]
[" Ensemble","Ensemble 1",1,null,null,null,null,null,0]
[null,"Ensemble 2",1,null,null,null,null,null,0]
[null,"Ensemble 3",1,null,null,null,null,null,0]
[null,"Ensemble 4",2,null,null,null,null,null,0]
[null,"Ensemble 5",2,null,null,null,null,null,0]
[null,"Ensemble 6",1,null,null,null,null,null,0]
["Pénalité en points"]
["Erreure(s) de tracé "]
["% Total du juge",null,null,{"$f":"IF(ISBLANK('Info+Engagés'!H2),\"\",D43/3-D41)","v":""},{"$f":"IF(ISBLANK('Info+Engagés'!H3),\"\",E43/3-E41)","v":""},{"$f":"IF(ISBLANK('Info+Engagés'!H4),\"\",F43/3-F41)","v":17},{"$f":"IF(ISBLANK('Info+Engagés'!H5),\"\",G43/3-G41)","v":""},{"$f":"IF(ISBLANK('Info+Engagés'!H6),\"\",H43/3-H41)","v":""},{"$f":"MAX(D42:H42)-MIN(D42:H42)","v":0}]
["Soit en points",null,null,{"$f":"IF(ISBLANK('Info+Engagés'!H2),\"\",SUM(D12:D36,D39,D37*2,D38*2)-D40)","v":""},{"$f":"IF(ISBLANK('Info+Engagés'!H3),\"\",(SUM(E12:E36,E39,E37*2,E38*2)-E40))","v":""},{"$f":"IF(ISBLANK('Info+Engagés'!H4),\"\",(SUM(F12:F36,F39,F37*2,F38*2)-F40))","v":51},{"$f":"IF(ISBLANK('Info+Engagés'!H5),\"\",(SUM(G12:G36,G39,G37*2,G38*2)-G40))","v":""},{"$f":"IF(ISBLANK('Info+Engagés'!H6),\"\",(SUM(H12:H36,H39,H37*2,H38*2)-H40))","v":""}]
["                          Total maxi par juge = 300          1 point correspond à 0,333%              1% correspond en points à : 3                                                                  Les notes sont sur 10 et correspondent à la saisie informatique par l'opérateur des protocoles joints, Le total résulte de l'addition des points attribués après application du coefficient et soustraction des points de pénalité encourus après conversion en pourcentage sont déduit les pourcentages de pénalités encourus par suite d'erreurs de tracé pour obtenir le pourcentage par juge."]

{"sheet":"Cav11","index":12,"n_rows":44,"n_cols":9,"rows_kept":44,"cut":false,"hidden":false,"merged":[[40,0,40,2],[41,0,41,2],[42,0,42,2],[43,0,47,8],[9,6,10,6],[9,7,10,7],[10,0,10,1],[11,0,32,0],[33,0,38,0],[39,0,39,2],[9,5,10,5],[8,8,10,8],[8,0,8,1],[9,0,9,1],[9,3,10,3],[9,4,10,4],[8,2,10,2],[4,0,4,1],[4,7,5,7],[4,8,5,8],[5,0,5,1],[6,0,7,1],[6,2,7,2],[6,7,7,7],[6,8,7,8],[4,3,7,4],[4,5,7,6],[0,0,1,2],[0,3,1,6],[0,7,1,8],[2,0,2,2],[2,3,3,4],[2,5,3,6],[3,0,3,2]]}
[{"$f":"'Info+Engagés'!B3","v":"Quel Lieu ? (Département ?)"},null,null,{"$f":"'Info+Engagés'!B8","v":"Amateur 3 Grand Prix (D1)"},null,null,null,{"$f":"'Info+Engagés'!B2","v":"Quelle Date ?"}]
[]
["N° de concours",null,null,"Cheval",null,"Cavalier",null,"Note d’ensemble",{"$f":"SUM(D34:H36,D39:H39,D37*2,E37*2,F37*2,G37*2,H37*2,D38*2,E38*2,F38*2,G38*2,H38*2)","v":0}]
[{"$f":"'Info+Engagés'!B4","v":"Quel N° ?"},null,null,null,null,null,null,"Points",{"$f":"SUM(D43:H43)","v":50}]
["Épreuve N°",null,{"$f":"'Info+Engagés'!B5","v":"Quel N° ?"},{"$f":"'Info+Engagés'!B22","v":"Nom du cheval 11"},null,{"$f":"'Info+Engagés'!G22","v":0},null,"% Final",{"$f":"AVERAGE(D42:H42)","v":16.666666666666668}]
["Piste  ",null,{"$f":"'Info+Engagés'!B6","v":"Quelle Piste ?"}]
["N° Départ BO",null,{"$f":"'Info+Engagés'!A22","v":11},null,null,null,null,"Classement",{"$f":"INDEX(Résultats!P:P,MATCH(C7,Résultats!A:A,0))","v":11}]
[]
["Imprimé le :",null,"Coéff .","Juge E","Juge H","Juge C","Juge M","Juge B","écart Max"]
[{"$f":"TODAY()","v":"2017-03-25"},null,null,{"$f":"IF(ISBLANK('Info+Engagés'!H2),\"\",('Info+Engagés'!H2))","v":""},{"$f":"IF(ISBLANK('Info+Engagés'!H3),\"\",('Info+Engagés'!H3))","v":""},{"$f":"IF(ISBLANK('Info+Engagés'!H4),\"\",('Info+Engagés'!H4))","v":"Nom du juge en C"},{"$f":"IF(ISBLANK('Info+Engagés'!H5),\"\",('Info+Engagés'!H5))","v":""},{"$f":"IF(ISBLANK('Info+Engagés'!H6),\"\",('Info+Engagés'!H6))","v":""}]
[{"$f":"NOW()","v":42819.607247569445}]
["Notation figures","Figure 1",1,null,null,50,null,null,{"$f":"MAX(D12:H12)-MIN(D12:H12)","v":0}]
[null,"Figure 2",1,null,null,null,null,null,0]
[null,"Figure 3",1,null,null,null,null,null,0]
[null,"Figure 4",1,null,null,null,null,null,0]
[null,"Figure 5",1,null,null,null,null,null,0]
[null,"Figure 6",1,null,null,null,null,null,0]
[null,"Figure 7",1,null,null,null,null,null,0]
[null,"Figure 8",1,null,null,null,null,null,0]
[null,"Figure 9",1,null,null,null,null,null,0]
[null,"Figure 10",1,null,null,null,null,null,0]
[null,"Figure 11",1,null,null,null,null,null,0]
[null,"Figure 12",1,null,null,null,null,null,0]
[null,"Figure 13",1,null,null,null,null,null,0]
[null,"Figure 14",1,null,null,null,null,null,0]
[null,"Figure 15",1,null,null,null,null,null,0]
[null,"Figure 16",1,null,null,null,null,null,0]
[null,"Figure 17",1,null,null,null,null,null,0]
[null,"Figure 18",1,null,null,null,null,null,0]
[null,"Figure 19",1,null,null,null,null,null,0]
[null,"Figure 20",1,null,null,null,null,null,0]
[null,"Figure 21",1,null,null,null,null,null,0]
[null,"Figure 22",1,null,null,null,null,null,0]
[" Ensemble","Ensemble 1",1,null,null,null,null,null,0]
[null,"Ensemble 2",1,null,null,null,null,null,0]
[null,"Ensemble 3",1,null,null,null,null,null,0]
[null,"Ensemble 4",2,null,null,null,null,null,0]
[null,"Ensemble 5",2,null,null,null,null,null,0]
[null,"Ensemble 6",1,null,null,null,null,null,0]
["Pénalité en points"]
["Erreure(s) de tracé "]
["% Total du juge",null,null,{"$f":"IF(ISBLANK('Info+Engagés'!H2),\"\",D43/3-D41)","v":""},{"$f":"IF(ISBLANK('Info+Engagés'!H3),\"\",E43/3-E41)","v":""},{"$f":"IF(ISBLANK('Info+Engagés'!H4),\"\",F43/3-F41)","v":16.666666666666668},{"$f":"IF(ISBLANK('Info+Engagés'!H5),\"\",G43/3-G41)","v":""},{"$f":"IF(ISBLANK('Info+Engagés'!H6),\"\",H43/3-H41)","v":""},{"$f":"MAX(D42:H42)-MIN(D42:H42)","v":0}]
["Soit en points",null,null,{"$f":"IF(ISBLANK('Info+Engagés'!H2),\"\",SUM(D12:D36,D39,D37*2,D38*2)-D40)","v":""},{"$f":"IF(ISBLANK('Info+Engagés'!H3),\"\",(SUM(E12:E36,E39,E37*2,E38*2)-E40))","v":""},{"$f":"IF(ISBLANK('Info+Engagés'!H4),\"\",(SUM(F12:F36,F39,F37*2,F38*2)-F40))","v":50},{"$f":"IF(ISBLANK('Info+Engagés'!H5),\"\",(SUM(G12:G36,G39,G37*2,G38*2)-G40))","v":""},{"$f":"IF(ISBLANK('Info+Engagés'!H6),\"\",(SUM(H12:H36,H39,H37*2,H38*2)-H40))","v":""}]
["                          Total maxi par juge = 300          1 point correspond à 0,333%              1% correspond en points à : 3                                                                  Les notes sont sur 10 et correspondent à la saisie informatique par l'opérateur des protocoles joints, Le total résulte de l'addition des points attribués après application du coefficient et soustraction des points de pénalité encourus après conversion en pourcentage sont déduit les pourcentages de pénalités encourus par suite d'erreurs de tracé pour obtenir le pourcentage par juge."]

{"sheet":"Cav12","index":13,"n_rows":44,"n_cols":9,"rows_kept":44,"cut":false,"hidden":false,"merged":[[40,0,40,2],[41,0,41,2],[42,0,42,2],[43,0,47,8],[9,6,10,6],[9,7,10,7],[10,0,10,1],[11,0,32,0],[33,0,38,0],[39,0,39,2],[9,5,10,5],[8,8,10,8],[8,0,8,1],[9,0,9,1],[9,3,10,3],[9,4,10,4],[8,2,10,2],[4,0,4,1],[4,7,5,7],[4,8,5,8],[5,0,5,1],[6,0,7,1],[6,2,7,2],[6,7,7,7],[6,8,7,8],[4,3,7,4],[4,5,7,6],[0,0,1,2],[0,3,1,6],[0,7,1,8],[2,0,2,2],[2,3,3,4],[2,5,3,6],[3,0,3,2]]}
[{"$f":"'Info+Engagés'!B3","v":"Quel Lieu ? (Département ?)"},null,null,{"$f":"'Info+Engagés'!B8","v":"Amateur 3 Grand Prix (D1)"},null,null,null,{"$f":"'Info+Engagés'!B2","v":"Quelle Date ?"}]
[]
["N° de concours",null,null,"Cheval",null,"Cavalier",null,"Note d’ensemble",{"$f":"SUM(D34:H36,D39:H39,D37*2,E37*2,F37*2,G37*2,H37*2,D38*2,E38*2,F38*2,G38*2,H38*2)","v":0}]
[{"$f":"'Info+Engagés'!B4","v":"Quel N° ?"},null,null,null,null,null,null,"Points",{"$f":"SUM(D43:H43)","v":49}]
["Épreuve N°",null,{"$f":"'Info+Engagés'!B5","v":"Quel N° ?"},{"$f":"'Info+Engagés'!B23","v":"Nom du cheval 12"},null,{"$f":"'Info+Engagés'!G23","v":0},null,"% Final",{"$f":"AVERAGE(D42:H42)","v":16.333333333333332}]
["Piste  ",null,{"$f":"'Info+Engagés'!B6","v":"Quelle Piste ?"}]
["N° Départ BO",null,{"$f":"'Info+Engagés'!A23","v":12},null,null,null,null,"Classement",{"$f":"INDEX(Résultats!P:P,MATCH(C7,Résultats!A:A,0))","v":12}]
[]
["Imprimé le :",null,"Coéff .","Juge E","Juge H","Juge C","Juge M","Juge B","écart Max"]
[{"$f":"TODAY()","v":"2017-03-25"},null,null,{"$f":"IF(ISBLANK('Info+Engagés'!H2),\"\",('Info+Engagés'!H2))","v":""},{"$f":"IF(ISBLANK('Info+Engagés'!H3),\"\",('Info+Engagés'!H3))","v":""},{"$f":"IF(ISBLANK('Info+Engagés'!H4),\"\",('Info+Engagés'!H4))","v":"Nom du juge en C"},{"$f":"IF(ISBLANK('Info+Engagés'!H5),\"\",('Info+Engagés'!H5))","v":""},{"$f":"IF(ISBLANK('Info+Engagés'!H6),\"\",('Info+Engagés'!H6))","v":""}]
[{"$f":"NOW()","v":42819.607247569445}]
["Notation figures","Figure 1",1,null,null,49,null,null,{"$f":"MAX(D12:H12)-MIN(D12:H12)","v":0}]
[null,"Figure 2",1,null,null,null,null,null,0]
[null,"Figure 3",1,null,null,null,null,null,0]
[null,"Figure 4",1,null,null,null,null,null,0]
[null,"Figure 5",1,null,null,null,null,null,0]
[null,"Figure 6",1,null,null,null,null,null,0]
[null,"Figure 7",1,null,null,null,null,null,0]
[null,"Figure 8",1,null,null,null,null,null,0]
[null,"Figure 9",1,null,null,null,null,null,0]
[null,"Figure 10",1,null,null,null,null,null,0]
[null,"Figure 11",1,null,null,null,null,null,0]
[null,"Figure 12",1,null,null,null,null,null,0]
[null,"Figure 13",1,null,null,null,null,null,0]
[null,"Figure 14",1,null,null,null,null,null,0]
[null,"Figure 15",1,null,null,null,null,null,0]
[null,"Figure 16",1,null,null,null,null,null,0]
[null,"Figure 17",1,null,null,null,null,null,0]
[null,"Figure 18",1,null,null,null,null,null,0]
[null,"Figure 19",1,null,null,null,null,null,0]
[null,"Figure 20",1,null,null,null,null,null,0]
[null,"Figure 21",1,null,null,null,null,null,0]
[null,"Figure 22",1,null,null,null,null,null,0]
[" Ensemble","Ensemble 1",1,null,null,null,null,null,0]
[null,"Ensemble 2",1,null,null,null,null,null,0]
[null,"Ensemble 3",1,null,null,null,null,null,0]
[null,"Ensemble 4",2,null,null,null,null,null,0]
[null,"Ensemble 5",2,null,null,null,null,null,0]
[null,"Ensemble 6",1,null,null,null,null,null,0]
["Pénalité en points"]
["Erreure(s) de tracé "]
["% Total du juge",null,null,{"$f":"IF(ISBLANK('Info+Engagés'!H2),\"\",D43/3-D41)","v":""},{"$f":"IF(ISBLANK('Info+Engagés'!H3),\"\",E43/3-E41)","v":""},{"$f":"IF(ISBLANK('Info+Engagés'!H4),\"\",F43/3-F41)","v":16.333333333333332},{"$f":"IF(ISBLANK('Info+Engagés'!H5),\"\",G43/3-G41)","v":""},{"$f":"IF(ISBLANK('Info+Engagés'!H6),\"\",H43/3-H41)","v":""},{"$f":"MAX(D42:H42)-MIN(D42:H42)","v":0}]
["Soit en points",null,null,{"$f":"IF(ISBLANK('Info+Engagés'!H2),\"\",SUM(D12:D36,D39,D37*2,D38*2)-D40)","v":""},{"$f":"IF(ISBLANK('Info+Engagés'!H3),\"\",(SUM(E12:E36,E39,E37*2,E38*2)-E40))","v":""},{"$f":"IF(ISBLANK('Info+Engagés'!H4),\"\",(SUM(F12:F36,F39,F37*2,F38*2)-F40))","v":49},{"$f":"IF(ISBLANK('Info+Engagés'!H5),\"\",(SUM(G12:G36,G39,G37*2,G38*2)-G40))","v":""},{"$f":"IF(ISBLANK('Info+Engagés'!H6),\"\",(SUM(H12:H36,H39,H37*2,H38*2)-H40))","v":""}]
["                          Total maxi par juge = 300          1 point correspond à 0,333%              1% correspond en points à : 3                                                                  Les notes sont sur 10 et correspondent à la saisie informatique par l'opérateur des protocoles joints, Le total résulte de l'addition des points attribués après application du coefficient et soustraction des points de pénalité encourus après conversion en pourcentage sont déduit les pourcentages de pénalités encourus par suite d'erreurs de tracé pour obtenir le pourcentage par juge."]

{"sheet":"Cav13","index":14,"n_rows":44,"n_cols":9,"rows_kept":44,"cut":false,"hidden":false,"merged":[[40,0,40,2],[41,0,41,2],[42,0,42,2],[43,0,47,8],[9,6,10,6],[9,7,10,7],[10,0,10,1],[11,0,32,0],[33,0,38,0],[39,0,39,2],[9,5,10,5],[8,8,10,8],[8,0,8,1],[9,0,9,1],[9,3,10,3],[9,4,10,4],[8,2,10,2],[4,0,4,1],[4,7,5,7],[4,8,5,8],[5,0,5,1],[6,0,7,1],[6,2,7,2],[6,7,7,7],[6,8,7,8],[4,3,7,4],[4,5,7,6],[0,0,1,2],[0,3,1,6],[0,7,1,8],[2,0,2,2],[2,3,3,4],[2,5,3,6],[3,0,3,2]]}
[{"$f":"'Info+Engagés'!B3","v":"Quel Lieu ? (Département ?)"},null,null,{"$f":"'Info+Engagés'!B8","v":"Amateur 3 Grand Prix (D1)"},null,null,null,{"$f":"'Info+Engagés'!B2","v":"Quelle Date ?"}]
[]
["N° de concours",null,null,"Cheval",null,"Cavalier",null,"Note d’ensemble",{"$f":"SUM(D34:H36,D39:H39,D37*2,E37*2,F37*2,G37*2,H37*2,D38*2,E38*2,F38*2,G38*2,H38*2)","v":0}]
[{"$f":"'Info+Engagés'!B4","v":"Quel N° ?"},null,null,null,null,null,null,"Points",{"$f":"SUM(D43:H43)","v":48}]
["Épreuve N°",null,{"$f":"'Info+Engagés'!B5","v":"Quel N° ?"},{"$f":"'Info+Engagés'!B24","v":"Nom du cheval 13"},null,{"$f":"'Info+Engagés'!G24","v":0},null,"% Final",{"$f":"AVERAGE(D42:H42)","v":16}]
["Piste  ",null,{"$f":"'Info+Engagés'!B6","v":"Quelle Piste ?"}]
["N° Départ BO",null,{"$f":"'Info+Engagés'!A24","v":13},null,null,null,null,"Classement",{"$f":"INDEX(Résultats!P:P,MATCH(C7,Résultats!A:A,0))","v":13}]
[]
["Imprimé le :",null,"Coéff .","Juge E","Juge H","Juge C","Juge M","Juge B","écart Max"]
[{"$f":"TODAY()","v":"2017-03-25"},null,null,{"$f":"IF(ISBLANK('Info+Engagés'!H2),\"\",('Info+Engagés'!H2))","v":""},{"$f":"IF(ISBLANK('Info+Engagés'!H3),\"\",('Info+Engagés'!H3))","v":""},{"$f":"IF(ISBLANK('Info+Engagés'!H4),\"\",('Info+Engagés'!H4))","v":"Nom du juge en C"},{"$f":"IF(ISBLANK('Info+Engagés'!H5),\"\",('Info+Engagés'!H5))","v":""},{"$f":"IF(ISBLANK('Info+Engagés'!H6),\"\",('Info+Engagés'!H6))","v":""}]
[{"$f":"NOW()","v":42819.607247569445}]
["Notation figures","Figure 1",1,null,null,48,null,null,{"$f":"MAX(D12:H12)-MIN(D12:H12)","v":0}]
[null,"Figure 2",1,null,null,null,null,null,0]
[null,"Figure 3",1,null,null,null,null,null,0]
[null,"Figure 4",1,null,null,null,null,null,0]
[null,"Figure 5",1,null,null,null,null,null,0]
[null,"Figure 6",1,null,null,null,null,null,0]
[null,"Figure 7",1,null,null,null,null,null,0]
[null,"Figure 8",1,null,null,null,null,null,0]
[null,"Figure 9",1,null,null,null,null,null,0]
[null,"Figure 10",1,null,null,null,null,null,0]
[null,"Figure 11",1,null,null,null,null,null,0]
[null,"Figure 12",1,null,null,null,null,null,0]
[null,"Figure 13",1,null,null,null,null,null,0]
[null,"Figure 14",1,null,null,null,null,null,0]
[null,"Figure 15",1,null,null,null,null,null,0]
[null,"Figure 16",1,null,null,null,null,null,0]
[null,"Figure 17",1,null,null,null,null,null,0]
[null,"Figure 18",1,null,null,null,null,null,0]
[null,"Figure 19",1,null,null,null,null,null,0]
[null,"Figure 20",1,null,null,null,null,null,0]
[null,"Figure 21",1,null,null,null,null,null,0]
[null,"Figure 22",1,null,null,null,null,null,0]
[" Ensemble","Ensemble 1",1,null,null,null,null,null,0]
[null,"Ensemble 2",1,null,null,null,null,null,0]
[null,"Ensemble 3",1,null,null,null,null,null,0]
[null,"Ensemble 4",2,null,null,null,null,null,0]
[null,"Ensemble 5",2,null,null,null,null,null,0]
[null,"Ensemble 6",1,null,null,null,null,null,0]
["Pénalité en points"]
["Erreure(s) de tracé "]
["% Total du juge",null,null,{"$f":"IF(ISBLANK('Info+Engagés'!H2),\"\",D43/3-D41)","v":""},{"$f":"IF(ISBLANK('Info+Engagés'!H3),\"\",E43/3-E41)","v":""},{"$f":"IF(ISBLANK('Info+Engagés'!H4),\"\",F43/3-F41)","v":16},{"$f":"IF(ISBLANK('Info+Engagés'!H5),\"\",G43/3-G41)","v":""},{"$f":"IF(ISBLANK('Info+Engagés'!H6),\"\",H43/3-H41)","v":""},{"$f":"MAX(D42:H42)-MIN(D42:H42)","v":0}]
["Soit en points",null,null,{"$f":"IF(ISBLANK('Info+Engagés'!H2),\"\",SUM(D12:D36,D39,D37*2,D38*2)-D40)","v":""},{"$f":"IF(ISBLANK('Info+Engagés'!H3),\"\",(SUM(E12:E36,E39,E37*2,E38*2)-E40))","v":""},{"$f":"IF(ISBLANK('Info+Engagés'!H4),\"\",(SUM(F12:F36,F39,F37*2,F38*2)-F40))","v":48},{"$f":"IF(ISBLANK('Info+Engagés'!H5),\"\",(SUM(G12:G36,G39,G37*2,G38*2)-G40))","v":""},{"$f":"IF(ISBLANK('Info+Engagés'!H6),\"\",(SUM(H12:H36,H39,H37*2,H38*2)-H40))","v":""}]
["                          Total maxi par juge = 300          1 point correspond à 0,333%              1% correspond en points à : 3                                                                  Les notes sont sur 10 et correspondent à la saisie informatique par l'opérateur des protocoles joints, Le total résulte de l'addition des points attribués après application du coefficient et soustraction des points de pénalité encourus après conversion en pourcentage sont déduit les pourcentages de pénalités encourus par suite d'erreurs de tracé pour obtenir le pourcentage par juge."]

{"sheet":"Cav14","index":15,"n_rows":44,"n_cols":9,"rows_kept":44,"cut":false,"hidden":false,"merged":[[40,0,40,2],[41,0,41,2],[42,0,42,2],[43,0,47,8],[9,6,10,6],[9,7,10,7],[10,0,10,1],[11,0,32,0],[33,0,38,0],[39,0,39,2],[9,5,10,5],[8,8,10,8],[8,0,8,1],[9,0,9,1],[9,3,10,3],[9,4,10,4],[8,2,10,2],[4,0,4,1],[4,7,5,7],[4,8,5,8],[5,0,5,1],[6,0,7,1],[6,2,7,2],[6,7,7,7],[6,8,7,8],[4,3,7,4],[4,5,7,6],[0,0,1,2],[0,3,1,6],[0,7,1,8],[2,0,2,2],[2,3,3,4],[2,5,3,6],[3,0,3,2]]}
[{"$f":"'Info+Engagés'!B3","v":"Quel Lieu ? (Département ?)"},null,null,{"$f":"'Info+Engagés'!B8","v":"Amateur 3 Grand Prix (D1)"},null,null,null,{"$f":"'Info+Engagés'!B2","v":"Quelle Date ?"}]
[]
["N° de concours",null,null,"Cheval",null,"Cavalier",null,"Note d’ensemble",{"$f":"SUM(D34:H36,D39:H39,D37*2,E37*2,F37*2,G37*2,H37*2,D38*2,E38*2,F38*2,G38*2,H38*2)","v":0}]
[{"$f":"'Info+Engagés'!B4","v":"Quel N° ?"},null,null,null,null,null,null,"Points",{"$f":"SUM(D43:H43)","v":47}]
["Épreuve N°",null,{"$f":"'Info+Engagés'!B5","v":"Quel N° ?"},{"$f":"'Info+Engagés'!B25","v":"Nom du cheval 14"},null,{"$f":"'Info+Engagés'!G25","v":0},null,"% Final",{"$f":"AVERAGE(D42:H42)","v":15.666666666666666}]
["Piste  ",null,{"$f":"'Info+Engagés'!B6","v":"Quelle Piste ?"}]
["N° Départ BO",null,{"$f":"'Info+Engagés'!A25","v":14},null,null,null,null,"Classement",{"$f":"INDEX(Résultats!P:P,MATCH(C7,Résultats!A:A,0))","v":14}]
[]
["Imprimé le :",null,"Coéff .","Juge E","Juge H","Juge C","Juge M","Juge B","écart Max"]
[{"$f":"TODAY()","v":"2017-03-25"},null,null,{"$f":"IF(ISBLANK('Info+Engagés'!H2),\"\",('Info+Engagés'!H2))","v":""},{"$f":"IF(ISBLANK('Info+Engagés'!H3),\"\",('Info+Engagés'!H3))","v":""},{"$f":"IF(ISBLANK('Info+Engagés'!H4),\"\",('Info+Engagés'!H4))","v":"Nom du juge en C"},{"$f":"IF(ISBLANK('Info+Engagés'!H5),\"\",('Info+Engagés'!H5))","v":""},{"$f":"IF(ISBLANK('Info+Engagés'!H6),\"\",('Info+Engagés'!H6))","v":""}]
[{"$f":"NOW()","v":42819.607247569445}]
["Notation figures","Figure 1",1,null,null,47,null,null,{"$f":"MAX(D12:H12)-MIN(D12:H12)","v":0}]
[null,"Figure 2",1,null,null,null,null,null,0]
[null,"Figure 3",1,null,null,null,null,null,0]
[null,"Figure 4",1,null,null,null,null,null,0]
[null,"Figure 5",1,null,null,null,null,null,0]
[null,"Figure 6",1,null,null,null,null,null,0]
[null,"Figure 7",1,null,null,null,null,null,0]
[null,"Figure 8",1,null,null,null,null,null,0]
[null,"Figure 9",1,null,null,null,null,null,0]
[null,"Figure 10",1,null,null,null,null,null,0]
[null,"Figure 11",1,null,null,null,null,null,0]
[null,"Figure 12",1,null,null,null,null,null,0]
[null,"Figure 13",1,null,null,null,null,null,0]
[null,"Figure 14",1,null,null,null,null,null,0]
[null,"Figure 15",1,null,null,null,null,null,0]
[null,"Figure 16",1,null,null,null,null,null,0]
[null,"Figure 17",1,null,null,null,null,null,0]
[null,"Figure 18",1,null,null,null,null,null,0]
[null,"Figure 19",1,null,null,null,null,null,0]
[null,"Figure 20",1,null,null,null,null,null,0]
[null,"Figure 21",1,null,null,null,null,null,0]
[null,"Figure 22",1,null,null,null,null,null,0]
[" Ensemble","Ensemble 1",1,null,null,null,null,null,0]
[null,"Ensemble 2",1,null,null,null,null,null,0]
[null,"Ensemble 3",1,null,null,null,null,null,0]
[null,"Ensemble 4",2,null,null,null,null,null,0]
[null,"Ensemble 5",2,null,null,null,null,null,0]
[null,"Ensemble 6",1,null,null,null,null,null,0]
["Pénalité en points"]
["Erreure(s) de tracé "]
["% Total du juge",null,null,{"$f":"IF(ISBLANK('Info+Engagés'!H2),\"\",D43/3-D41)","v":""},{"$f":"IF(ISBLANK('Info+Engagés'!H3),\"\",E43/3-E41)","v":""},{"$f":"IF(ISBLANK('Info+Engagés'!H4),\"\",F43/3-F41)","v":15.666666666666666},{"$f":"IF(ISBLANK('Info+Engagés'!H5),\"\",G43/3-G41)","v":""},{"$f":"IF(ISBLANK('Info+Engagés'!H6),\"\",H43/3-H41)","v":""},{"$f":"MAX(D42:H42)-MIN(D42:H42)","v":0}]
["Soit en points",null,null,{"$f":"IF(ISBLANK('Info+Engagés'!H2),\"\",SUM(D12:D36,D39,D37*2,D38*2)-D40)","v":""},{"$f":"IF(ISBLANK('Info+Engagés'!H3),\"\",(SUM(E12:E36,E39,E37*2,E38*2)-E40))","v":""},{"$f":"IF(ISBLANK('Info+Engagés'!H4),\"\",(SUM(F12:F36,F39,F37*2,F38*2)-F40))","v":47},{"$f":"IF(ISBLANK('Info+Engagés'!H5),\"\",(SUM(G12:G36,G39,G37*2,G38*2)-G40))","v":""},{"$f":"IF(ISBLANK('Info+Engagés'!H6),\"\",(SUM(H12:H36,H39,H37*2,H38*2)-H40))","v":""}]
["                          Total maxi par juge = 300          1 point correspond à 0,333%              1% correspond en points à : 3                                                                  Les notes sont sur 10 et correspondent à la saisie informatique par l'opérateur des protocoles joints, Le total résulte de l'addition des points attribués après application du coefficient et soustraction des points de pénalité encourus après conversion en pourcentage sont déduit les pourcentages de pénalités encourus par suite d'erreurs de tracé pour obtenir le pourcentage par juge."]

{"sheet":"Cav15","index":16,"n_rows":44,"n_cols":9,"rows_kept":44,"cut":false,"hidden":false,"merged":[[40,0,40,2],[41,0,41,2],[42,0,42,2],[43,0,47,8],[9,6,10,6],[9,7,10,7],[10,0,10,1],[11,0,32,0],[33,0,38,0],[39,0,39,2],[9,5,10,5],[8,8,10,8],[8,0,8,1],[9,0,9,1],[9,3,10,3],[9,4,10,4],[8,2,10,2],[4,0,4,1],[4,7,5,7],[4,8,5,8],[5,0,5,1],[6,0,7,1],[6,2,7,2],[6,7,7,7],[6,8,7,8],[4,3,7,4],[4,5,7,6],[0,0,1,2],[0,3,1,6],[0,7,1,8],[2,0,2,2],[2,3,3,4],[2,5,3,6],[3,0,3,2]]}
[{"$f":"'Info+Engagés'!B3","v":"Quel Lieu ? (Département ?)"},null,null,{"$f":"'Info+Engagés'!B8","v":"Amateur 3 Grand Prix (D1)"},null,null,null,{"$f":"'Info+Engagés'!B2","v":"Quelle Date ?"}]
[]
["N° de concours",null,null,"Cheval",null,"Cavalier",null,"Note d’ensemble",{"$f":"SUM(D34:H36,D39:H39,D37*2,E37*2,F37*2,G37*2,H37*2,D38*2,E38*2,F38*2,G38*2,H38*2)","v":0}]
[{"$f":"'Info+Engagés'!B4","v":"Quel N° ?"},null,null,null,null,null,null,"Points",{"$f":"SUM(D43:H43)","v":46}]
["Épreuve N°",null,{"$f":"'Info+Engagés'!B5","v":"Quel N° ?"},{"$f":"'Info+Engagés'!B26","v":"Nom du cheval 15"},null,{"$f":"'Info+Engagés'!G26","v":0},null,"% Final",{"$f":"AVERAGE(D42:H42)","v":15.333333333333334}]
["Piste  ",null,{"$f":"'Info+Engagés'!B6","v":"Quelle Piste ?"}]
["N° Départ BO",null,{"$f":"'Info+Engagés'!A26","v":15},null,null,null,null,"Classement",{"$f":"INDEX(Résultats!P:P,MATCH(C7,Résultats!A:A,0))","v":15}]
[]
["Imprimé le :",null,"Coéff .","Juge E","Juge H","Juge C","Juge M","Juge B","écart Max"]
[{"$f":"TODAY()","v":"2017-03-25"},null,null,{"$f":"IF(ISBLANK('Info+Engagés'!H2),\"\",('Info+Engagés'!H2))","v":""},{"$f":"IF(ISBLANK('Info+Engagés'!H3),\"\",('Info+Engagés'!H3))","v":""},{"$f":"IF(ISBLANK('Info+Engagés'!H4),\"\",('Info+Engagés'!H4))","v":"Nom du juge en C"},{"$f":"IF(ISBLANK('Info+Engagés'!H5),\"\",('Info+Engagés'!H5))","v":""},{"$f":"IF(ISBLANK('Info+Engagés'!H6),\"\",('Info+Engagés'!H6))","v":""}]
[{"$f":"NOW()","v":42819.607247569445}]
["Notation figures","Figure 1",1,null,null,46,null,null,{"$f":"MAX(D12:H12)-MIN(D12:H12)","v":0}]
[null,"Figure 2",1,null,null,null,null,null,0]
[null,"Figure 3",1,null,null,null,null,null,0]
[null,"Figure 4",1,null,null,null,null,null,0]
[null,"Figure 5",1,null,null,null,null,null,0]
[null,"Figure 6",1,null,null,null,null,null,0]
[null,"Figure 7",1,null,null,null,null,null,0]
[null,"Figure 8",1,null,null,null,null,null,0]
[null,"Figure 9",1,null,null,null,null,null,0]
[null,"Figure 10",1,null,null,null,null,null,0]
[null,"Figure 11",1,null,null,null,null,null,0]
[null,"Figure 12",1,null,null,null,null,null,0]
[null,"Figure 13",1,null,null,null,null,null,0]
[null,"Figure 14",1,null,null,null,null,null,0]
[null,"Figure 15",1,null,null,null,null,null,0]
[null,"Figure 16",1,null,null,null,null,null,0]
[null,"Figure 17",1,null,null,null,null,null,0]
[null,"Figure 18",1,null,null,null,null,null,0]
[null,"Figure 19",1,null,null,null,null,null,0]
[null,"Figure 20",1,null,null,null,null,null,0]
[null,"Figure 21",1,null,null,null,null,null,0]
[null,"Figure 22",1,null,null,null,null,null,0]
[" Ensemble","Ensemble 1",1,null,null,null,null,null,0]
[null,"Ensemble 2",1,null,null,null,null,null,0]
[null,"Ensemble 3",1,null,null,null,null,null,0]
[null,"Ensemble 4",2,null,null,null,null,null,0]
[null,"Ensemble 5",2,null,null,null,null,null,0]
[null,"Ensemble 6",1,null,null,null,null,null,0]
["Pénalité en points"]
["Erreure(s) de tracé "]
["% Total du juge",null,null,{"$f":"IF(ISBLANK('Info+Engagés'!H2),\"\",D43/3-D41)","v":""},{"$f":"IF(ISBLANK('Info+Engagés'!H3),\"\",E43/3-E41)","v":""},{"$f":"IF(ISBLANK('Info+Engagés'!H4),\"\",F43/3-F41)","v":15.333333333333334},{"$f":"IF(ISBLANK('Info+Engagés'!H5),\"\",G43/3-G41)","v":""},{"$f":"IF(ISBLANK('Info+Engagés'!H6),\"\",H43/3-H41)","v":""},{"$f":"MAX(D42:H42)-MIN(D42:H42)","v":0}]
["Soit en points",null,null,{"$f":"IF(ISBLANK('Info+Engagés'!H2),\"\",SUM(D12:D36,D39,D37*2,D38*2)-D40)","v":""},{"$f":"IF(ISBLANK('Info+Engagés'!H3),\"\",(SUM(E12:E36,E39,E37*2,E38*2)-E40))","v":""},{"$f":"IF(ISBLANK('Info+Engagés'!H4),\"\",(SUM(F12:F36,F39,F37*2,F38*2)-F40))","v":46},{"$f":"IF(ISBLANK('Info+Engagés'!H5),\"\",(SUM(G12:G36,G39,G37*2,G38*2)-G40))","v":""},{"$f":"IF(ISBLANK('Info+Engagés'!H6),\"\",(SUM(H12:H36,H39,H37*2,H38*2)-H40))","v":""}]
["                          Total maxi par juge = 300          1 point correspond à 0,333%              1% correspond en points à : 3                                                                  Les notes sont sur 10 et correspondent à la saisie informatique par l'opérateur des protocoles joints, Le total résulte de l'addition des points attribués après application du coefficient et soustraction des points de pénalité encourus après conversion en pourcentage sont déduit les pourcentages de pénalités encourus par suite d'erreurs de tracé pour obtenir le pourcentage par juge."]

{"sheet":"Cav16","index":17,"n_rows":44,"n_cols":9,"rows_kept":44,"cut":false,"hidden":false,"merged":[[40,0,40,2],[41,0,41,2],[42,0,42,2],[43,0,47,8],[9,6,10,6],[9,7,10,7],[10,0,10,1],[11,0,32,0],[33,0,38,0],[39,0,39,2],[9,5,10,5],[8,8,10,8],[8,0,8,1],[9,0,9,1],[9,3,10,3],[9,4,10,4],[8,2,10,2],[4,0,4,1],[4,7,5,7],[4,8,5,8],[5,0,5,1],[6,0,7,1],[6,2,7,2],[6,7,7,7],[6,8,7,8],[4,3,7,4],[4,5,7,6],[0,0,1,2],[0,3,1,6],[0,7,1,8],[2,0,2,2],[2,3,3,4],[2,5,3,6],[3,0,3,2]]}
[{"$f":"'Info+Engagés'!B3","v":"Quel Lieu ? (Département ?)"},null,null,{"$f":"'Info+Engagés'!B8","v":"Amateur 3 Grand Prix (D1)"},null,null,null,{"$f":"'Info+Engagés'!B2","v":"Quelle Date ?"}]
[]
["N° de concours",null,null,"Cheval",null,"Cavalier",null,"Note d’ensemble",{"$f":"SUM(D34:H36,D39:H39,D37*2,E37*2,F37*2,G37*2,H37*2,D38*2,E38*2,F38*2,G38*2,H38*2)","v":0}]
[{"$f":"'Info+Engagés'!B4","v":"Quel N° ?"},null,null,null,null,null,null,"Points",{"$f":"SUM(D43:H43)","v":45}]
["Épreuve N°",null,{"$f":"'Info+Engagés'!B5","v":"Quel N° ?"},{"$f":"'Info+Engagés'!B27","v":"Nom du cheval 16"},null,{"$f":"'Info+Engagés'!G27","v":0},null,"% Final",{"$f":"AVERAGE(D42:H42)","v":15}]
["Piste  ",null,{"$f":"'Info+Engagés'!B6","v":"Quelle Piste ?"}]
["N° Départ BO",null,{"$f":"'Info+Engagés'!A27","v":16},null,null,null,null,"Classement",{"$f":"INDEX(Résultats!P:P,MATCH(C7,Résultats!A:A,0))","v":16}]
[]
["Imprimé le :",null,"Coéff .","Juge E","Juge H","Juge C","Juge M","Juge B","écart Max"]
[{"$f":"TODAY()","v":"2017-03-25"},null,null,{"$f":"IF(ISBLANK('Info+Engagés'!H2),\"\",('Info+Engagés'!H2))","v":""},{"$f":"IF(ISBLANK('Info+Engagés'!H3),\"\",('Info+Engagés'!H3))","v":""},{"$f":"IF(ISBLANK('Info+Engagés'!H4),\"\",('Info+Engagés'!H4))","v":"Nom du juge en C"},{"$f":"IF(ISBLANK('Info+Engagés'!H5),\"\",('Info+Engagés'!H5))","v":""},{"$f":"IF(ISBLANK('Info+Engagés'!H6),\"\",('Info+Engagés'!H6))","v":""}]
[{"$f":"NOW()","v":42819.607247569445}]
["Notation figures","Figure 1",1,null,null,45,null,null,{"$f":"MAX(D12:H12)-MIN(D12:H12)","v":0}]
[null,"Figure 2",1,null,null,null,null,null,0]
[null,"Figure 3",1,null,null,null,null,null,0]
[null,"Figure 4",1,null,null,null,null,null,0]
[null,"Figure 5",1,null,null,null,null,null,0]
[null,"Figure 6",1,null,null,null,null,null,0]
[null,"Figure 7",1,null,null,null,null,null,0]
[null,"Figure 8",1,null,null,null,null,null,0]
[null,"Figure 9",1,null,null,null,null,null,0]
[null,"Figure 10",1,null,null,null,null,null,0]
[null,"Figure 11",1,null,null,null,null,null,0]
[null,"Figure 12",1,null,null,null,null,null,0]
[null,"Figure 13",1,null,null,null,null,null,0]
[null,"Figure 14",1,null,null,null,null,null,0]
[null,"Figure 15",1,null,null,null,null,null,0]
[null,"Figure 16",1,null,null,null,null,null,0]
[null,"Figure 17",1,null,null,null,null,null,0]
[null,"Figure 18",1,null,null,null,null,null,0]
[null,"Figure 19",1,null,null,null,null,null,0]
[null,"Figure 20",1,null,null,null,null,null,0]
[null,"Figure 21",1,null,null,null,null,null,0]
[null,"Figure 22",1,null,null,null,null,null,0]
[" Ensemble","Ensemble 1",1,null,null,null,null,null,0]
[null,"Ensemble 2",1,null,null,null,null,null,0]
[null,"Ensemble 3",1,null,null,null,null,null,0]
[null,"Ensemble 4",2,null,null,null,null,null,0]
[null,"Ensemble 5",2,null,null,null,null,null,0]
[null,"Ensemble 6",1,null,null,null,null,null,0]
["Pénalité en points"]
["Erreure(s) de tracé "]
["% Total du juge",null,null,{"$f":"IF(ISBLANK('Info+Engagés'!H2),\"\",D43/3-D41)","v":""},{"$f":"IF(ISBLANK('Info+Engagés'!H3),\"\",E43/3-E41)","v":""},{"$f":"IF(ISBLANK('Info+Engagés'!H4),\"\",F43/3-F41)","v":15},{"$f":"IF(ISBLANK('Info+Engagés'!H5),\"\",G43/3-G41)","v":""},{"$f":"IF(ISBLANK('Info+Engagés'!H6),\"\",H43/3-H41)","v":""},{"$f":"MAX(D42:H42)-MIN(D42:H42)","v":0}]
["Soit en points",null,null,{"$f":"IF(ISBLANK('Info+Engagés'!H2),\"\",SUM(D12:D36,D39,D37*2,D38*2)-D40)","v":""},{"$f":"IF(ISBLANK('Info+Engagés'!H3),\"\",(SUM(E12:E36,E39,E37*2,E38*2)-E40))","v":""},{"$f":"IF(ISBLANK('Info+Engagés'!H4),\"\",(SUM(F12:F36,F39,F37*2,F38*2)-F40))","v":45},{"$f":"IF(ISBLANK('Info+Engagés'!H5),\"\",(SUM(G12:G36,G39,G37*2,G38*2)-G40))","v":""},{"$f":"IF(ISBLANK('Info+Engagés'!H6),\"\",(SUM(H12:H36,H39,H37*2,H38*2)-H40))","v":""}]
["                          Total maxi par juge = 300          1 point correspond à 0,333%              1% correspond en points à : 3                                                                  Les notes sont sur 10 et correspondent à la saisie informatique par l'opérateur des protocoles joints, Le total résulte de l'addition des points attribués après application du coefficient et soustraction des points de pénalité encourus après conversion en pourcentage sont déduit les pourcentages de pénalités encourus par suite d'erreurs de tracé pour obtenir le pourcentage par juge."]

{"sheet":"Cav17","index":18,"n_rows":44,"n_cols":9,"rows_kept":44,"cut":false,"hidden":false,"merged":[[40,0,40,2],[41,0,41,2],[42,0,42,2],[43,0,47,8],[9,6,10,6],[9,7,10,7],[10,0,10,1],[11,0,32,0],[33,0,38,0],[39,0,39,2],[9,5,10,5],[8,8,10,8],[8,0,8,1],[9,0,9,1],[9,3,10,3],[9,4,10,4],[8,2,10,2],[4,0,4,1],[4,7,5,7],[4,8,5,8],[5,0,5,1],[6,0,7,1],[6,2,7,2],[6,7,7,7],[6,8,7,8],[4,3,7,4],[4,5,7,6],[0,0,1,2],[0,3,1,6],[0,7,1,8],[2,0,2,2],[2,3,3,4],[2,5,3,6],[3,0,3,2]]}
[{"$f":"'Info+Engagés'!B3","v":"Quel Lieu ? (Département ?)"},null,null,{"$f":"'Info+Engagés'!B8","v":"Amateur 3 Grand Prix (D1)"},null,null,null,{"$f":"'Info+Engagés'!B2","v":"Quelle Date ?"}]
[]
["N° de concours",null,null,"Cheval",null,"Cavalier",null,"Note d’ensemble",{"$f":"SUM(D34:H36,D39:H39,D37*2,E37*2,F37*2,G37*2,H37*2,D38*2,E38*2,F38*2,G38*2,H38*2)","v":0}]
[{"$f":"'Info+Engagés'!B4","v":"Quel N° ?"},null,null,null,null,null,null,"Points",{"$f":"SUM(D43:H43)","v":44}]
["Épreuve N°",null,{"$f":"'Info+Engagés'!B5","v":"Quel N° ?"},{"$f":"'Info+Engagés'!B28","v":"Nom du cheval 17"},null,{"$f":"'Info+Engagés'!G28","v":0},null,"% Final",{"$f":"AVERAGE(D42:H42)","v":14.666666666666666}]
["Piste  ",null,{"$f":"'Info+Engagés'!B6","v":"Quelle Piste ?"}]
["N° Départ BO",null,{"$f":"'Info+Engagés'!A28","v":17},null,null,null,null,"Classement",{"$f":"INDEX(Résultats!P:P,MATCH(C7,Résultats!A:A,0))","v":17}]
[]
["Imprimé le :",null,"Coéff .","Juge E","Juge H","Juge C","Juge M","Juge B","écart Max"]
[{"$f":"TODAY()","v":"2017-03-25"},null,null,{"$f":"IF(ISBLANK('Info+Engagés'!H2),\"\",('Info+Engagés'!H2))","v":""},{"$f":"IF(ISBLANK('Info+Engagés'!H3),\"\",('Info+Engagés'!H3))","v":""},{"$f":"IF(ISBLANK('Info+Engagés'!H4),\"\",('Info+Engagés'!H4))","v":"Nom du juge en C"},{"$f":"IF(ISBLANK('Info+Engagés'!H5),\"\",('Info+Engagés'!H5))","v":""},{"$f":"IF(ISBLANK('Info+Engagés'!H6),\"\",('Info+Engagés'!H6))","v":""}]
[{"$f":"NOW()","v":42819.607247569445}]
["Notation figures","Figure 1",1,null,null,44,null,null,{"$f":"MAX(D12:H12)-MIN(D12:H12)","v":0}]
[null,"Figure 2",1,null,null,null,null,null,0]
[null,"Figure 3",1,null,null,null,null,null,0]
[null,"Figure 4",1,null,null,null,null,null,0]
[null,"Figure 5",1,null,null,null,null,null,0]
[null,"Figure 6",1,null,null,null,null,null,0]
[null,"Figure 7",1,null,null,null,null,null,0]
[null,"Figure 8",1,null,null,null,null,null,0]
[null,"Figure 9",1,null,null,null,null,null,0]
[null,"Figure 10",1,null,null,null,null,null,0]
[null,"Figure 11",1,null,null,null,null,null,0]
[null,"Figure 12",1,null,null,null,null,null,0]
[null,"Figure 13",1,null,null,null,null,null,0]
[null,"Figure 14",1,null,null,null,null,null,0]
[null,"Figure 15",1,null,null,null,null,null,0]
[null,"Figure 16",1,null,null,null,null,null,0]
[null,"Figure 17",1,null,null,null,null,null,0]
[null,"Figure 18",1,null,null,null,null,null,0]
[null,"Figure 19",1,null,null,null,null,null,0]
[null,"Figure 20",1,null,null,null,null,null,0]
[null,"Figure 21",1,null,null,null,null,null,0]
[null,"Figure 22",1,null,null,null,null,null,0]
[" Ensemble","Ensemble 1",1,null,null,null,null,null,0]
[null,"Ensemble 2",1,null,null,null,null,null,0]
[null,"Ensemble 3",1,null,null,null,null,null,0]
[null,"Ensemble 4",2,null,null,null,null,null,0]
[null,"Ensemble 5",2,null,null,null,null,null,0]
[null,"Ensemble 6",1,null,null,null,null,null,0]
["Pénalité en points"]
["Erreure(s) de tracé "]
["% Total du juge",null,null,{"$f":"IF(ISBLANK('Info+Engagés'!H2),\"\",D43/3-D41)","v":""},{"$f":"IF(ISBLANK('Info+Engagés'!H3),\"\",E43/3-E41)","v":""},{"$f":"IF(ISBLANK('Info+Engagés'!H4),\"\",F43/3-F41)","v":14.666666666666666},{"$f":"IF(ISBLANK('Info+Engagés'!H5),\"\",G43/3-G41)","v":""},{"$f":"IF(ISBLANK('Info+Engagés'!H6),\"\",H43/3-H41)","v":""},{"$f":"MAX(D42:H42)-MIN(D42:H42)","v":0}]
["Soit en points",null,null,{"$f":"IF(ISBLANK('Info+Engagés'!H2),\"\",SUM(D12:D36,D39,D37*2,D38*2)-D40)","v":""},{"$f":"IF(ISBLANK('Info+Engagés'!H3),\"\",(SUM(E12:E36,E39,E37*2,E38*2)-E40))","v":""},{"$f":"IF(ISBLANK('Info+Engagés'!H4),\"\",(SUM(F12:F36,F39,F37*2,F38*2)-F40))","v":44},{"$f":"IF(ISBLANK('Info+Engagés'!H5),\"\",(SUM(G12:G36,G39,G37*2,G38*2)-G40))","v":""},{"$f":"IF(ISBLANK('Info+Engagés'!H6),\"\",(SUM(H12:H36,H39,H37*2,H38*2)-H40))","v":""}]
["                          Total maxi par juge = 300          1 point correspond à 0,333%              1% correspond en points à : 3                                                                  Les notes sont sur 10 et correspondent à la saisie informatique par l'opérateur des protocoles joints, Le total résulte de l'addition des points attribués après application du coefficient et soustraction des points de pénalité encourus après conversion en pourcentage sont déduit les pourcentages de pénalités encourus par suite d'erreurs de tracé pour obtenir le pourcentage par juge."]

{"sheet":"Cav18","index":19,"n_rows":44,"n_cols":9,"rows_kept":44,"cut":false,"hidden":false,"merged":[[40,0,40,2],[41,0,41,2],[42,0,42,2],[43,0,47,8],[9,6,10,6],[9,7,10,7],[10,0,10,1],[11,0,32,0],[33,0,38,0],[39,0,39,2],[9,5,10,5],[8,8,10,8],[8,0,8,1],[9,0,9,1],[9,3,10,3],[9,4,10,4],[8,2,10,2],[4,0,4,1],[4,7,5,7],[4,8,5,8],[5,0,5,1],[6,0,7,1],[6,2,7,2],[6,7,7,7],[6,8,7,8],[4,3,7,4],[4,5,7,6],[0,0,1,2],[0,3,1,6],[0,7,1,8],[2,0,2,2],[2,3,3,4],[2,5,3,6],[3,0,3,2]]}
[{"$f":"'Info+Engagés'!B3","v":"Quel Lieu ? (Département ?)"},null,null,{"$f":"'Info+Engagés'!B8","v":"Amateur 3 Grand Prix (D1)"},null,null,null,{"$f":"'Info+Engagés'!B2","v":"Quelle Date ?"}]
[]
["N° de concours",null,null,"Cheval",null,"Cavalier",null,"Note d’ensemble",{"$f":"SUM(D34:H36,D39:H39,D37*2,E37*2,F37*2,G37*2,H37*2,D38*2,E38*2,F38*2,G38*2,H38*2)","v":0}]
[{"$f":"'Info+Engagés'!B4","v":"Quel N° ?"},null,null,null,null,null,null,"Points",{"$f":"SUM(D43:H43)","v":43}]
["Épreuve N°",null,{"$f":"'Info+Engagés'!B5","v":"Quel N° ?"},{"$f":"'Info+Engagés'!B29","v":"Nom du cheval 18"},null,{"$f":"'Info+Engagés'!G29","v":0},null,"% Final",{"$f":"AVERAGE(D42:H42)","v":14.333333333333334}]
["Piste  ",null,{"$f":"'Info+Engagés'!B6","v":"Quelle Piste ?"}]
["N° Départ BO",null,{"$f":"'Info+Engagés'!A29","v":18},null,null,null,null,"Classement",{"$f":"INDEX(Résultats!P:P,MATCH(C7,Résultats!A:A,0))","v":18}]
[]
["Imprimé le :",null,"Coéff .","Juge E","Juge H","Juge C","Juge M","Juge B","écart Max"]
[{"$f":"TODAY()","v":"2017-03-25"},null,null,{"$f":"IF(ISBLANK('Info+Engagés'!H2),\"\",('Info+Engagés'!H2))","v":""},{"$f":"IF(ISBLANK('Info+Engagés'!H3),\"\",('Info+Engagés'!H3))","v":""},{"$f":"IF(ISBLANK('Info+Engagés'!H4),\"\",('Info+Engagés'!H4))","v":"Nom du juge en C"},{"$f":"IF(ISBLANK('Info+Engagés'!H5),\"\",('Info+Engagés'!H5))","v":""},{"$f":"IF(ISBLANK('Info+Engagés'!H6),\"\",('Info+Engagés'!H6))","v":""}]
[{"$f":"NOW()","v":42819.607247569445}]
["Notation figures","Figure 1",1,null,null,43,null,null,{"$f":"MAX(D12:H12)-MIN(D12:H12)","v":0}]
[null,"Figure 2",1,null,null,null,null,null,0]
[null,"Figure 3",1,null,null,null,null,null,0]
[null,"Figure 4",1,null,null,null,null,null,0]
[null,"Figure 5",1,null,null,null,null,null,0]
[null,"Figure 6",1,null,null,null,null,null,0]
[null,"Figure 7",1,null,null,null,null,null,0]
[null,"Figure 8",1,null,null,null,null,null,0]
[null,"Figure 9",1,null,null,null,null,null,0]
[null,"Figure 10",1,null,null,null,null,null,0]
[null,"Figure 11",1,null,null,null,null,null,0]
[null,"Figure 12",1,null,null,null,null,null,0]
[null,"Figure 13",1,null,null,null,null,null,0]
[null,"Figure 14",1,null,null,null,null,null,0]
[null,"Figure 15",1,null,null,null,null,null,0]
[null,"Figure 16",1,null,null,null,null,null,0]
[null,"Figure 17",1,null,null,null,null,null,0]
[null,"Figure 18",1,null,null,null,null,null,0]
[null,"Figure 19",1,null,null,null,null,null,0]
[null,"Figure 20",1,null,null,null,null,null,0]
[null,"Figure 21",1,null,null,null,null,null,0]
[null,"Figure 22",1,null,null,null,null,null,0]
[" Ensemble","Ensemble 1",1,null,null,null,null,null,0]
[null,"Ensemble 2",1,null,null,null,null,null,0]
[null,"Ensemble 3",1,null,null,null,null,null,0]
[null,"Ensemble 4",2,null,null,null,null,null,0]
[null,"Ensemble 5",2,null,null,null,null,null,0]
[null,"Ensemble 6",1,null,null,null,null,null,0]
["Pénalité en points"]
["Erreure(s) de tracé "]
["% Total du juge",null,null,{"$f":"IF(ISBLANK('Info+Engagés'!H2),\"\",D43/3-D41)","v":""},{"$f":"IF(ISBLANK('Info+Engagés'!H3),\"\",E43/3-E41)","v":""},{"$f":"IF(ISBLANK('Info+Engagés'!H4),\"\",F43/3-F41)","v":14.333333333333334},{"$f":"IF(ISBLANK('Info+Engagés'!H5),\"\",G43/3-G41)","v":""},{"$f":"IF(ISBLANK('Info+Engagés'!H6),\"\",H43/3-H41)","v":""},{"$f":"MAX(D42:H42)-MIN(D42:H42)","v":0}]
["Soit en points",null,null,{"$f":"IF(ISBLANK('Info+Engagés'!H2),\"\",SUM(D12:D36,D39,D37*2,D38*2)-D40)","v":""},{"$f":"IF(ISBLANK('Info+Engagés'!H3),\"\",(SUM(E12:E36,E39,E37*2,E38*2)-E40))","v":""},{"$f":"IF(ISBLANK('Info+Engagés'!H4),\"\",(SUM(F12:F36,F39,F37*2,F38*2)-F40))","v":43},{"$f":"IF(ISBLANK('Info+Engagés'!H5),\"\",(SUM(G12:G36,G39,G37*2,G38*2)-G40))","v":""},{"$f":"IF(ISBLANK('Info+Engagés'!H6),\"\",(SUM(H12:H36,H39,H37*2,H38*2)-H40))","v":""}]
["                          Total maxi par juge = 300          1 point correspond à 0,333%              1% correspond en points à : 3                                                                  Les notes sont sur 10 et correspondent à la saisie informatique par l'opérateur des protocoles joints, Le total résulte de l'addition des points attribués après application du coefficient et soustraction des points de pénalité encourus après conversion en pourcentage sont déduit les pourcentages de pénalités encourus par suite d'erreurs de tracé pour obtenir le pourcentage par juge."]

{"sheet":"Cav19","index":20,"n_rows":44,"n_cols":9,"rows_kept":44,"cut":false,"hidden":false,"merged":[[40,0,40,2],[41,0,41,2],[42,0,42,2],[43,0,47,8],[9,6,10,6],[9,7,10,7],[10,0,10,1],[11,0,32,0],[33,0,38,0],[39,0,39,2],[9,5,10,5],[8,8,10,8],[8,0,8,1],[9,0,9,1],[9,3,10,3],[9,4,10,4],[8,2,10,2],[4,0,4,1],[4,7,5,7],[4,8,5,8],[5,0,5,1],[6,0,7,1],[6,2,7,2],[6,7,7,7],[6,8,7,8],[4,3,7,4],[4,5,7,6],[0,0,1,2],[0,3,1,6],[0,7,1,8],[2,0,2,2],[2,3,3,4],[2,5,3,6],[3,0,3,2]]}
[{"$f":"'Info+Engagés'!B3","v":"Quel Lieu ? (Département ?)"},null,null,{"$f":"'Info+Engagés'!B8","v":"Amateur 3 Grand Prix (D1)"},null,null,null,{"$f":"'Info+Engagés'!B2","v":"Quelle Date ?"}]
[]
["N° de concours",null,null,"Cheval",null,"Cavalier",null,"Note d’ensemble",{"$f":"SUM(D34:H36,D39:H39,D37*2,E37*2,F37*2,G37*2,H37*2,D38*2,E38*2,F38*2,G38*2,H38*2)","v":0}]
[{"$f":"'Info+Engagés'!B4","v":"Quel N° ?"},null,null,null,null,null,null,"Points",{"$f":"SUM(D43:H43)","v":42}]
["Épreuve N°",null,{"$f":"'Info+Engagés'!B5","v":"Quel N° ?"},{"$f":"'Info+Engagés'!B30","v":"Nom du cheval 19"},null,{"$f":"'Info+Engagés'!G30","v":0},null,"% Final",{"$f":"AVERAGE(D42:H42)","v":14}]
["Piste  ",null,{"$f":"'Info+Engagés'!B6","v":"Quelle Piste ?"}]
["N° Départ BO",null,{"$f":"'Info+Engagés'!A30","v":19},null,null,null,null,"Classement",{"$f":"INDEX(Résultats!P:P,MATCH(C7,Résultats!A:A,0))","v":19}]
[]
["Imprimé le :",null,"Coéff .","Juge E","Juge H","Juge C","Juge M","Juge B","écart Max"]
[{"$f":"TODAY()","v":"2017-03-25"},null,null,{"$f":"IF(ISBLANK('Info+Engagés'!H2),\"\",('Info+Engagés'!H2))","v":""},{"$f":"IF(ISBLANK('Info+Engagés'!H3),\"\",('Info+Engagés'!H3))","v":""},{"$f":"IF(ISBLANK('Info+Engagés'!H4),\"\",('Info+Engagés'!H4))","v":"Nom du juge en C"},{"$f":"IF(ISBLANK('Info+Engagés'!H5),\"\",('Info+Engagés'!H5))","v":""},{"$f":"IF(ISBLANK('Info+Engagés'!H6),\"\",('Info+Engagés'!H6))","v":""}]
[{"$f":"NOW()","v":42819.607247569445}]
["Notation figures","Figure 1",1,null,null,42,null,null,{"$f":"MAX(D12:H12)-MIN(D12:H12)","v":0}]
[null,"Figure 2",1,null,null,null,null,null,0]
[null,"Figure 3",1,null,null,null,null,null,0]
[null,"Figure 4",1,null,null,null,null,null,0]
[null,"Figure 5",1,null,null,null,null,null,0]
[null,"Figure 6",1,null,null,null,null,null,0]
[null,"Figure 7",1,null,null,null,null,null,0]
[null,"Figure 8",1,null,null,null,null,null,0]
[null,"Figure 9",1,null,null,null,null,null,0]
[null,"Figure 10",1,null,null,null,null,null,0]
[null,"Figure 11",1,null,null,null,null,null,0]
[null,"Figure 12",1,null,null,null,null,null,0]
[null,"Figure 13",1,null,null,null,null,null,0]
[null,"Figure 14",1,null,null,null,null,null,0]
[null,"Figure 15",1,null,null,null,null,null,0]
[null,"Figure 16",1,null,null,null,null,null,0]
[null,"Figure 17",1,null,null,null,null,null,0]
[null,"Figure 18",1,null,null,null,null,null,0]
[null,"Figure 19",1,null,null,null,null,null,0]
[null,"Figure 20",1,null,null,null,null,null,0]
[null,"Figure 21",1,null,null,null,null,null,0]
[null,"Figure 22",1,null,null,null,null,null,0]
[" Ensemble","Ensemble 1",1,null,null,null,null,null,0]
[null,"Ensemble 2",1,null,null,null,null,null,0]
[null,"Ensemble 3",1,null,null,null,null,null,0]
[null,"Ensemble 4",2,null,null,null,null,null,0]
[null,"Ensemble 5",2,null,null,null,null,null,0]
[null,"Ensemble 6",1,null,null,null,null,null,0]
["Pénalité en points"]
["Erreure(s) de tracé "]
["% Total du juge",null,null,{"$f":"IF(ISBLANK('Info+Engagés'!H2),\"\",D43/3-D41)","v":""},{"$f":"IF(ISBLANK('Info+Engagés'!H3),\"\",E43/3-E41)","v":""},{"$f":"IF(ISBLANK('Info+Engagés'!H4),\"\",F43/3-F41)","v":14},{"$f":"IF(ISBLANK('Info+Engagés'!H5),\"\",G43/3-G41)","v":""},{"$f":"IF(ISBLANK('Info+Engagés'!H6),\"\",H43/3-H41)","v":""},{"$f":"MAX(D42:H42)-MIN(D42:H42)","v":0}]
["Soit en points",null,null,{"$f":"IF(ISBLANK('Info+Engagés'!H2),\"\",SUM(D12:D36,D39,D37*2,D38*2)-D40)","v":""},{"$f":"IF(ISBLANK('Info+Engagés'!H3),\"\",(SUM(E12:E36,E39,E37*2,E38*2)-E40))","v":""},{"$f":"IF(ISBLANK('Info+Engagés'!H4),\"\",(SUM(F12:F36,F39,F37*2,F38*2)-F40))","v":42},{"$f":"IF(ISBLANK('Info+Engagés'!H5),\"\",(SUM(G12:G36,G39,G37*2,G38*2)-G40))","v":""},{"$f":"IF(ISBLANK('Info+Engagés'!H6),\"\",(SUM(H12:H36,H39,H37*2,H38*2)-H40))","v":""}]
["                          Total maxi par juge = 300          1 point correspond à 0,333%              1% correspond en points à : 3                                                                  Les notes sont sur 10 et correspondent à la saisie informatique par l'opérateur des protocoles joints, Le total résulte de l'addition des points attribués après application du coefficient et soustraction des points de pénalité encourus après conversion en pourcentage sont déduit les pourcentages de pénalités encourus par suite d'erreurs de tracé pour obtenir le pourcentage par juge."]

{"sheet":"Cav20","index":21,"n_rows":44,"n_cols":9,"rows_kept":44,"cut":false,"hidden":false,"merged":[[40,0,40,2],[41,0,41,2],[42,0,42,2],[43,0,47,8],[9,6,10,6],[9,7,10,7],[10,0,10,1],[11,0,32,0],[33,0,38,0],[39,0,39,2],[9,5,10,5],[8,8,10,8],[8,0,8,1],[9,0,9,1],[9,3,10,3],[9,4,10,4],[8,2,10,2],[4,0,4,1],[4,7,5,7],[4,8,5,8],[5,0,5,1],[6,0,7,1],[6,2,7,2],[6,7,7,7],[6,8,7,8],[4,3,7,4],[4,5,7,6],[0,0,1,2],[0,3,1,6],[0,7,1,8],[2,0,2,2],[2,3,3,4],[2,5,3,6],[3,0,3,2]]}
[{"$f":"'Info+Engagés'!B3","v":"Quel Lieu ? (Département ?)"},null,null,{"$f":"'Info+Engagés'!B8","v":"Amateur 3 Grand Prix (D1)"},null,null,null,{"$f":"'Info+Engagés'!B2","v":"Quelle Date ?"}]
[]
["N° de concours",null,null,"Cheval",null,"Cavalier",null,"Note d’ensemble",{"$f":"SUM(D34:H36,D39:H39,D37*2,E37*2,F37*2,G37*2,H37*2,D38*2,E38*2,F38*2,G38*2,H38*2)","v":0}]
[{"$f":"'Info+Engagés'!B4","v":"Quel N° ?"},null,null,null,null,null,null,"Points",{"$f":"SUM(D43:H43)","v":41}]
["Épreuve N°",null,{"$f":"'Info+Engagés'!B5","v":"Quel N° ?"},{"$f":"'Info+Engagés'!B31","v":"Nom du cheval 20"},null,{"$f":"'Info+Engagés'!G31","v":0},null,"% Final",{"$f":"AVERAGE(D42:H42)","v":13.666666666666666}]
["Piste  ",null,{"$f":"'Info+Engagés'!B6","v":"Quelle Piste ?"}]
["N° Départ BO",null,{"$f":"'Info+Engagés'!A31","v":20},null,null,null,null,"Classement",{"$f":"INDEX(Résultats!P:P,MATCH(C7,Résultats!A:A,0))","v":20}]
[]
["Imprimé le :",null,"Coéff .","Juge E","Juge H","Juge C","Juge M","Juge B","écart Max"]
[{"$f":"TODAY()","v":"2017-03-25"},null,null,{"$f":"IF(ISBLANK('Info+Engagés'!H2),\"\",('Info+Engagés'!H2))","v":""},{"$f":"IF(ISBLANK('Info+Engagés'!H3),\"\",('Info+Engagés'!H3))","v":""},{"$f":"IF(ISBLANK('Info+Engagés'!H4),\"\",('Info+Engagés'!H4))","v":"Nom du juge en C"},{"$f":"IF(ISBLANK('Info+Engagés'!H5),\"\",('Info+Engagés'!H5))","v":""},{"$f":"IF(ISBLANK('Info+Engagés'!H6),\"\",('Info+Engagés'!H6))","v":""}]
[{"$f":"NOW()","v":42819.607247569445}]
["Notation figures","Figure 1",1,null,null,41,null,null,{"$f":"MAX(D12:H12)-MIN(D12:H12)","v":0}]
[null,"Figure 2",1,null,null,null,null,null,0]
[null,"Figure 3",1,null,null,null,null,null,0]
[null,"Figure 4",1,null,null,null,null,null,0]
[null,"Figure 5",1,null,null,null,null,null,0]
[null,"Figure 6",1,null,null,null,null,null,0]
[null,"Figure 7",1,null,null,null,null,null,0]
[null,"Figure 8",1,null,null,null,null,null,0]
[null,"Figure 9",1,null,null,null,null,null,0]
[null,"Figure 10",1,null,null,null,null,null,0]
[null,"Figure 11",1,null,null,null,null,null,0]
[null,"Figure 12",1,null,null,null,null,null,0]
[null,"Figure 13",1,null,null,null,null,null,0]
[null,"Figure 14",1,null,null,null,null,null,0]
[null,"Figure 15",1,null,null,null,null,null,0]
[null,"Figure 16",1,null,null,null,null,null,0]
[null,"Figure 17",1,null,null,null,null,null,0]
[null,"Figure 18",1,null,null,null,null,null,0]
[null,"Figure 19",1,null,null,null,null,null,0]
[null,"Figure 20",1,null,null,null,null,null,0]
[null,"Figure 21",1,null,null,null,null,null,0]
[null,"Figure 22",1,null,null,null,null,null,0]
[" Ensemble","Ensemble 1",1,null,null,null,null,null,0]
[null,"Ensemble 2",1,null,null,null,null,null,0]
[null,"Ensemble 3",1,null,null,null,null,null,0]
[null,"Ensemble 4",2,null,null,null,null,null,0]
[null,"Ensemble 5",2,null,null,null,null,null,0]
[null,"Ensemble 6",1,null,null,null,null,null,0]
["Pénalité en points"]
["Erreure(s) de tracé "]
["% Total du juge",null,null,{"$f":"IF(ISBLANK('Info+Engagés'!H2),\"\",D43/3-D41)","v":""},{"$f":"IF(ISBLANK('Info+Engagés'!H3),\"\",E43/3-E41)","v":""},{"$f":"IF(ISBLANK('Info+Engagés'!H4),\"\",F43/3-F41)","v":13.666666666666666},{"$f":"IF(ISBLANK('Info+Engagés'!H5),\"\",G43/3-G41)","v":""},{"$f":"IF(ISBLANK('Info+Engagés'!H6),\"\",H43/3-H41)","v":""},{"$f":"MAX(D42:H42)-MIN(D42:H42)","v":0}]
["Soit en points",null,null,{"$f":"IF(ISBLANK('Info+Engagés'!H2),\"\",SUM(D12:D36,D39,D37*2,D38*2)-D40)","v":""},{"$f":"IF(ISBLANK('Info+Engagés'!H3),\"\",(SUM(E12:E36,E39,E37*2,E38*2)-E40))","v":""},{"$f":"IF(ISBLANK('Info+Engagés'!H4),\"\",(SUM(F12:F36,F39,F37*2,F38*2)-F40))","v":41},{"$f":"IF(ISBLANK('Info+Engagés'!H5),\"\",(SUM(G12:G36,G39,G37*2,G38*2)-G40))","v":""},{"$f":"IF(ISBLANK('Info+Engagés'!H6),\"\",(SUM(H12:H36,H39,H37*2,H38*2)-H40))","v":""}]
["                          Total maxi par juge = 300          1 point correspond à 0,333%              1% correspond en points à : 3                                                                  Les notes sont sur 10 et correspondent à la saisie informatique par l'opérateur des protocoles joints, Le total résulte de l'addition des points attribués après application du coefficient et soustraction des points de pénalité encourus après conversion en pourcentage sont déduit les pourcentages de pénalités encourus par suite d'erreurs de tracé pour obtenir le pourcentage par juge."]

{"sheet":"Cav21","index":22,"n_rows":44,"n_cols":9,"rows_kept":44,"cut":false,"hidden":false,"merged":[[40,0,40,2],[41,0,41,2],[42,0,42,2],[43,0,47,8],[9,6,10,6],[9,7,10,7],[10,0,10,1],[11,0,32,0],[33,0,38,0],[39,0,39,2],[9,5,10,5],[8,8,10,8],[8,0,8,1],[9,0,9,1],[9,3,10,3],[9,4,10,4],[8,2,10,2],[4,0,4,1],[4,7,5,7],[4,8,5,8],[5,0,5,1],[6,0,7,1],[6,2,7,2],[6,7,7,7],[6,8,7,8],[4,3,7,4],[4,5,7,6],[0,0,1,2],[0,3,1,6],[0,7,1,8],[2,0,2,2],[2,3,3,4],[2,5,3,6],[3,0,3,2]]}
[{"$f":"'Info+Engagés'!B3","v":"Quel Lieu ? (Département ?)"},null,null,{"$f":"'Info+Engagés'!B8","v":"Amateur 3 Grand Prix (D1)"},null,null,null,{"$f":"'Info+Engagés'!B2","v":"Quelle Date ?"}]
[]
["N° de concours",null,null,"Cheval",null,"Cavalier",null,"Note d’ensemble",{"$f":"SUM(D34:H36,D39:H39,D37*2,E37*2,F37*2,G37*2,H37*2,D38*2,E38*2,F38*2,G38*2,H38*2)","v":0}]
[{"$f":"'Info+Engagés'!B4","v":"Quel N° ?"},null,null,null,null,null,null,"Points",{"$f":"SUM(D43:H43)","v":40}]
["Épreuve N°",null,{"$f":"'Info+Engagés'!B5","v":"Quel N° ?"},{"$f":"'Info+Engagés'!B32","v":"Nom du cheval 21"},null,{"$f":"'Info+Engagés'!G32","v":0},null,"% Final",{"$f":"AVERAGE(D42:H42)","v":13.333333333333334}]
["Piste  ",null,{"$f":"'Info+Engagés'!B6","v":"Quelle Piste ?"}]
["N° Départ BO",null,{"$f":"'Info+Engagés'!A32","v":21},null,null,null,null,"Classement",{"$f":"INDEX(Résultats!P:P,MATCH(C7,Résultats!A:A,0))","v":21}]
[]
["Imprimé le :",null,"Coéff .","Juge E","Juge H","Juge C","Juge M","Juge B","écart Max"]
[{"$f":"TODAY()","v":"2017-03-25"},null,null,{"$f":"IF(ISBLANK('Info+Engagés'!H2),\"\",('Info+Engagés'!H2))","v":""},{"$f":"IF(ISBLANK('Info+Engagés'!H3),\"\",('Info+Engagés'!H3))","v":""},{"$f":"IF(ISBLANK('Info+Engagés'!H4),\"\",('Info+Engagés'!H4))","v":"Nom du juge en C"},{"$f":"IF(ISBLANK('Info+Engagés'!H5),\"\",('Info+Engagés'!H5))","v":""},{"$f":"IF(ISBLANK('Info+Engagés'!H6),\"\",('Info+Engagés'!H6))","v":""}]
[{"$f":"NOW()","v":42819.607247569445}]
["Notation figures","Figure 1",1,null,null,40,null,null,{"$f":"MAX(D12:H12)-MIN(D12:H12)","v":0}]
[null,"Figure 2",1,null,null,null,null,null,0]
[null,"Figure 3",1,null,null,null,null,null,0]
[null,"Figure 4",1,null,null,null,null,null,0]
[null,"Figure 5",1,null,null,null,null,null,0]
[null,"Figure 6",1,null,null,null,null,null,0]
[null,"Figure 7",1,null,null,null,null,null,0]
[null,"Figure 8",1,null,null,null,null,null,0]
[null,"Figure 9",1,null,null,null,null,null,0]
[null,"Figure 10",1,null,null,null,null,null,0]
[null,"Figure 11",1,null,null,null,null,null,0]
[null,"Figure 12",1,null,null,null,null,null,0]
[null,"Figure 13",1,null,null,null,null,null,0]
[null,"Figure 14",1,null,null,null,null,null,0]
[null,"Figure 15",1,null,null,null,null,null,0]
[null,"Figure 16",1,null,null,null,null,null,0]
[null,"Figure 17",1,null,null,null,null,null,0]
[null,"Figure 18",1,null,null,null,null,null,0]
[null,"Figure 19",1,null,null,null,null,null,0]
[null,"Figure 20",1,null,null,null,null,null,0]
[null,"Figure 21",1,null,null,null,null,null,0]
[null,"Figure 22",1,null,null,null,null,null,0]
[" Ensemble","Ensemble 1",1,null,null,null,null,null,0]
[null,"Ensemble 2",1,null,null,null,null,null,0]
[null,"Ensemble 3",1,null,null,null,null,null,0]
[null,"Ensemble 4",2,null,null,null,null,null,0]
[null,"Ensemble 5",2,null,null,null,null,null,0]
[null,"Ensemble 6",1,null,null,null,null,null,0]
["Pénalité en points"]
["Erreure(s) de tracé "]
["% Total du juge",null,null,{"$f":"IF(ISBLANK('Info+Engagés'!H2),\"\",D43/3-D41)","v":""},{"$f":"IF(ISBLANK('Info+Engagés'!H3),\"\",E43/3-E41)","v":""},{"$f":"IF(ISBLANK('Info+Engagés'!H4),\"\",F43/3-F41)","v":13.333333333333334},{"$f":"IF(ISBLANK('Info+Engagés'!H5),\"\",G43/3-G41)","v":""},{"$f":"IF(ISBLANK('Info+Engagés'!H6),\"\",H43/3-H41)","v":""},{"$f":"MAX(D42:H42)-MIN(D42:H42)","v":0}]
["Soit en points",null,null,{"$f":"IF(ISBLANK('Info+Engagés'!H2),\"\",SUM(D12:D36,D39,D37*2,D38*2)-D40)","v":""},{"$f":"IF(ISBLANK('Info+Engagés'!H3),\"\",(SUM(E12:E36,E39,E37*2,E38*2)-E40))","v":""},{"$f":"IF(ISBLANK('Info+Engagés'!H4),\"\",(SUM(F12:F36,F39,F37*2,F38*2)-F40))","v":40},{"$f":"IF(ISBLANK('Info+Engagés'!H5),\"\",(SUM(G12:G36,G39,G37*2,G38*2)-G40))","v":""},{"$f":"IF(ISBLANK('Info+Engagés'!H6),\"\",(SUM(H12:H36,H39,H37*2,H38*2)-H40))","v":""}]
["                          Total maxi par juge = 300          1 point correspond à 0,333%              1% correspond en points à : 3                                                                  Les notes sont sur 10 et correspondent à la saisie informatique par l'opérateur des protocoles joints, Le total résulte de l'addition des points attribués après application du coefficient et soustraction des points de pénalité encourus après conversion en pourcentage sont déduit les pourcentages de pénalités encourus par suite d'erreurs de tracé pour obtenir le pourcentage par juge."]

{"sheet":"Cav22","index":23,"n_rows":44,"n_cols":9,"rows_kept":44,"cut":false,"hidden":false,"merged":[[40,0,40,2],[41,0,41,2],[42,0,42,2],[43,0,47,8],[9,6,10,6],[9,7,10,7],[10,0,10,1],[11,0,32,0],[33,0,38,0],[39,0,39,2],[9,5,10,5],[8,8,10,8],[8,0,8,1],[9,0,9,1],[9,3,10,3],[9,4,10,4],[8,2,10,2],[4,0,4,1],[4,7,5,7],[4,8,5,8],[5,0,5,1],[6,0,7,1],[6,2,7,2],[6,7,7,7],[6,8,7,8],[4,3,7,4],[4,5,7,6],[0,0,1,2],[0,3,1,6],[0,7,1,8],[2,0,2,2],[2,3,3,4],[2,5,3,6],[3,0,3,2]]}
[{"$f":"'Info+Engagés'!B3","v":"Quel Lieu ? (Département ?)"},null,null,{"$f":"'Info+Engagés'!B8","v":"Amateur 3 Grand Prix (D1)"},null,null,null,{"$f":"'Info+Engagés'!B2","v":"Quelle Date ?"}]
[]
["N° de concours",null,null,"Cheval",null,"Cavalier",null,"Note d’ensemble",{"$f":"SUM(D34:H36,D39:H39,D37*2,E37*2,F37*2,G37*2,H37*2,D38*2,E38*2,F38*2,G38*2,H38*2)","v":0}]
[{"$f":"'Info+Engagés'!B4","v":"Quel N° ?"},null,null,null,null,null,null,"Points",{"$f":"SUM(D43:H43)","v":39}]
["Épreuve N°",null,{"$f":"'Info+Engagés'!B5","v":"Quel N° ?"},{"$f":"'Info+Engagés'!B33","v":"Nom du cheval 22"},null,{"$f":"'Info+Engagés'!G33","v":0},null,"% Final",{"$f":"AVERAGE(D42:H42)","v":13}]
["Piste  ",null,{"$f":"'Info+Engagés'!B6","v":"Quelle Piste ?"}]
["N° Départ BO",null,{"$f":"'Info+Engagés'!A33","v":22},null,null,null,null,"Classement",{"$f":"INDEX(Résultats!P:P,MATCH(C7,Résultats!A:A,0))","v":22}]
[]
["Imprimé le :",null,"Coéff .","Juge E","Juge H","Juge C","Juge M","Juge B","écart Max"]
[{"$f":"TODAY()","v":"2017-03-25"},null,null,{"$f":"IF(ISBLANK('Info+Engagés'!H2),\"\",('Info+Engagés'!H2))","v":""},{"$f":"IF(ISBLANK('Info+Engagés'!H3),\"\",('Info+Engagés'!H3))","v":""},{"$f":"IF(ISBLANK('Info+Engagés'!H4),\"\",('Info+Engagés'!H4))","v":"Nom du juge en C"},{"$f":"IF(ISBLANK('Info+Engagés'!H5),\"\",('Info+Engagés'!H5))","v":""},{"$f":"IF(ISBLANK('Info+Engagés'!H6),\"\",('Info+Engagés'!H6))","v":""}]
[{"$f":"NOW()","v":42819.607247569445}]
["Notation figures","Figure 1",1,null,null,39,null,null,{"$f":"MAX(D12:H12)-MIN(D12:H12)","v":0}]
[null,"Figure 2",1,null,null,null,null,null,0]
[null,"Figure 3",1,null,null,null,null,null,0]
[null,"Figure 4",1,null,null,null,null,null,0]
[null,"Figure 5",1,null,null,null,null,null,0]
[null,"Figure 6",1,null,null,null,null,null,0]
[null,"Figure 7",1,null,null,null,null,null,0]
[null,"Figure 8",1,null,null,null,null,null,0]
[null,"Figure 9",1,null,null,null,null,null,0]
[null,"Figure 10",1,null,null,null,null,null,0]
[null,"Figure 11",1,null,null,null,null,null,0]
[null,"Figure 12",1,null,null,null,null,null,0]
[null,"Figure 13",1,null,null,null,null,null,0]
[null,"Figure 14",1,null,null,null,null,null,0]
[null,"Figure 15",1,null,null,null,null,null,0]
[null,"Figure 16",1,null,null,null,null,null,0]
[null,"Figure 17",1,null,null,null,null,null,0]
[null,"Figure 18",1,null,null,null,null,null,0]
[null,"Figure 19",1,null,null,null,null,null,0]
[null,"Figure 20",1,null,null,null,null,null,0]
[null,"Figure 21",1,null,null,null,null,null,0]
[null,"Figure 22",1,null,null,null,null,null,0]
[" Ensemble","Ensemble 1",1,null,null,null,null,null,0]
[null,"Ensemble 2",1,null,null,null,null,null,0]
[null,"Ensemble 3",1,null,null,null,null,null,0]
[null,"Ensemble 4",2,null,null,null,null,null,0]
[null,"Ensemble 5",2,null,null,null,null,null,0]
[null,"Ensemble 6",1,null,null,null,null,null,0]
["Pénalité en points"]
["Erreure(s) de tracé "]
["% Total du juge",null,null,{"$f":"IF(ISBLANK('Info+Engagés'!H2),\"\",D43/3-D41)","v":""},{"$f":"IF(ISBLANK('Info+Engagés'!H3),\"\",E43/3-E41)","v":""},{"$f":"IF(ISBLANK('Info+Engagés'!H4),\"\",F43/3-F41)","v":13},{"$f":"IF(ISBLANK('Info+Engagés'!H5),\"\",G43/3-G41)","v":""},{"$f":"IF(ISBLANK('Info+Engagés'!H6),\"\",H43/3-H41)","v":""},{"$f":"MAX(D42:H42)-MIN(D42:H42)","v":0}]
["Soit en points",null,null,{"$f":"IF(ISBLANK('Info+Engagés'!H2),\"\",SUM(D12:D36,D39,D37*2,D38*2)-D40)","v":""},{"$f":"IF(ISBLANK('Info+Engagés'!H3),\"\",(SUM(E12:E36,E39,E37*2,E38*2)-E40))","v":""},{"$f":"IF(ISBLANK('Info+Engagés'!H4),\"\",(SUM(F12:F36,F39,F37*2,F38*2)-F40))","v":39},{"$f":"IF(ISBLANK('Info+Engagés'!H5),\"\",(SUM(G12:G36,G39,G37*2,G38*2)-G40))","v":""},{"$f":"IF(ISBLANK('Info+Engagés'!H6),\"\",(SUM(H12:H36,H39,H37*2,H38*2)-H40))","v":""}]
["                          Total maxi par juge = 300          1 point correspond à 0,333%              1% correspond en points à : 3                                                                  Les notes sont sur 10 et correspondent à la saisie informatique par l'opérateur des protocoles joints, Le total résulte de l'addition des points attribués après application du coefficient et soustraction des points de pénalité encourus après conversion en pourcentage sont déduit les pourcentages de pénalités encourus par suite d'erreurs de tracé pour obtenir le pourcentage par juge."]

{"sheet":"Cav23","index":24,"n_rows":44,"n_cols":9,"rows_kept":44,"cut":false,"hidden":false,"merged":[[40,0,40,2],[41,0,41,2],[42,0,42,2],[43,0,47,8],[9,6,10,6],[9,7,10,7],[10,0,10,1],[11,0,32,0],[33,0,38,0],[39,0,39,2],[9,5,10,5],[8,8,10,8],[8,0,8,1],[9,0,9,1],[9,3,10,3],[9,4,10,4],[8,2,10,2],[4,0,4,1],[4,7,5,7],[4,8,5,8],[5,0,5,1],[6,0,7,1],[6,2,7,2],[6,7,7,7],[6,8,7,8],[4,3,7,4],[4,5,7,6],[0,0,1,2],[0,3,1,6],[0,7,1,8],[2,0,2,2],[2,3,3,4],[2,5,3,6],[3,0,3,2]]}
[{"$f":"'Info+Engagés'!B3","v":"Quel Lieu ? (Département ?)"},null,null,{"$f":"'Info+Engagés'!B8","v":"Amateur 3 Grand Prix (D1)"},null,null,null,{"$f":"'Info+Engagés'!B2","v":"Quelle Date ?"}]
[]
["N° de concours",null,null,"Cheval",null,"Cavalier",null,"Note d’ensemble",{"$f":"SUM(D34:H36,D39:H39,D37*2,E37*2,F37*2,G37*2,H37*2,D38*2,E38*2,F38*2,G38*2,H38*2)","v":0}]
[{"$f":"'Info+Engagés'!B4","v":"Quel N° ?"},null,null,null,null,null,null,"Points",{"$f":"SUM(D43:H43)","v":38}]
["Épreuve N°",null,{"$f":"'Info+Engagés'!B5","v":"Quel N° ?"},{"$f":"'Info+Engagés'!B34","v":"Nom du cheval 23"},null,{"$f":"'Info+Engagés'!G34","v":0},null,"% Final",{"$f":"AVERAGE(D42:H42)","v":12.666666666666666}]
["Piste  ",null,{"$f":"'Info+Engagés'!B6","v":"Quelle Piste ?"}]
["N° Départ BO",null,{"$f":"'Info+Engagés'!A34","v":23},null,null,null,null,"Classement",{"$f":"INDEX(Résultats!P:P,MATCH(C7,Résultats!A:A,0))","v":23}]
[]
["Imprimé le :",null,"Coéff .","Juge E","Juge H","Juge C","Juge M","Juge B","écart Max"]
[{"$f":"TODAY()","v":"2017-03-25"},null,null,{"$f":"IF(ISBLANK('Info+Engagés'!H2),\"\",('Info+Engagés'!H2))","v":""},{"$f":"IF(ISBLANK('Info+Engagés'!H3),\"\",('Info+Engagés'!H3))","v":""},{"$f":"IF(ISBLANK('Info+Engagés'!H4),\"\",('Info+Engagés'!H4))","v":"Nom du juge en C"},{"$f":"IF(ISBLANK('Info+Engagés'!H5),\"\",('Info+Engagés'!H5))","v":""},{"$f":"IF(ISBLANK('Info+Engagés'!H6),\"\",('Info+Engagés'!H6))","v":""}]
[{"$f":"NOW()","v":42819.607247569445}]
["Notation figures","Figure 1",1,null,null,38,null,null,{"$f":"MAX(D12:H12)-MIN(D12:H12)","v":0}]
[null,"Figure 2",1,null,null,null,null,null,0]
[null,"Figure 3",1,null,null,null,null,null,0]
[null,"Figure 4",1,null,null,null,null,null,0]
[null,"Figure 5",1,null,null,null,null,null,0]
[null,"Figure 6",1,null,null,null,null,null,0]
[null,"Figure 7",1,null,null,null,null,null,0]
[null,"Figure 8",1,null,null,null,null,null,0]
[null,"Figure 9",1,null,null,null,null,null,0]
[null,"Figure 10",1,null,null,null,null,null,0]
[null,"Figure 11",1,null,null,null,null,null,0]
[null,"Figure 12",1,null,null,null,null,null,0]
[null,"Figure 13",1,null,null,null,null,null,0]
[null,"Figure 14",1,null,null,null,null,null,0]
[null,"Figure 15",1,null,null,null,null,null,0]
[null,"Figure 16",1,null,null,null,null,null,0]
[null,"Figure 17",1,null,null,null,null,null,0]
[null,"Figure 18",1,null,null,null,null,null,0]
[null,"Figure 19",1,null,null,null,null,null,0]
[null,"Figure 20",1,null,null,null,null,null,0]
[null,"Figure 21",1,null,null,null,null,null,0]
[null,"Figure 22",1,null,null,null,null,null,0]
[" Ensemble","Ensemble 1",1,null,null,null,null,null,0]
[null,"Ensemble 2",1,null,null,null,null,null,0]
[null,"Ensemble 3",1,null,null,null,null,null,0]
[null,"Ensemble 4",2,null,null,null,null,null,0]
[null,"Ensemble 5",2,null,null,null,null,null,0]
[null,"Ensemble 6",1,null,null,null,null,null,0]
["Pénalité en points"]
["Erreure(s) de tracé "]
["% Total du juge",null,null,{"$f":"IF(ISBLANK('Info+Engagés'!H2),\"\",D43/3-D41)","v":""},{"$f":"IF(ISBLANK('Info+Engagés'!H3),\"\",E43/3-E41)","v":""},{"$f":"IF(ISBLANK('Info+Engagés'!H4),\"\",F43/3-F41)","v":12.666666666666666},{"$f":"IF(ISBLANK('Info+Engagés'!H5),\"\",G43/3-G41)","v":""},{"$f":"IF(ISBLANK('Info+Engagés'!H6),\"\",H43/3-H41)","v":""},{"$f":"MAX(D42:H42)-MIN(D42:H42)","v":0}]
["Soit en points",null,null,{"$f":"IF(ISBLANK('Info+Engagés'!H2),\"\",SUM(D12:D36,D39,D37*2,D38*2)-D40)","v":""},{"$f":"IF(ISBLANK('Info+Engagés'!H3),\"\",(SUM(E12:E36,E39,E37*2,E38*2)-E40))","v":""},{"$f":"IF(ISBLANK('Info+Engagés'!H4),\"\",(SUM(F12:F36,F39,F37*2,F38*2)-F40))","v":38},{"$f":"IF(ISBLANK('Info+Engagés'!H5),\"\",(SUM(G12:G36,G39,G37*2,G38*2)-G40))","v":""},{"$f":"IF(ISBLANK('Info+Engagés'!H6),\"\",(SUM(H12:H36,H39,H37*2,H38*2)-H40))","v":""}]
["                          Total maxi par juge = 300          1 point correspond à 0,333%              1% correspond en points à : 3                                                                  Les notes sont sur 10 et correspondent à la saisie informatique par l'opérateur des protocoles joints, Le total résulte de l'addition des points attribués après application du coefficient et soustraction des points de pénalité encourus après conversion en pourcentage sont déduit les pourcentages de pénalités encourus par suite d'erreurs de tracé pour obtenir le pourcentage par juge."]

{"sheet":"Cav24","index":25,"n_rows":44,"n_cols":9,"rows_kept":44,"cut":false,"hidden":false,"merged":[[40,0,40,2],[41,0,41,2],[42,0,42,2],[43,0,47,8],[9,6,10,6],[9,7,10,7],[10,0,10,1],[11,0,32,0],[33,0,38,0],[39,0,39,2],[9,5,10,5],[8,8,10,8],[8,0,8,1],[9,0,9,1],[9,3,10,3],[9,4,10,4],[8,2,10,2],[4,0,4,1],[4,7,5,7],[4,8,5,8],[5,0,5,1],[6,0,7,1],[6,2,7,2],[6,7,7,7],[6,8,7,8],[4,3,7,4],[4,5,7,6],[0,0,1,2],[0,3,1,6],[0,7,1,8],[2,0,2,2],[2,3,3,4],[2,5,3,6],[3,0,3,2]]}
[{"$f":"'Info+Engagés'!B3","v":"Quel Lieu ? (Département ?)"},null,null,{"$f":"'Info+Engagés'!B8","v":"Amateur 3 Grand Prix (D1)"},null,null,null,{"$f":"'Info+Engagés'!B2","v":"Quelle Date ?"}]
[]
["N° de concours",null,null,"Cheval",null,"Cavalier",null,"Note d’ensemble",{"$f":"SUM(D34:H36,D39:H39,D37*2,E37*2,F37*2,G37*2,H37*2,D38*2,E38*2,F38*2,G38*2,H38*2)","v":0}]
[{"$f":"'Info+Engagés'!B4","v":"Quel N° ?"},null,null,null,null,null,null,"Points",{"$f":"SUM(D43:H43)","v":37}]
["Épreuve N°",null,{"$f":"'Info+Engagés'!B5","v":"Quel N° ?"},{"$f":"'Info+Engagés'!B35","v":"Nom du cheval 24"},null,{"$f":"'Info+Engagés'!G35","v":0},null,"% Final",{"$f":"AVERAGE(D42:H42)","v":12.333333333333334}]
["Piste  ",null,{"$f":"'Info+Engagés'!B6","v":"Quelle Piste ?"}]
["N° Départ BO",null,{"$f":"'Info+Engagés'!A35","v":24},null,null,null,null,"Classement",{"$f":"INDEX(Résultats!P:P,MATCH(C7,Résultats!A:A,0))","v":24}]
[]
["Imprimé le :",null,"Coéff .","Juge E","Juge H","Juge C","Juge M","Juge B","écart Max"]
[{"$f":"TODAY()","v":"2017-03-25"},null,null,{"$f":"IF(ISBLANK('Info+Engagés'!H2),\"\",('Info+Engagés'!H2))","v":""},{"$f":"IF(ISBLANK('Info+Engagés'!H3),\"\",('Info+Engagés'!H3))","v":""},{"$f":"IF(ISBLANK('Info+Engagés'!H4),\"\",('Info+Engagés'!H4))","v":"Nom du juge en C"},{"$f":"IF(ISBLANK('Info+Engagés'!H5),\"\",('Info+Engagés'!H5))","v":""},{"$f":"IF(ISBLANK('Info+Engagés'!H6),\"\",('Info+Engagés'!H6))","v":""}]
[{"$f":"NOW()","v":42819.607247569445}]
["Notation figures","Figure 1",1,null,null,37,null,null,{"$f":"MAX(D12:H12)-MIN(D12:H12)","v":0}]
[null,"Figure 2",1,null,null,null,null,null,0]
[null,"Figure 3",1,null,null,null,null,null,0]
[null,"Figure 4",1,null,null,null,null,null,0]
[null,"Figure 5",1,null,null,null,null,null,0]
[null,"Figure 6",1,null,null,null,null,null,0]
[null,"Figure 7",1,null,null,null,null,null,0]
[null,"Figure 8",1,null,null,null,null,null,0]
[null,"Figure 9",1,null,null,null,null,null,0]
[null,"Figure 10",1,null,null,null,null,null,0]
[null,"Figure 11",1,null,null,null,null,null,0]
[null,"Figure 12",1,null,null,null,null,null,0]
[null,"Figure 13",1,null,null,null,null,null,0]
[null,"Figure 14",1,null,null,null,null,null,0]
[null,"Figure 15",1,null,null,null,null,null,0]
[null,"Figure 16",1,null,null,null,null,null,0]
[null,"Figure 17",1,null,null,null,null,null,0]
[null,"Figure 18",1,null,null,null,null,null,0]
[null,"Figure 19",1,null,null,null,null,null,0]
[null,"Figure 20",1,null,null,null,null,null,0]
[null,"Figure 21",1,null,null,null,null,null,0]
[null,"Figure 22",1,null,null,null,null,null,0]
[" Ensemble","Ensemble 1",1,null,null,null,null,null,0]
[null,"Ensemble 2",1,null,null,null,null,null,0]
[null,"Ensemble 3",1,null,null,null,null,null,0]
[null,"Ensemble 4",2,null,null,null,null,null,0]
[null,"Ensemble 5",2,null,null,null,null,null,0]
[null,"Ensemble 6",1,null,null,null,null,null,0]
["Pénalité en points"]
["Erreure(s) de tracé "]
["% Total du juge",null,null,{"$f":"IF(ISBLANK('Info+Engagés'!H2),\"\",D43/3-D41)","v":""},{"$f":"IF(ISBLANK('Info+Engagés'!H3),\"\",E43/3-E41)","v":""},{"$f":"IF(ISBLANK('Info+Engagés'!H4),\"\",F43/3-F41)","v":12.333333333333334},{"$f":"IF(ISBLANK('Info+Engagés'!H5),\"\",G43/3-G41)","v":""},{"$f":"IF(ISBLANK('Info+Engagés'!H6),\"\",H43/3-H41)","v":""},{"$f":"MAX(D42:H42)-MIN(D42:H42)","v":0}]
["Soit en points",null,null,{"$f":"IF(ISBLANK('Info+Engagés'!H2),\"\",SUM(D12:D36,D39,D37*2,D38*2)-D40)","v":""},{"$f":"IF(ISBLANK('Info+Engagés'!H3),\"\",(SUM(E12:E36,E39,E37*2,E38*2)-E40))","v":""},{"$f":"IF(ISBLANK('Info+Engagés'!H4),\"\",(SUM(F12:F36,F39,F37*2,F38*2)-F40))","v":37},{"$f":"IF(ISBLANK('Info+Engagés'!H5),\"\",(SUM(G12:G36,G39,G37*2,G38*2)-G40))","v":""},{"$f":"IF(ISBLANK('Info+Engagés'!H6),\"\",(SUM(H12:H36,H39,H37*2,H38*2)-H40))","v":""}]
["                          Total maxi par juge = 300          1 point correspond à 0,333%              1% correspond en points à : 3                                                                  Les notes sont sur 10 et correspondent à la saisie informatique par l'opérateur des protocoles joints, Le total résulte de l'addition des points attribués après application du coefficient et soustraction des points de pénalité encourus après conversion en pourcentage sont déduit les pourcentages de pénalités encourus par suite d'erreurs de tracé pour obtenir le pourcentage par juge."]

{"sheet":"Cav25","index":26,"n_rows":44,"n_cols":9,"rows_kept":44,"cut":false,"hidden":false,"merged":[[40,0,40,2],[41,0,41,2],[42,0,42,2],[43,0,47,8],[9,6,10,6],[9,7,10,7],[10,0,10,1],[11,0,32,0],[33,0,38,0],[39,0,39,2],[9,5,10,5],[8,8,10,8],[8,0,8,1],[9,0,9,1],[9,3,10,3],[9,4,10,4],[8,2,10,2],[4,0,4,1],[4,7,5,7],[4,8,5,8],[5,0,5,1],[6,0,7,1],[6,2,7,2],[6,7,7,7],[6,8,7,8],[4,3,7,4],[4,5,7,6],[0,0,1,2],[0,3,1,6],[0,7,1,8],[2,0,2,2],[2,3,3,4],[2,5,3,6],[3,0,3,2]]}
[{"$f":"'Info+Engagés'!B3","v":"Quel Lieu ? (Département ?)"},null,null,{"$f":"'Info+Engagés'!B8","v":"Amateur 3 Grand Prix (D1)"},null,null,null,{"$f":"'Info+Engagés'!B2","v":"Quelle Date ?"}]
[]
["N° de concours",null,null,"Cheval",null,"Cavalier",null,"Note d’ensemble",{"$f":"SUM(D34:H36,D39:H39,D37*2,E37*2,F37*2,G37*2,H37*2,D38*2,E38*2,F38*2,G38*2,H38*2)","v":0}]
[{"$f":"'Info+Engagés'!B4","v":"Quel N° ?"},null,null,null,null,null,null,"Points",{"$f":"SUM(D43:H43)","v":36}]
["Épreuve N°",null,{"$f":"'Info+Engagés'!B5","v":"Quel N° ?"},{"$f":"'Info+Engagés'!B36","v":"Nom du cheval 25"},null,{"$f":"'Info+Engagés'!G36","v":0},null,"% Final",{"$f":"AVERAGE(D42:H42)","v":12}]
["Piste  ",null,{"$f":"'Info+Engagés'!B6","v":"Quelle Piste ?"}]
["N° Départ BO",null,{"$f":"'Info+Engagés'!A36","v":25},null,null,null,null,"Classement",{"$f":"INDEX(Résultats!P:P,MATCH(C7,Résultats!A:A,0))","v":25}]
[]
["Imprimé le :",null,"Coéff .","Juge E","Juge H","Juge C","Juge M","Juge B","écart Max"]
[{"$f":"TODAY()","v":"2017-03-25"},null,null,{"$f":"IF(ISBLANK('Info+Engagés'!H2),\"\",('Info+Engagés'!H2))","v":""},{"$f":"IF(ISBLANK('Info+Engagés'!H3),\"\",('Info+Engagés'!H3))","v":""},{"$f":"IF(ISBLANK('Info+Engagés'!H4),\"\",('Info+Engagés'!H4))","v":"Nom du juge en C"},{"$f":"IF(ISBLANK('Info+Engagés'!H5),\"\",('Info+Engagés'!H5))","v":""},{"$f":"IF(ISBLANK('Info+Engagés'!H6),\"\",('Info+Engagés'!H6))","v":""}]
[{"$f":"NOW()","v":42819.607247569445}]
["Notation figures","Figure 1",1,null,null,36,null,null,{"$f":"MAX(D12:H12)-MIN(D12:H12)","v":0}]
[null,"Figure 2",1,null,null,null,null,null,0]
[null,"Figure 3",1,null,null,null,null,null,0]
[null,"Figure 4",1,null,null,null,null,null,0]
[null,"Figure 5",1,null,null,null,null,null,0]
[null,"Figure 6",1,null,null,null,null,null,0]
[null,"Figure 7",1,null,null,null,null,null,0]
[null,"Figure 8",1,null,null,null,null,null,0]
[null,"Figure 9",1,null,null,null,null,null,0]
[null,"Figure 10",1,null,null,null,null,null,0]
[null,"Figure 11",1,null,null,null,null,null,0]
[null,"Figure 12",1,null,null,null,null,null,0]
[null,"Figure 13",1,null,null,null,null,null,0]
[null,"Figure 14",1,null,null,null,null,null,0]
[null,"Figure 15",1,null,null,null,null,null,0]
[null,"Figure 16",1,null,null,null,null,null,0]
[null,"Figure 17",1,null,null,null,null,null,0]
[null,"Figure 18",1,null,null,null,null,null,0]
[null,"Figure 19",1,null,null,null,null,null,0]
[null,"Figure 20",1,null,null,null,null,null,0]
[null,"Figure 21",1,null,null,null,null,null,0]
[null,"Figure 22",1,null,null,null,null,null,0]
[" Ensemble","Ensemble 1",1,null,null,null,null,null,0]
[null,"Ensemble 2",1,null,null,null,null,null,0]
[null,"Ensemble 3",1,null,null,null,null,null,0]
[null,"Ensemble 4",2,null,null,null,null,null,0]
[null,"Ensemble 5",2,null,null,null,null,null,0]
[null,"Ensemble 6",1,null,null,null,null,null,0]
["Pénalité en points"]
["Erreure(s) de tracé "]
["% Total du juge",null,null,{"$f":"IF(ISBLANK('Info+Engagés'!H2),\"\",D43/3-D41)","v":""},{"$f":"IF(ISBLANK('Info+Engagés'!H3),\"\",E43/3-E41)","v":""},{"$f":"IF(ISBLANK('Info+Engagés'!H4),\"\",F43/3-F41)","v":12},{"$f":"IF(ISBLANK('Info+Engagés'!H5),\"\",G43/3-G41)","v":""},{"$f":"IF(ISBLANK('Info+Engagés'!H6),\"\",H43/3-H41)","v":""},{"$f":"MAX(D42:H42)-MIN(D42:H42)","v":0}]
["Soit en points",null,null,{"$f":"IF(ISBLANK('Info+Engagés'!H2),\"\",SUM(D12:D36,D39,D37*2,D38*2)-D40)","v":""},{"$f":"IF(ISBLANK('Info+Engagés'!H3),\"\",(SUM(E12:E36,E39,E37*2,E38*2)-E40))","v":""},{"$f":"IF(ISBLANK('Info+Engagés'!H4),\"\",(SUM(F12:F36,F39,F37*2,F38*2)-F40))","v":36},{"$f":"IF(ISBLANK('Info+Engagés'!H5),\"\",(SUM(G12:G36,G39,G37*2,G38*2)-G40))","v":""},{"$f":"IF(ISBLANK('Info+Engagés'!H6),\"\",(SUM(H12:H36,H39,H37*2,H38*2)-H40))","v":""}]
["                          Total maxi par juge = 300          1 point correspond à 0,333%              1% correspond en points à : 3                                                                  Les notes sont sur 10 et correspondent à la saisie informatique par l'opérateur des protocoles joints, Le total résulte de l'addition des points attribués après application du coefficient et soustraction des points de pénalité encourus après conversion en pourcentage sont déduit les pourcentages de pénalités encourus par suite d'erreurs de tracé pour obtenir le pourcentage par juge."]

{"sheet":"Cav26","index":27,"n_rows":44,"n_cols":9,"rows_kept":44,"cut":false,"hidden":false,"merged":[[40,0,40,2],[41,0,41,2],[42,0,42,2],[43,0,47,8],[9,6,10,6],[9,7,10,7],[10,0,10,1],[11,0,32,0],[33,0,38,0],[39,0,39,2],[9,5,10,5],[8,8,10,8],[8,0,8,1],[9,0,9,1],[9,3,10,3],[9,4,10,4],[8,2,10,2],[4,0,4,1],[4,7,5,7],[4,8,5,8],[5,0,5,1],[6,0,7,1],[6,2,7,2],[6,7,7,7],[6,8,7,8],[4,3,7,4],[4,5,7,6],[0,0,1,2],[0,3,1,6],[0,7,1,8],[2,0,2,2],[2,3,3,4],[2,5,3,6],[3,0,3,2]]}
[{"$f":"'Info+Engagés'!B3","v":"Quel Lieu ? (Département ?)"},null,null,{"$f":"'Info+Engagés'!B8","v":"Amateur 3 Grand Prix (D1)"},null,null,null,{"$f":"'Info+Engagés'!B2","v":"Quelle Date ?"}]
[]
["N° de concours",null,null,"Cheval",null,"Cavalier",null,"Note d’ensemble",{"$f":"SUM(D34:H36,D39:H39,D37*2,E37*2,F37*2,G37*2,H37*2,D38*2,E38*2,F38*2,G38*2,H38*2)","v":0}]
[{"$f":"'Info+Engagés'!B4","v":"Quel N° ?"},null,null,null,null,null,null,"Points",{"$f":"SUM(D43:H43)","v":35}]
["Épreuve N°",null,{"$f":"'Info+Engagés'!B5","v":"Quel N° ?"},{"$f":"'Info+Engagés'!B37","v":"Nom du cheval 26"},null,{"$f":"'Info+Engagés'!G37","v":0},null,"% Final",{"$f":"AVERAGE(D42:H42)","v":11.666666666666666}]
["Piste  ",null,{"$f":"'Info+Engagés'!B6","v":"Quelle Piste ?"}]
["N° Départ BO",null,{"$f":"'Info+Engagés'!A37","v":26},null,null,null,null,"Classement",{"$f":"INDEX(Résultats!P:P,MATCH(C7,Résultats!A:A,0))","v":26}]
[]
["Imprimé le :",null,"Coéff .","Juge E","Juge H","Juge C","Juge M","Juge B","écart Max"]
[{"$f":"TODAY()","v":"2017-03-25"},null,null,{"$f":"IF(ISBLANK('Info+Engagés'!H2),\"\",('Info+Engagés'!H2))","v":""},{"$f":"IF(ISBLANK('Info+Engagés'!H3),\"\",('Info+Engagés'!H3))","v":""},{"$f":"IF(ISBLANK('Info+Engagés'!H4),\"\",('Info+Engagés'!H4))","v":"Nom du juge en C"},{"$f":"IF(ISBLANK('Info+Engagés'!H5),\"\",('Info+Engagés'!H5))","v":""},{"$f":"IF(ISBLANK('Info+Engagés'!H6),\"\",('Info+Engagés'!H6))","v":""}]
[{"$f":"NOW()","v":42819.607247569445}]
["Notation figures","Figure 1",1,null,null,35,null,null,{"$f":"MAX(D12:H12)-MIN(D12:H12)","v":0}]
[null,"Figure 2",1,null,null,null,null,null,0]
[null,"Figure 3",1,null,null,null,null,null,0]
[null,"Figure 4",1,null,null,null,null,null,0]
[null,"Figure 5",1,null,null,null,null,null,0]
[null,"Figure 6",1,null,null,null,null,null,0]
[null,"Figure 7",1,null,null,null,null,null,0]
[null,"Figure 8",1,null,null,null,null,null,0]
[null,"Figure 9",1,null,null,null,null,null,0]
[null,"Figure 10",1,null,null,null,null,null,0]
[null,"Figure 11",1,null,null,null,null,null,0]
[null,"Figure 12",1,null,null,null,null,null,0]
[null,"Figure 13",1,null,null,null,null,null,0]
[null,"Figure 14",1,null,null,null,null,null,0]
[null,"Figure 15",1,null,null,null,null,null,0]
[null,"Figure 16",1,null,null,null,null,null,0]
[null,"Figure 17",1,null,null,null,null,null,0]
[null,"Figure 18",1,null,null,null,null,null,0]
[null,"Figure 19",1,null,null,null,null,null,0]
[null,"Figure 20",1,null,null,null,null,null,0]
[null,"Figure 21",1,null,null,null,null,null,0]
[null,"Figure 22",1,null,null,null,null,null,0]
[" Ensemble","Ensemble 1",1,null,null,null,null,null,0]
[null,"Ensemble 2",1,null,null,null,null,null,0]
[null,"Ensemble 3",1,null,null,null,null,null,0]
[null,"Ensemble 4",2,null,null,null,null,null,0]
[null,"Ensemble 5",2,null,null,null,null,null,0]
[null,"Ensemble 6",1,null,null,null,null,null,0]
["Pénalité en points"]
["Erreure(s) de tracé "]
["% Total du juge",null,null,{"$f":"IF(ISBLANK('Info+Engagés'!H2),\"\",D43/3-D41)","v":""},{"$f":"IF(ISBLANK('Info+Engagés'!H3),\"\",E43/3-E41)","v":""},{"$f":"IF(ISBLANK('Info+Engagés'!H4),\"\",F43/3-F41)","v":11.666666666666666},{"$f":"IF(ISBLANK('Info+Engagés'!H5),\"\",G43/3-G41)","v":""},{"$f":"IF(ISBLANK('Info+Engagés'!H6),\"\",H43/3-H41)","v":""},{"$f":"MAX(D42:H42)-MIN(D42:H42)","v":0}]
["Soit en points",null,null,{"$f":"IF(ISBLANK('Info+Engagés'!H2),\"\",SUM(D12:D36,D39,D37*2,D38*2)-D40)","v":""},{"$f":"IF(ISBLANK('Info+Engagés'!H3),\"\",(SUM(E12:E36,E39,E37*2,E38*2)-E40))","v":""},{"$f":"IF(ISBLANK('Info+Engagés'!H4),\"\",(SUM(F12:F36,F39,F37*2,F38*2)-F40))","v":35},{"$f":"IF(ISBLANK('Info+Engagés'!H5),\"\",(SUM(G12:G36,G39,G37*2,G38*2)-G40))","v":""},{"$f":"IF(ISBLANK('Info+Engagés'!H6),\"\",(SUM(H12:H36,H39,H37*2,H38*2)-H40))","v":""}]
["                          Total maxi par juge = 300          1 point correspond à 0,333%              1% correspond en points à : 3                                                                  Les notes sont sur 10 et correspondent à la saisie informatique par l'opérateur des protocoles joints, Le total résulte de l'addition des points attribués après application du coefficient et soustraction des points de pénalité encourus après conversion en pourcentage sont déduit les pourcentages de pénalités encourus par suite d'erreurs de tracé pour obtenir le pourcentage par juge."]

{"sheet":"Cav27","index":28,"n_rows":44,"n_cols":9,"rows_kept":44,"cut":false,"hidden":false,"merged":[[40,0,40,2],[41,0,41,2],[42,0,42,2],[43,0,47,8],[9,6,10,6],[9,7,10,7],[10,0,10,1],[11,0,32,0],[33,0,38,0],[39,0,39,2],[9,5,10,5],[8,8,10,8],[8,0,8,1],[9,0,9,1],[9,3,10,3],[9,4,10,4],[8,2,10,2],[4,0,4,1],[4,7,5,7],[4,8,5,8],[5,0,5,1],[6,0,7,1],[6,2,7,2],[6,7,7,7],[6,8,7,8],[4,3,7,4],[4,5,7,6],[0,0,1,2],[0,3,1,6],[0,7,1,8],[2,0,2,2],[2,3,3,4],[2,5,3,6],[3,0,3,2]]}
[{"$f":"'Info+Engagés'!B3","v":"Quel Lieu ? (Département ?)"},null,null,{"$f":"'Info+Engagés'!B8","v":"Amateur 3 Grand Prix (D1)"},null,null,null,{"$f":"'Info+Engagés'!B2","v":"Quelle Date ?"}]
[]
["N° de concours",null,null,"Cheval",null,"Cavalier",null,"Note d’ensemble",{"$f":"SUM(D34:H36,D39:H39,D37*2,E37*2,F37*2,G37*2,H37*2,D38*2,E38*2,F38*2,G38*2,H38*2)","v":0}]
[{"$f":"'Info+Engagés'!B4","v":"Quel N° ?"},null,null,null,null,null,null,"Points",{"$f":"SUM(D43:H43)","v":34}]
["Épreuve N°",null,{"$f":"'Info+Engagés'!B5","v":"Quel N° ?"},{"$f":"'Info+Engagés'!B38","v":"Nom du cheval 27"},null,{"$f":"'Info+Engagés'!G38","v":0},null,"% Final",{"$f":"AVERAGE(D42:H42)","v":11.333333333333334}]
["Piste  ",null,{"$f":"'Info+Engagés'!B6","v":"Quelle Piste ?"}]
["N° Départ BO",null,{"$f":"'Info+Engagés'!A38","v":27},null,null,null,null,"Classement",{"$f":"INDEX(Résultats!P:P,MATCH(C7,Résultats!A:A,0))","v":27}]
[]
["Imprimé le :",null,"Coéff .","Juge E","Juge H","Juge C","Juge M","Juge B","écart Max"]
[{"$f":"TODAY()","v":"2017-03-25"},null,null,{"$f":"IF(ISBLANK('Info+Engagés'!H2),\"\",('Info+Engagés'!H2))","v":""},{"$f":"IF(ISBLANK('Info+Engagés'!H3),\"\",('Info+Engagés'!H3))","v":""},{"$f":"IF(ISBLANK('Info+Engagés'!H4),\"\",('Info+Engagés'!H4))","v":"Nom du juge en C"},{"$f":"IF(ISBLANK('Info+Engagés'!H5),\"\",('Info+Engagés'!H5))","v":""},{"$f":"IF(ISBLANK('Info+Engagés'!H6),\"\",('Info+Engagés'!H6))","v":""}]
[{"$f":"NOW()","v":42819.607247569445}]
["Notation figures","Figure 1",1,null,null,34,null,null,{"$f":"MAX(D12:H12)-MIN(D12:H12)","v":0}]
[null,"Figure 2",1,null,null,null,null,null,0]
[null,"Figure 3",1,null,null,null,null,null,0]
[null,"Figure 4",1,null,null,null,null,null,0]
[null,"Figure 5",1,null,null,null,null,null,0]
[null,"Figure 6",1,null,null,null,null,null,0]
[null,"Figure 7",1,null,null,null,null,null,0]
[null,"Figure 8",1,null,null,null,null,null,0]
[null,"Figure 9",1,null,null,null,null,null,0]
[null,"Figure 10",1,null,null,null,null,null,0]
[null,"Figure 11",1,null,null,null,null,null,0]
[null,"Figure 12",1,null,null,null,null,null,0]
[null,"Figure 13",1,null,null,null,null,null,0]
[null,"Figure 14",1,null,null,null,null,null,0]
[null,"Figure 15",1,null,null,null,null,null,0]
[null,"Figure 16",1,null,null,null,null,null,0]
[null,"Figure 17",1,null,null,null,null,null,0]
[null,"Figure 18",1,null,null,null,null,null,0]
[null,"Figure 19",1,null,null,null,null,null,0]
[null,"Figure 20",1,null,null,null,null,null,0]
[null,"Figure 21",1,null,null,null,null,null,0]
[null,"Figure 22",1,null,null,null,null,null,0]
[" Ensemble","Ensemble 1",1,null,null,null,null,null,0]
[null,"Ensemble 2",1,null,null,null,null,null,0]
[null,"Ensemble 3",1,null,null,null,null,null,0]
[null,"Ensemble 4",2,null,null,null,null,null,0]
[null,"Ensemble 5",2,null,null,null,null,null,0]
[null,"Ensemble 6",1,null,null,null,null,null,0]
["Pénalité en points"]
["Erreure(s) de tracé "]
["% Total du juge",null,null,{"$f":"IF(ISBLANK('Info+Engagés'!H2),\"\",D43/3-D41)","v":""},{"$f":"IF(ISBLANK('Info+Engagés'!H3),\"\",E43/3-E41)","v":""},{"$f":"IF(ISBLANK('Info+Engagés'!H4),\"\",F43/3-F41)","v":11.333333333333334},{"$f":"IF(ISBLANK('Info+Engagés'!H5),\"\",G43/3-G41)","v":""},{"$f":"IF(ISBLANK('Info+Engagés'!H6),\"\",H43/3-H41)","v":""},{"$f":"MAX(D42:H42)-MIN(D42:H42)","v":0}]
["Soit en points",null,null,{"$f":"IF(ISBLANK('Info+Engagés'!H2),\"\",SUM(D12:D36,D39,D37*2,D38*2)-D40)","v":""},{"$f":"IF(ISBLANK('Info+Engagés'!H3),\"\",(SUM(E12:E36,E39,E37*2,E38*2)-E40))","v":""},{"$f":"IF(ISBLANK('Info+Engagés'!H4),\"\",(SUM(F12:F36,F39,F37*2,F38*2)-F40))","v":34},{"$f":"IF(ISBLANK('Info+Engagés'!H5),\"\",(SUM(G12:G36,G39,G37*2,G38*2)-G40))","v":""},{"$f":"IF(ISBLANK('Info+Engagés'!H6),\"\",(SUM(H12:H36,H39,H37*2,H38*2)-H40))","v":""}]
["                          Total maxi par juge = 300          1 point correspond à 0,333%              1% correspond en points à : 3                                                                  Les notes sont sur 10 et correspondent à la saisie informatique par l'opérateur des protocoles joints, Le total résulte de l'addition des points attribués après application du coefficient et soustraction des points de pénalité encourus après conversion en pourcentage sont déduit les pourcentages de pénalités encourus par suite d'erreurs de tracé pour obtenir le pourcentage par juge."]

{"sheet":"Cav28","index":29,"n_rows":44,"n_cols":9,"rows_kept":44,"cut":false,"hidden":false,"merged":[[40,0,40,2],[41,0,41,2],[42,0,42,2],[43,0,47,8],[9,6,10,6],[9,7,10,7],[10,0,10,1],[11,0,32,0],[33,0,38,0],[39,0,39,2],[9,5,10,5],[8,8,10,8],[8,0,8,1],[9,0,9,1],[9,3,10,3],[9,4,10,4],[8,2,10,2],[4,0,4,1],[4,7,5,7],[4,8,5,8],[5,0,5,1],[6,0,7,1],[6,2,7,2],[6,7,7,7],[6,8,7,8],[4,3,7,4],[4,5,7,6],[0,0,1,2],[0,3,1,6],[0,7,1,8],[2,0,2,2],[2,3,3,4],[2,5,3,6],[3,0,3,2]]}
[{"$f":"'Info+Engagés'!B3","v":"Quel Lieu ? (Département ?)"},null,null,{"$f":"'Info+Engagés'!B8","v":"Amateur 3 Grand Prix (D1)"},null,null,null,{"$f":"'Info+Engagés'!B2","v":"Quelle Date ?"}]
[]
["N° de concours",null,null,"Cheval",null,"Cavalier",null,"Note d’ensemble",{"$f":"SUM(D34:H36,D39:H39,D37*2,E37*2,F37*2,G37*2,H37*2,D38*2,E38*2,F38*2,G38*2,H38*2)","v":0}]
[{"$f":"'Info+Engagés'!B4","v":"Quel N° ?"},null,null,null,null,null,null,"Points",{"$f":"SUM(D43:H43)","v":33}]
["Épreuve N°",null,{"$f":"'Info+Engagés'!B5","v":"Quel N° ?"},{"$f":"'Info+Engagés'!B39","v":"Nom du cheval 28"},null,{"$f":"'Info+Engagés'!G39","v":0},null,"% Final",{"$f":"AVERAGE(D42:H42)","v":11}]
["Piste  ",null,{"$f":"'Info+Engagés'!B6","v":"Quelle Piste ?"}]
["N° Départ BO",null,{"$f":"'Info+Engagés'!A39","v":28},null,null,null,null,"Classement",{"$f":"INDEX(Résultats!P:P,MATCH(C7,Résultats!A:A,0))","v":28}]
[]
["Imprimé le :",null,"Coéff .","Juge E","Juge H","Juge C","Juge M","Juge B","écart Max"]
[{"$f":"TODAY()","v":"2017-03-25"},null,null,{"$f":"IF(ISBLANK('Info+Engagés'!H2),\"\",('Info+Engagés'!H2))","v":""},{"$f":"IF(ISBLANK('Info+Engagés'!H3),\"\",('Info+Engagés'!H3))","v":""},{"$f":"IF(ISBLANK('Info+Engagés'!H4),\"\",('Info+Engagés'!H4))","v":"Nom du juge en C"},{"$f":"IF(ISBLANK('Info+Engagés'!H5),\"\",('Info+Engagés'!H5))","v":""},{"$f":"IF(ISBLANK('Info+Engagés'!H6),\"\",('Info+Engagés'!H6))","v":""}]
[{"$f":"NOW()","v":42819.607247569445}]
["Notation figures","Figure 1",1,null,null,33,null,null,{"$f":"MAX(D12:H12)-MIN(D12:H12)","v":0}]
[null,"Figure 2",1,null,null,null,null,null,0]
[null,"Figure 3",1,null,null,null,null,null,0]
[null,"Figure 4",1,null,null,null,null,null,0]
[null,"Figure 5",1,null,null,null,null,null,0]
[null,"Figure 6",1,null,null,null,null,null,0]
[null,"Figure 7",1,null,null,null,null,null,0]
[null,"Figure 8",1,null,null,null,null,null,0]
[null,"Figure 9",1,null,null,null,null,null,0]
[null,"Figure 10",1,null,null,null,null,null,0]
[null,"Figure 11",1,null,null,null,null,null,0]
[null,"Figure 12",1,null,null,null,null,null,0]
[null,"Figure 13",1,null,null,null,null,null,0]
[null,"Figure 14",1,null,null,null,null,null,0]
[null,"Figure 15",1,null,null,null,null,null,0]
[null,"Figure 16",1,null,null,null,null,null,0]
[null,"Figure 17",1,null,null,null,null,null,0]
[null,"Figure 18",1,null,null,null,null,null,0]
[null,"Figure 19",1,null,null,null,null,null,0]
[null,"Figure 20",1,null,null,null,null,null,0]
[null,"Figure 21",1,null,null,null,null,null,0]
[null,"Figure 22",1,null,null,null,null,null,0]
[" Ensemble","Ensemble 1",1,null,null,null,null,null,0]
[null,"Ensemble 2",1,null,null,null,null,null,0]
[null,"Ensemble 3",1,null,null,null,null,null,0]
[null,"Ensemble 4",2,null,null,null,null,null,0]
[null,"Ensemble 5",2,null,null,null,null,null,0]
[null,"Ensemble 6",1,null,null,null,null,null,0]
["Pénalité en points"]
["Erreure(s) de tracé "]
["% Total du juge",null,null,{"$f":"IF(ISBLANK('Info+Engagés'!H2),\"\",D43/3-D41)","v":""},{"$f":"IF(ISBLANK('Info+Engagés'!H3),\"\",E43/3-E41)","v":""},{"$f":"IF(ISBLANK('Info+Engagés'!H4),\"\",F43/3-F41)","v":11},{"$f":"IF(ISBLANK('Info+Engagés'!H5),\"\",G43/3-G41)","v":""},{"$f":"IF(ISBLANK('Info+Engagés'!H6),\"\",H43/3-H41)","v":""},{"$f":"MAX(D42:H42)-MIN(D42:H42)","v":0}]
["Soit en points",null,null,{"$f":"IF(ISBLANK('Info+Engagés'!H2),\"\",SUM(D12:D36,D39,D37*2,D38*2)-D40)","v":""},{"$f":"IF(ISBLANK('Info+Engagés'!H3),\"\",(SUM(E12:E36,E39,E37*2,E38*2)-E40))","v":""},{"$f":"IF(ISBLANK('Info+Engagés'!H4),\"\",(SUM(F12:F36,F39,F37*2,F38*2)-F40))","v":33},{"$f":"IF(ISBLANK('Info+Engagés'!H5),\"\",(SUM(G12:G36,G39,G37*2,G38*2)-G40))","v":""},{"$f":"IF(ISBLANK('Info+Engagés'!H6),\"\",(SUM(H12:H36,H39,H37*2,H38*2)-H40))","v":""}]
["                          Total maxi par juge = 300          1 point correspond à 0,333%              1% correspond en points à : 3                                                                  Les notes sont sur 10 et correspondent à la saisie informatique par l'opérateur des protocoles joints, Le total résulte de l'addition des points attribués après application du coefficient et soustraction des points de pénalité encourus après conversion en pourcentage sont déduit les pourcentages de pénalités encourus par suite d'erreurs de tracé pour obtenir le pourcentage par juge."]

{"sheet":"Cav29","index":30,"n_rows":44,"n_cols":9,"rows_kept":44,"cut":false,"hidden":false,"merged":[[40,0,40,2],[41,0,41,2],[42,0,42,2],[43,0,47,8],[9,6,10,6],[9,7,10,7],[10,0,10,1],[11,0,32,0],[33,0,38,0],[39,0,39,2],[9,5,10,5],[8,8,10,8],[8,0,8,1],[9,0,9,1],[9,3,10,3],[9,4,10,4],[8,2,10,2],[4,0,4,1],[4,7,5,7],[4,8,5,8],[5,0,5,1],[6,0,7,1],[6,2,7,2],[6,7,7,7],[6,8,7,8],[4,3,7,4],[4,5,7,6],[0,0,1,2],[0,3,1,6],[0,7,1,8],[2,0,2,2],[2,3,3,4],[2,5,3,6],[3,0,3,2]]}
[{"$f":"'Info+Engagés'!B3","v":"Quel Lieu ? (Département ?)"},null,null,{"$f":"'Info+Engagés'!B8","v":"Amateur 3 Grand Prix (D1)"},null,null,null,{"$f":"'Info+Engagés'!B2","v":"Quelle Date ?"}]
[]
["N° de concours",null,null,"Cheval",null,"Cavalier",null,"Note d’ensemble",{"$f":"SUM(D34:H36,D39:H39,D37*2,E37*2,F37*2,G37*2,H37*2,D38*2,E38*2,F38*2,G38*2,H38*2)","v":0}]
[{"$f":"'Info+Engagés'!B4","v":"Quel N° ?"},null,null,null,null,null,null,"Points",{"$f":"SUM(D43:H43)","v":32}]
["Épreuve N°",null,{"$f":"'Info+Engagés'!B5","v":"Quel N° ?"},{"$f":"'Info+Engagés'!B40","v":"Nom du cheval 29"},null,{"$f":"'Info+Engagés'!G40","v":0},null,"% Final",{"$f":"AVERAGE(D42:H42)","v":10.666666666666666}]
["Piste  ",null,{"$f":"'Info+Engagés'!B6","v":"Quelle Piste ?"}]
["N° Départ BO",null,{"$f":"'Info+Engagés'!A40","v":29},null,null,null,null,"Classement",{"$f":"INDEX(Résultats!P:P,MATCH(C7,Résultats!A:A,0))","v":29}]
[]
["Imprimé le :",null,"Coéff .","Juge E","Juge H","Juge C","Juge M","Juge B","écart Max"]
[{"$f":"TODAY()","v":"2017-03-25"},null,null,{"$f":"IF(ISBLANK('Info+Engagés'!H2),\"\",('Info+Engagés'!H2))","v":""},{"$f":"IF(ISBLANK('Info+Engagés'!H3),\"\",('Info+Engagés'!H3))","v":""},{"$f":"IF(ISBLANK('Info+Engagés'!H4),\"\",('Info+Engagés'!H4))","v":"Nom du juge en C"},{"$f":"IF(ISBLANK('Info+Engagés'!H5),\"\",('Info+Engagés'!H5))","v":""},{"$f":"IF(ISBLANK('Info+Engagés'!H6),\"\",('Info+Engagés'!H6))","v":""}]
[{"$f":"NOW()","v":42819.607247569445}]
["Notation figures","Figure 1",1,null,null,32,null,null,{"$f":"MAX(D12:H12)-MIN(D12:H12)","v":0}]
[null,"Figure 2",1,null,null,null,null,null,0]
[null,"Figure 3",1,null,null,null,null,null,0]
[null,"Figure 4",1,null,null,null,null,null,0]
[null,"Figure 5",1,null,null,null,null,null,0]
[null,"Figure 6",1,null,null,null,null,null,0]
[null,"Figure 7",1,null,null,null,null,null,0]
[null,"Figure 8",1,null,null,null,null,null,0]
[null,"Figure 9",1,null,null,null,null,null,0]
[null,"Figure 10",1,null,null,null,null,null,0]
[null,"Figure 11",1,null,null,null,null,null,0]
[null,"Figure 12",1,null,null,null,null,null,0]
[null,"Figure 13",1,null,null,null,null,null,0]
[null,"Figure 14",1,null,null,null,null,null,0]
[null,"Figure 15",1,null,null,null,null,null,0]
[null,"Figure 16",1,null,null,null,null,null,0]
[null,"Figure 17",1,null,null,null,null,null,0]
[null,"Figure 18",1,null,null,null,null,null,0]
[null,"Figure 19",1,null,null,null,null,null,0]
[null,"Figure 20",1,null,null,null,null,null,0]
[null,"Figure 21",1,null,null,null,null,null,0]
[null,"Figure 22",1,null,null,null,null,null,0]
[" Ensemble","Ensemble 1",1,null,null,null,null,null,0]
[null,"Ensemble 2",1,null,null,null,null,null,0]
[null,"Ensemble 3",1,null,null,null,null,null,0]
[null,"Ensemble 4",2,null,null,null,null,null,0]
[null,"Ensemble 5",2,null,null,null,null,null,0]
[null,"Ensemble 6",1,null,null,null,null,null,0]
["Pénalité en points"]
["Erreure(s) de tracé "]
["% Total du juge",null,null,{"$f":"IF(ISBLANK('Info+Engagés'!H2),\"\",D43/3-D41)","v":""},{"$f":"IF(ISBLANK('Info+Engagés'!H3),\"\",E43/3-E41)","v":""},{"$f":"IF(ISBLANK('Info+Engagés'!H4),\"\",F43/3-F41)","v":10.666666666666666},{"$f":"IF(ISBLANK('Info+Engagés'!H5),\"\",G43/3-G41)","v":""},{"$f":"IF(ISBLANK('Info+Engagés'!H6),\"\",H43/3-H41)","v":""},{"$f":"MAX(D42:H42)-MIN(D42:H42)","v":0}]
["Soit en points",null,null,{"$f":"IF(ISBLANK('Info+Engagés'!H2),\"\",SUM(D12:D36,D39,D37*2,D38*2)-D40)","v":""},{"$f":"IF(ISBLANK('Info+Engagés'!H3),\"\",(SUM(E12:E36,E39,E37*2,E38*2)-E40))","v":""},{"$f":"IF(ISBLANK('Info+Engagés'!H4),\"\",(SUM(F12:F36,F39,F37*2,F38*2)-F40))","v":32},{"$f":"IF(ISBLANK('Info+Engagés'!H5),\"\",(SUM(G12:G36,G39,G37*2,G38*2)-G40))","v":""},{"$f":"IF(ISBLANK('Info+Engagés'!H6),\"\",(SUM(H12:H36,H39,H37*2,H38*2)-H40))","v":""}]
["                          Total maxi par juge = 300          1 point correspond à 0,333%              1% correspond en points à : 3                                                                  Les notes sont sur 10 et correspondent à la saisie informatique par l'opérateur des protocoles joints, Le total résulte de l'addition des points attribués après application du coefficient et soustraction des points de pénalité encourus après conversion en pourcentage sont déduit les pourcentages de pénalités encourus par suite d'erreurs de tracé pour obtenir le pourcentage par juge."]

{"sheet":"Cav30","index":31,"n_rows":44,"n_cols":9,"rows_kept":44,"cut":false,"hidden":false,"merged":[[40,0,40,2],[41,0,41,2],[42,0,42,2],[43,0,47,8],[9,6,10,6],[9,7,10,7],[10,0,10,1],[11,0,32,0],[33,0,38,0],[39,0,39,2],[9,5,10,5],[8,8,10,8],[8,0,8,1],[9,0,9,1],[9,3,10,3],[9,4,10,4],[8,2,10,2],[4,0,4,1],[4,7,5,7],[4,8,5,8],[5,0,5,1],[6,0,7,1],[6,2,7,2],[6,7,7,7],[6,8,7,8],[4,3,7,4],[4,5,7,6],[0,0,1,2],[0,3,1,6],[0,7,1,8],[2,0,2,2],[2,3,3,4],[2,5,3,6],[3,0,3,2]]}
[{"$f":"'Info+Engagés'!B3","v":"Quel Lieu ? (Département ?)"},null,null,{"$f":"'Info+Engagés'!B8","v":"Amateur 3 Grand Prix (D1)"},null,null,null,{"$f":"'Info+Engagés'!B2","v":"Quelle Date ?"}]
[]
["N° de concours",null,null,"Cheval",null,"Cavalier",null,"Note d’ensemble",{"$f":"SUM(D34:H36,D39:H39,D37*2,E37*2,F37*2,G37*2,H37*2,D38*2,E38*2,F38*2,G38*2,H38*2)","v":0}]
[{"$f":"'Info+Engagés'!B4","v":"Quel N° ?"},null,null,null,null,null,null,"Points",{"$f":"SUM(D43:H43)","v":31}]
["Épreuve N°",null,{"$f":"'Info+Engagés'!B5","v":"Quel N° ?"},{"$f":"'Info+Engagés'!B41","v":"Nom du cheval 30"},null,{"$f":"'Info+Engagés'!G41","v":0},null,"% Final",{"$f":"AVERAGE(D42:H42)","v":10.333333333333334}]
["Piste  ",null,{"$f":"'Info+Engagés'!B6","v":"Quelle Piste ?"}]
["N° Départ BO",null,{"$f":"'Info+Engagés'!A41","v":30},null,null,null,null,"Classement",{"$f":"INDEX(Résultats!P:P,MATCH(C7,Résultats!A:A,0))","v":30}]
[]
["Imprimé le :",null,"Coéff .","Juge E","Juge H","Juge C","Juge M","Juge B","écart Max"]
[{"$f":"TODAY()","v":"2017-03-25"},null,null,{"$f":"IF(ISBLANK('Info+Engagés'!H2),\"\",('Info+Engagés'!H2))","v":""},{"$f":"IF(ISBLANK('Info+Engagés'!H3),\"\",('Info+Engagés'!H3))","v":""},{"$f":"IF(ISBLANK('Info+Engagés'!H4),\"\",('Info+Engagés'!H4))","v":"Nom du juge en C"},{"$f":"IF(ISBLANK('Info+Engagés'!H5),\"\",('Info+Engagés'!H5))","v":""},{"$f":"IF(ISBLANK('Info+Engagés'!H6),\"\",('Info+Engagés'!H6))","v":""}]
[{"$f":"NOW()","v":42819.607247569445}]
["Notation figures","Figure 1",1,null,null,31,null,null,{"$f":"MAX(D12:H12)-MIN(D12:H12)","v":0}]
[null,"Figure 2",1,null,null,null,null,null,0]
[null,"Figure 3",1,null,null,null,null,null,0]
[null,"Figure 4",1,null,null,null,null,null,0]
[null,"Figure 5",1,null,null,null,null,null,0]
[null,"Figure 6",1,null,null,null,null,null,0]
[null,"Figure 7",1,null,null,null,null,null,0]
[null,"Figure 8",1,null,null,null,null,null,0]
[null,"Figure 9",1,null,null,null,null,null,0]
[null,"Figure 10",1,null,null,null,null,null,0]
[null,"Figure 11",1,null,null,null,null,null,0]
[null,"Figure 12",1,null,null,null,null,null,0]
[null,"Figure 13",1,null,null,null,null,null,0]
[null,"Figure 14",1,null,null,null,null,null,0]
[null,"Figure 15",1,null,null,null,null,null,0]
[null,"Figure 16",1,null,null,null,null,null,0]
[null,"Figure 17",1,null,null,null,null,null,0]
[null,"Figure 18",1,null,null,null,null,null,0]
[null,"Figure 19",1,null,null,null,null,null,0]
[null,"Figure 20",1,null,null,null,null,null,0]
[null,"Figure 21",1,null,null,null,null,null,0]
[null,"Figure 22",1,null,null,null,null,null,0]
[" Ensemble","Ensemble 1",1,null,null,null,null,null,0]
[null,"Ensemble 2",1,null,null,null,null,null,0]
[null,"Ensemble 3",1,null,null,null,null,null,0]
[null,"Ensemble 4",2,null,null,null,null,null,0]
[null,"Ensemble 5",2,null,null,null,null,null,0]
[null,"Ensemble 6",1,null,null,null,null,null,0]
["Pénalité en points"]
["Erreure(s) de tracé "]
["% Total du juge",null,null,{"$f":"IF(ISBLANK('Info+Engagés'!H2),\"\",D43/3-D41)","v":""},{"$f":"IF(ISBLANK('Info+Engagés'!H3),\"\",E43/3-E41)","v":""},{"$f":"IF(ISBLANK('Info+Engagés'!H4),\"\",F43/3-F41)","v":10.333333333333334},{"$f":"IF(ISBLANK('Info+Engagés'!H5),\"\",G43/3-G41)","v":""},{"$f":"IF(ISBLANK('Info+Engagés'!H6),\"\",H43/3-H41)","v":""},{"$f":"MAX(D42:H42)-MIN(D42:H42)","v":0}]
["Soit en points",null,null,{"$f":"IF(ISBLANK('Info+Engagés'!H2),\"\",SUM(D12:D36,D39,D37*2,D38*2)-D40)","v":""},{"$f":"IF(ISBLANK('Info+Engagés'!H3),\"\",(SUM(E12:E36,E39,E37*2,E38*2)-E40))","v":""},{"$f":"IF(ISBLANK('Info+Engagés'!H4),\"\",(SUM(F12:F36,F39,F37*2,F38*2)-F40))","v":31},{"$f":"IF(ISBLANK('Info+Engagés'!H5),\"\",(SUM(G12:G36,G39,G37*2,G38*2)-G40))","v":""},{"$f":"IF(ISBLANK('Info+Engagés'!H6),\"\",(SUM(H12:H36,H39,H37*2,H38*2)-H40))","v":""}]
["                          Total maxi par juge = 300          1 point correspond à 0,333%              1% correspond en points à : 3                                                                  Les notes sont sur 10 et correspondent à la saisie informatique par l'opérateur des protocoles joints, Le total résulte de l'addition des points attribués après application du coefficient et soustraction des points de pénalité encourus après conversion en pourcentage sont déduit les pourcentages de pénalités encourus par suite d'erreurs de tracé pour obtenir le pourcentage par juge."]

{"sheet":"Cav31","index":32,"n_rows":44,"n_cols":9,"rows_kept":44,"cut":false,"hidden":false,"merged":[[0,0,1,2],[0,3,1,6],[0,7,1,8],[2,0,2,2],[2,3,3,4],[2,5,3,6],[3,0,3,2],[9,4,10,4],[4,0,4,1],[4,7,5,7],[4,8,5,8],[5,0,5,1],[6,0,7,1],[6,2,7,2],[6,7,7,7],[6,8,7,8],[4,3,7,4],[4,5,7,6],[40,0,40,2],[41,0,41,2],[42,0,42,2],[43,0,47,8],[9,6,10,6],[9,7,10,7],[10,0,10,1],[11,0,32,0],[33,0,38,0],[39,0,39,2],[9,5,10,5],[8,2,10,2],[8,8,10,8],[8,0,8,1],[9,0,9,1],[9,3,10,3]]}
[{"$f":"'Info+Engagés'!B3","v":"Quel Lieu ? (Département ?)"},null,null,{"$f":"'Info+Engagés'!B8","v":"Amateur 3 Grand Prix (D1)"},null,null,null,{"$f":"'Info+Engagés'!B2","v":"Quelle Date ?"}]
[]
["N° de concours",null,null,"Cheval",null,"Cavalier",null,"Note d’ensemble",{"$f":"SUM(D34:H36,D39:H39,D37*2,E37*2,F37*2,G37*2,H37*2,D38*2,E38*2,F38*2,G38*2,H38*2)","v":0}]
[{"$f":"'Info+Engagés'!B4","v":"Quel N° ?"},null,null,null,null,null,null,"Points",{"$f":"SUM(D43:H43)","v":30}]
["Épreuve N°",null,{"$f":"'Info+Engagés'!B5","v":"Quel N° ?"},{"$f":"'Info+Engagés'!B42","v":"Nom du cheval 31"},null,{"$f":"'Info+Engagés'!G42","v":0},null,"% Final",{"$f":"AVERAGE(D42:H42)","v":10}]
["Piste  ",null,{"$f":"'Info+Engagés'!B6","v":"Quelle Piste ?"}]
["N° Départ BO",null,{"$f":"'Info+Engagés'!A42","v":31},null,null,null,null,"Classement",{"$f":"INDEX(Résultats!P:P,MATCH(C7,Résultats!A:A,0))","v":31}]
[]
["Imprimé le :",null,"Coéff .","Juge E","Juge H","Juge C","Juge M","Juge B","écart Max"]
[{"$f":"TODAY()","v":"2017-03-25"},null,null,{"$f":"IF(ISBLANK('Info+Engagés'!H2),\"\",('Info+Engagés'!H2))","v":""},{"$f":"IF(ISBLANK('Info+Engagés'!H3),\"\",('Info+Engagés'!H3))","v":""},{"$f":"IF(ISBLANK('Info+Engagés'!H4),\"\",('Info+Engagés'!H4))","v":"Nom du juge en C"},{"$f":"IF(ISBLANK('Info+Engagés'!H5),\"\",('Info+Engagés'!H5))","v":""},{"$f":"IF(ISBLANK('Info+Engagés'!H6),\"\",('Info+Engagés'!H6))","v":""}]
[{"$f":"NOW()","v":42819.607247569445}]
["Notation figures","Figure 1",1,null,null,30,null,null,{"$f":"MAX(D12:H12)-MIN(D12:H12)","v":0}]
[null,"Figure 2",1,null,null,null,null,null,0]
[null,"Figure 3",1,null,null,null,null,null,0]
[null,"Figure 4",1,null,null,null,null,null,0]
[null,"Figure 5",1,null,null,null,null,null,0]
[null,"Figure 6",1,null,null,null,null,null,0]
[null,"Figure 7",1,null,null,null,null,null,0]
[null,"Figure 8",1,null,null,null,null,null,0]
[null,"Figure 9",1,null,null,null,null,null,0]
[null,"Figure 10",1,null,null,null,null,null,0]
[null,"Figure 11",1,null,null,null,null,null,0]
[null,"Figure 12",1,null,null,null,null,null,0]
[null,"Figure 13",1,null,null,null,null,null,0]
[null,"Figure 14",1,null,null,null,null,null,0]
[null,"Figure 15",1,null,null,null,null,null,0]
[null,"Figure 16",1,null,null,null,null,null,0]
[null,"Figure 17",1,null,null,null,null,null,0]
[null,"Figure 18",1,null,null,null,null,null,0]
[null,"Figure 19",1,null,null,null,null,null,0]
[null,"Figure 20",1,null,null,null,null,null,0]
[null,"Figure 21",1,null,null,null,null,null,0]
[null,"Figure 22",1,null,null,null,null,null,0]
[" Ensemble","Ensemble 1",1,null,null,null,null,null,0]
[null,"Ensemble 2",1,null,null,null,null,null,0]
[null,"Ensemble 3",1,null,null,null,null,null,0]
[null,"Ensemble 4",2,null,null,null,null,null,0]
[null,"Ensemble 5",2,null,null,null,null,null,0]
[null,"Ensemble 6",1,null,null,null,null,null,0]
["Pénalité en points"]
["Erreure(s) de tracé "]
["% Total du juge",null,null,{"$f":"IF(ISBLANK('Info+Engagés'!H2),\"\",D43/3-D41)","v":""},{"$f":"IF(ISBLANK('Info+Engagés'!H3),\"\",E43/3-E41)","v":""},{"$f":"IF(ISBLANK('Info+Engagés'!H4),\"\",F43/3-F41)","v":10},{"$f":"IF(ISBLANK('Info+Engagés'!H5),\"\",G43/3-G41)","v":""},{"$f":"IF(ISBLANK('Info+Engagés'!H6),\"\",H43/3-H41)","v":""},{"$f":"MAX(D42:H42)-MIN(D42:H42)","v":0}]
["Soit en points",null,null,{"$f":"IF(ISBLANK('Info+Engagés'!H2),\"\",SUM(D12:D36,D39,D37*2,D38*2)-D40)","v":""},{"$f":"IF(ISBLANK('Info+Engagés'!H3),\"\",(SUM(E12:E36,E39,E37*2,E38*2)-E40))","v":""},{"$f":"IF(ISBLANK('Info+Engagés'!H4),\"\",(SUM(F12:F36,F39,F37*2,F38*2)-F40))","v":30},{"$f":"IF(ISBLANK('Info+Engagés'!H5),\"\",(SUM(G12:G36,G39,G37*2,G38*2)-G40))","v":""},{"$f":"IF(ISBLANK('Info+Engagés'!H6),\"\",(SUM(H12:H36,H39,H37*2,H38*2)-H40))","v":""}]
["                          Total maxi par juge = 300          1 point correspond à 0,333%              1% correspond en points à : 3                                                                  Les notes sont sur 10 et correspondent à la saisie informatique par l'opérateur des protocoles joints, Le total résulte de l'addition des points attribués après application du coefficient et soustraction des points de pénalité encourus après conversion en pourcentage sont déduit les pourcentages de pénalités encourus par suite d'erreurs de tracé pour obtenir le pourcentage par juge."]

{"sheet":"Cav32","index":33,"n_rows":44,"n_cols":9,"rows_kept":44,"cut":false,"hidden":false,"merged":[[0,0,1,2],[0,3,1,6],[0,7,1,8],[2,0,2,2],[2,3,3,4],[2,5,3,6],[3,0,3,2],[9,4,10,4],[4,0,4,1],[4,7,5,7],[4,8,5,8],[5,0,5,1],[6,0,7,1],[6,2,7,2],[6,7,7,7],[6,8,7,8],[4,3,7,4],[4,5,7,6],[40,0,40,2],[41,0,41,2],[42,0,42,2],[43,0,47,8],[9,6,10,6],[9,7,10,7],[10,0,10,1],[11,0,32,0],[33,0,38,0],[39,0,39,2],[9,5,10,5],[8,2,10,2],[8,8,10,8],[8,0,8,1],[9,0,9,1],[9,3,10,3]]}
[{"$f":"'Info+Engagés'!B3","v":"Quel Lieu ? (Département ?)"},null,null,{"$f":"'Info+Engagés'!B8","v":"Amateur 3 Grand Prix (D1)"},null,null,null,{"$f":"'Info+Engagés'!B2","v":"Quelle Date ?"}]
[]
["N° de concours",null,null,"Cheval",null,"Cavalier",null,"Note d’ensemble",{"$f":"SUM(D34:H36,D39:H39,D37*2,E37*2,F37*2,G37*2,H37*2,D38*2,E38*2,F38*2,G38*2,H38*2)","v":0}]
[{"$f":"'Info+Engagés'!B4","v":"Quel N° ?"},null,null,null,null,null,null,"Points",{"$f":"SUM(D43:H43)","v":29}]
["Épreuve N°",null,{"$f":"'Info+Engagés'!B5","v":"Quel N° ?"},{"$f":"'Info+Engagés'!B43","v":"Nom du cheval 32"},null,{"$f":"'Info+Engagés'!G43","v":0},null,"% Final",{"$f":"AVERAGE(D42:H42)","v":9.6666666666666661}]
["Piste  ",null,{"$f":"'Info+Engagés'!B6","v":"Quelle Piste ?"}]
["N° Départ BO",null,{"$f":"'Info+Engagés'!A43","v":32},null,null,null,null,"Classement",{"$f":"INDEX(Résultats!P:P,MATCH(C7,Résultats!A:A,0))","v":32}]
[]
["Imprimé le :",null,"Coéff .","Juge E","Juge H","Juge C","Juge M","Juge B","écart Max"]
[{"$f":"TODAY()","v":"2017-03-25"},null,null,{"$f":"IF(ISBLANK('Info+Engagés'!H2),\"\",('Info+Engagés'!H2))","v":""},{"$f":"IF(ISBLANK('Info+Engagés'!H3),\"\",('Info+Engagés'!H3))","v":""},{"$f":"IF(ISBLANK('Info+Engagés'!H4),\"\",('Info+Engagés'!H4))","v":"Nom du juge en C"},{"$f":"IF(ISBLANK('Info+Engagés'!H5),\"\",('Info+Engagés'!H5))","v":""},{"$f":"IF(ISBLANK('Info+Engagés'!H6),\"\",('Info+Engagés'!H6))","v":""}]
[{"$f":"NOW()","v":42819.607247569445}]
["Notation figures","Figure 1",1,null,null,29,null,null,{"$f":"MAX(D12:H12)-MIN(D12:H12)","v":0}]
[null,"Figure 2",1,null,null,null,null,null,0]
[null,"Figure 3",1,null,null,null,null,null,0]
[null,"Figure 4",1,null,null,null,null,null,0]
[null,"Figure 5",1,null,null,null,null,null,0]
[null,"Figure 6",1,null,null,null,null,null,0]
[null,"Figure 7",1,null,null,null,null,null,0]
[null,"Figure 8",1,null,null,null,null,null,0]
[null,"Figure 9",1,null,null,null,null,null,0]
[null,"Figure 10",1,null,null,null,null,null,0]
[null,"Figure 11",1,null,null,null,null,null,0]
[null,"Figure 12",1,null,null,null,null,null,0]
[null,"Figure 13",1,null,null,null,null,null,0]
[null,"Figure 14",1,null,null,null,null,null,0]
[null,"Figure 15",1,null,null,null,null,null,0]
[null,"Figure 16",1,null,null,null,null,null,0]
[null,"Figure 17",1,null,null,null,null,null,0]
[null,"Figure 18",1,null,null,null,null,null,0]
[null,"Figure 19",1,null,null,null,null,null,0]
[null,"Figure 20",1,null,null,null,null,null,0]
[null,"Figure 21",1,null,null,null,null,null,0]
[null,"Figure 22",1,null,null,null,null,null,0]
[" Ensemble","Ensemble 1",1,null,null,null,null,null,0]
[null,"Ensemble 2",1,null,null,null,null,null,0]
[null,"Ensemble 3",1,null,null,null,null,null,0]
[null,"Ensemble 4",2,null,null,null,null,null,0]
[null,"Ensemble 5",2,null,null,null,null,null,0]
[null,"Ensemble 6",1,null,null,null,null,null,0]
["Pénalité en points"]
["Erreure(s) de tracé "]
["% Total du juge",null,null,{"$f":"IF(ISBLANK('Info+Engagés'!H2),\"\",D43/3-D41)","v":""},{"$f":"IF(ISBLANK('Info+Engagés'!H3),\"\",E43/3-E41)","v":""},{"$f":"IF(ISBLANK('Info+Engagés'!H4),\"\",F43/3-F41)","v":9.6666666666666661},{"$f":"IF(ISBLANK('Info+Engagés'!H5),\"\",G43/3-G41)","v":""},{"$f":"IF(ISBLANK('Info+Engagés'!H6),\"\",H43/3-H41)","v":""},{"$f":"MAX(D42:H42)-MIN(D42:H42)","v":0}]
["Soit en points",null,null,{"$f":"IF(ISBLANK('Info+Engagés'!H2),\"\",SUM(D12:D36,D39,D37*2,D38*2)-D40)","v":""},{"$f":"IF(ISBLANK('Info+Engagés'!H3),\"\",(SUM(E12:E36,E39,E37*2,E38*2)-E40))","v":""},{"$f":"IF(ISBLANK('Info+Engagés'!H4),\"\",(SUM(F12:F36,F39,F37*2,F38*2)-F40))","v":29},{"$f":"IF(ISBLANK('Info+Engagés'!H5),\"\",(SUM(G12:G36,G39,G37*2,G38*2)-G40))","v":""},{"$f":"IF(ISBLANK('Info+Engagés'!H6),\"\",(SUM(H12:H36,H39,H37*2,H38*2)-H40))","v":""}]
["                          Total maxi par juge = 300          1 point correspond à 0,333%              1% correspond en points à : 3                                                                  Les notes sont sur 10 et correspondent à la saisie informatique par l'opérateur des protocoles joints, Le total résulte de l'addition des points attribués après application du coefficient et soustraction des points de pénalité encourus après conversion en pourcentage sont déduit les pourcentages de pénalités encourus par suite d'erreurs de tracé pour obtenir le pourcentage par juge."]

{"sheet":"Cav33","index":34,"n_rows":44,"n_cols":9,"rows_kept":44,"cut":false,"hidden":false,"merged":[[0,0,1,2],[0,3,1,6],[0,7,1,8],[2,0,2,2],[2,3,3,4],[2,5,3,6],[3,0,3,2],[9,4,10,4],[4,0,4,1],[4,7,5,7],[4,8,5,8],[5,0,5,1],[6,0,7,1],[6,2,7,2],[6,7,7,7],[6,8,7,8],[4,3,7,4],[4,5,7,6],[40,0,40,2],[41,0,41,2],[42,0,42,2],[43,0,47,8],[9,6,10,6],[9,7,10,7],[10,0,10,1],[11,0,32,0],[33,0,38,0],[39,0,39,2],[9,5,10,5],[8,2,10,2],[8,8,10,8],[8,0,8,1],[9,0,9,1],[9,3,10,3]]}
[{"$f":"'Info+Engagés'!B3","v":"Quel Lieu ? (Département ?)"},null,null,{"$f":"'Info+Engagés'!B8","v":"Amateur 3 Grand Prix (D1)"},null,null,null,{"$f":"'Info+Engagés'!B2","v":"Quelle Date ?"}]
[]
["N° de concours",null,null,"Cheval",null,"Cavalier",null,"Note d’ensemble",{"$f":"SUM(D34:H36,D39:H39,D37*2,E37*2,F37*2,G37*2,H37*2,D38*2,E38*2,F38*2,G38*2,H38*2)","v":0}]
[{"$f":"'Info+Engagés'!B4","v":"Quel N° ?"},null,null,null,null,null,null,"Points",{"$f":"SUM(D43:H43)","v":28}]
["Épreuve N°",null,{"$f":"'Info+Engagés'!B5","v":"Quel N° ?"},{"$f":"'Info+Engagés'!B44","v":"Nom du cheval 33"},null,{"$f":"'Info+Engagés'!G44","v":0},null,"% Final",{"$f":"AVERAGE(D42:H42)","v":9.3333333333333339}]
["Piste  ",null,{"$f":"'Info+Engagés'!B6","v":"Quelle Piste ?"}]
["N° Départ BO",null,{"$f":"'Info+Engagés'!A44","v":33},null,null,null,null,"Classement",{"$f":"INDEX(Résultats!P:P,MATCH(C7,Résultats!A:A,0))","v":33}]
[]
["Imprimé le :",null,"Coéff .","Juge E","Juge H","Juge C","Juge M","Juge B","écart Max"]
[{"$f":"TODAY()","v":"2017-03-25"},null,null,{"$f":"IF(ISBLANK('Info+Engagés'!H2),\"\",('Info+Engagés'!H2))","v":""},{"$f":"IF(ISBLANK('Info+Engagés'!H3),\"\",('Info+Engagés'!H3))","v":""},{"$f":"IF(ISBLANK('Info+Engagés'!H4),\"\",('Info+Engagés'!H4))","v":"Nom du juge en C"},{"$f":"IF(ISBLANK('Info+Engagés'!H5),\"\",('Info+Engagés'!H5))","v":""},{"$f":"IF(ISBLANK('Info+Engagés'!H6),\"\",('Info+Engagés'!H6))","v":""}]
[{"$f":"NOW()","v":42819.607247569445}]
["Notation figures","Figure 1",1,null,null,28,null,null,{"$f":"MAX(D12:H12)-MIN(D12:H12)","v":0}]
[null,"Figure 2",1,null,null,null,null,null,0]
[null,"Figure 3",1,null,null,null,null,null,0]
[null,"Figure 4",1,null,null,null,null,null,0]
[null,"Figure 5",1,null,null,null,null,null,0]
[null,"Figure 6",1,null,null,null,null,null,0]
[null,"Figure 7",1,null,null,null,null,null,0]
[null,"Figure 8",1,null,null,null,null,null,0]
[null,"Figure 9",1,null,null,null,null,null,0]
[null,"Figure 10",1,null,null,null,null,null,0]
[null,"Figure 11",1,null,null,null,null,null,0]
[null,"Figure 12",1,null,null,null,null,null,0]
[null,"Figure 13",1,null,null,null,null,null,0]
[null,"Figure 14",1,null,null,null,null,null,0]
[null,"Figure 15",1,null,null,null,null,null,0]
[null,"Figure 16",1,null,null,null,null,null,0]
[null,"Figure 17",1,null,null,null,null,null,0]
[null,"Figure 18",1,null,null,null,null,null,0]
[null,"Figure 19",1,null,null,null,null,null,0]
[null,"Figure 20",1,null,null,null,null,null,0]
[null,"Figure 21",1,null,null,null,null,null,0]
[null,"Figure 22",1,null,null,null,null,null,0]
[" Ensemble","Ensemble 1",1,null,null,null,null,null,0]
[null,"Ensemble 2",1,null,null,null,null,null,0]
[null,"Ensemble 3",1,null,null,null,null,null,0]
[null,"Ensemble 4",2,null,null,null,null,null,0]
[null,"Ensemble 5",2,null,null,null,null,null,0]
[null,"Ensemble 6",1,null,null,null,null,null,0]
["Pénalité en points"]
["Erreure(s) de tracé "]
["% Total du juge",null,null,{"$f":"IF(ISBLANK('Info+Engagés'!H2),\"\",D43/3-D41)","v":""},{"$f":"IF(ISBLANK('Info+Engagés'!H3),\"\",E43/3-E41)","v":""},{"$f":"IF(ISBLANK('Info+Engagés'!H4),\"\",F43/3-F41)","v":9.3333333333333339},{"$f":"IF(ISBLANK('Info+Engagés'!H5),\"\",G43/3-G41)","v":""},{"$f":"IF(ISBLANK('Info+Engagés'!H6),\"\",H43/3-H41)","v":""},{"$f":"MAX(D42:H42)-MIN(D42:H42)","v":0}]
["Soit en points",null,null,{"$f":"IF(ISBLANK('Info+Engagés'!H2),\"\",SUM(D12:D36,D39,D37*2,D38*2)-D40)","v":""},{"$f":"IF(ISBLANK('Info+Engagés'!H3),\"\",(SUM(E12:E36,E39,E37*2,E38*2)-E40))","v":""},{"$f":"IF(ISBLANK('Info+Engagés'!H4),\"\",(SUM(F12:F36,F39,F37*2,F38*2)-F40))","v":28},{"$f":"IF(ISBLANK('Info+Engagés'!H5),\"\",(SUM(G12:G36,G39,G37*2,G38*2)-G40))","v":""},{"$f":"IF(ISBLANK('Info+Engagés'!H6),\"\",(SUM(H12:H36,H39,H37*2,H38*2)-H40))","v":""}]
["                          Total maxi par juge = 300          1 point correspond à 0,333%              1% correspond en points à : 3                                                                  Les notes sont sur 10 et correspondent à la saisie informatique par l'opérateur des protocoles joints, Le total résulte de l'addition des points attribués après application du coefficient et soustraction des points de pénalité encourus après conversion en pourcentage sont déduit les pourcentages de pénalités encourus par suite d'erreurs de tracé pour obtenir le pourcentage par juge."]

{"sheet":"Cav34","index":35,"n_rows":44,"n_cols":9,"rows_kept":44,"cut":false,"hidden":false,"merged":[[0,0,1,2],[0,3,1,6],[0,7,1,8],[2,0,2,2],[2,3,3,4],[2,5,3,6],[3,0,3,2],[9,4,10,4],[4,0,4,1],[4,7,5,7],[4,8,5,8],[5,0,5,1],[6,0,7,1],[6,2,7,2],[6,7,7,7],[6,8,7,8],[4,3,7,4],[4,5,7,6],[40,0,40,2],[41,0,41,2],[42,0,42,2],[43,0,47,8],[9,6,10,6],[9,7,10,7],[10,0,10,1],[11,0,32,0],[33,0,38,0],[39,0,39,2],[9,5,10,5],[8,2,10,2],[8,8,10,8],[8,0,8,1],[9,0,9,1],[9,3,10,3]]}
[{"$f":"'Info+Engagés'!B3","v":"Quel Lieu ? (Département ?)"},null,null,{"$f":"'Info+Engagés'!B8","v":"Amateur 3 Grand Prix (D1)"},null,null,null,{"$f":"'Info+Engagés'!B2","v":"Quelle Date ?"}]
[]
["N° de concours",null,null,"Cheval",null,"Cavalier",null,"Note d’ensemble",{"$f":"SUM(D34:H36,D39:H39,D37*2,E37*2,F37*2,G37*2,H37*2,D38*2,E38*2,F38*2,G38*2,H38*2)","v":0}]
[{"$f":"'Info+Engagés'!B4","v":"Quel N° ?"},null,null,null,null,null,null,"Points",{"$f":"SUM(D43:H43)","v":27}]
["Épreuve N°",null,{"$f":"'Info+Engagés'!B5","v":"Quel N° ?"},{"$f":"'Info+Engagés'!B45","v":"Nom du cheval 34"},null,{"$f":"'Info+Engagés'!G45","v":0},null,"% Final",{"$f":"AVERAGE(D42:H42)","v":9}]
["Piste  ",null,{"$f":"'Info+Engagés'!B6","v":"Quelle Piste ?"}]
["N° Départ BO",null,{"$f":"'Info+Engagés'!A45","v":34},null,null,null,null,"Classement",{"$f":"INDEX(Résultats!P:P,MATCH(C7,Résultats!A:A,0))","v":34}]
[]
["Imprimé le :",null,"Coéff .","Juge E","Juge H","Juge C","Juge M","Juge B","écart Max"]
[{"$f":"TODAY()","v":"2017-03-25"},null,null,{"$f":"IF(ISBLANK('Info+Engagés'!H2),\"\",('Info+Engagés'!H2))","v":""},{"$f":"IF(ISBLANK('Info+Engagés'!H3),\"\",('Info+Engagés'!H3))","v":""},{"$f":"IF(ISBLANK('Info+Engagés'!H4),\"\",('Info+Engagés'!H4))","v":"Nom du juge en C"},{"$f":"IF(ISBLANK('Info+Engagés'!H5),\"\",('Info+Engagés'!H5))","v":""},{"$f":"IF(ISBLANK('Info+Engagés'!H6),\"\",('Info+Engagés'!H6))","v":""}]
[{"$f":"NOW()","v":42819.607247569445}]
["Notation figures","Figure 1",1,null,null,27,null,null,{"$f":"MAX(D12:H12)-MIN(D12:H12)","v":0}]
[null,"Figure 2",1,null,null,null,null,null,0]
[null,"Figure 3",1,null,null,null,null,null,0]
[null,"Figure 4",1,null,null,null,null,null,0]
[null,"Figure 5",1,null,null,null,null,null,0]
[null,"Figure 6",1,null,null,null,null,null,0]
[null,"Figure 7",1,null,null,null,null,null,0]
[null,"Figure 8",1,null,null,null,null,null,0]
[null,"Figure 9",1,null,null,null,null,null,0]
[null,"Figure 10",1,null,null,null,null,null,0]
[null,"Figure 11",1,null,null,null,null,null,0]
[null,"Figure 12",1,null,null,null,null,null,0]
[null,"Figure 13",1,null,null,null,null,null,0]
[null,"Figure 14",1,null,null,null,null,null,0]
[null,"Figure 15",1,null,null,null,null,null,0]
[null,"Figure 16",1,null,null,null,null,null,0]
[null,"Figure 17",1,null,null,null,null,null,0]
[null,"Figure 18",1,null,null,null,null,null,0]
[null,"Figure 19",1,null,null,null,null,null,0]
[null,"Figure 20",1,null,null,null,null,null,0]
[null,"Figure 21",1,null,null,null,null,null,0]
[null,"Figure 22",1,null,null,null,null,null,0]
[" Ensemble","Ensemble 1",1,null,null,null,null,null,0]
[null,"Ensemble 2",1,null,null,null,null,null,0]
[null,"Ensemble 3",1,null,null,null,null,null,0]
[null,"Ensemble 4",2,null,null,null,null,null,0]
[null,"Ensemble 5",2,null,null,null,null,null,0]
[null,"Ensemble 6",1,null,null,null,null,null,0]
["Pénalité en points"]
["Erreure(s) de tracé "]
["% Total du juge",null,null,{"$f":"IF(ISBLANK('Info+Engagés'!H2),\"\",D43/3-D41)","v":""},{"$f":"IF(ISBLANK('Info+Engagés'!H3),\"\",E43/3-E41)","v":""},{"$f":"IF(ISBLANK('Info+Engagés'!H4),\"\",F43/3-F41)","v":9},{"$f":"IF(ISBLANK('Info+Engagés'!H5),\"\",G43/3-G41)","v":""},{"$f":"IF(ISBLANK('Info+Engagés'!H6),\"\",H43/3-H41)","v":""},{"$f":"MAX(D42:H42)-MIN(D42:H42)","v":0}]
["Soit en points",null,null,{"$f":"IF(ISBLANK('Info+Engagés'!H2),\"\",SUM(D12:D36,D39,D37*2,D38*2)-D40)","v":""},{"$f":"IF(ISBLANK('Info+Engagés'!H3),\"\",(SUM(E12:E36,E39,E37*2,E38*2)-E40))","v":""},{"$f":"IF(ISBLANK('Info+Engagés'!H4),\"\",(SUM(F12:F36,F39,F37*2,F38*2)-F40))","v":27},{"$f":"IF(ISBLANK('Info+Engagés'!H5),\"\",(SUM(G12:G36,G39,G37*2,G38*2)-G40))","v":""},{"$f":"IF(ISBLANK('Info+Engagés'!H6),\"\",(SUM(H12:H36,H39,H37*2,H38*2)-H40))","v":""}]
["                          Total maxi par juge = 300          1 point correspond à 0,333%              1% correspond en points à : 3                                                                  Les notes sont sur 10 et correspondent à la saisie informatique par l'opérateur des protocoles joints, Le total résulte de l'addition des points attribués après application du coefficient et soustraction des points de pénalité encourus après conversion en pourcentage sont déduit les pourcentages de pénalités encourus par suite d'erreurs de tracé pour obtenir le pourcentage par juge."]

{"sheet":"Cav35","index":36,"n_rows":44,"n_cols":9,"rows_kept":44,"cut":false,"hidden":false,"merged":[[0,0,1,2],[0,3,1,6],[0,7,1,8],[2,0,2,2],[2,3,3,4],[2,5,3,6],[3,0,3,2],[9,4,10,4],[4,0,4,1],[4,7,5,7],[4,8,5,8],[5,0,5,1],[6,0,7,1],[6,2,7,2],[6,7,7,7],[6,8,7,8],[4,3,7,4],[4,5,7,6],[40,0,40,2],[41,0,41,2],[42,0,42,2],[43,0,47,8],[9,6,10,6],[9,7,10,7],[10,0,10,1],[11,0,32,0],[33,0,38,0],[39,0,39,2],[9,5,10,5],[8,2,10,2],[8,8,10,8],[8,0,8,1],[9,0,9,1],[9,3,10,3]]}
[{"$f":"'Info+Engagés'!B3","v":"Quel Lieu ? (Département ?)"},null,null,{"$f":"'Info+Engagés'!B8","v":"Amateur 3 Grand Prix (D1)"},null,null,null,{"$f":"'Info+Engagés'!B2","v":"Quelle Date ?"}]
[]
["N° de concours",null,null,"Cheval",null,"Cavalier",null,"Note d’ensemble",{"$f":"SUM(D34:H36,D39:H39,D37*2,E37*2,F37*2,G37*2,H37*2,D38*2,E38*2,F38*2,G38*2,H38*2)","v":0}]
[{"$f":"'Info+Engagés'!B4","v":"Quel N° ?"},null,null,null,null,null,null,"Points",{"$f":"SUM(D43:H43)","v":26}]
["Épreuve N°",null,{"$f":"'Info+Engagés'!B5","v":"Quel N° ?"},{"$f":"'Info+Engagés'!B46","v":"Nom du cheval 35"},null,{"$f":"'Info+Engagés'!G46","v":0},null,"% Final",{"$f":"AVERAGE(D42:H42)","v":8.6666666666666661}]
["Piste  ",null,{"$f":"'Info+Engagés'!B6","v":"Quelle Piste ?"}]
["N° Départ BO",null,{"$f":"'Info+Engagés'!A46","v":35},null,null,null,null,"Classement",{"$f":"INDEX(Résultats!P:P,MATCH(C7,Résultats!A:A,0))","v":35}]
[]
["Imprimé le :",null,"Coéff .","Juge E","Juge H","Juge C","Juge M","Juge B","écart Max"]
[{"$f":"TODAY()","v":"2017-03-25"},null,null,{"$f":"IF(ISBLANK('Info+Engagés'!H2),\"\",('Info+Engagés'!H2))","v":""},{"$f":"IF(ISBLANK('Info+Engagés'!H3),\"\",('Info+Engagés'!H3))","v":""},{"$f":"IF(ISBLANK('Info+Engagés'!H4),\"\",('Info+Engagés'!H4))","v":"Nom du juge en C"},{"$f":"IF(ISBLANK('Info+Engagés'!H5),\"\",('Info+Engagés'!H5))","v":""},{"$f":"IF(ISBLANK('Info+Engagés'!H6),\"\",('Info+Engagés'!H6))","v":""}]
[{"$f":"NOW()","v":42819.607247569445}]
["Notation figures","Figure 1",1,null,null,26,null,null,{"$f":"MAX(D12:H12)-MIN(D12:H12)","v":0}]
[null,"Figure 2",1,null,null,null,null,null,0]
[null,"Figure 3",1,null,null,null,null,null,0]
[null,"Figure 4",1,null,null,null,null,null,0]
[null,"Figure 5",1,null,null,null,null,null,0]
[null,"Figure 6",1,null,null,null,null,null,0]
[null,"Figure 7",1,null,null,null,null,null,0]
[null,"Figure 8",1,null,null,null,null,null,0]
[null,"Figure 9",1,null,null,null,null,null,0]
[null,"Figure 10",1,null,null,null,null,null,0]
[null,"Figure 11",1,null,null,null,null,null,0]
[null,"Figure 12",1,null,null,null,null,null,0]
[null,"Figure 13",1,null,null,null,null,null,0]
[null,"Figure 14",1,null,null,null,null,null,0]
[null,"Figure 15",1,null,null,null,null,null,0]
[null,"Figure 16",1,null,null,null,null,null,0]
[null,"Figure 17",1,null,null,null,null,null,0]
[null,"Figure 18",1,null,null,null,null,null,0]
[null,"Figure 19",1,null,null,null,null,null,0]
[null,"Figure 20",1,null,null,null,null,null,0]
[null,"Figure 21",1,null,null,null,null,null,0]
[null,"Figure 22",1,null,null,null,null,null,0]
[" Ensemble","Ensemble 1",1,null,null,null,null,null,0]
[null,"Ensemble 2",1,null,null,null,null,null,0]
[null,"Ensemble 3",1,null,null,null,null,null,0]
[null,"Ensemble 4",2,null,null,null,null,null,0]
[null,"Ensemble 5",2,null,null,null,null,null,0]
[null,"Ensemble 6",1,null,null,null,null,null,0]
["Pénalité en points"]
["Erreure(s) de tracé "]
["% Total du juge",null,null,{"$f":"IF(ISBLANK('Info+Engagés'!H2),\"\",D43/3-D41)","v":""},{"$f":"IF(ISBLANK('Info+Engagés'!H3),\"\",E43/3-E41)","v":""},{"$f":"IF(ISBLANK('Info+Engagés'!H4),\"\",F43/3-F41)","v":8.6666666666666661},{"$f":"IF(ISBLANK('Info+Engagés'!H5),\"\",G43/3-G41)","v":""},{"$f":"IF(ISBLANK('Info+Engagés'!H6),\"\",H43/3-H41)","v":""},{"$f":"MAX(D42:H42)-MIN(D42:H42)","v":0}]
["Soit en points",null,null,{"$f":"IF(ISBLANK('Info+Engagés'!H2),\"\",SUM(D12:D36,D39,D37*2,D38*2)-D40)","v":""},{"$f":"IF(ISBLANK('Info+Engagés'!H3),\"\",(SUM(E12:E36,E39,E37*2,E38*2)-E40))","v":""},{"$f":"IF(ISBLANK('Info+Engagés'!H4),\"\",(SUM(F12:F36,F39,F37*2,F38*2)-F40))","v":26},{"$f":"IF(ISBLANK('Info+Engagés'!H5),\"\",(SUM(G12:G36,G39,G37*2,G38*2)-G40))","v":""},{"$f":"IF(ISBLANK('Info+Engagés'!H6),\"\",(SUM(H12:H36,H39,H37*2,H38*2)-H40))","v":""}]
["                          Total maxi par juge = 300          1 point correspond à 0,333%              1% correspond en points à : 3                                                                  Les notes sont sur 10 et correspondent à la saisie informatique par l'opérateur des protocoles joints, Le total résulte de l'addition des points attribués après application du coefficient et soustraction des points de pénalité encourus après conversion en pourcentage sont déduit les pourcentages de pénalités encourus par suite d'erreurs de tracé pour obtenir le pourcentage par juge."]

{"sheet":"Cav36","index":37,"n_rows":44,"n_cols":9,"rows_kept":44,"cut":false,"hidden":false,"merged":[[0,0,1,2],[0,3,1,6],[0,7,1,8],[2,0,2,2],[2,3,3,4],[2,5,3,6],[3,0,3,2],[9,4,10,4],[4,0,4,1],[4,7,5,7],[4,8,5,8],[5,0,5,1],[6,0,7,1],[6,2,7,2],[6,7,7,7],[6,8,7,8],[4,3,7,4],[4,5,7,6],[40,0,40,2],[41,0,41,2],[42,0,42,2],[43,0,47,8],[9,6,10,6],[9,7,10,7],[10,0,10,1],[11,0,32,0],[33,0,38,0],[39,0,39,2],[9,5,10,5],[8,2,10,2],[8,8,10,8],[8,0,8,1],[9,0,9,1],[9,3,10,3]]}
[{"$f":"'Info+Engagés'!B3","v":"Quel Lieu ? (Département ?)"},null,null,{"$f":"'Info+Engagés'!B8","v":"Amateur 3 Grand Prix (D1)"},null,null,null,{"$f":"'Info+Engagés'!B2","v":"Quelle Date ?"}]
[]
["N° de concours",null,null,"Cheval",null,"Cavalier",null,"Note d’ensemble",{"$f":"SUM(D34:H36,D39:H39,D37*2,E37*2,F37*2,G37*2,H37*2,D38*2,E38*2,F38*2,G38*2,H38*2)","v":0}]
[{"$f":"'Info+Engagés'!B4","v":"Quel N° ?"},null,null,null,null,null,null,"Points",{"$f":"SUM(D43:H43)","v":25}]
["Épreuve N°",null,{"$f":"'Info+Engagés'!B5","v":"Quel N° ?"},{"$f":"'Info+Engagés'!B47","v":"Nom du cheval 36"},null,{"$f":"'Info+Engagés'!G47","v":0},null,"% Final",{"$f":"AVERAGE(D42:H42)","v":8.3333333333333339}]
["Piste  ",null,{"$f":"'Info+Engagés'!B6","v":"Quelle Piste ?"}]
["N° Départ BO",null,{"$f":"'Info+Engagés'!A47","v":36},null,null,null,null,"Classement",{"$f":"INDEX(Résultats!P:P,MATCH(C7,Résultats!A:A,0))","v":36}]
[]
["Imprimé le :",null,"Coéff .","Juge E","Juge H","Juge C","Juge M","Juge B","écart Max"]
[{"$f":"TODAY()","v":"2017-03-25"},null,null,{"$f":"IF(ISBLANK('Info+Engagés'!H2),\"\",('Info+Engagés'!H2))","v":""},{"$f":"IF(ISBLANK('Info+Engagés'!H3),\"\",('Info+Engagés'!H3))","v":""},{"$f":"IF(ISBLANK('Info+Engagés'!H4),\"\",('Info+Engagés'!H4))","v":"Nom du juge en C"},{"$f":"IF(ISBLANK('Info+Engagés'!H5),\"\",('Info+Engagés'!H5))","v":""},{"$f":"IF(ISBLANK('Info+Engagés'!H6),\"\",('Info+Engagés'!H6))","v":""}]
[{"$f":"NOW()","v":42819.607247569445}]
["Notation figures","Figure 1",1,null,null,25,null,null,{"$f":"MAX(D12:H12)-MIN(D12:H12)","v":0}]
[null,"Figure 2",1,null,null,null,null,null,0]
[null,"Figure 3",1,null,null,null,null,null,0]
[null,"Figure 4",1,null,null,null,null,null,0]
[null,"Figure 5",1,null,null,null,null,null,0]
[null,"Figure 6",1,null,null,null,null,null,0]
[null,"Figure 7",1,null,null,null,null,null,0]
[null,"Figure 8",1,null,null,null,null,null,0]
[null,"Figure 9",1,null,null,null,null,null,0]
[null,"Figure 10",1,null,null,null,null,null,0]
[null,"Figure 11",1,null,null,null,null,null,0]
[null,"Figure 12",1,null,null,null,null,null,0]
[null,"Figure 13",1,null,null,null,null,null,0]
[null,"Figure 14",1,null,null,null,null,null,0]
[null,"Figure 15",1,null,null,null,null,null,0]
[null,"Figure 16",1,null,null,null,null,null,0]
[null,"Figure 17",1,null,null,null,null,null,0]
[null,"Figure 18",1,null,null,null,null,null,0]
[null,"Figure 19",1,null,null,null,null,null,0]
[null,"Figure 20",1,null,null,null,null,null,0]
[null,"Figure 21",1,null,null,null,null,null,0]
[null,"Figure 22",1,null,null,null,null,null,0]
[" Ensemble","Ensemble 1",1,null,null,null,null,null,0]
[null,"Ensemble 2",1,null,null,null,null,null,0]
[null,"Ensemble 3",1,null,null,null,null,null,0]
[null,"Ensemble 4",2,null,null,null,null,null,0]
[null,"Ensemble 5",2,null,null,null,null,null,0]
[null,"Ensemble 6",1,null,null,null,null,null,0]
["Pénalité en points"]
["Erreure(s) de tracé "]
["% Total du juge",null,null,{"$f":"IF(ISBLANK('Info+Engagés'!H2),\"\",D43/3-D41)","v":""},{"$f":"IF(ISBLANK('Info+Engagés'!H3),\"\",E43/3-E41)","v":""},{"$f":"IF(ISBLANK('Info+Engagés'!H4),\"\",F43/3-F41)","v":8.3333333333333339},{"$f":"IF(ISBLANK('Info+Engagés'!H5),\"\",G43/3-G41)","v":""},{"$f":"IF(ISBLANK('Info+Engagés'!H6),\"\",H43/3-H41)","v":""},{"$f":"MAX(D42:H42)-MIN(D42:H42)","v":0}]
["Soit en points",null,null,{"$f":"IF(ISBLANK('Info+Engagés'!H2),\"\",SUM(D12:D36,D39,D37*2,D38*2)-D40)","v":""},{"$f":"IF(ISBLANK('Info+Engagés'!H3),\"\",(SUM(E12:E36,E39,E37*2,E38*2)-E40))","v":""},{"$f":"IF(ISBLANK('Info+Engagés'!H4),\"\",(SUM(F12:F36,F39,F37*2,F38*2)-F40))","v":25},{"$f":"IF(ISBLANK('Info+Engagés'!H5),\"\",(SUM(G12:G36,G39,G37*2,G38*2)-G40))","v":""},{"$f":"IF(ISBLANK('Info+Engagés'!H6),\"\",(SUM(H12:H36,H39,H37*2,H38*2)-H40))","v":""}]
["                          Total maxi par juge = 300          1 point correspond à 0,333%              1% correspond en points à : 3                                                                  Les notes sont sur 10 et correspondent à la saisie informatique par l'opérateur des protocoles joints, Le total résulte de l'addition des points attribués après application du coefficient et soustraction des points de pénalité encourus après conversion en pourcentage sont déduit les pourcentages de pénalités encourus par suite d'erreurs de tracé pour obtenir le pourcentage par juge."]

{"sheet":"Cav37","index":38,"n_rows":44,"n_cols":9,"rows_kept":44,"cut":false,"hidden":false,"merged":[[0,0,1,2],[0,3,1,6],[0,7,1,8],[2,0,2,2],[2,3,3,4],[2,5,3,6],[3,0,3,2],[9,4,10,4],[4,0,4,1],[4,7,5,7],[4,8,5,8],[5,0,5,1],[6,0,7,1],[6,2,7,2],[6,7,7,7],[6,8,7,8],[4,3,7,4],[4,5,7,6],[40,0,40,2],[41,0,41,2],[42,0,42,2],[43,0,47,8],[9,6,10,6],[9,7,10,7],[10,0,10,1],[11,0,32,0],[33,0,38,0],[39,0,39,2],[9,5,10,5],[8,2,10,2],[8,8,10,8],[8,0,8,1],[9,0,9,1],[9,3,10,3]]}
[{"$f":"'Info+Engagés'!B3","v":"Quel Lieu ? (Département ?)"},null,null,{"$f":"'Info+Engagés'!B8","v":"Amateur 3 Grand Prix (D1)"},null,null,null,{"$f":"'Info+Engagés'!B2","v":"Quelle Date ?"}]
[]
["N° de concours",null,null,"Cheval",null,"Cavalier",null,"Note d’ensemble",{"$f":"SUM(D34:H36,D39:H39,D37*2,E37*2,F37*2,G37*2,H37*2,D38*2,E38*2,F38*2,G38*2,H38*2)","v":0}]
[{"$f":"'Info+Engagés'!B4","v":"Quel N° ?"},null,null,null,null,null,null,"Points",{"$f":"SUM(D43:H43)","v":24}]
["Épreuve N°",null,{"$f":"'Info+Engagés'!B5","v":"Quel N° ?"},{"$f":"'Info+Engagés'!B48","v":"Nom du cheval 37"},null,{"$f":"'Info+Engagés'!G48","v":0},null,"% Final",{"$f":"AVERAGE(D42:H42)","v":8}]
["Piste  ",null,{"$f":"'Info+Engagés'!B6","v":"Quelle Piste ?"}]
["N° Départ BO",null,{"$f":"'Info+Engagés'!A48","v":37},null,null,null,null,"Classement",{"$f":"INDEX(Résultats!P:P,MATCH(C7,Résultats!A:A,0))","v":37}]
[]
["Imprimé le :",null,"Coéff .","Juge E","Juge H","Juge C","Juge M","Juge B","écart Max"]
[{"$f":"TODAY()","v":"2017-03-25"},null,null,{"$f":"IF(ISBLANK('Info+Engagés'!H2),\"\",('Info+Engagés'!H2))","v":""},{"$f":"IF(ISBLANK('Info+Engagés'!H3),\"\",('Info+Engagés'!H3))","v":""},{"$f":"IF(ISBLANK('Info+Engagés'!H4),\"\",('Info+Engagés'!H4))","v":"Nom du juge en C"},{"$f":"IF(ISBLANK('Info+Engagés'!H5),\"\",('Info+Engagés'!H5))","v":""},{"$f":"IF(ISBLANK('Info+Engagés'!H6),\"\",('Info+Engagés'!H6))","v":""}]
[{"$f":"NOW()","v":42819.607247569445}]
["Notation figures","Figure 1",1,null,null,24,null,null,{"$f":"MAX(D12:H12)-MIN(D12:H12)","v":0}]
[null,"Figure 2",1,null,null,null,null,null,0]
[null,"Figure 3",1,null,null,null,null,null,0]
[null,"Figure 4",1,null,null,null,null,null,0]
[null,"Figure 5",1,null,null,null,null,null,0]
[null,"Figure 6",1,null,null,null,null,null,0]
[null,"Figure 7",1,null,null,null,null,null,0]
[null,"Figure 8",1,null,null,null,null,null,0]
[null,"Figure 9",1,null,null,null,null,null,0]
[null,"Figure 10",1,null,null,null,null,null,0]
[null,"Figure 11",1,null,null,null,null,null,0]
[null,"Figure 12",1,null,null,null,null,null,0]
[null,"Figure 13",1,null,null,null,null,null,0]
[null,"Figure 14",1,null,null,null,null,null,0]
[null,"Figure 15",1,null,null,null,null,null,0]
[null,"Figure 16",1,null,null,null,null,null,0]
[null,"Figure 17",1,null,null,null,null,null,0]
[null,"Figure 18",1,null,null,null,null,null,0]
[null,"Figure 19",1,null,null,null,null,null,0]
[null,"Figure 20",1,null,null,null,null,null,0]
[null,"Figure 21",1,null,null,null,null,null,0]
[null,"Figure 22",1,null,null,null,null,null,0]
[" Ensemble","Ensemble 1",1,null,null,null,null,null,0]
[null,"Ensemble 2",1,null,null,null,null,null,0]
[null,"Ensemble 3",1,null,null,null,null,null,0]
[null,"Ensemble 4",2,null,null,null,null,null,0]
[null,"Ensemble 5",2,null,null,null,null,null,0]
[null,"Ensemble 6",1,null,null,null,null,null,0]
["Pénalité en points"]
["Erreure(s) de tracé "]
["% Total du juge",null,null,{"$f":"IF(ISBLANK('Info+Engagés'!H2),\"\",D43/3-D41)","v":""},{"$f":"IF(ISBLANK('Info+Engagés'!H3),\"\",E43/3-E41)","v":""},{"$f":"IF(ISBLANK('Info+Engagés'!H4),\"\",F43/3-F41)","v":8},{"$f":"IF(ISBLANK('Info+Engagés'!H5),\"\",G43/3-G41)","v":""},{"$f":"IF(ISBLANK('Info+Engagés'!H6),\"\",H43/3-H41)","v":""},{"$f":"MAX(D42:H42)-MIN(D42:H42)","v":0}]
["Soit en points",null,null,{"$f":"IF(ISBLANK('Info+Engagés'!H2),\"\",SUM(D12:D36,D39,D37*2,D38*2)-D40)","v":""},{"$f":"IF(ISBLANK('Info+Engagés'!H3),\"\",(SUM(E12:E36,E39,E37*2,E38*2)-E40))","v":""},{"$f":"IF(ISBLANK('Info+Engagés'!H4),\"\",(SUM(F12:F36,F39,F37*2,F38*2)-F40))","v":24},{"$f":"IF(ISBLANK('Info+Engagés'!H5),\"\",(SUM(G12:G36,G39,G37*2,G38*2)-G40))","v":""},{"$f":"IF(ISBLANK('Info+Engagés'!H6),\"\",(SUM(H12:H36,H39,H37*2,H38*2)-H40))","v":""}]
["                          Total maxi par juge = 300          1 point correspond à 0,333%              1% correspond en points à : 3                                                                  Les notes sont sur 10 et correspondent à la saisie informatique par l'opérateur des protocoles joints, Le total résulte de l'addition des points attribués après application du coefficient et soustraction des points de pénalité encourus après conversion en pourcentage sont déduit les pourcentages de pénalités encourus par suite d'erreurs de tracé pour obtenir le pourcentage par juge."]

{"sheet":"Cav38","index":39,"n_rows":44,"n_cols":9,"rows_kept":44,"cut":false,"hidden":false,"merged":[[0,0,1,2],[0,3,1,6],[0,7,1,8],[2,0,2,2],[2,3,3,4],[2,5,3,6],[3,0,3,2],[9,4,10,4],[4,0,4,1],[4,7,5,7],[4,8,5,8],[5,0,5,1],[6,0,7,1],[6,2,7,2],[6,7,7,7],[6,8,7,8],[4,3,7,4],[4,5,7,6],[40,0,40,2],[41,0,41,2],[42,0,42,2],[43,0,47,8],[9,6,10,6],[9,7,10,7],[10,0,10,1],[11,0,32,0],[33,0,38,0],[39,0,39,2],[9,5,10,5],[8,2,10,2],[8,8,10,8],[8,0,8,1],[9,0,9,1],[9,3,10,3]]}
[{"$f":"'Info+Engagés'!B3","v":"Quel Lieu ? (Département ?)"},null,null,{"$f":"'Info+Engagés'!B8","v":"Amateur 3 Grand Prix (D1)"},null,null,null,{"$f":"'Info+Engagés'!B2","v":"Quelle Date ?"}]
[]
["N° de concours",null,null,"Cheval",null,"Cavalier",null,"Note d’ensemble",{"$f":"SUM(D34:H36,D39:H39,D37*2,E37*2,F37*2,G37*2,H37*2,D38*2,E38*2,F38*2,G38*2,H38*2)","v":0}]
[{"$f":"'Info+Engagés'!B4","v":"Quel N° ?"},null,null,null,null,null,null,"Points",{"$f":"SUM(D43:H43)","v":23}]
["Épreuve N°",null,{"$f":"'Info+Engagés'!B5","v":"Quel N° ?"},{"$f":"'Info+Engagés'!B49","v":"Nom du cheval 38"},null,{"$f":"'Info+Engagés'!G49","v":0},null,"% Final",{"$f":"AVERAGE(D42:H42)","v":7.666666666666667}]
["Piste  ",null,{"$f":"'Info+Engagés'!B6","v":"Quelle Piste ?"}]
["N° Départ BO",null,{"$f":"'Info+Engagés'!A49","v":38},null,null,null,null,"Classement",{"$f":"INDEX(Résultats!P:P,MATCH(C7,Résultats!A:A,0))","v":38}]
[]
["Imprimé le :",null,"Coéff .","Juge E","Juge H","Juge C","Juge M","Juge B","écart Max"]
[{"$f":"TODAY()","v":"2017-03-25"},null,null,{"$f":"IF(ISBLANK('Info+Engagés'!H2),\"\",('Info+Engagés'!H2))","v":""},{"$f":"IF(ISBLANK('Info+Engagés'!H3),\"\",('Info+Engagés'!H3))","v":""},{"$f":"IF(ISBLANK('Info+Engagés'!H4),\"\",('Info+Engagés'!H4))","v":"Nom du juge en C"},{"$f":"IF(ISBLANK('Info+Engagés'!H5),\"\",('Info+Engagés'!H5))","v":""},{"$f":"IF(ISBLANK('Info+Engagés'!H6),\"\",('Info+Engagés'!H6))","v":""}]
[{"$f":"NOW()","v":42819.607247569445}]
["Notation figures","Figure 1",1,null,null,23,null,null,{"$f":"MAX(D12:H12)-MIN(D12:H12)","v":0}]
[null,"Figure 2",1,null,null,null,null,null,0]
[null,"Figure 3",1,null,null,null,null,null,0]
[null,"Figure 4",1,null,null,null,null,null,0]
[null,"Figure 5",1,null,null,null,null,null,0]
[null,"Figure 6",1,null,null,null,null,null,0]
[null,"Figure 7",1,null,null,null,null,null,0]
[null,"Figure 8",1,null,null,null,null,null,0]
[null,"Figure 9",1,null,null,null,null,null,0]
[null,"Figure 10",1,null,null,null,null,null,0]
[null,"Figure 11",1,null,null,null,null,null,0]
[null,"Figure 12",1,null,null,null,null,null,0]
[null,"Figure 13",1,null,null,null,null,null,0]
[null,"Figure 14",1,null,null,null,null,null,0]
[null,"Figure 15",1,null,null,null,null,null,0]
[null,"Figure 16",1,null,null,null,null,null,0]
[null,"Figure 17",1,null,null,null,null,null,0]
[null,"Figure 18",1,null,null,null,null,null,0]
[null,"Figure 19",1,null,null,null,null,null,0]
[null,"Figure 20",1,null,null,null,null,null,0]
[null,"Figure 21",1,null,null,null,null,null,0]
[null,"Figure 22",1,null,null,null,null,null,0]
[" Ensemble","Ensemble 1",1,null,null,null,null,null,0]
[null,"Ensemble 2",1,null,null,null,null,null,0]
[null,"Ensemble 3",1,null,null,null,null,null,0]
[null,"Ensemble 4",2,null,null,null,null,null,0]
[null,"Ensemble 5",2,null,null,null,null,null,0]
[null,"Ensemble 6",1,null,null,null,null,null,0]
["Pénalité en points"]
["Erreure(s) de tracé "]
["% Total du juge",null,null,{"$f":"IF(ISBLANK('Info+Engagés'!H2),\"\",D43/3-D41)","v":""},{"$f":"IF(ISBLANK('Info+Engagés'!H3),\"\",E43/3-E41)","v":""},{"$f":"IF(ISBLANK('Info+Engagés'!H4),\"\",F43/3-F41)","v":7.666666666666667},{"$f":"IF(ISBLANK('Info+Engagés'!H5),\"\",G43/3-G41)","v":""},{"$f":"IF(ISBLANK('Info+Engagés'!H6),\"\",H43/3-H41)","v":""},{"$f":"MAX(D42:H42)-MIN(D42:H42)","v":0}]
["Soit en points",null,null,{"$f":"IF(ISBLANK('Info+Engagés'!H2),\"\",SUM(D12:D36,D39,D37*2,D38*2)-D40)","v":""},{"$f":"IF(ISBLANK('Info+Engagés'!H3),\"\",(SUM(E12:E36,E39,E37*2,E38*2)-E40))","v":""},{"$f":"IF(ISBLANK('Info+Engagés'!H4),\"\",(SUM(F12:F36,F39,F37*2,F38*2)-F40))","v":23},{"$f":"IF(ISBLANK('Info+Engagés'!H5),\"\",(SUM(G12:G36,G39,G37*2,G38*2)-G40))","v":""},{"$f":"IF(ISBLANK('Info+Engagés'!H6),\"\",(SUM(H12:H36,H39,H37*2,H38*2)-H40))","v":""}]
["                          Total maxi par juge = 300          1 point correspond à 0,333%              1% correspond en points à : 3                                                                  Les notes sont sur 10 et correspondent à la saisie informatique par l'opérateur des protocoles joints, Le total résulte de l'addition des points attribués après application du coefficient et soustraction des points de pénalité encourus après conversion en pourcentage sont déduit les pourcentages de pénalités encourus par suite d'erreurs de tracé pour obtenir le pourcentage par juge."]

{"sheet":"Cav39","index":40,"n_rows":44,"n_cols":9,"rows_kept":44,"cut":false,"hidden":false,"merged":[[0,0,1,2],[0,3,1,6],[0,7,1,8],[2,0,2,2],[2,3,3,4],[2,5,3,6],[3,0,3,2],[9,4,10,4],[4,0,4,1],[4,7,5,7],[4,8,5,8],[5,0,5,1],[6,0,7,1],[6,2,7,2],[6,7,7,7],[6,8,7,8],[4,3,7,4],[4,5,7,6],[40,0,40,2],[41,0,41,2],[42,0,42,2],[43,0,47,8],[9,6,10,6],[9,7,10,7],[10,0,10,1],[11,0,32,0],[33,0,38,0],[39,0,39,2],[9,5,10,5],[8,2,10,2],[8,8,10,8],[8,0,8,1],[9,0,9,1],[9,3,10,3]]}
[{"$f":"'Info+Engagés'!B3","v":"Quel Lieu ? (Département ?)"},null,null,{"$f":"'Info+Engagés'!B8","v":"Amateur 3 Grand Prix (D1)"},null,null,null,{"$f":"'Info+Engagés'!B2","v":"Quelle Date ?"}]
[]
["N° de concours",null,null,"Cheval",null,"Cavalier",null,"Note d’ensemble",{"$f":"SUM(D34:H36,D39:H39,D37*2,E37*2,F37*2,G37*2,H37*2,D38*2,E38*2,F38*2,G38*2,H38*2)","v":0}]
[{"$f":"'Info+Engagés'!B4","v":"Quel N° ?"},null,null,null,null,null,null,"Points",{"$f":"SUM(D43:H43)","v":22}]
["Épreuve N°",null,{"$f":"'Info+Engagés'!B5","v":"Quel N° ?"},{"$f":"'Info+Engagés'!B50","v":"Nom du cheval 39"},null,{"$f":"'Info+Engagés'!G50","v":0},null,"% Final",{"$f":"AVERAGE(D42:H42)","v":7.333333333333333}]
["Piste  ",null,{"$f":"'Info+Engagés'!B6","v":"Quelle Piste ?"}]
["N° Départ BO",null,{"$f":"'Info+Engagés'!A50","v":39},null,null,null,null,"Classement",{"$f":"INDEX(Résultats!P:P,MATCH(C7,Résultats!A:A,0))","v":39}]
[]
["Imprimé le :",null,"Coéff .","Juge E","Juge H","Juge C","Juge M","Juge B","écart Max"]
[{"$f":"TODAY()","v":"2017-03-25"},null,null,{"$f":"IF(ISBLANK('Info+Engagés'!H2),\"\",('Info+Engagés'!H2))","v":""},{"$f":"IF(ISBLANK('Info+Engagés'!H3),\"\",('Info+Engagés'!H3))","v":""},{"$f":"IF(ISBLANK('Info+Engagés'!H4),\"\",('Info+Engagés'!H4))","v":"Nom du juge en C"},{"$f":"IF(ISBLANK('Info+Engagés'!H5),\"\",('Info+Engagés'!H5))","v":""},{"$f":"IF(ISBLANK('Info+Engagés'!H6),\"\",('Info+Engagés'!H6))","v":""}]
[{"$f":"NOW()","v":42819.607247569445}]
["Notation figures","Figure 1",1,null,null,22,null,null,{"$f":"MAX(D12:H12)-MIN(D12:H12)","v":0}]
[null,"Figure 2",1,null,null,null,null,null,0]
[null,"Figure 3",1,null,null,null,null,null,0]
[null,"Figure 4",1,null,null,null,null,null,0]
[null,"Figure 5",1,null,null,null,null,null,0]
[null,"Figure 6",1,null,null,null,null,null,0]
[null,"Figure 7",1,null,null,null,null,null,0]
[null,"Figure 8",1,null,null,null,null,null,0]
[null,"Figure 9",1,null,null,null,null,null,0]
[null,"Figure 10",1,null,null,null,null,null,0]
[null,"Figure 11",1,null,null,null,null,null,0]
[null,"Figure 12",1,null,null,null,null,null,0]
[null,"Figure 13",1,null,null,null,null,null,0]
[null,"Figure 14",1,null,null,null,null,null,0]
[null,"Figure 15",1,null,null,null,null,null,0]
[null,"Figure 16",1,null,null,null,null,null,0]
[null,"Figure 17",1,null,null,null,null,null,0]
[null,"Figure 18",1,null,null,null,null,null,0]
[null,"Figure 19",1,null,null,null,null,null,0]
[null,"Figure 20",1,null,null,null,null,null,0]
[null,"Figure 21",1,null,null,null,null,null,0]
[null,"Figure 22",1,null,null,null,null,null,0]
[" Ensemble","Ensemble 1",1,null,null,null,null,null,0]
[null,"Ensemble 2",1,null,null,null,null,null,0]
[null,"Ensemble 3",1,null,null,null,null,null,0]
[null,"Ensemble 4",2,null,null,null,null,null,0]
[null,"Ensemble 5",2,null,null,null,null,null,0]
[null,"Ensemble 6",1,null,null,null,null,null,0]
["Pénalité en points"]
["Erreure(s) de tracé "]
["% Total du juge",null,null,{"$f":"IF(ISBLANK('Info+Engagés'!H2),\"\",D43/3-D41)","v":""},{"$f":"IF(ISBLANK('Info+Engagés'!H3),\"\",E43/3-E41)","v":""},{"$f":"IF(ISBLANK('Info+Engagés'!H4),\"\",F43/3-F41)","v":7.333333333333333},{"$f":"IF(ISBLANK('Info+Engagés'!H5),\"\",G43/3-G41)","v":""},{"$f":"IF(ISBLANK('Info+Engagés'!H6),\"\",H43/3-H41)","v":""},{"$f":"MAX(D42:H42)-MIN(D42:H42)","v":0}]
["Soit en points",null,null,{"$f":"IF(ISBLANK('Info+Engagés'!H2),\"\",SUM(D12:D36,D39,D37*2,D38*2)-D40)","v":""},{"$f":"IF(ISBLANK('Info+Engagés'!H3),\"\",(SUM(E12:E36,E39,E37*2,E38*2)-E40))","v":""},{"$f":"IF(ISBLANK('Info+Engagés'!H4),\"\",(SUM(F12:F36,F39,F37*2,F38*2)-F40))","v":22},{"$f":"IF(ISBLANK('Info+Engagés'!H5),\"\",(SUM(G12:G36,G39,G37*2,G38*2)-G40))","v":""},{"$f":"IF(ISBLANK('Info+Engagés'!H6),\"\",(SUM(H12:H36,H39,H37*2,H38*2)-H40))","v":""}]
["                          Total maxi par juge = 300          1 point correspond à 0,333%              1% correspond en points à : 3                                                                  Les notes sont sur 10 et correspondent à la saisie informatique par l'opérateur des protocoles joints, Le total résulte de l'addition des points attribués après application du coefficient et soustraction des points de pénalité encourus après conversion en pourcentage sont déduit les pourcentages de pénalités encourus par suite d'erreurs de tracé pour obtenir le pourcentage par juge."]

{"sheet":"Cav40","index":41,"n_rows":44,"n_cols":9,"rows_kept":44,"cut":false,"hidden":false,"merged":[[0,0,1,2],[0,3,1,6],[0,7,1,8],[2,0,2,2],[2,3,3,4],[2,5,3,6],[3,0,3,2],[9,4,10,4],[4,0,4,1],[4,7,5,7],[4,8,5,8],[5,0,5,1],[6,0,7,1],[6,2,7,2],[6,7,7,7],[6,8,7,8],[4,3,7,4],[4,5,7,6],[40,0,40,2],[41,0,41,2],[42,0,42,2],[43,0,47,8],[9,6,10,6],[9,7,10,7],[10,0,10,1],[11,0,32,0],[33,0,38,0],[39,0,39,2],[9,5,10,5],[8,2,10,2],[8,8,10,8],[8,0,8,1],[9,0,9,1],[9,3,10,3]]}
[{"$f":"'Info+Engagés'!B3","v":"Quel Lieu ? (Département ?)"},null,null,{"$f":"'Info+Engagés'!B8","v":"Amateur 3 Grand Prix (D1)"},null,null,null,{"$f":"'Info+Engagés'!B2","v":"Quelle Date ?"}]
[]
["N° de concours",null,null,"Cheval",null,"Cavalier",null,"Note d’ensemble",{"$f":"SUM(D34:H36,D39:H39,D37*2,E37*2,F37*2,G37*2,H37*2,D38*2,E38*2,F38*2,G38*2,H38*2)","v":0}]
[{"$f":"'Info+Engagés'!B4","v":"Quel N° ?"},null,null,null,null,null,null,"Points",{"$f":"SUM(D43:H43)","v":0}]
["Épreuve N°",null,{"$f":"'Info+Engagés'!B5","v":"Quel N° ?"},{"$f":"'Info+Engagés'!B51","v":0},null,{"$f":"'Info+Engagés'!G51","v":0},null,"% Final",{"$f":"AVERAGE(D42:H42)","v":0}]
["Piste  ",null,{"$f":"'Info+Engagés'!B6","v":"Quelle Piste ?"}]
["N° Départ BO",null,{"$f":"'Info+Engagés'!A51","v":40},null,null,null,null,"Classement",{"$f":"INDEX(Résultats!P:P,MATCH(C7,Résultats!A:A,0))","v":40}]
[]
["Imprimé le :",null,"Coéff .","Juge E","Juge H","Juge C","Juge M","Juge B","écart Max"]
[{"$f":"TODAY()","v":"2017-03-25"},null,null,{"$f":"IF(ISBLANK('Info+Engagés'!H2),\"\",('Info+Engagés'!H2))","v":""},{"$f":"IF(ISBLANK('Info+Engagés'!H3),\"\",('Info+Engagés'!H3))","v":""},{"$f":"IF(ISBLANK('Info+Engagés'!H4),\"\",('Info+Engagés'!H4))","v":"Nom du juge en C"},{"$f":"IF(ISBLANK('Info+Engagés'!H5),\"\",('Info+Engagés'!H5))","v":""},{"$f":"IF(ISBLANK('Info+Engagés'!H6),\"\",('Info+Engagés'!H6))","v":""}]
[{"$f":"NOW()","v":42819.607247569445}]
["Notation figures","Figure 1",1,null,null,null,null,null,{"$f":"MAX(D12:H12)-MIN(D12:H12)","v":0}]
[null,"Figure 2",1,null,null,null,null,null,0]
[null,"Figure 3",1,null,null,null,null,null,0]
[null,"Figure 4",1,null,null,null,null,null,0]
[null,"Figure 5",1,null,null,null,null,null,0]
[null,"Figure 6",1,null,null,null,null,null,0]
[null,"Figure 7",1,null,null,null,null,null,0]
[null,"Figure 8",1,null,null,null,null,null,0]
[null,"Figure 9",1,null,null,null,null,null,0]
[null,"Figure 10",1,null,null,null,null,null,0]
[null,"Figure 11",1,null,null,null,null,null,0]
[null,"Figure 12",1,null,null,null,null,null,0]
[null,"Figure 13",1,null,null,null,null,null,0]
[null,"Figure 14",1,null,null,null,null,null,0]
[null,"Figure 15",1,null,null,null,null,null,0]
[null,"Figure 16",1,null,null,null,null,null,0]
[null,"Figure 17",1,null,null,null,null,null,0]
[null,"Figure 18",1,null,null,null,null,null,0]
[null,"Figure 19",1,null,null,null,null,null,0]
[null,"Figure 20",1,null,null,null,null,null,0]
[null,"Figure 21",1,null,null,null,null,null,0]
[null,"Figure 22",1,null,null,null,null,null,0]
[" Ensemble","Ensemble 1",1,null,null,null,null,null,0]
[null,"Ensemble 2",1,null,null,null,null,null,0]
[null,"Ensemble 3",1,null,null,null,null,null,0]
[null,"Ensemble 4",2,null,null,null,null,null,0]
[null,"Ensemble 5",2,null,null,null,null,null,0]
[null,"Ensemble 6",1,null,null,null,null,null,0]
["Pénalité en points"]
["Erreure(s) de tracé "]
["% Total du juge",null,null,{"$f":"IF(ISBLANK('Info+Engagés'!H2),\"\",D43/3-D41)","v":""},{"$f":"IF(ISBLANK('Info+Engagés'!H3),\"\",E43/3-E41)","v":""},{"$f":"IF(ISBLANK('Info+Engagés'!H4),\"\",F43/3-F41)","v":0},{"$f":"IF(ISBLANK('Info+Engagés'!H5),\"\",G43/3-G41)","v":""},{"$f":"IF(ISBLANK('Info+Engagés'!H6),\"\",H43/3-H41)","v":""},{"$f":"MAX(D42:H42)-MIN(D42:H42)","v":0}]
["Soit en points",null,null,{"$f":"IF(ISBLANK('Info+Engagés'!H2),\"\",SUM(D12:D36,D39,D37*2,D38*2)-D40)","v":""},{"$f":"IF(ISBLANK('Info+Engagés'!H3),\"\",(SUM(E12:E36,E39,E37*2,E38*2)-E40))","v":""},{"$f":"IF(ISBLANK('Info+Engagés'!H4),\"\",(SUM(F12:F36,F39,F37*2,F38*2)-F40))","v":0},{"$f":"IF(ISBLANK('Info+Engagés'!H5),\"\",(SUM(G12:G36,G39,G37*2,G38*2)-G40))","v":""},{"$f":"IF(ISBLANK('Info+Engagés'!H6),\"\",(SUM(H12:H36,H39,H37*2,H38*2)-H40))","v":""}]
["                          Total maxi par juge = 300          1 point correspond à 0,333%              1% correspond en points à : 3                                                                  Les notes sont sur 10 et correspondent à la saisie informatique par l'opérateur des protocoles joints, Le total résulte de l'addition des points attribués après application du coefficient et soustraction des points de pénalité encourus après conversion en pourcentage sont déduit les pourcentages de pénalités encourus par suite d'erreurs de tracé pour obtenir le pourcentage par juge."]

{"sheet":"Résultats","index":42,"n_rows":49,"n_cols":37,"rows_kept":49,"cut":false,"hidden":false,"merged":[[0,26,1,37],[1,15,1,16],[2,0,2,1],[2,4,2,12],[2,13,6,14],[2,15,2,16],[3,4,3,12],[3,15,3,16],[4,4,4,12],[4,15,4,16],[5,4,5,12],[5,15,5,16],[6,4,6,12],[6,15,6,16],[3,0,3,1],[4,0,4,1],[0,19,8,19],[0,0,1,2],[0,3,1,14],[0,15,0,16],[0,18,8,18],[7,3,7,4],[7,5,7,6],[7,7,7,8],[5,0,5,1],[6,0,6,1],[7,0,7,1],[7,9,7,10],[7,11,7,12],[7,13,7,15],[7,16,8,16],[7,17,8,17]]}
[{"$f":"'Info+Engagés'!B3","v":"Quel Lieu ? (Département ?)"},null,null,{"$f":"'Info+Engagés'!B8","v":"Amateur 3 Grand Prix (D1)"},null,null,null,null,null,null,null,null,null,null,null,"Inscrtits",null,4,"Dont Erreure","Répartition Dotation",null,null,null,null,null,null,"Ne jamais effacer les valeurs ci-dessous elles sont indispensables au bon fonctionnement de la feuille de calcul"]
[null,null,null,null,null,null,null,null,null,null,null,null,null,null,null,"Forfaits"]
["Concours N°",null,{"$f":"'Info+Engagés'!B4","v":"Quel N° ?"},"Juge E",{"$f":"IF(ISBLANK('Info+Engagés'!H2),\"\",('Info+Engagés'!H2))","v":""},null,null,null,null,null,null,null,null,null,null,"Non Partants",null,null,null,null,null,null,null,null,null,null,null," Classement                                 Nombre de partants"]
["Epreuve N°",null,{"$f":"'Info+Engagés'!B5","v":"Quel N° ?"},"Juge H",{"$f":"IF(ISBLANK('Info+Engagés'!H3),\"\",('Info+Engagés'!H3))","v":""},null,null,null,null,null,null,null,null,null,null,"Partant",null,{"$f":"R1-R2-R3","v":4},null,null,null,null,null,null,null,null,null,null,"         "]
["Piste N°",null,{"$f":"'Info+Engagés'!B6","v":"Quelle Piste ?"},"Juge C",{"$f":"IF(ISBLANK('Info+Engagés'!H4),\"\",('Info+Engagés'!H4))","v":"Nom du juge en C"},null,null,null,null,null,null,null,null,null,null,"Abandons",null,null,null,null,null,null,null,null,null,null,null,"               22 à 24    19 à 21   16 à 18   13 à 15   10 à 12   7 à 9     4 à 6     1 à 3",50,24,21,18,15,12,9,6,3]
["Imprimé le :",null,{"$f":"TODAY()","v":"2017-03-25"},"Juge M",{"$f":"IF(ISBLANK('Info+Engagés'!H5),\"\",('Info+Engagés'!H5))","v":""},null,null,null,null,null,null,null,null,null,null,"Eliminés",null,null,null,null,null,null,null,null,null,null,null,1,0.25,0.25,0.25,0.25,0.25,0.19,0.15,0.12,0.1]
["A:",null,{"$f":"NOW()","v":42819.607247569445},"Juge B",{"$f":"IF(ISBLANK('Info+Engagés'!H6),\"\",('Info+Engagés'!H6))","v":""},null,null,null,null,null,null,null,null,null,null,"Classés",null,{"$f":"IF(ISBLANK(R1),\"\",ROUNDUP(R4/3,0))","v":2},null,null,null,null,null,null,null,null,null,2,0.19,0.19,0.19,0.19,0.19,0.15,0.12,0.1]
["Dotation",null,{"$f":"'Info+Engagés'!K8","v":0},"Juge E",null,"Juge H",null,"Juge C",null,"Juge M",null,"Juge B",null,"Total",null,null,"Np. Abd. Eli.","Note d'ensemble",null,null,null,"Gain",null,null,null,null,null,3,0.15,0.15,0.15,0.15,0.15,0.12,0.1]
["N°","CHEVAL","CAVALIER","%","cl","%","cl","%","cl","%","cl","%","cl","Pts","%","Cl Final",null,null,null,null,null,"calculé",null,null,null,null,null,4,0.12,0.12,0.12,0.12,0.12,0.1]
[{"$f":"IF(ISBLANK('Info+Engagés'!A12),\"\",('Info+Engagés'!A12))","v":1},{"$f":"IF(ISBLANK('Info+Engagés'!B12),\"\",('Info+Engagés'!B12))","v":"Nom du Cheval 1"},{"$f":"IF(ISBLANK('Info+Engagés'!G12),\"\",('Info+Engagés'!G12))","v":"Nom du Cavalier 1"},{"$f":"IF(OR(ISBLANK('Info+Engagés'!A12),ISBLANK('Info+Engagés'!H2)),\"\",('Cav1'!D42))","v":""},{"$f":"IF(OR(ISBLANK('Info+Engagés'!A12),ISBLANK('Info+Engagés'!H2)),\"\",RANK(D10,$D$10:$D$49))","v":""},{"$f":"IF(OR(ISBLANK('Info+Engagés'!A12),ISBLANK('Info+Engagés'!H3)),\"\",('Cav1'!E42))","v":""},{"$f":"IF(OR(ISBLANK('Info+Engagés'!A12),ISBLANK('Info+Engagés'!H3)),\"\",RANK(F10,$F$10:$F$49))","v":""},{"$f":"IF(OR(ISBLANK('Info+Engagés'!A12),ISBLANK('Info+Engagés'!H4)),\"\",('Cav1'!F42))","v":20},{"$f":"IF(OR(ISBLANK('Info+Engagés'!A12),ISBLANK('Info+Engagés'!H4)),\"\",RANK(H10,$H$10:$H$49))","v":1},{"$f":"IF(OR(ISBLANK('Info+Engagés'!A12),ISBLANK('Info+Engagés'!H5)),\"\",('Cav1'!G42))","v":""},{"$f":"IF(OR(ISBLANK('Info+Engagés'!A12),ISBLANK('Info+Engagés'!H5)),\"\",RANK(J10,$J$10:$J$49))","v":""},{"$f":"IF(OR(ISBLANK('Info+Engagés'!A12),ISBLANK('Info+Engagés'!H6)),\"\",('Cav1'!H42))","v":""},{"$f":"IF(OR(ISBLANK('Info+Engagés'!A12),ISBLANK('Info+Engagés'!H6)),\"\",RANK(L10,$L$10:$L$49))","v":""},{"$f":"IF(ISBLANK('Info+Engagés'!A12),\"\",('Cav1'!I4))","v":60},{"$f":"IF(ISBLANK('Info+Engagés'!A12),\"\",('Cav1'!I5))","v":20},{"$f":"IF(ISBLANK('Info+Engagés'!$A$12),\"\",IF(RANK(U10,$U$10:$U$49)<4,RANK(U10,$U$10:$U$49),RANK(O10,$O$10:$O$49)))","v":1},null,{"$f":"IF(ISBLANK('Info+Engagés'!A12),\"\",'Cav1'!I3)","v":0},{"$f":"IF(ISBLANK('Cav1'!F41),\"\",-('Cav1'!F41)/100)","v":""},{"$f":"IF(OR(P10=\"\",Q10<>\"\"),\"\",IFERROR(IF(COUNTIF($P$10:$P$49,P10)=1,INDEX($V$10:$V$49,P10),SUMPRODUCT(($P$10:$P$49=P10)*$V$10:$V$49/COUNTIF($P$10:$P$49,P10))),\"\"))","v":0},{"$f":"IF(O10=\"\",\"\",O10+IF(R10<>0,R10/1000,0))","v":20},{"$f":"$C$8*INDEX($AC$6:$AL$50,MATCH(ROW()-9,$AB$6:$AB$50,0),MATCH($R$4,$AC$5:$AL$5,-1))","v":0},null,null,null,null,null,5,0.1,0.1,0.1,0.1,0.1]
[{"$f":"IF(ISBLANK('Info+Engagés'!A13),\"\",('Info+Engagés'!A13))","v":2},{"$f":"IF(ISBLANK('Info+Engagés'!B13),\"\",('Info+Engagés'!B13))","v":"Nom du cheval 2"},{"$f":"IF(ISBLANK('Info+Engagés'!G13),\"\",('Info+Engagés'!G13))","v":"Nom du Cavalier 2"},{"$f":"IF(OR(ISBLANK('Info+Engagés'!A13),ISBLANK('Info+Engagés'!H2)),\"\",('Cav2'!D42))","v":""},{"$f":"IF(OR(ISBLANK('Info+Engagés'!A13),ISBLANK('Info+Engagés'!H2)),\"\",RANK(D11,$D$10:$D$49))","v":""},{"$f":"IF(OR(ISBLANK('Info+Engagés'!A13),ISBLANK('Info+Engagés'!H3)),\"\",('Cav2'!E42))","v":""},{"$f":"IF(OR(ISBLANK('Info+Engagés'!A13),ISBLANK('Info+Engagés'!H3)),\"\",RANK(F11,$F$10:$F$49))","v":""},{"$f":"IF(OR(ISBLANK('Info+Engagés'!A13),ISBLANK('Info+Engagés'!H4)),\"\",('Cav2'!F42))","v":19.666666666666668},{"$f":"IF(OR(ISBLANK('Info+Engagés'!A13),ISBLANK('Info+Engagés'!H4)),\"\",RANK(H11,$H$10:$H$49))","v":2},{"$f":"IF(OR(ISBLANK('Info+Engagés'!A13),ISBLANK('Info+Engagés'!H5)),\"\",('Cav2'!G42))","v":""},{"$f":"IF(OR(ISBLANK('Info+Engagés'!A13),ISBLANK('Info+Engagés'!H5)),\"\",RANK(J11,$J$10:$J$49))","v":""},{"$f":"IF(OR(ISBLANK('Info+Engagés'!A13),ISBLANK('Info+Engagés'!H6)),\"\",('Cav2'!H42))","v":""},{"$f":"IF(OR(ISBLANK('Info+Engagés'!A13),ISBLANK('Info+Engagés'!H6)),\"\",RANK(L11,$L$10:$L$49))","v":""},{"$f":"IF(ISBLANK('Info+Engagés'!A13),\"\",('Cav2'!I4))","v":59},{"$f":"IF(ISBLANK('Info+Engagés'!A13),\"\",('Cav2'!I5))","v":19.666666666666668},{"$f":"IF(ISBLANK('Info+Engagés'!$A$13),\"\",IF(RANK(U11,$U$10:$U$49)<4,RANK(U11,$U$10:$U$49),RANK(O11,$O$10:$O$49)))","v":2},null,{"$f":"IF(ISBLANK('Info+Engagés'!A13),\"\",'Cav2'!I3)","v":0},{"$f":"IF(ISBLANK('Cav2'!F41),\"\",-('Cav2'!F41)/100)","v":""},0,19.666666666666668,0,null,null,null,null,null,6,0.08,0.08,0.08,0.08]
[{"$f":"IF(ISBLANK('Info+Engagés'!A14),\"\",('Info+Engagés'!A14))","v":3},{"$f":"IF(ISBLANK('Info+Engagés'!B14),\"\",('Info+Engagés'!B14))","v":"Nom du cheval 3"},{"$f":"IF(ISBLANK('Info+Engagés'!G14),\"\",('Info+Engagés'!G14))","v":"Nom du Cavalier 3"},{"$f":"IF(OR(ISBLANK('Info+Engagés'!A14),ISBLANK('Info+Engagés'!H2)),\"\",('Cav3'!D42))","v":""},{"$f":"IF(OR(ISBLANK('Info+Engagés'!A14),ISBLANK('Info+Engagés'!H2)),\"\",RANK(D12,$D$10:$D$49))","v":""},{"$f":"IF(OR(ISBLANK('Info+Engagés'!A14),ISBLANK('Info+Engagés'!H3)),\"\",('Cav3'!E42))","v":""},{"$f":"IF(OR(ISBLANK('Info+Engagés'!A14),ISBLANK('Info+Engagés'!H3)),\"\",RANK(F12,$F$10:$F$49))","v":""},{"$f":"IF(OR(ISBLANK('Info+Engagés'!A14),ISBLANK('Info+Engagés'!H4)),\"\",('Cav3'!F42))","v":19.333333333333332},{"$f":"IF(OR(ISBLANK('Info+Engagés'!A14),ISBLANK('Info+Engagés'!H4)),\"\",RANK(H12,$H$10:$H$49))","v":3},{"$f":"IF(OR(ISBLANK('Info+Engagés'!A14),ISBLANK('Info+Engagés'!H5)),\"\",('Cav3'!G42))","v":""},{"$f":"IF(OR(ISBLANK('Info+Engagés'!A14),ISBLANK('Info+Engagés'!H5)),\"\",RANK(J12,$J$10:$J$49))","v":""},{"$f":"IF(OR(ISBLANK('Info+Engagés'!A14),ISBLANK('Info+Engagés'!H6)),\"\",('Cav3'!H42))","v":""},{"$f":"IF(OR(ISBLANK('Info+Engagés'!A14),ISBLANK('Info+Engagés'!H6)),\"\",RANK(L12,$L$10:$L$49))","v":""},{"$f":"IF(ISBLANK('Info+Engagés'!A14),\"\",('Cav3'!I4))","v":58},{"$f":"IF(ISBLANK('Info+Engagés'!A14),\"\",('Cav3'!I5))","v":19.333333333333332},{"$f":"IF(ISBLANK('Info+Engagés'!$A$14),\"\",IF(RANK(U12,$U$10:$U$49)<4,RANK(U12,$U$10:$U$49),RANK(O12,$O$10:$O$49)))","v":3},null,{"$f":"IF(ISBLANK('Info+Engagés'!A14),\"\",'Cav3'!I3)","v":0},{"$f":"IF(ISBLANK('Cav3'!F41),\"\",-('Cav3'!F41)/100)","v":""},0,19.333333333333332,0,null,null,null,null,null,7,0.06,0.06,0.06]
[{"$f":"IF(ISBLANK('Info+Engagés'!A15),\"\",('Info+Engagés'!A15))","v":4},{"$f":"IF(ISBLANK('Info+Engagés'!B15),\"\",('Info+Engagés'!B15))","v":"Nom du cheval 4"},{"$f":"IF(ISBLANK('Info+Engagés'!G15),\"\",('Info+Engagés'!G15))","v":"Nom du Cavalier 4"},{"$f":"IF(OR(ISBLANK('Info+Engagés'!A15),ISBLANK('Info+Engagés'!H2)),\"\",('Cav4'!D42))","v":""},{"$f":"IF(OR(ISBLANK('Info+Engagés'!A15),ISBLANK('Info+Engagés'!H2)),\"\",RANK(D13,$D$10:$D$49))","v":""},{"$f":"IF(OR(ISBLANK('Info+Engagés'!A15),ISBLANK('Info+Engagés'!H3)),\"\",('Cav4'!E42))","v":""},{"$f":"IF(OR(ISBLANK('Info+Engagés'!A15),ISBLANK('Info+Engagés'!H3)),\"\",RANK(F13,$F$10:$F$49))","v":""},{"$f":"IF(OR(ISBLANK('Info+Engagés'!A15),ISBLANK('Info+Engagés'!H4)),\"\",('Cav4'!F42))","v":19},{"$f":"IF(OR(ISBLANK('Info+Engagés'!A15),ISBLANK('Info+Engagés'!H4)),\"\",RANK(H13,$H$10:$H$49))","v":4},{"$f":"IF(OR(ISBLANK('Info+Engagés'!A15),ISBLANK('Info+Engagés'!H5)),\"\",('Cav4'!G42))","v":""},{"$f":"IF(OR(ISBLANK('Info+Engagés'!A15),ISBLANK('Info+Engagés'!H5)),\"\",RANK(J13,$J$10:$J$49))","v":""},{"$f":"IF(OR(ISBLANK('Info+Engagés'!A15),ISBLANK('Info+Engagés'!H6)),\"\",('Cav4'!H42))","v":""},{"$f":"IF(OR(ISBLANK('Info+Engagés'!A15),ISBLANK('Info+Engagés'!H6)),\"\",RANK(L13,$L$10:$L$49))","v":""},{"$f":"IF(ISBLANK('Info+Engagés'!A15),\"\",('Cav4'!I4))","v":57},{"$f":"IF(ISBLANK('Info+Engagés'!A15),\"\",('Cav4'!I5))","v":19},{"$f":"IF(ISBLANK('Info+Engagés'!$A$15),\"\",IF(RANK(U13,$U$10:$U$49)<4,RANK(U13,$U$10:$U$49),RANK(O13,$O$10:$O$49)))","v":4},null,{"$f":"IF(ISBLANK('Info+Engagés'!A15),\"\",'Cav4'!I3)","v":0},{"$f":"IF(ISBLANK('Cav4'!F41),\"\",-('Cav4'!F41)/100)","v":""},0,19,0,null,null,null,null,null,8,0.05,0.05]
[{"$f":"IF(ISBLANK('Info+Engagés'!A16),\"\",('Info+Engagés'!A16))","v":5},{"$f":"IF(ISBLANK('Info+Engagés'!B16),\"\",('Info+Engagés'!B16))","v":"Nom du cheval 5"},{"$f":"IF(ISBLANK('Info+Engagés'!G16),\"\",('Info+Engagés'!G16))","v":"Nom du Cavalier 5"},{"$f":"IF(OR(ISBLANK('Info+Engagés'!A16),ISBLANK('Info+Engagés'!H2)),\"\",('Cav5'!D42))","v":""},{"$f":"IF(OR(ISBLANK('Info+Engagés'!A16),ISBLANK('Info+Engagés'!H2)),\"\",RANK(D14,$D$10:$D$49))","v":""},{"$f":"IF(OR(ISBLANK('Info+Engagés'!A16),ISBLANK('Info+Engagés'!H3)),\"\",('Cav5'!E42))","v":""},{"$f":"IF(OR(ISBLANK('Info+Engagés'!A16),ISBLANK('Info+Engagés'!H3)),\"\",RANK(F14,$F$10:$F$49))","v":""},{"$f":"IF(OR(ISBLANK('Info+Engagés'!A16),ISBLANK('Info+Engagés'!H4)),\"\",('Cav5'!F42))","v":18.666666666666668},{"$f":"IF(OR(ISBLANK('Info+Engagés'!A16),ISBLANK('Info+Engagés'!H4)),\"\",RANK(H14,$H$10:$H$49))","v":5},{"$f":"IF(OR(ISBLANK('Info+Engagés'!A16),ISBLANK('Info+Engagés'!H5)),\"\",('Cav5'!G42))","v":""},{"$f":"IF(OR(ISBLANK('Info+Engagés'!A16),ISBLANK('Info+Engagés'!H5)),\"\",RANK(J14,$J$10:$J$49))","v":""},{"$f":"IF(OR(ISBLANK('Info+Engagés'!A16),ISBLANK('Info+Engagés'!H6)),\"\",('Cav5'!H42))","v":""},{"$f":"IF(OR(ISBLANK('Info+Engagés'!A16),ISBLANK('Info+Engagés'!H6)),\"\",RANK(L14,$L$10:$L$49))","v":""},{"$f":"IF(ISBLANK('Info+Engagés'!A16),\"\",('Cav5'!I4))","v":56},{"$f":"IF(ISBLANK('Info+Engagés'!A16),\"\",('Cav5'!I5))","v":18.666666666666668},{"$f":"IF(ISBLANK('Info+Engagés'!$A$16),\"\",IF(RANK(U14,$U$10:$U$49)<4,RANK(U14,$U$10:$U$49),RANK(O14,$O$10:$O$49)))","v":5},null,{"$f":"IF(ISBLANK('Info+Engagés'!A16),\"\",'Cav5'!I3)","v":0},{"$f":"IF(ISBLANK('Cav5'!F41),\"\",-('Cav5'!F41)/100)","v":""},0,18.666666666666668,0,null,null,null,null,null,9,{"$f":"IF($R$4>24,4%,0)","v":0}]
[{"$f":"IF(ISBLANK('Info+Engagés'!A17),\"\",('Info+Engagés'!A17))","v":6},{"$f":"IF(ISBLANK('Info+Engagés'!B17),\"\",('Info+Engagés'!B17))","v":"Nom du cheval 6"},{"$f":"IF(ISBLANK('Info+Engagés'!G17),\"\",('Info+Engagés'!G17))","v":""},{"$f":"IF(OR(ISBLANK('Info+Engagés'!A17),ISBLANK('Info+Engagés'!H2)),\"\",('Cav6'!D42))","v":""},{"$f":"IF(OR(ISBLANK('Info+Engagés'!A17),ISBLANK('Info+Engagés'!H2)),\"\",RANK(D15,$D$10:$D$49))","v":""},{"$f":"IF(OR(ISBLANK('Info+Engagés'!A17),ISBLANK('Info+Engagés'!H3)),\"\",('Cav6'!E42))","v":""},{"$f":"IF(OR(ISBLANK('Info+Engagés'!A17),ISBLANK('Info+Engagés'!H3)),\"\",RANK(F15,$F$10:$F$49))","v":""},{"$f":"IF(OR(ISBLANK('Info+Engagés'!A17),ISBLANK('Info+Engagés'!H4)),\"\",('Cav6'!F42))","v":18.333333333333332},{"$f":"IF(OR(ISBLANK('Info+Engagés'!A17),ISBLANK('Info+Engagés'!H4)),\"\",RANK(H15,$H$10:$H$49))","v":6},{"$f":"IF(OR(ISBLANK('Info+Engagés'!A17),ISBLANK('Info+Engagés'!H5)),\"\",('Cav6'!G42))","v":""},{"$f":"IF(OR(ISBLANK('Info+Engagés'!A17),ISBLANK('Info+Engagés'!H5)),\"\",RANK(J15,$J$10:$J$49))","v":""},{"$f":"IF(OR(ISBLANK('Info+Engagés'!A17),ISBLANK('Info+Engagés'!H6)),\"\",('Cav6'!H42))","v":""},{"$f":"IF(OR(ISBLANK('Info+Engagés'!A17),ISBLANK('Info+Engagés'!H6)),\"\",RANK(L15,$L$10:$L$49))","v":""},{"$f":"IF(ISBLANK('Info+Engagés'!A17),\"\",('Cav6'!I4))","v":55},{"$f":"IF(ISBLANK('Info+Engagés'!A17),\"\",('Cav6'!I5))","v":18.333333333333332},{"$f":"IF(ISBLANK('Info+Engagés'!$A$17),\"\",IF(RANK(U15,$U$10:$U$49)<4,RANK(U15,$U$10:$U$49),RANK(O15,$O$10:$O$49)))","v":6},null,{"$f":"IF(ISBLANK('Info+Engagés'!A17),\"\",'Cav6'!I3)","v":0},{"$f":"IF(ISBLANK('Cav6'!F41),\"\",-('Cav6'!F41)/100)","v":""},0,18.333333333333332,0,null,null,null,null,null,10,{"$f":"IF($R$4>27,4%,0)","v":0}]
[{"$f":"IF(ISBLANK('Info+Engagés'!A18),\"\",('Info+Engagés'!A18))","v":7},{"$f":"IF(ISBLANK('Info+Engagés'!B18),\"\",('Info+Engagés'!B18))","v":"Nom du cheval 7"},{"$f":"IF(ISBLANK('Info+Engagés'!G18),\"\",('Info+Engagés'!G18))","v":""},{"$f":"IF(OR(ISBLANK('Info+Engagés'!A18),ISBLANK('Info+Engagés'!H2)),\"\",('Cav7'!D42))","v":""},{"$f":"IF(OR(ISBLANK('Info+Engagés'!A18),ISBLANK('Info+Engagés'!H2)),\"\",RANK(D16,$D$10:$D$49))","v":""},{"$f":"IF(OR(ISBLANK('Info+Engagés'!A18),ISBLANK('Info+Engagés'!H3)),\"\",('Cav7'!E42))","v":""},{"$f":"IF(OR(ISBLANK('Info+Engagés'!A18),ISBLANK('Info+Engagés'!H3)),\"\",RANK(F16,$F$10:$F$49))","v":""},{"$f":"IF(OR(ISBLANK('Info+Engagés'!A18),ISBLANK('Info+Engagés'!H4)),\"\",('Cav7'!F42))","v":18},{"$f":"IF(OR(ISBLANK('Info+Engagés'!A18),ISBLANK('Info+Engagés'!H4)),\"\",RANK(H16,$H$10:$H$49))","v":7},{"$f":"IF(OR(ISBLANK('Info+Engagés'!A18),ISBLANK('Info+Engagés'!H5)),\"\",('Cav7'!G42))","v":""},{"$f":"IF(OR(ISBLANK('Info+Engagés'!A18),ISBLANK('Info+Engagés'!H5)),\"\",RANK(J16,$J$10:$J$49))","v":""},{"$f":"IF(OR(ISBLANK('Info+Engagés'!A18),ISBLANK('Info+Engagés'!H6)),\"\",('Cav7'!H42))","v":""},{"$f":"IF(OR(ISBLANK('Info+Engagés'!A18),ISBLANK('Info+Engagés'!H6)),\"\",RANK(L16,$L$10:$L$49))","v":""},{"$f":"IF(ISBLANK('Info+Engagés'!A18),\"\",('Cav7'!I4))","v":54},{"$f":"IF(ISBLANK('Info+Engagés'!A18),\"\",('Cav7'!I5))","v":18},{"$f":"IF(ISBLANK('Info+Engagés'!$A$18),\"\",IF(RANK(U16,$U$10:$U$49)<4,RANK(U16,$U$10:$U$49),RANK(O16,$O$10:$O$49)))","v":7},null,{"$f":"IF(ISBLANK('Info+Engagés'!A18),\"\",'Cav7'!I3)","v":0},{"$f":"IF(ISBLANK('Cav7'!F41),\"\",-('Cav7'!F41)/100)","v":""},0,18,0,null,null,null,null,null,11,{"$f":"IF($R$4>30,4%,0)","v":0}]
[{"$f":"IF(ISBLANK('Info+Engagés'!A19),\"\",('Info+Engagés'!A19))","v":8},{"$f":"IF(ISBLANK('Info+Engagés'!B19),\"\",('Info+Engagés'!B19))","v":"Nom du cheval 8"},{"$f":"IF(ISBLANK('Info+Engagés'!G19),\"\",('Info+Engagés'!G19))","v":""},{"$f":"IF(OR(ISBLANK('Info+Engagés'!A19),ISBLANK('Info+Engagés'!H2)),\"\",('Cav8'!D42))","v":""},{"$f":"IF(OR(ISBLANK('Info+Engagés'!A19),ISBLANK('Info+Engagés'!H2)),\"\",RANK(D17,$D$10:$D$49))","v":""},{"$f":"IF(OR(ISBLANK('Info+Engagés'!A19),ISBLANK('Info+Engagés'!H3)),\"\",('Cav8'!E42))","v":""},{"$f":"IF(OR(ISBLANK('Info+Engagés'!A19),ISBLANK('Info+Engagés'!H3)),\"\",RANK(F17,$F$10:$F$49))","v":""},{"$f":"IF(OR(ISBLANK('Info+Engagés'!A19),ISBLANK('Info+Engagés'!H4)),\"\",('Cav8'!F42))","v":17.666666666666668},{"$f":"IF(OR(ISBLANK('Info+Engagés'!A19),ISBLANK('Info+Engagés'!H4)),\"\",RANK(H17,$H$10:$H$49))","v":8},{"$f":"IF(OR(ISBLANK('Info+Engagés'!A19),ISBLANK('Info+Engagés'!H5)),\"\",('Cav8'!G42))","v":""},{"$f":"IF(OR(ISBLANK('Info+Engagés'!A19),ISBLANK('Info+Engagés'!H5)),\"\",RANK(J17,$J$10:$J$49))","v":""},{"$f":"IF(OR(ISBLANK('Info+Engagés'!A19),ISBLANK('Info+Engagés'!H6)),\"\",('Cav8'!H42))","v":""},{"$f":"IF(OR(ISBLANK('Info+Engagés'!A19),ISBLANK('Info+Engagés'!H6)),\"\",RANK(L17,$L$10:$L$49))","v":""},{"$f":"IF(ISBLANK('Info+Engagés'!A19),\"\",('Cav8'!I4))","v":53},{"$f":"IF(ISBLANK('Info+Engagés'!A19),\"\",('Cav8'!I5))","v":17.666666666666668},{"$f":"IF(ISBLANK('Info+Engagés'!$A$19),\"\",IF(RANK(U17,$U$10:$U$49)<4,RANK(U17,$U$10:$U$49),RANK(O17,$O$10:$O$49)))","v":8},null,{"$f":"IF(ISBLANK('Info+Engagés'!A19),\"\",'Cav8'!I3)","v":0},{"$f":"IF(ISBLANK('Cav8'!F41),\"\",-('Cav8'!F41)/100)","v":""},0,17.666666666666668,0,null,null,null,null,null,12,{"$f":"IF($R$4>33,4%,0)","v":0}]
[{"$f":"IF(ISBLANK('Info+Engagés'!A20),\"\",('Info+Engagés'!A20))","v":9},{"$f":"IF(ISBLANK('Info+Engagés'!B20),\"\",('Info+Engagés'!B20))","v":"Nom du cheval 9"},{"$f":"IF(ISBLANK('Info+Engagés'!G20),\"\",('Info+Engagés'!G20))","v":""},{"$f":"IF(OR(ISBLANK('Info+Engagés'!A20),ISBLANK('Info+Engagés'!H2)),\"\",('Cav9'!D42))","v":""},{"$f":"IF(OR(ISBLANK('Info+Engagés'!A20),ISBLANK('Info+Engagés'!H2)),\"\",RANK(D18,$D$10:$D$49))","v":""},{"$f":"IF(OR(ISBLANK('Info+Engagés'!A20),ISBLANK('Info+Engagés'!H3)),\"\",('Cav9'!E42))","v":""},{"$f":"IF(OR(ISBLANK('Info+Engagés'!A20),ISBLANK('Info+Engagés'!H3)),\"\",RANK(F18,$F$10:$F$49))","v":""},{"$f":"IF(OR(ISBLANK('Info+Engagés'!A20),ISBLANK('Info+Engagés'!H4)),\"\",('Cav9'!F42))","v":17.333333333333332},{"$f":"IF(OR(ISBLANK('Info+Engagés'!A20),ISBLANK('Info+Engagés'!H4)),\"\",RANK(H18,$H$10:$H$49))","v":9},{"$f":"IF(OR(ISBLANK('Info+Engagés'!A20),ISBLANK('Info+Engagés'!H5)),\"\",('Cav9'!G42))","v":""},{"$f":"IF(OR(ISBLANK('Info+Engagés'!A20),ISBLANK('Info+Engagés'!H5)),\"\",RANK(J18,$J$10:$J$49))","v":""},{"$f":"IF(OR(ISBLANK('Info+Engagés'!A20),ISBLANK('Info+Engagés'!H6)),\"\",('Cav9'!H42))","v":""},{"$f":"IF(OR(ISBLANK('Info+Engagés'!A20),ISBLANK('Info+Engagés'!H6)),\"\",RANK(L18,$L$10:$L$49))","v":""},{"$f":"IF(ISBLANK('Info+Engagés'!A20),\"\",('Cav9'!I4))","v":52},{"$f":"IF(ISBLANK('Info+Engagés'!A20),\"\",('Cav9'!I5))","v":17.333333333333332},{"$f":"IF(ISBLANK('Info+Engagés'!$A$20),\"\",IF(RANK(U18,$U$10:$U$49)<4,RANK(U18,$U$10:$U$49),RANK(O18,$O$10:$O$49)))","v":9},null,{"$f":"IF(ISBLANK('Info+Engagés'!A20),\"\",'Cav9'!I3)","v":0},{"$f":"IF(ISBLANK('Cav9'!F41),\"\",-('Cav9'!F41)/100)","v":""},0,17.333333333333332,0,null,null,null,null,null,13,{"$f":"IF($R$4>36,4%,0)","v":0}]
[{"$f":"IF(ISBLANK('Info+Engagés'!A21),\"\",('Info+Engagés'!A21))","v":10},{"$f":"IF(ISBLANK('Info+Engagés'!B21),\"\",('Info+Engagés'!B21))","v":"Nom du cheval 10"},{"$f":"IF(ISBLANK('Info+Engagés'!G21),\"\",('Info+Engagés'!G21))","v":""},{"$f":"IF(OR(ISBLANK('Info+Engagés'!A21),ISBLANK('Info+Engagés'!H2)),\"\",('Cav10'!D42))","v":""},{"$f":"IF(OR(ISBLANK('Info+Engagés'!A21),ISBLANK('Info+Engagés'!H2)),\"\",RANK(D19,$D$10:$D$49))","v":""},{"$f":"IF(OR(ISBLANK('Info+Engagés'!A21),ISBLANK('Info+Engagés'!H3)),\"\",('Cav10'!E42))","v":""},{"$f":"IF(OR(ISBLANK('Info+Engagés'!A21),ISBLANK('Info+Engagés'!H3)),\"\",RANK(F19,$F$10:$F$49))","v":""},{"$f":"IF(OR(ISBLANK('Info+Engagés'!A21),ISBLANK('Info+Engagés'!H4)),\"\",('Cav10'!F42))","v":17},{"$f":"IF(OR(ISBLANK('Info+Engagés'!A21),ISBLANK('Info+Engagés'!H4)),\"\",RANK(H19,$H$10:$H$49))","v":10},{"$f":"IF(OR(ISBLANK('Info+Engagés'!A21),ISBLANK('Info+Engagés'!H5)),\"\",('Cav10'!G42))","v":""},{"$f":"IF(OR(ISBLANK('Info+Engagés'!A21),ISBLANK('Info+Engagés'!H5)),\"\",RANK(J19,$J$10:$J$49))","v":""},{"$f":"IF(OR(ISBLANK('Info+Engagés'!A21),ISBLANK('Info+Engagés'!H6)),\"\",('Cav10'!H42))","v":""},{"$f":"IF(OR(ISBLANK('Info+Engagés'!A21),ISBLANK('Info+Engagés'!H6)),\"\",RANK(L19,$L$10:$L$49))","v":""},{"$f":"IF(ISBLANK('Info+Engagés'!A21),\"\",('Cav10'!I4))","v":51},{"$f":"IF(ISBLANK('Info+Engagés'!A21),\"\",('Cav10'!I5))","v":17},{"$f":"IF(ISBLANK('Info+Engagés'!$A$21),\"\",IF(RANK(U19,$U$10:$U$49)<4,RANK(U19,$U$10:$U$49),RANK(O19,$O$10:$O$49)))","v":10},null,{"$f":"IF(ISBLANK('Info+Engagés'!A21),\"\",'Cav10'!I3)","v":0},{"$f":"IF(ISBLANK('Cav10'!F41),\"\",-('Cav10'!F41)/100)","v":""},0,17,0,null,null,null,null,null,14,{"$f":"IF($R$4>39,4%,0)","v":0}]
[{"$f":"IF(ISBLANK('Info+Engagés'!A22),\"\",('Info+Engagés'!A22))","v":11},{"$f":"IF(ISBLANK('Info+Engagés'!B22),\"\",('Info+Engagés'!B22))","v":"Nom du cheval 11"},{"$f":"IF(ISBLANK('Info+Engagés'!G22),\"\",('Info+Engagés'!G22))","v":""},{"$f":"IF(OR(ISBLANK('Info+Engagés'!A22),ISBLANK('Info+Engagés'!H2)),\"\",('Cav11'!D42))","v":""},{"$f":"IF(OR(ISBLANK('Info+Engagés'!A22),ISBLANK('Info+Engagés'!H2)),\"\",RANK(D20,$D$10:$D$49))","v":""},{"$f":"IF(OR(ISBLANK('Info+Engagés'!A22),ISBLANK('Info+Engagés'!H3)),\"\",('Cav11'!E42))","v":""},{"$f":"IF(OR(ISBLANK('Info+Engagés'!A22),ISBLANK('Info+Engagés'!H3)),\"\",RANK(F20,$F$10:$F$49))","v":""},{"$f":"IF(OR(ISBLANK('Info+Engagés'!A22),ISBLANK('Info+Engagés'!H4)),\"\",('Cav11'!F42))","v":16.666666666666668},{"$f":"IF(OR(ISBLANK('Info+Engagés'!A22),ISBLANK('Info+Engagés'!H4)),\"\",RANK(H20,$H$10:$H$49))","v":11},{"$f":"IF(OR(ISBLANK('Info+Engagés'!A22),ISBLANK('Info+Engagés'!H5)),\"\",('Cav11'!G42))","v":""},{"$f":"IF(OR(ISBLANK('Info+Engagés'!A22),ISBLANK('Info+Engagés'!H5)),\"\",RANK(J20,$J$10:$J$49))","v":""},{"$f":"IF(OR(ISBLANK('Info+Engagés'!A22),ISBLANK('Info+Engagés'!H6)),\"\",('Cav11'!H42))","v":""},{"$f":"IF(OR(ISBLANK('Info+Engagés'!A22),ISBLANK('Info+Engagés'!H6)),\"\",RANK(L20,$L$10:$L$49))","v":""},{"$f":"IF(ISBLANK('Info+Engagés'!A22),\"\",('Cav11'!I4))","v":50},{"$f":"IF(ISBLANK('Info+Engagés'!A22),\"\",('Cav11'!I5))","v":16.666666666666668},{"$f":"IF(ISBLANK('Info+Engagés'!$A$22),\"\",IF(RANK(U20,$U$10:$U$49)<4,RANK(U20,$U$10:$U$49),RANK(O20,$O$10:$O$49)))","v":11},null,{"$f":"IF(ISBLANK('Info+Engagés'!A22),\"\",'Cav11'!I3)","v":0},{"$f":"IF(ISBLANK('Cav11'!F41),\"\",-('Cav11'!F41)/100)","v":""},0,16.666666666666668,0,null,null,null,null,null,15,0]
[{"$f":"IF(ISBLANK('Info+Engagés'!A23),\"\",('Info+Engagés'!A23))","v":12},{"$f":"IF(ISBLANK('Info+Engagés'!B23),\"\",('Info+Engagés'!B23))","v":"Nom du cheval 12"},{"$f":"IF(ISBLANK('Info+Engagés'!G23),\"\",('Info+Engagés'!G23))","v":""},{"$f":"IF(OR(ISBLANK('Info+Engagés'!A23),ISBLANK('Info+Engagés'!H2)),\"\",('Cav12'!D42))","v":""},{"$f":"IF(OR(ISBLANK('Info+Engagés'!A23),ISBLANK('Info+Engagés'!H2)),\"\",RANK(D21,$D$10:$D$49))","v":""},{"$f":"IF(OR(ISBLANK('Info+Engagés'!A23),ISBLANK('Info+Engagés'!H3)),\"\",('Cav12'!E42))","v":""},{"$f":"IF(OR(ISBLANK('Info+Engagés'!A23),ISBLANK('Info+Engagés'!H3)),\"\",RANK(F21,$F$10:$F$49))","v":""},{"$f":"IF(OR(ISBLANK('Info+Engagés'!A23),ISBLANK('Info+Engagés'!H4)),\"\",('Cav12'!F42))","v":16.333333333333332},{"$f":"IF(OR(ISBLANK('Info+Engagés'!A23),ISBLANK('Info+Engagés'!H4)),\"\",RANK(H21,$H$10:$H$49))","v":12},{"$f":"IF(OR(ISBLANK('Info+Engagés'!A23),ISBLANK('Info+Engagés'!H5)),\"\",('Cav12'!G42))","v":""},{"$f":"IF(OR(ISBLANK('Info+Engagés'!A23),ISBLANK('Info+Engagés'!H5)),\"\",RANK(J21,$J$10:$J$49))","v":""},{"$f":"IF(OR(ISBLANK('Info+Engagés'!A23),ISBLANK('Info+Engagés'!H6)),\"\",('Cav12'!H42))","v":""},{"$f":"IF(OR(ISBLANK('Info+Engagés'!A23),ISBLANK('Info+Engagés'!H6)),\"\",RANK(L21,$L$10:$L$49))","v":""},{"$f":"IF(ISBLANK('Info+Engagés'!A23),\"\",('Cav12'!I4))","v":49},{"$f":"IF(ISBLANK('Info+Engagés'!A23),\"\",('Cav12'!I5))","v":16.333333333333332},{"$f":"IF(ISBLANK('Info+Engagés'!$A$23),\"\",IF(RANK(U21,$U$10:$U$49)<4,RANK(U21,$U$10:$U$49),RANK(O21,$O$10:$O$49)))","v":12},null,{"$f":"IF(ISBLANK('Info+Engagés'!A23),\"\",'Cav12'!I3)","v":0},{"$f":"IF(ISBLANK('Cav12'!F41),\"\",-('Cav12'!F41)/100)","v":""},0,16.333333333333332,0,null,null,null,null,null,16,0]
[{"$f":"IF(ISBLANK('Info+Engagés'!A24),\"\",('Info+Engagés'!A24))","v":13},{"$f":"IF(ISBLANK('Info+Engagés'!B24),\"\",('Info+Engagés'!B24))","v":"Nom du cheval 13"},{"$f":"IF(ISBLANK('Info+Engagés'!G24),\"\",('Info+Engagés'!G24))","v":""},{"$f":"IF(OR(ISBLANK('Info+Engagés'!A24),ISBLANK('Info+Engagés'!H2)),\"\",('Cav13'!D42))","v":""},{"$f":"IF(OR(ISBLANK('Info+Engagés'!A24),ISBLANK('Info+Engagés'!H2)),\"\",RANK(D22,$D$10:$D$49))","v":""},{"$f":"IF(OR(ISBLANK('Info+Engagés'!A24),ISBLANK('Info+Engagés'!H3)),\"\",('Cav13'!E42))","v":""},{"$f":"IF(OR(ISBLANK('Info+Engagés'!A24),ISBLANK('Info+Engagés'!H3)),\"\",RANK(F22,$F$10:$F$49))","v":""},{"$f":"IF(OR(ISBLANK('Info+Engagés'!A24),ISBLANK('Info+Engagés'!H4)),\"\",('Cav13'!F42))","v":16},{"$f":"IF(OR(ISBLANK('Info+Engagés'!A24),ISBLANK('Info+Engagés'!H4)),\"\",RANK(H22,$H$10:$H$49))","v":13},{"$f":"IF(OR(ISBLANK('Info+Engagés'!A24),ISBLANK('Info+Engagés'!H5)),\"\",('Cav13'!G42))","v":""},{"$f":"IF(OR(ISBLANK('Info+Engagés'!A24),ISBLANK('Info+Engagés'!H5)),\"\",RANK(J22,$J$10:$J$49))","v":""},{"$f":"IF(OR(ISBLANK('Info+Engagés'!A24),ISBLANK('Info+Engagés'!H6)),\"\",('Cav13'!H42))","v":""},{"$f":"IF(OR(ISBLANK('Info+Engagés'!A24),ISBLANK('Info+Engagés'!H6)),\"\",RANK(L22,$L$10:$L$49))","v":""},{"$f":"IF(ISBLANK('Info+Engagés'!A24),\"\",('Cav13'!I4))","v":48},{"$f":"IF(ISBLANK('Info+Engagés'!A24),\"\",('Cav13'!I5))","v":16},{"$f":"IF(ISBLANK('Info+Engagés'!$A$24),\"\",IF(RANK(U22,$U$10:$U$49)<4,RANK(U22,$U$10:$U$49),RANK(O22,$O$10:$O$49)))","v":13},null,{"$f":"IF(ISBLANK('Info+Engagés'!A24),\"\",'Cav13'!I3)","v":0},{"$f":"IF(ISBLANK('Cav13'!F41),\"\",-('Cav13'!F41)/100)","v":""},0,16,0,null,null,null,null,null,17,0]
[{"$f":"IF(ISBLANK('Info+Engagés'!A25),\"\",('Info+Engagés'!A25))","v":14},{"$f":"IF(ISBLANK('Info+Engagés'!B25),\"\",('Info+Engagés'!B25))","v":"Nom du cheval 14"},{"$f":"IF(ISBLANK('Info+Engagés'!G25),\"\",('Info+Engagés'!G25))","v":""},{"$f":"IF(OR(ISBLANK('Info+Engagés'!A25),ISBLANK('Info+Engagés'!H2)),\"\",('Cav14'!D42))","v":""},{"$f":"IF(OR(ISBLANK('Info+Engagés'!A25),ISBLANK('Info+Engagés'!H2)),\"\",RANK(D23,$D$10:$D$49))","v":""},{"$f":"IF(OR(ISBLANK('Info+Engagés'!A25),ISBLANK('Info+Engagés'!H3)),\"\",('Cav14'!E42))","v":""},{"$f":"IF(OR(ISBLANK('Info+Engagés'!A25),ISBLANK('Info+Engagés'!H3)),\"\",RANK(F23,$F$10:$F$49))","v":""},{"$f":"IF(OR(ISBLANK('Info+Engagés'!A25),ISBLANK('Info+Engagés'!H4)),\"\",('Cav14'!F42))","v":15.666666666666666},{"$f":"IF(OR(ISBLANK('Info+Engagés'!A25),ISBLANK('Info+Engagés'!H4)),\"\",RANK(H23,$H$10:$H$49))","v":14},{"$f":"IF(OR(ISBLANK('Info+Engagés'!A25),ISBLANK('Info+Engagés'!H5)),\"\",('Cav14'!G42))","v":""},{"$f":"IF(OR(ISBLANK('Info+Engagés'!A25),ISBLANK('Info+Engagés'!H5)),\"\",RANK(J23,$J$10:$J$49))","v":""},{"$f":"IF(OR(ISBLANK('Info+Engagés'!A25),ISBLANK('Info+Engagés'!H6)),\"\",('Cav14'!H42))","v":""},{"$f":"IF(OR(ISBLANK('Info+Engagés'!A25),ISBLANK('Info+Engagés'!H6)),\"\",RANK(L23,$L$10:$L$49))","v":""},{"$f":"IF(ISBLANK('Info+Engagés'!A25),\"\",('Cav14'!I4))","v":47},{"$f":"IF(ISBLANK('Info+Engagés'!A25),\"\",('Cav14'!I5))","v":15.666666666666666},{"$f":"IF(ISBLANK('Info+Engagés'!$A$25),\"\",IF(RANK(U23,$U$10:$U$49)<4,RANK(U23,$U$10:$U$49),RANK(O23,$O$10:$O$49)))","v":14},null,{"$f":"IF(ISBLANK('Info+Engagés'!A25),\"\",'Cav14'!I3)","v":0},{"$f":"IF(ISBLANK('Cav14'!F41),\"\",-('Cav14'!F41)/100)","v":""},0,15.666666666666666,0,null,null,null,null,null,18,0]
[{"$f":"IF(ISBLANK('Info+Engagés'!A26),\"\",('Info+Engagés'!A26))","v":15},{"$f":"IF(ISBLANK('Info+Engagés'!B26),\"\",('Info+Engagés'!B26))","v":"Nom du cheval 15"},{"$f":"IF(ISBLANK('Info+Engagés'!G26),\"\",('Info+Engagés'!G26))","v":""},{"$f":"IF(OR(ISBLANK('Info+Engagés'!A26),ISBLANK('Info+Engagés'!H2)),\"\",('Cav15'!D42))","v":""},{"$f":"IF(OR(ISBLANK('Info+Engagés'!A26),ISBLANK('Info+Engagés'!H2)),\"\",RANK(D24,$D$10:$D$49))","v":""},{"$f":"IF(OR(ISBLANK('Info+Engagés'!A26),ISBLANK('Info+Engagés'!H3)),\"\",('Cav15'!E42))","v":""},{"$f":"IF(OR(ISBLANK('Info+Engagés'!A26),ISBLANK('Info+Engagés'!H3)),\"\",RANK(F24,$F$10:$F$49))","v":""},{"$f":"IF(OR(ISBLANK('Info+Engagés'!A26),ISBLANK('Info+Engagés'!H4)),\"\",('Cav15'!F42))","v":15.333333333333334},{"$f":"IF(OR(ISBLANK('Info+Engagés'!A26),ISBLANK('Info+Engagés'!H4)),\"\",RANK(H24,$H$10:$H$49))","v":15},{"$f":"IF(OR(ISBLANK('Info+Engagés'!A26),ISBLANK('Info+Engagés'!H5)),\"\",('Cav15'!G42))","v":""},{"$f":"IF(OR(ISBLANK('Info+Engagés'!A26),ISBLANK('Info+Engagés'!H5)),\"\",RANK(J24,$J$10:$J$49))","v":""},{"$f":"IF(OR(ISBLANK('Info+Engagés'!A26),ISBLANK('Info+Engagés'!H6)),\"\",('Cav15'!H42))","v":""},{"$f":"IF(OR(ISBLANK('Info+Engagés'!A26),ISBLANK('Info+Engagés'!H6)),\"\",RANK(L24,$L$10:$L$49))","v":""},{"$f":"IF(ISBLANK('Info+Engagés'!A26),\"\",('Cav15'!I4))","v":46},{"$f":"IF(ISBLANK('Info+Engagés'!A26),\"\",('Cav15'!I5))","v":15.333333333333334},{"$f":"IF(ISBLANK('Info+Engagés'!$A$26),\"\",IF(RANK(U24,$U$10:$U$49)<4,RANK(U24,$U$10:$U$49),RANK(O24,$O$10:$O$49)))","v":15},null,{"$f":"IF(ISBLANK('Info+Engagés'!A26),\"\",'Cav15'!I3)","v":0},{"$f":"IF(ISBLANK('Cav15'!F41),\"\",-('Cav15'!F41)/100)","v":""},0,15.333333333333334,0,null,null,null,null,null,19,0]
[{"$f":"IF(ISBLANK('Info+Engagés'!A27),\"\",('Info+Engagés'!A27))","v":16},{"$f":"IF(ISBLANK('Info+Engagés'!B27),\"\",('Info+Engagés'!B27))","v":"Nom du cheval 16"},{"$f":"IF(ISBLANK('Info+Engagés'!G27),\"\",('Info+Engagés'!G27))","v":""},{"$f":"IF(OR(ISBLANK('Info+Engagés'!A27),ISBLANK('Info+Engagés'!H2)),\"\",('Cav16'!D42))","v":""},{"$f":"IF(OR(ISBLANK('Info+Engagés'!A27),ISBLANK('Info+Engagés'!H2)),\"\",RANK(D25,$D$10:$D$49))","v":""},{"$f":"IF(OR(ISBLANK('Info+Engagés'!A27),ISBLANK('Info+Engagés'!H3)),\"\",('Cav16'!E42))","v":""},{"$f":"IF(OR(ISBLANK('Info+Engagés'!A27),ISBLANK('Info+Engagés'!H3)),\"\",RANK(F25,$F$10:$F$49))","v":""},{"$f":"IF(OR(ISBLANK('Info+Engagés'!A27),ISBLANK('Info+Engagés'!H4)),\"\",('Cav16'!F42))","v":15},{"$f":"IF(OR(ISBLANK('Info+Engagés'!A27),ISBLANK('Info+Engagés'!H4)),\"\",RANK(H25,$H$10:$H$49))","v":16},{"$f":"IF(OR(ISBLANK('Info+Engagés'!A27),ISBLANK('Info+Engagés'!H5)),\"\",('Cav16'!G42))","v":""},{"$f":"IF(OR(ISBLANK('Info+Engagés'!A27),ISBLANK('Info+Engagés'!H5)),\"\",RANK(J25,$J$10:$J$49))","v":""},{"$f":"IF(OR(ISBLANK('Info+Engagés'!A27),ISBLANK('Info+Engagés'!H6)),\"\",('Cav16'!H42))","v":""},{"$f":"IF(OR(ISBLANK('Info+Engagés'!A27),ISBLANK('Info+Engagés'!H6)),\"\",RANK(L25,$L$10:$L$49))","v":""},{"$f":"IF(ISBLANK('Info+Engagés'!A27),\"\",('Cav16'!I4))","v":45},{"$f":"IF(ISBLANK('Info+Engagés'!A27),\"\",('Cav16'!I5))","v":15},{"$f":"IF(ISBLANK('Info+Engagés'!$A$27),\"\",IF(RANK(U25,$U$10:$U$49)<4,RANK(U25,$U$10:$U$49),RANK(O25,$O$10:$O$49)))","v":16},null,{"$f":"IF(ISBLANK('Info+Engagés'!A27),\"\",'Cav16'!I3)","v":0},{"$f":"IF(ISBLANK('Cav16'!F41),\"\",-('Cav16'!F41)/100)","v":""},0,15,0,null,null,null,null,null,20,0]
[{"$f":"IF(ISBLANK('Info+Engagés'!A28),\"\",('Info+Engagés'!A28))","v":17},{"$f":"IF(ISBLANK('Info+Engagés'!B28),\"\",('Info+Engagés'!B28))","v":"Nom du cheval 17"},{"$f":"IF(ISBLANK('Info+Engagés'!G28),\"\",('Info+Engagés'!G28))","v":""},{"$f":"IF(OR(ISBLANK('Info+Engagés'!A28),ISBLANK('Info+Engagés'!H2)),\"\",('Cav17'!D42))","v":""},{"$f":"IF(OR(ISBLANK('Info+Engagés'!A28),ISBLANK('Info+Engagés'!H2)),\"\",RANK(D26,$D$10:$D$49))","v":""},{"$f":"IF(OR(ISBLANK('Info+Engagés'!A28),ISBLANK('Info+Engagés'!H3)),\"\",('Cav17'!E42))","v":""},{"$f":"IF(OR(ISBLANK('Info+Engagés'!A28),ISBLANK('Info+Engagés'!H3)),\"\",RANK(F26,$F$10:$F$49))","v":""},{"$f":"IF(OR(ISBLANK('Info+Engagés'!A28),ISBLANK('Info+Engagés'!H4)),\"\",('Cav17'!F42))","v":14.666666666666666},{"$f":"IF(OR(ISBLANK('Info+Engagés'!A28),ISBLANK('Info+Engagés'!H4)),\"\",RANK(H26,$H$10:$H$49))","v":17},{"$f":"IF(OR(ISBLANK('Info+Engagés'!A28),ISBLANK('Info+Engagés'!H5)),\"\",('Cav17'!G42))","v":""},{"$f":"IF(OR(ISBLANK('Info+Engagés'!A28),ISBLANK('Info+Engagés'!H5)),\"\",RANK(J26,$J$10:$J$49))","v":""},{"$f":"IF(OR(ISBLANK('Info+Engagés'!A28),ISBLANK('Info+Engagés'!H6)),\"\",('Cav17'!H42))","v":""},{"$f":"IF(OR(ISBLANK('Info+Engagés'!A28),ISBLANK('Info+Engagés'!H6)),\"\",RANK(L26,$L$10:$L$49))","v":""},{"$f":"IF(ISBLANK('Info+Engagés'!A28),\"\",('Cav17'!I4))","v":44},{"$f":"IF(ISBLANK('Info+Engagés'!A28),\"\",('Cav17'!I5))","v":14.666666666666666},{"$f":"IF(ISBLANK('Info+Engagés'!$A$28),\"\",IF(RANK(U26,$U$10:$U$49)<4,RANK(U26,$U$10:$U$49),RANK(O26,$O$10:$O$49)))","v":17},null,{"$f":"IF(ISBLANK('Info+Engagés'!A28),\"\",'Cav17'!I3)","v":0},{"$f":"IF(ISBLANK('Cav17'!F41),\"\",-('Cav17'!F41)/100)","v":""},0,14.666666666666666,0,null,null,null,null,null,21,0]
[{"$f":"IF(ISBLANK('Info+Engagés'!A29),\"\",('Info+Engagés'!A29))","v":18},{"$f":"IF(ISBLANK('Info+Engagés'!B29),\"\",('Info+Engagés'!B29))","v":"Nom du cheval 18"},{"$f":"IF(ISBLANK('Info+Engagés'!G29),\"\",('Info+Engagés'!G29))","v":""},{"$f":"IF(OR(ISBLANK('Info+Engagés'!A29),ISBLANK('Info+Engagés'!H2)),\"\",('Cav18'!D42))","v":""},{"$f":"IF(OR(ISBLANK('Info+Engagés'!A29),ISBLANK('Info+Engagés'!H2)),\"\",RANK(D27,$D$10:$D$49))","v":""},{"$f":"IF(OR(ISBLANK('Info+Engagés'!A29),ISBLANK('Info+Engagés'!H3)),\"\",('Cav18'!E42))","v":""},{"$f":"IF(OR(ISBLANK('Info+Engagés'!A29),ISBLANK('Info+Engagés'!H3)),\"\",RANK(F27,$F$10:$F$49))","v":""},{"$f":"IF(OR(ISBLANK('Info+Engagés'!A29),ISBLANK('Info+Engagés'!H4)),\"\",('Cav18'!F42))","v":14.333333333333334},{"$f":"IF(OR(ISBLANK('Info+Engagés'!A29),ISBLANK('Info+Engagés'!H4)),\"\",RANK(H27,$H$10:$H$49))","v":18},{"$f":"IF(OR(ISBLANK('Info+Engagés'!A29),ISBLANK('Info+Engagés'!H5)),\"\",('Cav18'!G42))","v":""},{"$f":"IF(OR(ISBLANK('Info+Engagés'!A29),ISBLANK('Info+Engagés'!H5)),\"\",RANK(J27,$J$10:$J$49))","v":""},{"$f":"IF(OR(ISBLANK('Info+Engagés'!A29),ISBLANK('Info+Engagés'!H6)),\"\",('Cav18'!H42))","v":""},{"$f":"IF(OR(ISBLANK('Info+Engagés'!A29),ISBLANK('Info+Engagés'!H6)),\"\",RANK(L27,$L$10:$L$49))","v":""},{"$f":"IF(ISBLANK('Info+Engagés'!A29),\"\",('Cav18'!I4))","v":43},{"$f":"IF(ISBLANK('Info+Engagés'!A29),\"\",('Cav18'!I5))","v":14.333333333333334},{"$f":"IF(ISBLANK('Info+Engagés'!$A$29),\"\",IF(RANK(U27,$U$10:$U$49)<4,RANK(U27,$U$10:$U$49),RANK(O27,$O$10:$O$49)))","v":18},null,{"$f":"IF(ISBLANK('Info+Engagés'!A29),\"\",'Cav18'!I3)","v":0},{"$f":"IF(ISBLANK('Cav18'!F41),\"\",-('Cav18'!F41)/100)","v":""},0,14.333333333333334,0,null,null,null,null,null,22,0]
[{"$f":"IF(ISBLANK('Info+Engagés'!A30),\"\",('Info+Engagés'!A30))","v":19},{"$f":"IF(ISBLANK('Info+Engagés'!B30),\"\",('Info+Engagés'!B30))","v":"Nom du cheval 19"},{"$f":"IF(ISBLANK('Info+Engagés'!G30),\"\",('Info+Engagés'!G30))","v":""},{"$f":"IF(OR(ISBLANK('Info+Engagés'!A30),ISBLANK('Info+Engagés'!H2)),\"\",('Cav19'!D42))","v":""},{"$f":"IF(OR(ISBLANK('Info+Engagés'!A30),ISBLANK('Info+Engagés'!H2)),\"\",RANK(D28,$D$10:$D$49))","v":""},{"$f":"IF(OR(ISBLANK('Info+Engagés'!A30),ISBLANK('Info+Engagés'!H3)),\"\",('Cav19'!E42))","v":""},{"$f":"IF(OR(ISBLANK('Info+Engagés'!A30),ISBLANK('Info+Engagés'!H3)),\"\",RANK(F28,$F$10:$F$49))","v":""},{"$f":"IF(OR(ISBLANK('Info+Engagés'!A30),ISBLANK('Info+Engagés'!H4)),\"\",('Cav19'!F42))","v":14},{"$f":"IF(OR(ISBLANK('Info+Engagés'!A30),ISBLANK('Info+Engagés'!H4)),\"\",RANK(H28,$H$10:$H$49))","v":19},{"$f":"IF(OR(ISBLANK('Info+Engagés'!A30),ISBLANK('Info+Engagés'!H5)),\"\",('Cav19'!G42))","v":""},{"$f":"IF(OR(ISBLANK('Info+Engagés'!A30),ISBLANK('Info+Engagés'!H5)),\"\",RANK(J28,$J$10:$J$49))","v":""},{"$f":"IF(OR(ISBLANK('Info+Engagés'!A30),ISBLANK('Info+Engagés'!H6)),\"\",('Cav19'!H42))","v":""},{"$f":"IF(OR(ISBLANK('Info+Engagés'!A30),ISBLANK('Info+Engagés'!H6)),\"\",RANK(L28,$L$10:$L$49))","v":""},{"$f":"IF(ISBLANK('Info+Engagés'!A30),\"\",('Cav19'!I4))","v":42},{"$f":"IF(ISBLANK('Info+Engagés'!A30),\"\",('Cav19'!I5))","v":14},{"$f":"IF(ISBLANK('Info+Engagés'!$A$30),\"\",IF(RANK(U28,$U$10:$U$49)<4,RANK(U28,$U$10:$U$49),RANK(O28,$O$10:$O$49)))","v":19},null,{"$f":"IF(ISBLANK('Info+Engagés'!A30),\"\",'Cav19'!I3)","v":0},{"$f":"IF(ISBLANK('Cav19'!F41),\"\",-('Cav19'!F41)/100)","v":""},0,14,0,null,null,null,null,null,23,0]
[{"$f":"IF(ISBLANK('Info+Engagés'!A31),\"\",('Info+Engagés'!A31))","v":20},{"$f":"IF(ISBLANK('Info+Engagés'!B31),\"\",('Info+Engagés'!B31))","v":"Nom du cheval 20"},{"$f":"IF(ISBLANK('Info+Engagés'!G31),\"\",('Info+Engagés'!G31))","v":""},{"$f":"IF(OR(ISBLANK('Info+Engagés'!A31),ISBLANK('Info+Engagés'!H2)),\"\",('Cav20'!D42))","v":""},{"$f":"IF(OR(ISBLANK('Info+Engagés'!A31),ISBLANK('Info+Engagés'!H2)),\"\",RANK(D29,$D$10:$D$49))","v":""},{"$f":"IF(OR(ISBLANK('Info+Engagés'!A31),ISBLANK('Info+Engagés'!H3)),\"\",('Cav20'!E42))","v":""},{"$f":"IF(OR(ISBLANK('Info+Engagés'!A31),ISBLANK('Info+Engagés'!H3)),\"\",RANK(F29,$F$10:$F$49))","v":""},{"$f":"IF(OR(ISBLANK('Info+Engagés'!A31),ISBLANK('Info+Engagés'!H4)),\"\",('Cav20'!F42))","v":13.666666666666666},{"$f":"IF(OR(ISBLANK('Info+Engagés'!A31),ISBLANK('Info+Engagés'!H4)),\"\",RANK(H29,$H$10:$H$49))","v":20},{"$f":"IF(OR(ISBLANK('Info+Engagés'!A31),ISBLANK('Info+Engagés'!H5)),\"\",('Cav20'!G42))","v":""},{"$f":"IF(OR(ISBLANK('Info+Engagés'!A31),ISBLANK('Info+Engagés'!H5)),\"\",RANK(J29,$J$10:$J$49))","v":""},{"$f":"IF(OR(ISBLANK('Info+Engagés'!A31),ISBLANK('Info+Engagés'!H6)),\"\",('Cav20'!H42))","v":""},{"$f":"IF(OR(ISBLANK('Info+Engagés'!A31),ISBLANK('Info+Engagés'!H6)),\"\",RANK(L29,$L$10:$L$49))","v":""},{"$f":"IF(ISBLANK('Info+Engagés'!A31),\"\",('Cav20'!I4))","v":41},{"$f":"IF(ISBLANK('Info+Engagés'!A31),\"\",('Cav20'!I5))","v":13.666666666666666},{"$f":"IF(ISBLANK('Info+Engagés'!$A$31),\"\",IF(RANK(U29,$U$10:$U$49)<4,RANK(U29,$U$10:$U$49),RANK(O29,$O$10:$O$49)))","v":20},null,{"$f":"IF(ISBLANK('Info+Engagés'!A31),\"\",'Cav20'!I3)","v":0},{"$f":"IF(ISBLANK('Cav20'!F41),\"\",-('Cav20'!F41)/100)","v":""},0,13.666666666666666,0,null,null,null,null,null,24,0]
[{"$f":"IF(ISBLANK('Info+Engagés'!A32),\"\",('Info+Engagés'!A32))","v":21},{"$f":"IF(ISBLANK('Info+Engagés'!B32),\"\",('Info+Engagés'!B32))","v":"Nom du cheval 21"},{"$f":"IF(ISBLANK('Info+Engagés'!G32),\"\",('Info+Engagés'!G32))","v":""},{"$f":"IF(OR(ISBLANK('Info+Engagés'!A32),ISBLANK('Info+Engagés'!H2)),\"\",('Cav21'!D42))","v":""},{"$f":"IF(OR(ISBLANK('Info+Engagés'!A32),ISBLANK('Info+Engagés'!H2)),\"\",RANK(D30,$D$10:$D$49))","v":""},{"$f":"IF(OR(ISBLANK('Info+Engagés'!A32),ISBLANK('Info+Engagés'!H3)),\"\",('Cav21'!E42))","v":""},{"$f":"IF(OR(ISBLANK('Info+Engagés'!A32),ISBLANK('Info+Engagés'!H3)),\"\",RANK(F30,$F$10:$F$49))","v":""},{"$f":"IF(OR(ISBLANK('Info+Engagés'!A32),ISBLANK('Info+Engagés'!H4)),\"\",('Cav21'!F42))","v":13.333333333333334},{"$f":"IF(OR(ISBLANK('Info+Engagés'!A32),ISBLANK('Info+Engagés'!H4)),\"\",RANK(H30,$H$10:$H$49))","v":21},{"$f":"IF(OR(ISBLANK('Info+Engagés'!A32),ISBLANK('Info+Engagés'!H5)),\"\",('Cav21'!G42))","v":""},{"$f":"IF(OR(ISBLANK('Info+Engagés'!A32),ISBLANK('Info+Engagés'!H5)),\"\",RANK(J30,$J$10:$J$49))","v":""},{"$f":"IF(OR(ISBLANK('Info+Engagés'!A32),ISBLANK('Info+Engagés'!H6)),\"\",('Cav21'!H42))","v":""},{"$f":"IF(OR(ISBLANK('Info+Engagés'!A32),ISBLANK('Info+Engagés'!H6)),\"\",RANK(L30,$L$10:$L$49))","v":""},{"$f":"IF(ISBLANK('Info+Engagés'!A32),\"\",('Cav21'!I4))","v":40},{"$f":"IF(ISBLANK('Info+Engagés'!A32),\"\",('Cav21'!I5))","v":13.333333333333334},{"$f":"IF(ISBLANK('Info+Engagés'!$A$32),\"\",IF(RANK(U30,$U$10:$U$49)<4,RANK(U30,$U$10:$U$49),RANK(O30,$O$10:$O$49)))","v":21},null,{"$f":"IF(ISBLANK('Info+Engagés'!A32),\"\",'Cav21'!I3)","v":0},{"$f":"IF(ISBLANK('Cav21'!F41),\"\",-('Cav21'!F41)/100)","v":""},0,13.333333333333334,0,null,null,null,null,null,25,0]
[{"$f":"IF(ISBLANK('Info+Engagés'!A33),\"\",('Info+Engagés'!A33))","v":22},{"$f":"IF(ISBLANK('Info+Engagés'!B33),\"\",('Info+Engagés'!B33))","v":"Nom du cheval 22"},{"$f":"IF(ISBLANK('Info+Engagés'!G33),\"\",('Info+Engagés'!G33))","v":""},{"$f":"IF(OR(ISBLANK('Info+Engagés'!A33),ISBLANK('Info+Engagés'!H2)),\"\",('Cav22'!D42))","v":""},{"$f":"IF(OR(ISBLANK('Info+Engagés'!A33),ISBLANK('Info+Engagés'!H2)),\"\",RANK(D31,$D$10:$D$49))","v":""},{"$f":"IF(OR(ISBLANK('Info+Engagés'!A33),ISBLANK('Info+Engagés'!H3)),\"\",('Cav22'!E42))","v":""},{"$f":"IF(OR(ISBLANK('Info+Engagés'!A33),ISBLANK('Info+Engagés'!H3)),\"\",RANK(F31,$F$10:$F$49))","v":""},{"$f":"IF(OR(ISBLANK('Info+Engagés'!A33),ISBLANK('Info+Engagés'!H4)),\"\",('Cav22'!F42))","v":13},{"$f":"IF(OR(ISBLANK('Info+Engagés'!A33),ISBLANK('Info+Engagés'!H4)),\"\",RANK(H31,$H$10:$H$49))","v":22},{"$f":"IF(OR(ISBLANK('Info+Engagés'!A33),ISBLANK('Info+Engagés'!H5)),\"\",('Cav22'!G42))","v":""},{"$f":"IF(OR(ISBLANK('Info+Engagés'!A33),ISBLANK('Info+Engagés'!H5)),\"\",RANK(J31,$J$10:$J$49))","v":""},{"$f":"IF(OR(ISBLANK('Info+Engagés'!A33),ISBLANK('Info+Engagés'!H6)),\"\",('Cav22'!H42))","v":""},{"$f":"IF(OR(ISBLANK('Info+Engagés'!A33),ISBLANK('Info+Engagés'!H6)),\"\",RANK(L31,$L$10:$L$49))","v":""},{"$f":"IF(ISBLANK('Info+Engagés'!A33),\"\",('Cav22'!I4))","v":39},{"$f":"IF(ISBLANK('Info+Engagés'!A33),\"\",('Cav22'!I5))","v":13},{"$f":"IF(ISBLANK('Info+Engagés'!$A$33),\"\",IF(RANK(U31,$U$10:$U$49)<4,RANK(U31,$U$10:$U$49),RANK(O31,$O$10:$O$49)))","v":22},null,{"$f":"IF(ISBLANK('Info+Engagés'!A33),\"\",'Cav22'!I3)","v":0},{"$f":"IF(ISBLANK('Cav22'!F41),\"\",-('Cav22'!F41)/100)","v":""},0,13,0,null,null,null,null,null,26,0]
[{"$f":"IF(ISBLANK('Info+Engagés'!A34),\"\",('Info+Engagés'!A34))","v":23},{"$f":"IF(ISBLANK('Info+Engagés'!B34),\"\",('Info+Engagés'!B34))","v":"Nom du cheval 23"},{"$f":"IF(ISBLANK('Info+Engagés'!G34),\"\",('Info+Engagés'!G34))","v":""},{"$f":"IF(OR(ISBLANK('Info+Engagés'!A34),ISBLANK('Info+Engagés'!H2)),\"\",('Cav23'!D42))","v":""},{"$f":"IF(OR(ISBLANK('Info+Engagés'!A34),ISBLANK('Info+Engagés'!H2)),\"\",RANK(D32,$D$10:$D$49))","v":""},{"$f":"IF(OR(ISBLANK('Info+Engagés'!A34),ISBLANK('Info+Engagés'!H3)),\"\",('Cav23'!E42))","v":""},{"$f":"IF(OR(ISBLANK('Info+Engagés'!A34),ISBLANK('Info+Engagés'!H3)),\"\",RANK(F32,$F$10:$F$49))","v":""},{"$f":"IF(OR(ISBLANK('Info+Engagés'!A34),ISBLANK('Info+Engagés'!H4)),\"\",('Cav23'!F42))","v":12.666666666666666},{"$f":"IF(OR(ISBLANK('Info+Engagés'!A34),ISBLANK('Info+Engagés'!H4)),\"\",RANK(H32,$H$10:$H$49))","v":23},{"$f":"IF(OR(ISBLANK('Info+Engagés'!A34),ISBLANK('Info+Engagés'!H5)),\"\",('Cav23'!G42))","v":""},{"$f":"IF(OR(ISBLANK('Info+Engagés'!A34),ISBLANK('Info+Engagés'!H5)),\"\",RANK(J32,$J$10:$J$49))","v":""},{"$f":"IF(OR(ISBLANK('Info+Engagés'!A34),ISBLANK('Info+Engagés'!H6)),\"\",('Cav23'!H42))","v":""},{"$f":"IF(OR(ISBLANK('Info+Engagés'!A34),ISBLANK('Info+Engagés'!H6)),\"\",RANK(L32,$L$10:$L$49))","v":""},{"$f":"IF(ISBLANK('Info+Engagés'!A34),\"\",('Cav23'!I4))","v":38},{"$f":"IF(ISBLANK('Info+Engagés'!A34),\"\",('Cav23'!I5))","v":12.666666666666666},{"$f":"IF(ISBLANK('Info+Engagés'!$A$34),\"\",IF(RANK(U32,$U$10:$U$49)<4,RANK(U32,$U$10:$U$49),RANK(O32,$O$10:$O$49)))","v":23},null,{"$f":"IF(ISBLANK('Info+Engagés'!A34),\"\",'Cav23'!I3)","v":0},{"$f":"IF(ISBLANK('Cav23'!F41),\"\",-('Cav23'!F41)/100)","v":""},0,12.666666666666666,0,null,null,null,null,null,27,0]
[{"$f":"IF(ISBLANK('Info+Engagés'!A35),\"\",('Info+Engagés'!A35))","v":24},{"$f":"IF(ISBLANK('Info+Engagés'!B35),\"\",('Info+Engagés'!B35))","v":"Nom du cheval 24"},{"$f":"IF(ISBLANK('Info+Engagés'!G35),\"\",('Info+Engagés'!G35))","v":""},{"$f":"IF(OR(ISBLANK('Info+Engagés'!A35),ISBLANK('Info+Engagés'!H2)),\"\",('Cav24'!D42))","v":""},{"$f":"IF(OR(ISBLANK('Info+Engagés'!A35),ISBLANK('Info+Engagés'!H2)),\"\",RANK(D33,$D$10:$D$49))","v":""},{"$f":"IF(OR(ISBLANK('Info+Engagés'!A35),ISBLANK('Info+Engagés'!H3)),\"\",('Cav24'!E42))","v":""},{"$f":"IF(OR(ISBLANK('Info+Engagés'!A35),ISBLANK('Info+Engagés'!H3)),\"\",RANK(F33,$F$10:$F$49))","v":""},{"$f":"IF(OR(ISBLANK('Info+Engagés'!A35),ISBLANK('Info+Engagés'!H4)),\"\",('Cav24'!F42))","v":12.333333333333334},{"$f":"IF(OR(ISBLANK('Info+Engagés'!A35),ISBLANK('Info+Engagés'!H4)),\"\",RANK(H33,$H$10:$H$49))","v":24},{"$f":"IF(OR(ISBLANK('Info+Engagés'!A35),ISBLANK('Info+Engagés'!H5)),\"\",('Cav24'!G42))","v":""},{"$f":"IF(OR(ISBLANK('Info+Engagés'!A35),ISBLANK('Info+Engagés'!H5)),\"\",RANK(J33,$J$10:$J$49))","v":""},{"$f":"IF(OR(ISBLANK('Info+Engagés'!A35),ISBLANK('Info+Engagés'!H6)),\"\",('Cav24'!H42))","v":""},{"$f":"IF(OR(ISBLANK('Info+Engagés'!A35),ISBLANK('Info+Engagés'!H6)),\"\",RANK(L33,$L$10:$L$49))","v":""},{"$f":"IF(ISBLANK('Info+Engagés'!A35),\"\",('Cav24'!I4))","v":37},{"$f":"IF(ISBLANK('Info+Engagés'!A35),\"\",('Cav24'!I5))","v":12.333333333333334},{"$f":"IF(ISBLANK('Info+Engagés'!$A$35),\"\",IF(RANK(U33,$U$10:$U$49)<4,RANK(U33,$U$10:$U$49),RANK(O33,$O$10:$O$49)))","v":24},null,{"$f":"IF(ISBLANK('Info+Engagés'!A35),\"\",'Cav24'!I3)","v":0},{"$f":"IF(ISBLANK('Cav24'!F41),\"\",-('Cav24'!F41)/100)","v":""},0,12.333333333333334,0,null,null,null,null,null,28,0]
[{"$f":"IF(ISBLANK('Info+Engagés'!A36),\"\",('Info+Engagés'!A36))","v":25},{"$f":"IF(ISBLANK('Info+Engagés'!B36),\"\",('Info+Engagés'!B36))","v":"Nom du cheval 25"},{"$f":"IF(ISBLANK('Info+Engagés'!G36),\"\",('Info+Engagés'!G36))","v":""},{"$f":"IF(OR(ISBLANK('Info+Engagés'!A36),ISBLANK('Info+Engagés'!H2)),\"\",('Cav25'!D42))","v":""},{"$f":"IF(OR(ISBLANK('Info+Engagés'!A36),ISBLANK('Info+Engagés'!H2)),\"\",RANK(D34,$D$10:$D$49))","v":""},{"$f":"IF(OR(ISBLANK('Info+Engagés'!A36),ISBLANK('Info+Engagés'!H3)),\"\",('Cav25'!E42))","v":""},{"$f":"IF(OR(ISBLANK('Info+Engagés'!A36),ISBLANK('Info+Engagés'!H3)),\"\",RANK(F34,$F$10:$F$49))","v":""},{"$f":"IF(OR(ISBLANK('Info+Engagés'!A36),ISBLANK('Info+Engagés'!H4)),\"\",('Cav25'!F42))","v":12},{"$f":"IF(OR(ISBLANK('Info+Engagés'!A36),ISBLANK('Info+Engagés'!H4)),\"\",RANK(H34,$H$10:$H$49))","v":25},{"$f":"IF(OR(ISBLANK('Info+Engagés'!A36),ISBLANK('Info+Engagés'!H5)),\"\",('Cav25'!G42))","v":""},{"$f":"IF(OR(ISBLANK('Info+Engagés'!A36),ISBLANK('Info+Engagés'!H5)),\"\",RANK(J34,$J$10:$J$49))","v":""},{"$f":"IF(OR(ISBLANK('Info+Engagés'!A36),ISBLANK('Info+Engagés'!H6)),\"\",('Cav25'!H42))","v":""},{"$f":"IF(OR(ISBLANK('Info+Engagés'!A36),ISBLANK('Info+Engagés'!H6)),\"\",RANK(L34,$L$10:$L$49))","v":""},{"$f":"IF(ISBLANK('Info+Engagés'!A36),\"\",('Cav25'!I4))","v":36},{"$f":"IF(ISBLANK('Info+Engagés'!A36),\"\",('Cav25'!I5))","v":12},{"$f":"IF(ISBLANK('Info+Engagés'!$A$36),\"\",IF(RANK(U34,$U$10:$U$49)<4,RANK(U34,$U$10:$U$49),RANK(O34,$O$10:$O$49)))","v":25},null,{"$f":"IF(ISBLANK('Info+Engagés'!A36),\"\",'Cav25'!I3)","v":0},{"$f":"IF(ISBLANK('Cav25'!F41),\"\",-('Cav25'!F41)/100)","v":""},0,12,0,null,null,null,null,null,29,0]
[{"$f":"IF(ISBLANK('Info+Engagés'!A37),\"\",('Info+Engagés'!A37))","v":26},{"$f":"IF(ISBLANK('Info+Engagés'!B37),\"\",('Info+Engagés'!B37))","v":"Nom du cheval 26"},{"$f":"IF(ISBLANK('Info+Engagés'!G37),\"\",('Info+Engagés'!G37))","v":""},{"$f":"IF(OR(ISBLANK('Info+Engagés'!A37),ISBLANK('Info+Engagés'!H2)),\"\",('Cav26'!D42))","v":""},{"$f":"IF(OR(ISBLANK('Info+Engagés'!A37),ISBLANK('Info+Engagés'!H2)),\"\",RANK(D35,$D$10:$D$49))","v":""},{"$f":"IF(OR(ISBLANK('Info+Engagés'!A37),ISBLANK('Info+Engagés'!H3)),\"\",('Cav26'!E42))","v":""},{"$f":"IF(OR(ISBLANK('Info+Engagés'!A37),ISBLANK('Info+Engagés'!H3)),\"\",RANK(F35,$F$10:$F$49))","v":""},{"$f":"IF(OR(ISBLANK('Info+Engagés'!A37),ISBLANK('Info+Engagés'!H4)),\"\",('Cav26'!F42))","v":11.666666666666666},{"$f":"IF(OR(ISBLANK('Info+Engagés'!A37),ISBLANK('Info+Engagés'!H4)),\"\",RANK(H35,$H$10:$H$49))","v":26},{"$f":"IF(OR(ISBLANK('Info+Engagés'!A37),ISBLANK('Info+Engagés'!H5)),\"\",('Cav26'!G42))","v":""},{"$f":"IF(OR(ISBLANK('Info+Engagés'!A37),ISBLANK('Info+Engagés'!H5)),\"\",RANK(J35,$J$10:$J$49))","v":""},{"$f":"IF(OR(ISBLANK('Info+Engagés'!A37),ISBLANK('Info+Engagés'!H6)),\"\",('Cav26'!H42))","v":""},{"$f":"IF(OR(ISBLANK('Info+Engagés'!A37),ISBLANK('Info+Engagés'!H6)),\"\",RANK(L35,$L$10:$L$49))","v":""},{"$f":"IF(ISBLANK('Info+Engagés'!A37),\"\",('Cav26'!I4))","v":35},{"$f":"IF(ISBLANK('Info+Engagés'!A37),\"\",('Cav26'!I5))","v":11.666666666666666},{"$f":"IF(ISBLANK('Info+Engagés'!$A$37),\"\",IF(RANK(U35,$U$10:$U$49)<4,RANK(U35,$U$10:$U$49),RANK(O35,$O$10:$O$49)))","v":26},null,{"$f":"IF(ISBLANK('Info+Engagés'!A37),\"\",'Cav26'!I3)","v":0},{"$f":"IF(ISBLANK('Cav26'!F41),\"\",-('Cav26'!F41)/100)","v":""},0,11.666666666666666,0,null,null,null,null,null,30,0]
[{"$f":"IF(ISBLANK('Info+Engagés'!A38),\"\",('Info+Engagés'!A38))","v":27},{"$f":"IF(ISBLANK('Info+Engagés'!B38),\"\",('Info+Engagés'!B38))","v":"Nom du cheval 27"},{"$f":"IF(ISBLANK('Info+Engagés'!G38),\"\",('Info+Engagés'!G38))","v":""},{"$f":"IF(OR(ISBLANK('Info+Engagés'!A38),ISBLANK('Info+Engagés'!H2)),\"\",('Cav27'!D42))","v":""},{"$f":"IF(OR(ISBLANK('Info+Engagés'!A38),ISBLANK('Info+Engagés'!H2)),\"\",RANK(D36,$D$10:$D$49))","v":""},{"$f":"IF(OR(ISBLANK('Info+Engagés'!A38),ISBLANK('Info+Engagés'!H3)),\"\",('Cav27'!E42))","v":""},{"$f":"IF(OR(ISBLANK('Info+Engagés'!A38),ISBLANK('Info+Engagés'!H3)),\"\",RANK(F36,$F$10:$F$49))","v":""},{"$f":"IF(OR(ISBLANK('Info+Engagés'!A38),ISBLANK('Info+Engagés'!H4)),\"\",('Cav27'!F42))","v":11.333333333333334},{"$f":"IF(OR(ISBLANK('Info+Engagés'!A38),ISBLANK('Info+Engagés'!H4)),\"\",RANK(H36,$H$10:$H$49))","v":27},{"$f":"IF(OR(ISBLANK('Info+Engagés'!A38),ISBLANK('Info+Engagés'!H5)),\"\",('Cav27'!G42))","v":""},{"$f":"IF(OR(ISBLANK('Info+Engagés'!A38),ISBLANK('Info+Engagés'!H5)),\"\",RANK(J36,$J$10:$J$49))","v":""},{"$f":"IF(OR(ISBLANK('Info+Engagés'!A38),ISBLANK('Info+Engagés'!H6)),\"\",('Cav27'!H42))","v":""},{"$f":"IF(OR(ISBLANK('Info+Engagés'!A38),ISBLANK('Info+Engagés'!H6)),\"\",RANK(L36,$L$10:$L$49))","v":""},{"$f":"IF(ISBLANK('Info+Engagés'!A38),\"\",('Cav27'!I4))","v":34},{"$f":"IF(ISBLANK('Info+Engagés'!A38),\"\",('Cav27'!I5))","v":11.333333333333334},{"$f":"IF(ISBLANK('Info+Engagés'!$A$38),\"\",IF(RANK(U36,$U$10:$U$49)<4,RANK(U36,$U$10:$U$49),RANK(O36,$O$10:$O$49)))","v":27},null,{"$f":"IF(ISBLANK('Info+Engagés'!A38),\"\",'Cav27'!I3)","v":0},{"$f":"IF(ISBLANK('Cav27'!F41),\"\",-('Cav27'!F41)/100)","v":""},0,11.333333333333334,0,null,null,null,null,null,31,0]
[{"$f":"IF(ISBLANK('Info+Engagés'!A39),\"\",('Info+Engagés'!A39))","v":28},{"$f":"IF(ISBLANK('Info+Engagés'!B39),\"\",('Info+Engagés'!B39))","v":"Nom du cheval 28"},{"$f":"IF(ISBLANK('Info+Engagés'!G39),\"\",('Info+Engagés'!G39))","v":""},{"$f":"IF(OR(ISBLANK('Info+Engagés'!A39),ISBLANK('Info+Engagés'!H2)),\"\",('Cav28'!D42))","v":""},{"$f":"IF(OR(ISBLANK('Info+Engagés'!A39),ISBLANK('Info+Engagés'!H2)),\"\",RANK(D37,$D$10:$D$49))","v":""},{"$f":"IF(OR(ISBLANK('Info+Engagés'!A39),ISBLANK('Info+Engagés'!H3)),\"\",('Cav28'!E42))","v":""},{"$f":"IF(OR(ISBLANK('Info+Engagés'!A39),ISBLANK('Info+Engagés'!H3)),\"\",RANK(F37,$F$10:$F$49))","v":""},{"$f":"IF(OR(ISBLANK('Info+Engagés'!A39),ISBLANK('Info+Engagés'!H4)),\"\",('Cav28'!F42))","v":11},{"$f":"IF(OR(ISBLANK('Info+Engagés'!A39),ISBLANK('Info+Engagés'!H4)),\"\",RANK(H37,$H$10:$H$49))","v":28},{"$f":"IF(OR(ISBLANK('Info+Engagés'!A39),ISBLANK('Info+Engagés'!H5)),\"\",('Cav28'!G42))","v":""},{"$f":"IF(OR(ISBLANK('Info+Engagés'!A39),ISBLANK('Info+Engagés'!H5)),\"\",RANK(J37,$J$10:$J$49))","v":""},{"$f":"IF(OR(ISBLANK('Info+Engagés'!A39),ISBLANK('Info+Engagés'!H6)),\"\",('Cav28'!H42))","v":""},{"$f":"IF(OR(ISBLANK('Info+Engagés'!A39),ISBLANK('Info+Engagés'!H6)),\"\",RANK(L37,$L$10:$L$49))","v":""},{"$f":"IF(ISBLANK('Info+Engagés'!A39),\"\",('Cav28'!I4))","v":33},{"$f":"IF(ISBLANK('Info+Engagés'!A39),\"\",('Cav28'!I5))","v":11},{"$f":"IF(ISBLANK('Info+Engagés'!$A$39),\"\",IF(RANK(U37,$U$10:$U$49)<4,RANK(U37,$U$10:$U$49),RANK(O37,$O$10:$O$49)))","v":28},null,{"$f":"IF(ISBLANK('Info+Engagés'!A39),\"\",'Cav28'!I3)","v":0},{"$f":"IF(ISBLANK('Cav28'!F41),\"\",-('Cav28'!F41)/100)","v":""},0,11,0,null,null,null,null,null,32,0]
[{"$f":"IF(ISBLANK('Info+Engagés'!A40),\"\",('Info+Engagés'!A40))","v":29},{"$f":"IF(ISBLANK('Info+Engagés'!B40),\"\",('Info+Engagés'!B40))","v":"Nom du cheval 29"},{"$f":"IF(ISBLANK('Info+Engagés'!G40),\"\",('Info+Engagés'!G40))","v":""},{"$f":"IF(OR(ISBLANK('Info+Engagés'!A40),ISBLANK('Info+Engagés'!H2)),\"\",('Cav29'!D42))","v":""},{"$f":"IF(OR(ISBLANK('Info+Engagés'!A40),ISBLANK('Info+Engagés'!H2)),\"\",RANK(D38,$D$10:$D$49))","v":""},{"$f":"IF(OR(ISBLANK('Info+Engagés'!A40),ISBLANK('Info+Engagés'!H3)),\"\",('Cav29'!E42))","v":""},{"$f":"IF(OR(ISBLANK('Info+Engagés'!A40),ISBLANK('Info+Engagés'!H3)),\"\",RANK(F38,$F$10:$F$49))","v":""},{"$f":"IF(OR(ISBLANK('Info+Engagés'!A40),ISBLANK('Info+Engagés'!H4)),\"\",('Cav29'!F42))","v":10.666666666666666},{"$f":"IF(OR(ISBLANK('Info+Engagés'!A40),ISBLANK('Info+Engagés'!H4)),\"\",RANK(H38,$H$10:$H$49))","v":29},{"$f":"IF(OR(ISBLANK('Info+Engagés'!A40),ISBLANK('Info+Engagés'!H5)),\"\",('Cav29'!G42))","v":""},{"$f":"IF(OR(ISBLANK('Info+Engagés'!A40),ISBLANK('Info+Engagés'!H5)),\"\",RANK(J38,$J$10:$J$49))","v":""},{"$f":"IF(OR(ISBLANK('Info+Engagés'!A40),ISBLANK('Info+Engagés'!H6)),\"\",('Cav29'!H42))","v":""},{"$f":"IF(OR(ISBLANK('Info+Engagés'!A40),ISBLANK('Info+Engagés'!H6)),\"\",RANK(L38,$L$10:$L$49))","v":""},{"$f":"IF(ISBLANK('Info+Engagés'!A40),\"\",('Cav29'!I4))","v":32},{"$f":"IF(ISBLANK('Info+Engagés'!A40),\"\",('Cav29'!I5))","v":10.666666666666666},{"$f":"IF(ISBLANK('Info+Engagés'!$A$40),\"\",IF(RANK(U38,$U$10:$U$49)<4,RANK(U38,$U$10:$U$49),RANK(O38,$O$10:$O$49)))","v":29},null,{"$f":"IF(ISBLANK('Info+Engagés'!A40),\"\",'Cav29'!I3)","v":0},{"$f":"IF(ISBLANK('Cav29'!F41),\"\",-('Cav29'!F41)/100)","v":""},0,10.666666666666666,0,null,null,null,null,null,33,0]
[{"$f":"IF(ISBLANK('Info+Engagés'!A41),\"\",('Info+Engagés'!A41))","v":30},{"$f":"IF(ISBLANK('Info+Engagés'!B41),\"\",('Info+Engagés'!B41))","v":"Nom du cheval 30"},{"$f":"IF(ISBLANK('Info+Engagés'!G41),\"\",('Info+Engagés'!G41))","v":""},{"$f":"IF(OR(ISBLANK('Info+Engagés'!A41),ISBLANK('Info+Engagés'!H2)),\"\",('Cav30'!D42))","v":""},{"$f":"IF(OR(ISBLANK('Info+Engagés'!A41),ISBLANK('Info+Engagés'!H2)),\"\",RANK(D39,$D$10:$D$49))","v":""},{"$f":"IF(OR(ISBLANK('Info+Engagés'!A41),ISBLANK('Info+Engagés'!H3)),\"\",('Cav30'!E42))","v":""},{"$f":"IF(OR(ISBLANK('Info+Engagés'!A41),ISBLANK('Info+Engagés'!H3)),\"\",RANK(F39,$F$10:$F$49))","v":""},{"$f":"IF(OR(ISBLANK('Info+Engagés'!A41),ISBLANK('Info+Engagés'!H4)),\"\",('Cav30'!F42))","v":10.333333333333334},{"$f":"IF(OR(ISBLANK('Info+Engagés'!A41),ISBLANK('Info+Engagés'!H4)),\"\",RANK(H39,$H$10:$H$49))","v":30},{"$f":"IF(OR(ISBLANK('Info+Engagés'!A41),ISBLANK('Info+Engagés'!H5)),\"\",('Cav30'!G42))","v":""},{"$f":"IF(OR(ISBLANK('Info+Engagés'!A41),ISBLANK('Info+Engagés'!H5)),\"\",RANK(J39,$J$10:$J$49))","v":""},{"$f":"IF(OR(ISBLANK('Info+Engagés'!A41),ISBLANK('Info+Engagés'!H6)),\"\",('Cav30'!H42))","v":""},{"$f":"IF(OR(ISBLANK('Info+Engagés'!A41),ISBLANK('Info+Engagés'!H6)),\"\",RANK(L39,$L$10:$L$49))","v":""},{"$f":"IF(ISBLANK('Info+Engagés'!A41),\"\",('Cav30'!I4))","v":31},{"$f":"IF(ISBLANK('Info+Engagés'!A41),\"\",('Cav30'!I5))","v":10.333333333333334},{"$f":"IF(ISBLANK('Info+Engagés'!$A$41),\"\",IF(RANK(U39,$U$10:$U$49)<4,RANK(U39,$U$10:$U$49),RANK(O39,$O$10:$O$49)))","v":30},null,{"$f":"IF(ISBLANK('Info+Engagés'!A41),\"\",'Cav30'!I3)","v":0},{"$f":"IF(ISBLANK('Cav30'!F41),\"\",-('Cav30'!F41)/100)","v":""},0,10.333333333333334,0,null,null,null,null,null,34,0]
[{"$f":"IF(ISBLANK('Info+Engagés'!A42),\"\",('Info+Engagés'!A42))","v":31},{"$f":"IF(ISBLANK('Info+Engagés'!B42),\"\",('Info+Engagés'!B42))","v":"Nom du cheval 31"},{"$f":"IF(ISBLANK('Info+Engagés'!G42),\"\",('Info+Engagés'!G42))","v":""},{"$f":"IF(OR(ISBLANK('Info+Engagés'!A42),ISBLANK('Info+Engagés'!H2)),\"\",('Cav31'!D42))","v":""},{"$f":"IF(OR(ISBLANK('Info+Engagés'!A42),ISBLANK('Info+Engagés'!H2)),\"\",RANK(D40,$D$10:$D$49))","v":""},{"$f":"IF(OR(ISBLANK('Info+Engagés'!A42),ISBLANK('Info+Engagés'!H3)),\"\",('Cav31'!E42))","v":""},{"$f":"IF(OR(ISBLANK('Info+Engagés'!A42),ISBLANK('Info+Engagés'!H3)),\"\",RANK(F40,$F$10:$F$49))","v":""},{"$f":"IF(OR(ISBLANK('Info+Engagés'!A42),ISBLANK('Info+Engagés'!H4)),\"\",('Cav31'!F42))","v":10},{"$f":"IF(OR(ISBLANK('Info+Engagés'!A42),ISBLANK('Info+Engagés'!H4)),\"\",RANK(H40,$H$10:$H$49))","v":31},{"$f":"IF(OR(ISBLANK('Info+Engagés'!A42),ISBLANK('Info+Engagés'!H5)),\"\",('Cav31'!G42))","v":""},{"$f":"IF(OR(ISBLANK('Info+Engagés'!A42),ISBLANK('Info+Engagés'!H5)),\"\",RANK(J40,$J$10:$J$49))","v":""},{"$f":"IF(OR(ISBLANK('Info+Engagés'!A42),ISBLANK('Info+Engagés'!H6)),\"\",('Cav31'!H42))","v":""},{"$f":"IF(OR(ISBLANK('Info+Engagés'!A42),ISBLANK('Info+Engagés'!H6)),\"\",RANK(L40,$L$10:$L$49))","v":""},{"$f":"IF(ISBLANK('Info+Engagés'!A42),\"\",('Cav31'!I4))","v":30},{"$f":"IF(ISBLANK('Info+Engagés'!A42),\"\",('Cav31'!I5))","v":10},{"$f":"IF(ISBLANK('Info+Engagés'!$A$42),\"\",IF(RANK(U40,$U$10:$U$49)<4,RANK(U40,$U$10:$U$49),RANK(O40,$O$10:$O$49)))","v":31},null,{"$f":"IF(ISBLANK('Info+Engagés'!A42),\"\",'Cav31'!I3)","v":0},{"$f":"IF(ISBLANK('Cav31'!F41),\"\",-('Cav31'!F41)/100)","v":""},0,10,0,null,null,null,null,null,35,0]
[{"$f":"IF(ISBLANK('Info+Engagés'!A43),\"\",('Info+Engagés'!A43))","v":32},{"$f":"IF(ISBLANK('Info+Engagés'!B43),\"\",('Info+Engagés'!B43))","v":"Nom du cheval 32"},{"$f":"IF(ISBLANK('Info+Engagés'!G43),\"\",('Info+Engagés'!G43))","v":""},{"$f":"IF(OR(ISBLANK('Info+Engagés'!A43),ISBLANK('Info+Engagés'!H2)),\"\",('Cav32'!D42))","v":""},{"$f":"IF(OR(ISBLANK('Info+Engagés'!A43),ISBLANK('Info+Engagés'!H2)),\"\",RANK(D41,$D$10:$D$49))","v":""},{"$f":"IF(OR(ISBLANK('Info+Engagés'!A43),ISBLANK('Info+Engagés'!H3)),\"\",('Cav32'!E42))","v":""},{"$f":"IF(OR(ISBLANK('Info+Engagés'!A43),ISBLANK('Info+Engagés'!H3)),\"\",RANK(F41,$F$10:$F$49))","v":""},{"$f":"IF(OR(ISBLANK('Info+Engagés'!A43),ISBLANK('Info+Engagés'!H4)),\"\",('Cav32'!F42))","v":9.6666666666666661},{"$f":"IF(OR(ISBLANK('Info+Engagés'!A43),ISBLANK('Info+Engagés'!H4)),\"\",RANK(H41,$H$10:$H$49))","v":32},{"$f":"IF(OR(ISBLANK('Info+Engagés'!A43),ISBLANK('Info+Engagés'!H5)),\"\",('Cav32'!G42))","v":""},{"$f":"IF(OR(ISBLANK('Info+Engagés'!A43),ISBLANK('Info+Engagés'!H5)),\"\",RANK(J41,$J$10:$J$49))","v":""},{"$f":"IF(OR(ISBLANK('Info+Engagés'!A43),ISBLANK('Info+Engagés'!H6)),\"\",('Cav32'!H42))","v":""},{"$f":"IF(OR(ISBLANK('Info+Engagés'!A43),ISBLANK('Info+Engagés'!H6)),\"\",RANK(L41,$L$10:$L$49))","v":""},{"$f":"IF(ISBLANK('Info+Engagés'!A43),\"\",('Cav32'!I4))","v":29},{"$f":"IF(ISBLANK('Info+Engagés'!A43),\"\",('Cav32'!I5))","v":9.6666666666666661},{"$f":"IF(ISBLANK('Info+Engagés'!$A$43),\"\",IF(RANK(U41,$U$10:$U$49)<4,RANK(U41,$U$10:$U$49),RANK(O41,$O$10:$O$49)))","v":32},null,{"$f":"IF(ISBLANK('Info+Engagés'!A43),\"\",'Cav32'!I3)","v":0},{"$f":"IF(ISBLANK('Cav32'!F41),\"\",-('Cav32'!F41)/100)","v":""},0,9.6666666666666661,0,null,null,null,null,null,36,0]
[{"$f":"IF(ISBLANK('Info+Engagés'!A44),\"\",('Info+Engagés'!A44))","v":33},{"$f":"IF(ISBLANK('Info+Engagés'!B44),\"\",('Info+Engagés'!B44))","v":"Nom du cheval 33"},{"$f":"IF(ISBLANK('Info+Engagés'!G44),\"\",('Info+Engagés'!G44))","v":""},{"$f":"IF(OR(ISBLANK('Info+Engagés'!A44),ISBLANK('Info+Engagés'!H2)),\"\",('Cav33'!D42))","v":""},{"$f":"IF(OR(ISBLANK('Info+Engagés'!A44),ISBLANK('Info+Engagés'!H2)),\"\",RANK(D42,$D$10:$D$49))","v":""},{"$f":"IF(OR(ISBLANK('Info+Engagés'!A44),ISBLANK('Info+Engagés'!H3)),\"\",('Cav33'!E42))","v":""},{"$f":"IF(OR(ISBLANK('Info+Engagés'!A44),ISBLANK('Info+Engagés'!H3)),\"\",RANK(F42,$F$10:$F$49))","v":""},{"$f":"IF(OR(ISBLANK('Info+Engagés'!A44),ISBLANK('Info+Engagés'!H4)),\"\",('Cav33'!F42))","v":9.3333333333333339},{"$f":"IF(OR(ISBLANK('Info+Engagés'!A44),ISBLANK('Info+Engagés'!H4)),\"\",RANK(H42,$H$10:$H$49))","v":33},{"$f":"IF(OR(ISBLANK('Info+Engagés'!A44),ISBLANK('Info+Engagés'!H5)),\"\",('Cav33'!G42))","v":""},{"$f":"IF(OR(ISBLANK('Info+Engagés'!A44),ISBLANK('Info+Engagés'!H5)),\"\",RANK(J42,$J$10:$J$49))","v":""},{"$f":"IF(OR(ISBLANK('Info+Engagés'!A44),ISBLANK('Info+Engagés'!H6)),\"\",('Cav33'!H42))","v":""},{"$f":"IF(OR(ISBLANK('Info+Engagés'!A44),ISBLANK('Info+Engagés'!H6)),\"\",RANK(L42,$L$10:$L$49))","v":""},{"$f":"IF(ISBLANK('Info+Engagés'!A44),\"\",('Cav33'!I4))","v":28},{"$f":"IF(ISBLANK('Info+Engagés'!A44),\"\",('Cav33'!I5))","v":9.3333333333333339},{"$f":"IF(ISBLANK('Info+Engagés'!$A$44),\"\",IF(RANK(U42,$U$10:$U$49)<4,RANK(U42,$U$10:$U$49),RANK(O42,$O$10:$O$49)))","v":33},null,{"$f":"IF(ISBLANK('Info+Engagés'!A44),\"\",'Cav33'!I3)","v":0},{"$f":"IF(ISBLANK('Cav33'!F41),\"\",-('Cav33'!F41)/100)","v":""},0,9.3333333333333339,0,null,null,null,null,null,37,0]
[{"$f":"IF(ISBLANK('Info+Engagés'!A45),\"\",('Info+Engagés'!A45))","v":34},{"$f":"IF(ISBLANK('Info+Engagés'!B45),\"\",('Info+Engagés'!B45))","v":"Nom du cheval 34"},{"$f":"IF(ISBLANK('Info+Engagés'!G45),\"\",('Info+Engagés'!G45))","v":""},{"$f":"IF(OR(ISBLANK('Info+Engagés'!A45),ISBLANK('Info+Engagés'!H2)),\"\",('Cav34'!D42))","v":""},{"$f":"IF(OR(ISBLANK('Info+Engagés'!A45),ISBLANK('Info+Engagés'!H2)),\"\",RANK(D43,$D$10:$D$49))","v":""},{"$f":"IF(OR(ISBLANK('Info+Engagés'!A45),ISBLANK('Info+Engagés'!H3)),\"\",('Cav34'!E42))","v":""},{"$f":"IF(OR(ISBLANK('Info+Engagés'!A45),ISBLANK('Info+Engagés'!H3)),\"\",RANK(F43,$F$10:$F$49))","v":""},{"$f":"IF(OR(ISBLANK('Info+Engagés'!A45),ISBLANK('Info+Engagés'!H4)),\"\",('Cav34'!F42))","v":9},{"$f":"IF(OR(ISBLANK('Info+Engagés'!A45),ISBLANK('Info+Engagés'!H4)),\"\",RANK(H43,$H$10:$H$49))","v":34},{"$f":"IF(OR(ISBLANK('Info+Engagés'!A45),ISBLANK('Info+Engagés'!H5)),\"\",('Cav34'!G42))","v":""},{"$f":"IF(OR(ISBLANK('Info+Engagés'!A45),ISBLANK('Info+Engagés'!H5)),\"\",RANK(J43,$J$10:$J$49))","v":""},{"$f":"IF(OR(ISBLANK('Info+Engagés'!A45),ISBLANK('Info+Engagés'!H6)),\"\",('Cav34'!H42))","v":""},{"$f":"IF(OR(ISBLANK('Info+Engagés'!A45),ISBLANK('Info+Engagés'!H6)),\"\",RANK(L43,$L$10:$L$49))","v":""},{"$f":"IF(ISBLANK('Info+Engagés'!A45),\"\",('Cav34'!I4))","v":27},{"$f":"IF(ISBLANK('Info+Engagés'!A45),\"\",('Cav34'!I5))","v":9},{"$f":"IF(ISBLANK('Info+Engagés'!$A$45),\"\",IF(RANK(U43,$U$10:$U$49)<4,RANK(U43,$U$10:$U$49),RANK(O43,$O$10:$O$49)))","v":34},null,{"$f":"IF(ISBLANK('Info+Engagés'!A45),\"\",'Cav34'!I3)","v":0},{"$f":"IF(ISBLANK('Cav34'!F41),\"\",-('Cav34'!F41)/100)","v":""},0,9,0,null,null,null,null,null,38,0]
[{"$f":"IF(ISBLANK('Info+Engagés'!A46),\"\",('Info+Engagés'!A46))","v":35},{"$f":"IF(ISBLANK('Info+Engagés'!B46),\"\",('Info+Engagés'!B46))","v":"Nom du cheval 35"},{"$f":"IF(ISBLANK('Info+Engagés'!G46),\"\",('Info+Engagés'!G46))","v":""},{"$f":"IF(OR(ISBLANK('Info+Engagés'!A46),ISBLANK('Info+Engagés'!H2)),\"\",('Cav35'!D42))","v":""},{"$f":"IF(OR(ISBLANK('Info+Engagés'!A46),ISBLANK('Info+Engagés'!H2)),\"\",RANK(D44,$D$10:$D$49))","v":""},{"$f":"IF(OR(ISBLANK('Info+Engagés'!A46),ISBLANK('Info+Engagés'!H3)),\"\",('Cav35'!E42))","v":""},{"$f":"IF(OR(ISBLANK('Info+Engagés'!A46),ISBLANK('Info+Engagés'!H3)),\"\",RANK(F44,$F$10:$F$49))","v":""},{"$f":"IF(OR(ISBLANK('Info+Engagés'!A46),ISBLANK('Info+Engagés'!H4)),\"\",('Cav35'!F42))","v":8.6666666666666661},{"$f":"IF(OR(ISBLANK('Info+Engagés'!A46),ISBLANK('Info+Engagés'!H4)),\"\",RANK(H44,$H$10:$H$49))","v":35},{"$f":"IF(OR(ISBLANK('Info+Engagés'!A46),ISBLANK('Info+Engagés'!H5)),\"\",('Cav35'!G42))","v":""},{"$f":"IF(OR(ISBLANK('Info+Engagés'!A46),ISBLANK('Info+Engagés'!H5)),\"\",RANK(J44,$J$10:$J$49))","v":""},{"$f":"IF(OR(ISBLANK('Info+Engagés'!A46),ISBLANK('Info+Engagés'!H6)),\"\",('Cav35'!H42))","v":""},{"$f":"IF(OR(ISBLANK('Info+Engagés'!A46),ISBLANK('Info+Engagés'!H6)),\"\",RANK(L44,$L$10:$L$49))","v":""},{"$f":"IF(ISBLANK('Info+Engagés'!A46),\"\",('Cav35'!I4))","v":26},{"$f":"IF(ISBLANK('Info+Engagés'!A46),\"\",('Cav35'!I5))","v":8.6666666666666661},{"$f":"IF(ISBLANK('Info+Engagés'!$A$46),\"\",IF(RANK(U44,$U$10:$U$49)<4,RANK(U44,$U$10:$U$49),RANK(O44,$O$10:$O$49)))","v":35},null,{"$f":"IF(ISBLANK('Info+Engagés'!A46),\"\",'Cav35'!I3)","v":0},{"$f":"IF(ISBLANK('Cav35'!F41),\"\",-('Cav35'!F41)/100)","v":""},0,8.6666666666666661,0,null,null,null,null,null,39,0]
[{"$f":"IF(ISBLANK('Info+Engagés'!A47),\"\",('Info+Engagés'!A47))","v":36},{"$f":"IF(ISBLANK('Info+Engagés'!B47),\"\",('Info+Engagés'!B47))","v":"Nom du cheval 36"},{"$f":"IF(ISBLANK('Info+Engagés'!G47),\"\",('Info+Engagés'!G47))","v":""},{"$f":"IF(OR(ISBLANK('Info+Engagés'!A46),ISBLANK('Info+Engagés'!H2)),\"\",('Cav36'!D42))","v":""},{"$f":"IF(OR(ISBLANK('Info+Engagés'!A47),ISBLANK('Info+Engagés'!H2)),\"\",RANK(D45,$D$10:$D$49))","v":""},{"$f":"IF(OR(ISBLANK('Info+Engagés'!A47),ISBLANK('Info+Engagés'!H3)),\"\",('Cav36'!E42))","v":""},{"$f":"IF(OR(ISBLANK('Info+Engagés'!A47),ISBLANK('Info+Engagés'!H3)),\"\",RANK(F45,$F$10:$F$49))","v":""},{"$f":"IF(OR(ISBLANK('Info+Engagés'!A47),ISBLANK('Info+Engagés'!H4)),\"\",('Cav36'!F42))","v":8.3333333333333339},{"$f":"IF(OR(ISBLANK('Info+Engagés'!A47),ISBLANK('Info+Engagés'!H4)),\"\",RANK(H45,$H$10:$H$49))","v":36},{"$f":"IF(OR(ISBLANK('Info+Engagés'!A47),ISBLANK('Info+Engagés'!H5)),\"\",('Cav36'!G42))","v":""},{"$f":"IF(OR(ISBLANK('Info+Engagés'!A47),ISBLANK('Info+Engagés'!H5)),\"\",RANK(J45,$J$10:$J$49))","v":""},{"$f":"IF(OR(ISBLANK('Info+Engagés'!A47),ISBLANK('Info+Engagés'!H6)),\"\",('Cav36'!H42))","v":""},{"$f":"IF(OR(ISBLANK('Info+Engagés'!A47),ISBLANK('Info+Engagés'!H6)),\"\",RANK(L45,$L$10:$L$49))","v":""},{"$f":"IF(ISBLANK('Info+Engagés'!A47),\"\",('Cav36'!I4))","v":25},{"$f":"IF(ISBLANK('Info+Engagés'!A47),\"\",('Cav36'!I5))","v":8.3333333333333339},{"$f":"IF(ISBLANK('Info+Engagés'!$A$47),\"\",IF(RANK(U45,$U$10:$U$49)<4,RANK(U45,$U$10:$U$49),RANK(O45,$O$10:$O$49)))","v":36},null,{"$f":"IF(ISBLANK('Info+Engagés'!A47),\"\",'Cav36'!I3)","v":0},{"$f":"IF(ISBLANK('Cav36'!F41),\"\",-('Cav36'!F41)/100)","v":""},0,8.3333333333333339,0,null,null,null,null,null,40,0]
[{"$f":"IF(ISBLANK('Info+Engagés'!A48),\"\",('Info+Engagés'!A48))","v":37},{"$f":"IF(ISBLANK('Info+Engagés'!B48),\"\",('Info+Engagés'!B48))","v":"Nom du cheval 37"},{"$f":"IF(ISBLANK('Info+Engagés'!G48),\"\",('Info+Engagés'!G48))","v":""},{"$f":"IF(OR(ISBLANK('Info+Engagés'!A48),ISBLANK('Info+Engagés'!H2)),\"\",('Cav37'!D42))","v":""},{"$f":"IF(OR(ISBLANK('Info+Engagés'!A48),ISBLANK('Info+Engagés'!H2)),\"\",RANK(D46,$D$10:$D$49))","v":""},{"$f":"IF(OR(ISBLANK('Info+Engagés'!A48),ISBLANK('Info+Engagés'!H3)),\"\",('Cav37'!E42))","v":""},{"$f":"IF(OR(ISBLANK('Info+Engagés'!A48),ISBLANK('Info+Engagés'!H3)),\"\",RANK(F46,$F$10:$F$49))","v":""},{"$f":"IF(OR(ISBLANK('Info+Engagés'!A48),ISBLANK('Info+Engagés'!H4)),\"\",('Cav37'!F42))","v":8},{"$f":"IF(OR(ISBLANK('Info+Engagés'!A48),ISBLANK('Info+Engagés'!H4)),\"\",RANK(H46,$H$10:$H$49))","v":37},{"$f":"IF(OR(ISBLANK('Info+Engagés'!A48),ISBLANK('Info+Engagés'!H5)),\"\",('Cav37'!G42))","v":""},{"$f":"IF(OR(ISBLANK('Info+Engagés'!A48),ISBLANK('Info+Engagés'!H5)),\"\",RANK(J46,$J$10:$J$49))","v":""},{"$f":"IF(OR(ISBLANK('Info+Engagés'!A48),ISBLANK('Info+Engagés'!H6)),\"\",('Cav37'!H42))","v":""},{"$f":"IF(OR(ISBLANK('Info+Engagés'!A48),ISBLANK('Info+Engagés'!H6)),\"\",RANK(L46,$L$10:$L$49))","v":""},{"$f":"IF(ISBLANK('Info+Engagés'!A48),\"\",('Cav37'!I4))","v":24},{"$f":"IF(ISBLANK('Info+Engagés'!A48),\"\",('Cav37'!I5))","v":8},{"$f":"IF(ISBLANK('Info+Engagés'!$A$48),\"\",IF(RANK(U46,$U$10:$U$49)<4,RANK(U46,$U$10:$U$49),RANK(O46,$O$10:$O$49)))","v":37},null,{"$f":"IF(ISBLANK('Info+Engagés'!A48),\"\",'Cav37'!I3)","v":0},{"$f":"IF(ISBLANK('Cav37'!F41),\"\",-('Cav37'!F41)/100)","v":""},0,8,0,null,null,null,null,null,41,0]
[{"$f":"IF(ISBLANK('Info+Engagés'!A49),\"\",('Info+Engagés'!A49))","v":38},{"$f":"IF(ISBLANK('Info+Engagés'!B49),\"\",('Info+Engagés'!B49))","v":"Nom du cheval 38"},{"$f":"IF(ISBLANK('Info+Engagés'!G49),\"\",('Info+Engagés'!G49))","v":""},{"$f":"IF(OR(ISBLANK('Info+Engagés'!A49),ISBLANK('Info+Engagés'!H2)),\"\",('Cav38'!D42))","v":""},{"$f":"IF(OR(ISBLANK('Info+Engagés'!A49),ISBLANK('Info+Engagés'!H2)),\"\",RANK(D47,$D$10:$D$49))","v":""},{"$f":"IF(OR(ISBLANK('Info+Engagés'!A49),ISBLANK('Info+Engagés'!H3)),\"\",('Cav38'!E42))","v":""},{"$f":"IF(OR(ISBLANK('Info+Engagés'!A49),ISBLANK('Info+Engagés'!H3)),\"\",RANK(F47,$F$10:$F$49))","v":""},{"$f":"IF(OR(ISBLANK('Info+Engagés'!A49),ISBLANK('Info+Engagés'!H4)),\"\",('Cav38'!F42))","v":7.666666666666667},{"$f":"IF(OR(ISBLANK('Info+Engagés'!A49),ISBLANK('Info+Engagés'!H4)),\"\",RANK(H47,$H$10:$H$49))","v":38},{"$f":"IF(OR(ISBLANK('Info+Engagés'!A49),ISBLANK('Info+Engagés'!H5)),\"\",('Cav38'!G42))","v":""},{"$f":"IF(OR(ISBLANK('Info+Engagés'!A49),ISBLANK('Info+Engagés'!H5)),\"\",RANK(J47,$J$10:$J$49))","v":""},{"$f":"IF(OR(ISBLANK('Info+Engagés'!A49),ISBLANK('Info+Engagés'!H6)),\"\",('Cav38'!H42))","v":""},{"$f":"IF(OR(ISBLANK('Info+Engagés'!A49),ISBLANK('Info+Engagés'!H6)),\"\",RANK(L47,$L$10:$L$49))","v":""},{"$f":"IF(ISBLANK('Info+Engagés'!A49),\"\",('Cav38'!I4))","v":23},{"$f":"IF(ISBLANK('Info+Engagés'!A49),\"\",('Cav38'!I5))","v":7.666666666666667},{"$f":"IF(ISBLANK('Info+Engagés'!$A$49),\"\",IF(RANK(U47,$U$10:$U$49)<4,RANK(U47,$U$10:$U$49),RANK(O47,$O$10:$O$49)))","v":38},null,{"$f":"IF(ISBLANK('Info+Engagés'!A49),\"\",'Cav38'!I3)","v":0},{"$f":"IF(ISBLANK('Cav38'!F41),\"\",-('Cav38'!F41)/100)","v":""},0,7.666666666666667,0,null,null,null,null,null,42,0]
[{"$f":"IF(ISBLANK('Info+Engagés'!A50),\"\",('Info+Engagés'!A50))","v":39},{"$f":"IF(ISBLANK('Info+Engagés'!B50),\"\",('Info+Engagés'!B50))","v":"Nom du cheval 39"},{"$f":"IF(ISBLANK('Info+Engagés'!G50),\"\",('Info+Engagés'!G50))","v":""},{"$f":"IF(OR(ISBLANK('Info+Engagés'!A50),ISBLANK('Info+Engagés'!H2)),\"\",('Cav39'!D42))","v":""},{"$f":"IF(OR(ISBLANK('Info+Engagés'!A50),ISBLANK('Info+Engagés'!H2)),\"\",RANK(D48,$D$10:$D$49))","v":""},{"$f":"IF(OR(ISBLANK('Info+Engagés'!A50),ISBLANK('Info+Engagés'!H3)),\"\",('Cav39'!E42))","v":""},{"$f":"IF(OR(ISBLANK('Info+Engagés'!A50),ISBLANK('Info+Engagés'!H3)),\"\",RANK(F48,$F$10:$F$49))","v":""},{"$f":"IF(OR(ISBLANK('Info+Engagés'!A50),ISBLANK('Info+Engagés'!H4)),\"\",('Cav39'!F42))","v":7.333333333333333},{"$f":"IF(OR(ISBLANK('Info+Engagés'!A50),ISBLANK('Info+Engagés'!H4)),\"\",RANK(H48,$H$10:$H$49))","v":39},{"$f":"IF(OR(ISBLANK('Info+Engagés'!A50),ISBLANK('Info+Engagés'!H5)),\"\",('Cav39'!G42))","v":""},{"$f":"IF(OR(ISBLANK('Info+Engagés'!A50),ISBLANK('Info+Engagés'!H5)),\"\",RANK(J48,$J$10:$J$49))","v":""},{"$f":"IF(OR(ISBLANK('Info+Engagés'!A50),ISBLANK('Info+Engagés'!H6)),\"\",('Cav39'!H42))","v":""},{"$f":"IF(OR(ISBLANK('Info+Engagés'!A50),ISBLANK('Info+Engagés'!H6)),\"\",RANK(L48,$L$10:$L$49))","v":""},{"$f":"IF(ISBLANK('Info+Engagés'!A50),\"\",('Cav39'!I4))","v":22},{"$f":"IF(ISBLANK('Info+Engagés'!A50),\"\",('Cav39'!I5))","v":7.333333333333333},{"$f":"IF(ISBLANK('Info+Engagés'!$A$50),\"\",IF(RANK(U48,$U$10:$U$49)<4,RANK(U48,$U$10:$U$49),RANK(O48,$O$10:$O$49)))","v":39},null,{"$f":"IF(ISBLANK('Info+Engagés'!A50),\"\",'Cav39'!I3)","v":0},{"$f":"IF(ISBLANK('Cav39'!F41),\"\",-('Cav39'!F41)/100)","v":""},0,7.333333333333333,0,null,null,null,null,null,43,0]
[{"$f":"IF(ISBLANK('Info+Engagés'!A51),\"\",('Info+Engagés'!A51))","v":40},{"$f":"IF(ISBLANK('Info+Engagés'!B51),\"\",('Info+Engagés'!B51))","v":""},{"$f":"IF(ISBLANK('Info+Engagés'!G51),\"\",('Info+Engagés'!G51))","v":""},{"$f":"IF(OR(ISBLANK('Info+Engagés'!A51),ISBLANK('Info+Engagés'!H2)),\"\",('Cav40'!D42))","v":""},{"$f":"IF(OR(ISBLANK('Info+Engagés'!A51),ISBLANK('Info+Engagés'!H2)),\"\",RANK(D49,$D$10:$D$49))","v":""},{"$f":"IF(OR(ISBLANK('Info+Engagés'!A51),ISBLANK('Info+Engagés'!H3)),\"\",('Cav40'!E42))","v":""},{"$f":"IF(OR(ISBLANK('Info+Engagés'!A51),ISBLANK('Info+Engagés'!H3)),\"\",RANK(F49,$F$10:$F$49))","v":""},{"$f":"IF(OR(ISBLANK('Info+Engagés'!A51),ISBLANK('Info+Engagés'!H4)),\"\",('Cav40'!F42))","v":0},{"$f":"IF(OR(ISBLANK('Info+Engagés'!A51),ISBLANK('Info+Engagés'!H4)),\"\",RANK(H49,$H$10:$H$49))","v":40},{"$f":"IF(OR(ISBLANK('Info+Engagés'!A51),ISBLANK('Info+Engagés'!H5)),\"\",('Cav40'!G42))","v":""},{"$f":"IF(OR(ISBLANK('Info+Engagés'!A51),ISBLANK('Info+Engagés'!H5)),\"\",RANK(J49,$J$10:$J$49))","v":""},{"$f":"IF(OR(ISBLANK('Info+Engagés'!A51),ISBLANK('Info+Engagés'!H6)),\"\",('Cav40'!H42))","v":""},{"$f":"IF(OR(ISBLANK('Info+Engagés'!A51),ISBLANK('Info+Engagés'!H6)),\"\",RANK(L49,$L$10:$L$49))","v":""},{"$f":"IF(ISBLANK('Info+Engagés'!A51),\"\",('Cav40'!I4))","v":0},{"$f":"IF(ISBLANK('Info+Engagés'!A51),\"\",('Cav40'!I5))","v":0},{"$f":"IF(ISBLANK('Info+Engagés'!$A$51),\"\",IF(RANK(U49,$U$10:$U$49)<4,RANK(U49,$U$10:$U$49),RANK(O49,$O$10:$O$49)))","v":40},null,{"$f":"IF(ISBLANK('Info+Engagés'!A51),\"\",'Cav40'!I3)","v":0},{"$f":"IF(ISBLANK('Cav40'!F41),\"\",-('Cav40'!F41)/100)","v":""},0,0,0,null,null,null,null,null,44,0]